{"text_format":"1","workbook":"xlsx","n_sheets":35,"sheets":["Tablas","INICIO","DIAGNÓSTICO DE UE","INFORMACIÓN INICIAL","DIAGNOSTICO DEL INCISO","RA COM","RA VISION","RA PART","RA SOPORTE","RA AP","RA ET","Registro de actividad","ACTIVIDADES","Registro de actores","ACTORES","Registro de impactos","IMPACTOS","Estrategia de capacitación","Estrategia de comunicación","UE 1","UE 2","UE 3","UE 4","UE 5","UE 6","UE 7","UE 8","UE 9","UE 10","UE 11","UE 12","Tablero de Actividades","Tablero de impactos","Tablero de Seguimiento","Tablas Tablero"],"not_rendered":{"charts":1,"images":5,"macros":1,"external_links":1,"defined_names":36,"comments":1,"pivot_tables":0},"unopened":[],"bounds":{"document_bytes":16777216,"sheet_cells":100000,"rows_first":2000,"rows_last":500,"rows_between":2000,"halvings":0,"cell_chars":16384,"cell_head_chars":4096},"cells_cut":0,"cells_raw":0,"read":"whole","date_system":"1900"}

{"sheet":"Tablas","index":0,"n_rows":227,"n_cols":4,"rows_kept":227,"cut":false,"hidden":false,"merged":[[129,1,137,1],[129,2,137,2],[47,1,48,1],[49,1,55,1],[39,1,46,1],[56,2,61,2],[62,2,70,2],[71,2,77,2],[121,1,128,1],[102,1,120,1],[97,1,101,1],[86,1,96,1],[78,1,85,1],[78,2,85,2],[86,2,96,2],[97,2,101,2],[30,1,38,1],[2,1,29,1],[71,1,77,1],[62,1,70,1],[56,1,61,1],[102,2,120,2],[121,2,128,2],[2,2,29,2],[30,2,38,2],[39,2,46,2],[47,2,48,2],[49,2,55,2]]}
[]
[]
[null,"Ministerio del Interior","MINT","Centro Nacional de Rehabilitación"]
[null,null,null,"Dirección de Asuntos Internos"]
[null,null,null,"Dirección General de Información e Inteligencia"]
[null,null,null,"Dirección General de Lucha contra el Crimen Organizado e INTERPOL"]
[null,null,null,"Dirección General de Represión del Tráfico Ilícito de Drogas"]
[null,null,null,"Dirección General de Secretaria"]
[null,null,null,"Dirección Nacional Cárceles"]
[null,null,null,"Dirección Nacional de Asistencia y Seguridad Social"]
[null,null,null,"Dirección Nacional de Bomberos"]
[null,null,null,"Dirección Nacional de Identificación Civil"]
[null,null,null,"Dirección Nacional de la Educación Policial"]
[null,null,null,"Dirección Nacional de Migración"]
[null,null,null,"Dirección Nacional de Policía Caminera"]
[null,null,null,"Dirección Nacional de Policía Científica"]
[null,null,null,"Dirección Nacional de Sanidad Policial"]
[null,null,null,"Dirección Nacional Técnica"]
[null,null,null,"Escuela Nacional de Policía"]
[null,null,null,"Estado Mayor Policial"]
[null,null,null,"Guardia Republicana"]
[null,null,null,"Inspección Nacional de Policía"]
[null,null,null,"Instituto Nacional de Rehabilitación"]
[null,null,null,"Jefatura Policial Montevideo"]
[null,null,null,"Mesas Locales para la Convivencia y Seguridad Ciudadana"]
[null,null,null,"Observatorio Nacional sobre Violencia y Criminalidad Uruguay"]
[null,null,null,"Patronato Nacional de Encarcelados y Liberados"]
[null,null,null,"Registro Nacional de Empresas de Seguridad"]
[null,null,null,"Unidad de Comunicación"]
[null,null,null,"Unidad de Relacionamiento Internacional"]
[null,"Ministerio de Economía y Finanzas","MEF","Contaduría General de la Nación"]
[null,null,null,"Auditoría Interna de la Nación"]
[null,null,null,"Tesorería General de la Nación"]
[null,null,null,"Dirección General Impositiva"]
[null,null,null,"Dirección Nacional de Aduanas"]
[null,null,null,"Dirección Nacional de Loteria y Quinielas"]
[null,null,null,"Dirección General de Catastro"]
[null,null,null,"Dirección General de Casinos"]
[null,null,null,"Dirección General de Comercio"]
[null,"Ministerio de Relaciones Exteriores","MRREE","Dirección General de Secretaría"]
[null,null,null,"Dirección General para Asuntos Técnicos Administrativos"]
[null,null,null,"Auditoría Interna de la Nación"]
[null,null,null,"Dirección General para Asuntos Políticos"]
[null,null,null,"Dirección General para Asuntos de Integración y MERCOSUR"]
[null,null,null,"Dirección General de Cooperación Internacional"]
[null,null,null,"Dirección General para Asuntos Culturales"]
[null,null,null,"Dirección General para Asuntos Consulares y Vinculación"]
[null,"Ministerio de Turismo","MINTUR","Dirección General de Secretaría"]
[null,null,null,"Otro"]
[null,"Ministerio de Transporte y Obras Públicas","MTOP","Despacho de la Secretaría de Estado y Oficinas Dependientes"]
[null,null,null,"Dirección Nacional de Vialidad"]
[null,null,null,"Dirección Nacional de Hidrografía"]
[null,null,null,"Dirección Nacional de Arquitectura"]
[null,null,null,"Dirección Nacional de Topografía"]
[null,null,null,"Dirección Nacional de Transporte"]
[null,null,null,"Dirección Nacional de Planificación y Logística"]
[null,"Ministerio de Salud Pública","MSP","Dirección General de Secretaría"]
[null,null,null,"Junta Nacional de Salud"]
[null,null,null,"Dirección General de la Salud"]
[null,null,null,"Instituto Nacional de Donación y Trasplante de Células, Tejidos y Órganos"]
[null,null,null,"Dirección General del Sistema Nacional Integrado de Salud"]
[null,null,null,"Dirección General de Coordinación"]
[null,"Ministerio de Ganadería, Agricultura y Pesca","MGAP","Dirección General de Secretaría"]
[null,null,null,"Dirección Nacional de Recursos Acuáticos"]
[null,null,null,"Dirección Nacional de Recursos Naturales"]
[null,null,null,"Dirección General de Servicios Agrícolas"]
[null,null,null,"Dirección General de Servicios Ganaderos"]
[null,null,null,"Dirección General de Control de Inocuidad Alimentaria"]
[null,null,null,"Dirección General de la Granja"]
[null,null,null,"Dirección General de Desarrollo Rural"]
[null,null,null,"Dirección General Forestal"]
[null,"Ministerio de Trabajo y Seguridad Social","MTSS","Dirección General de Secretaría"]
[null,null,null,"Dirección Nacional de Trabajo"]
[null,null,null,"Dirección Nacional de Empleo"]
[null,null,null,"Direccion Nacional de Coordinación con el Interior"]
[null,null,null,"Dirección Nacional de Seguridad Social"]
[null,null,null,"Instituto Nacional de Alimentación"]
[null,null,null,"Inspección General de Trabajo y de la Seguridad Social"]
[null,"Ministerio de Industria, Energía y Minería","MIEM","Dirección Nacional de Artesanías, Pequeñas y Medianas Empresas"]
[null,null,null,"Dirección General de Secretaría"]
[null,null,null,"Dirección Nacional de Industrias"]
[null,null,null,"Dirección Nacional de Minería y Geología"]
[null,null,null,"Dirección Nacional de la Propiedad Industrial"]
[null,null,null,"Dirección Nacional de Energía y Tecnología Nuclear"]
[null,null,null,"Dirección Nacional de Telecomunicaciones"]
[null,null,null,"Autoridad Reguladora Nacional en Radioprotección"]
[null,"Ministerio de Defensa Nacional","MDN","Dirección General de Secretaría"]
[null,null,null,"Dirección Nacional de Inteligencia del Estado"]
[null,null,null,"Comando General de la Armada"]
[null,null,null,"Comando General del Ejército"]
[null,null,null,"Comando General de Secretaría"]
[null,null,null,"Comando General de la Fuerza Aérea"]
[null,null,null,"Dirección Nacional de Sanidad de las Fuerzas Armadas"]
[null,null,null,"Dirección General de los Servicios de las Fuerzas Armadas"]
[null,null,null,"Servicio de Retiros y Pensiones de las Fuerzas Armadas"]
[null,null,null,"Dirección Nacional de Meteorología"]
[null,null,null,"Dirección Nacional de Aviación Civil e Infraestructura Aeronáutica"]
[null,"Ministerio de Vivienda, Ordenamiento Territorial y Medio Ambiente","MVOTMA","Dirección General de Secretaría"]
[null,null,null,"Dirección Nacional de Vivienda"]
[null,null,null,"Dirección Nacional de Ordenamiento Territorial"]
[null,null,null,"Dirección Nacional de Medio Ambiente"]
[null,null,null,"Dirección Nacional de Aguas y Saneamiento"]
[null,"Ministerio de Educación y Cultura","MEC","Dirección General de Secretaría"]
[null,null,null,"Dirección Nacional de Cultura"]
[null,null,null,"Museo Histórico Nacional"]
[null,null,null,"Museo Nacional de Historia Natural y Antropología"]
[null,null,null,"Archivo General de la Nación"]
[null,null,null,"Comisión del Patrimonio Cultural de la Nación"]
[null,null,null,"Museo Nacional de Artes Visuales"]
[null,null,null,"Instituto de Investigaciones Biológicas Clemente Estable"]
[null,null,null,"Dirección de Innovación, Ciencia y Tecnología para el Desarrollo"]
[null,null,null,"Dirección General de la Biblioteca Nacional"]
[null,null,null,"Servicio Oficial de Difusión, Radiotelevisión y Espectáculos"]
[null,null,null,"Fiscalías de Gobierno"]
[null,null,null,"Dirección General de Registros"]
[null,null,null,"Fiscalía de Corte y Procuradoría General de la Nación"]
[null,null,null,"Procuraduría del Estado en lo Contencioso Administrativo"]
[null,null,null,"Dirección General de Registro de Estado Civil"]
[null,null,null,"Junta de Transparencia y Ética Pública"]
[null,null,null,"Servicio de Televisión Nacional"]
[null,null,null,"Dirección de Educación"]
[null,"Presidencia de la República","PRESIDENCIA","Servicios de Apoyo de la Presidencia de la República"]
[null,null,null,"Casa Militar"]
[null,null,null,"Oficina de Planeamiento y Presupuesto"]
[null,null,null,"Unidad Reguladora de Servicios de Energía y Agua"]
[null,null,null,"Instituto Nacional de Estadística"]
[null,null,null,"Oficina Nacional del Servicio Civil"]
[null,null,null,"Unidad Reguladora de los Servicios en Comunicaciones"]
[null,null,null,"Agencia de Gobierno Electrónico y Sociedad de la Información"]
[null,"Ministerio de Desarrollo Social","MIDES","Dirección de Coordinación Territorial"]
[null,null,null,"Dirección de Evaluación de Programas"]
[null,null,null,"Dirección de Políticas Sociales"]
[null,null,null,"Dirección General de Secretaría"]
[null,null,null,"Dirección Nacional de Asistencia Crítica e Inclusión Social"]
[null,null,null,"Dirección Nacional de Desarrollo Ciudadano"]
[null,null,null,"Instituto de la Juventud"]
[null,null,null,"Instituto Nacional de la Familia y la Mujer"]
[null,null,null,"Sistema Nacional de Cuidados"]
[]
[null,"Ministerio del Interior"]
[null,"Ministerio de Desarrollo Social"]
[null,"Ministerio de Economía y Finanzas"]
[null,"Ministerio de Relaciones Exteriores"]
[null,"Ministerio de Turismo"]
[null,"Ministerio de Transporte y Obras Públicas"]
[null,"Ministerio de Salud Pública"]
[null,"Ministerio de Ganadería, Agricultura y Pesca"]
[null,"Ministerio de Trabajo y Seguridad Social"]
[null,"Ministerio de Industria, Energía y Minería"]
[null,"Ministerio de Defensa Nacional"]
[null,"Ministerio de Vivienda, Ordenamiento Territorial y Medio Ambiente"]
[null,"Ministerio de Educación y Cultura"]
[null,"Presidencia de la República"]
[]
[]
[null,"Tipo de actividad"]
[null,"Comunicación"]
[null,"Capacitación"]
[null,"Gestión de personas"]
[null,"Organización del trabajo"]
[null,"Otra"]
[]
[null,"Desencadenantes"]
[null,"Diagnóstico "]
[null,"Estrategia general"]
[null,"Plan específico  (Impactos)"]
[null,"Situación puntual o imprevisto"]
[]
[null,"Momento del impacto"]
[null,"Pre producción"]
[null,"Puesta en producción"]
[null,"Post producción"]
[]
[null,"Nivel del impacto"]
[null,"Positivo"]
[null,"Negativo"]
[null,"Sin definir"]
[]
[null,"Escala"]
[null,0]
[null,1]
[null,2]
[null,3]
[null,4]
[null,"N/A"]
[]
[null,"Factibilidad"]
[null,{"$f":"10/3","v":3.3333333333333335},2.5]
[null,{"$f":"B188/4","v":0.83333333333333337},{"$f":"C188/4","v":0.625}]
[]
[]
[null,"Ejecución"]
[null,"SI"]
[null,"NO"]
[]
[null,"Factibilidad"]
[null,"Complejidad de los trámites"]
[null,"Organización del trabajo"]
[null,"Infraestructura TI"]
[null,"Compromiso"]
[null,"Acuerdo"]
[null,"Liderazgo"]
[null,"Cultura digital"]
[]
[null,"Diagnostico del inciso"]
[null,"EQUIPO transversal"]
[null,"COMUNICACIÓN del proyecto"]
[null,"VISIÓN COMPARTIDA del cambio "]
[null,"PARTICIPACIÓN de involucrados directos"]
[null,"SOPORTE a usuarios "]
[null,"APOYO POLÍTICO"]
[]
[]
[null,"Capacidad impactada"]
[null,"Procesos del organismo"]
[null,"Estrucutra organizativa"]
[null,"Infraestrucutra y tecnología"]
[null,"Personas"]
[null,"Cultura"]
[null,"Poder"]
[null,"Otra"]
[]
[]
[null,"Entregables"]
[null,"Entregado"]
[]
[null,"Validado"]

{"sheet":"INICIO","index":1,"n_rows":0,"n_cols":0,"rows_kept":0,"cut":false,"hidden":false,"merged":[]}

{"sheet":"DIAGNÓSTICO DE UE","index":2,"n_rows":20,"n_cols":6,"rows_kept":20,"cut":false,"hidden":false,"merged":[[15,3,15,4],[4,3,4,9],[8,3,8,4],[9,3,9,4],[10,3,10,4],[11,3,11,4],[12,3,12,4],[13,3,13,4],[14,3,14,4],[29,6,29,7],[16,3,16,4],[17,3,17,4],[18,3,18,4],[18,7,20,10],[19,3,19,4],[23,6,23,7],[24,6,24,7],[25,6,25,7],[26,6,26,7],[27,6,27,7],[28,6,28,7],[41,6,41,7],[30,6,30,7],[31,6,31,7],[32,6,32,7],[33,6,33,7],[34,6,34,7],[35,6,35,7],[36,6,36,7],[37,6,37,7],[38,6,38,7],[39,6,39,7],[40,6,40,7],[53,6,53,7],[42,6,42,7],[43,6,43,7],[44,6,44,7],[45,6,45,7],[46,6,46,7],[47,6,47,7],[48,6,48,7],[49,6,49,7],[50,6,50,7],[51,6,51,7],[52,6,52,7],[65,6,65,7],[54,6,54,7],[55,6,55,7],[56,6,56,7],[57,6,57,7],[58,6,58,7],[59,6,59,7],[60,6,60,7],[61,6,61,7],[62,6,62,7],[63,6,63,7],[64,6,64,7],[77,6,77,7],[66,6,66,7],[67,6,67,7],[68,6,68,7],[69,6,69,7],[70,6,70,7],[71,6,71,7],[72,6,72,7],[73,6,73,7],[74,6,74,7],[75,6,75,7],[76,6,76,7],[89,6,89,7],[78,6,78,7],[79,6,79,7],[80,6,80,7],[81,6,81,7],[82,6,82,7],[83,6,83,7],[84,6,84,7],[85,6,85,7],[86,6,86,7],[87,6,87,7],[88,6,88,7],[96,6,96,7],[90,6,90,7],[91,6,91,7],[92,6,92,7],[93,6,93,7],[94,6,94,7],[95,6,95,7]]}
[]
[]
[]
[]
[null,null,null,"Diagnóstico de las Unidades Ejecutoras"]
[null,null,null,"(Para agragar información del Diagnóstico de la UE  presionar        ) "]
[]
[null,null,null,"Unidades Ejecutoras "]
[null,{"$f":"IF(#REF!=Tablas!B3,Tablas!C3,IF(#REF!=Tablas!B31,Tablas!C31,IF(#REF!=Tablas!B40,Tablas!C40,IF(#REF!=Tablas!B48,Tablas!C48,IF(#REF!=Tablas!B50,Tablas!C50,IF(#REF!=Tablas!B57,Tablas!C57,IF(#REF!=Tablas!B63,Tablas!C63,IF(#REF!=Tablas!B72,Tablas!C72,IF(#REF!=Tablas!B79,Tablas!C79,IF(#REF!=Tablas!B87,Tablas!C87,IF(#REF!=Tablas!B98,Tablas!C98,IF(#REF!=Tablas!B103,Tablas!C103,IF(#REF!=Tablas!B122,Tablas!C122,\" \")))))))))))))","v":{"$error":"#REF!"}},1,{"$f":"IF('INFORMACIÓN INICIAL'!D10<>0,'INFORMACIÓN INICIAL'!D10,\" \")","v":" "},null,"UNIDAD1"]
[null,null,2,{"$f":"IF('INFORMACIÓN INICIAL'!D11<>0,'INFORMACIÓN INICIAL'!D11,\" \")","v":" "},null,"UNIDAD2"]
[null,null,3,{"$f":"IF('INFORMACIÓN INICIAL'!D12<>0,'INFORMACIÓN INICIAL'!D12,\" \")","v":" "},null,"UNIDAD3"]
[null,null,4,{"$f":"IF('INFORMACIÓN INICIAL'!D13<>0,'INFORMACIÓN INICIAL'!D13,\" \")","v":" "},null,"UNIDAD4"]
[null,null,5,{"$f":"IF('INFORMACIÓN INICIAL'!D14<>0,'INFORMACIÓN INICIAL'!D14,\" \")","v":" "},null,"UNIDAD5"]
[null,null,6,{"$f":"IF('INFORMACIÓN INICIAL'!D15<>0,'INFORMACIÓN INICIAL'!D15,\" \")","v":" "},null,"UNIDAD6"]
[null,null,7,{"$f":"IF('INFORMACIÓN INICIAL'!D16<>0,'INFORMACIÓN INICIAL'!D16,\" \")","v":" "},null,"UNIDAD7"]
[null,null,8,{"$f":"IF('INFORMACIÓN INICIAL'!D17<>0,'INFORMACIÓN INICIAL'!D17,\" \")","v":" "},null,"UNIDAD8"]
[null,null,9,{"$f":"IF('INFORMACIÓN INICIAL'!D18<>0,'INFORMACIÓN INICIAL'!D18,\" \")","v":" "},null,"UNIDAD9"]
[null,null,10,{"$f":"IF('INFORMACIÓN INICIAL'!D19<>0,'INFORMACIÓN INICIAL'!D19,\" \")","v":" "},null,"UNIDAD10"]
[null,null,11,{"$f":"IF('INFORMACIÓN INICIAL'!D20<>0,'INFORMACIÓN INICIAL'!D20,\" \")","v":" "},null,"UNIDAD11"]
[null,null,12,{"$f":"IF('INFORMACIÓN INICIAL'!D21<>0,'INFORMACIÓN INICIAL'!D21,\" \")","v":" "},null,"UNIDAD12"]

{"sheet":"INFORMACIÓN INICIAL","index":3,"n_rows":98,"n_cols":13,"rows_kept":98,"cut":false,"hidden":false,"merged":[[15,10,15,11],[12,8,12,9],[13,8,13,9],[15,12,15,13],[16,12,16,13],[4,11,4,13],[23,8,23,11],[10,12,10,13],[11,12,11,13],[12,12,12,13],[13,12,13,13],[14,12,14,13],[5,12,5,13],[6,12,6,13],[7,12,7,13],[8,12,8,13],[9,12,9,13],[14,8,14,9],[15,8,15,9],[16,8,16,9],[5,10,5,11],[6,10,6,11],[7,10,7,11],[8,10,8,11],[3,3,3,9],[6,3,6,4],[5,3,5,4],[9,3,9,4],[4,7,4,10],[10,3,10,4],[11,3,11,4],[12,3,12,4],[13,3,13,4],[5,8,5,9],[6,8,6,9],[7,8,7,9],[8,8,8,9],[12,10,12,11],[13,10,13,11],[9,10,9,11],[16,10,16,11],[9,8,9,9],[10,8,10,9],[11,8,11,9],[17,3,17,4],[29,6,29,7],[30,6,30,7],[24,6,24,7],[28,6,28,7],[25,6,25,7],[26,6,26,7],[27,6,27,7],[18,3,18,4],[19,3,19,4],[20,3,20,4],[19,7,21,13],[10,10,10,11],[11,10,11,11],[18,7,18,10],[18,11,18,13],[14,3,14,4],[15,3,15,4],[16,3,16,4],[14,10,14,11],[33,6,33,7],[34,6,34,7],[31,6,31,7],[32,6,32,7],[37,6,37,7],[38,6,38,7],[35,6,35,7],[36,6,36,7],[41,6,41,7],[42,6,42,7],[39,6,39,7],[40,6,40,7],[45,6,45,7],[46,6,46,7],[43,6,43,7],[44,6,44,7],[49,6,49,7],[50,6,50,7],[47,6,47,7],[48,6,48,7],[53,6,53,7],[54,6,54,7],[51,6,51,7],[52,6,52,7],[57,6,57,7],[58,6,58,7],[55,6,55,7],[56,6,56,7],[61,6,61,7],[62,6,62,7],[59,6,59,7],[60,6,60,7],[65,6,65,7],[66,6,66,7],[63,6,63,7],[64,6,64,7],[69,6,69,7],[70,6,70,7],[67,6,67,7],[68,6,68,7],[73,6,73,7],[74,6,74,7],[71,6,71,7],[72,6,72,7],[77,6,77,7],[78,6,78,7],[75,6,75,7],[76,6,76,7],[81,6,81,7],[82,6,82,7],[79,6,79,7],[80,6,80,7],[85,6,85,7],[91,6,91,7],[92,6,92,7],[97,6,97,7],[95,6,95,7],[96,6,96,7],[93,6,93,7],[94,6,94,7],[86,6,86,7],[83,6,83,7],[84,6,84,7],[89,6,89,7],[90,6,90,7],[87,6,87,7],[88,6,88,7]]}
[]
[]
[]
[null,null,null,"Información INICIAL"]
[null,null,null,null,null,null,null,"Equipo de proyecto"]
[null,null,null,"Inciso",null,null,null,"Rol",{"$f":"B10","v":" "},null,"CONSULTORA",null,"AGESIC"]
[null,null,null,null,null,null,null,"Patrocinador"]
[null,null,null,null,null,null,null,"Referente o PM"]
[null,null,null,"Unidades Ejecutoras ",null,null,null,"Funcional"]
[null,{"$f":"IF($D$7=Tablas!B3,Tablas!C3,IF(D7=Tablas!B31,Tablas!C31,IF(D7=Tablas!B40,Tablas!C40,IF(D7=Tablas!B48,Tablas!C48,IF(D7=Tablas!B50,Tablas!C50,IF(D7=Tablas!B57,Tablas!C57,IF(D7=Tablas!B63,Tablas!C63,IF(D7=Tablas!B72,Tablas!C72,IF(D7=Tablas!B79,Tablas!C79,IF(D7=Tablas!B87,Tablas!C87,IF(D7=Tablas!B98,Tablas!C98,IF(D7=Tablas!B103,Tablas!C103,IF(D7=Tablas!B122,Tablas!C122,IF(D7=Tablas!B130,Tablas!C130,\" \"))))))))))))))","v":" "},1,null,null,"UNIDAD1",null,"TI"]
[null,null,2,null,null,"UNIDAD2",null,"Gestión del cambio"]
[null,null,3,null,null,"UNIDAD3",null,"Sostenibilidad"]
[null,null,4,null,null,"UNIDAD4",null,"Legal"]
[null,null,5,null,null,"UNIDAD5"]
[null,null,6,null,null,"UNIDAD6"]
[null,null,7,null,null,"UNIDAD7"]
[null,null,8,null,null,"UNIDAD8"]
[null,null,9,null,null,"UNIDAD9"]
[null,null,10,null,null,"UNIDAD10",null,"Observaciones"]
[null,null,11,null,null,"UNIDAD11"]
[null,null,12,null,null,"UNIDAD12"]
[]
[]
[null,null,null,"Trámites",null,null,null,null,"Gestión de entregables"]
[null,null,null,"ID - Nombre del trámite","UE",null,"Área/Unidad/División",null," E02 ","Estado","E03-E04-E05","Estado"]
[null,null,null,null,null,{"$f":"IF(E26='INFORMACIÓN INICIAL'!$D$10,'INFORMACIÓN INICIAL'!$F$10,IF(E26='INFORMACIÓN INICIAL'!$D$11,'INFORMACIÓN INICIAL'!$F$11,IF(E26='INFORMACIÓN INICIAL'!$D$12,'INFORMACIÓN INICIAL'!$F$12,IF(E26='INFORMACIÓN INICIAL'!$D$13,'INFORMACIÓN INICIAL'!$F$13,IF(E26='INFORMACIÓN INICIAL'!$D$14,'INFORMACIÓN INICIAL'!$F$14,IF(E26='INFORMACIÓN INICIAL'!$D$15,'INFORMACIÓN INICIAL'!$F$15,IF(E26='INFORMACIÓN INICIAL'!$D$16,'INFORMACIÓN INICIAL'!$F$16,IF(E26='INFORMACIÓN INICIAL'!$D$17,'INFORMACIÓN INICIAL'!$F$17,IF(E26='INFORMACIÓN INICIAL'!$D$18,'INFORMACIÓN INICIAL'!$F$18,IF(E26='INFORMACIÓN INICIAL'!$D$19,'INFORMACIÓN INICIAL'!$F$19,IF(E26='INFORMACIÓN INICIAL'!$D$20,'INFORMACIÓN INICIAL'!$F$20,IF(E26='INFORMACIÓN INICIAL'!$D$21,'INFORMACIÓN INICIAL'!$F$21,\" \"))))))))))))","v":"UNIDAD1"}]
[null,null,null,null,null,{"$f":"IF(E27='INFORMACIÓN INICIAL'!$D$10,'INFORMACIÓN INICIAL'!$F$10,IF(E27='INFORMACIÓN INICIAL'!$D$11,'INFORMACIÓN INICIAL'!$F$11,IF(E27='INFORMACIÓN INICIAL'!$D$12,'INFORMACIÓN INICIAL'!$F$12,IF(E27='INFORMACIÓN INICIAL'!$D$13,'INFORMACIÓN INICIAL'!$F$13,IF(E27='INFORMACIÓN INICIAL'!$D$14,'INFORMACIÓN INICIAL'!$F$14,IF(E27='INFORMACIÓN INICIAL'!$D$15,'INFORMACIÓN INICIAL'!$F$15,IF(E27='INFORMACIÓN INICIAL'!$D$16,'INFORMACIÓN INICIAL'!$F$16,IF(E27='INFORMACIÓN INICIAL'!$D$17,'INFORMACIÓN INICIAL'!$F$17,IF(E27='INFORMACIÓN INICIAL'!$D$18,'INFORMACIÓN INICIAL'!$F$18,IF(E27='INFORMACIÓN INICIAL'!$D$19,'INFORMACIÓN INICIAL'!$F$19,IF(E27='INFORMACIÓN INICIAL'!$D$20,'INFORMACIÓN INICIAL'!$F$20,IF(E27='INFORMACIÓN INICIAL'!$D$21,'INFORMACIÓN INICIAL'!$F$21,\" \"))))))))))))","v":"UNIDAD1"}]
[null,null,null,null,null,{"$f":"IF(E28='INFORMACIÓN INICIAL'!$D$10,'INFORMACIÓN INICIAL'!$F$10,IF(E28='INFORMACIÓN INICIAL'!$D$11,'INFORMACIÓN INICIAL'!$F$11,IF(E28='INFORMACIÓN INICIAL'!$D$12,'INFORMACIÓN INICIAL'!$F$12,IF(E28='INFORMACIÓN INICIAL'!$D$13,'INFORMACIÓN INICIAL'!$F$13,IF(E28='INFORMACIÓN INICIAL'!$D$14,'INFORMACIÓN INICIAL'!$F$14,IF(E28='INFORMACIÓN INICIAL'!$D$15,'INFORMACIÓN INICIAL'!$F$15,IF(E28='INFORMACIÓN INICIAL'!$D$16,'INFORMACIÓN INICIAL'!$F$16,IF(E28='INFORMACIÓN INICIAL'!$D$17,'INFORMACIÓN INICIAL'!$F$17,IF(E28='INFORMACIÓN INICIAL'!$D$18,'INFORMACIÓN INICIAL'!$F$18,IF(E28='INFORMACIÓN INICIAL'!$D$19,'INFORMACIÓN INICIAL'!$F$19,IF(E28='INFORMACIÓN INICIAL'!$D$20,'INFORMACIÓN INICIAL'!$F$20,IF(E28='INFORMACIÓN INICIAL'!$D$21,'INFORMACIÓN INICIAL'!$F$21,\" \"))))))))))))","v":"UNIDAD1"}]
[null,null,null,null,null,{"$f":"IF(E29='INFORMACIÓN INICIAL'!$D$10,'INFORMACIÓN INICIAL'!$F$10,IF(E29='INFORMACIÓN INICIAL'!$D$11,'INFORMACIÓN INICIAL'!$F$11,IF(E29='INFORMACIÓN INICIAL'!$D$12,'INFORMACIÓN INICIAL'!$F$12,IF(E29='INFORMACIÓN INICIAL'!$D$13,'INFORMACIÓN INICIAL'!$F$13,IF(E29='INFORMACIÓN INICIAL'!$D$14,'INFORMACIÓN INICIAL'!$F$14,IF(E29='INFORMACIÓN INICIAL'!$D$15,'INFORMACIÓN INICIAL'!$F$15,IF(E29='INFORMACIÓN INICIAL'!$D$16,'INFORMACIÓN INICIAL'!$F$16,IF(E29='INFORMACIÓN INICIAL'!$D$17,'INFORMACIÓN INICIAL'!$F$17,IF(E29='INFORMACIÓN INICIAL'!$D$18,'INFORMACIÓN INICIAL'!$F$18,IF(E29='INFORMACIÓN INICIAL'!$D$19,'INFORMACIÓN INICIAL'!$F$19,IF(E29='INFORMACIÓN INICIAL'!$D$20,'INFORMACIÓN INICIAL'!$F$20,IF(E29='INFORMACIÓN INICIAL'!$D$21,'INFORMACIÓN INICIAL'!$F$21,\" \"))))))))))))","v":"UNIDAD1"}]
[null,null,null,null,null,{"$f":"IF(E30='INFORMACIÓN INICIAL'!$D$10,'INFORMACIÓN INICIAL'!$F$10,IF(E30='INFORMACIÓN INICIAL'!$D$11,'INFORMACIÓN INICIAL'!$F$11,IF(E30='INFORMACIÓN INICIAL'!$D$12,'INFORMACIÓN INICIAL'!$F$12,IF(E30='INFORMACIÓN INICIAL'!$D$13,'INFORMACIÓN INICIAL'!$F$13,IF(E30='INFORMACIÓN INICIAL'!$D$14,'INFORMACIÓN INICIAL'!$F$14,IF(E30='INFORMACIÓN INICIAL'!$D$15,'INFORMACIÓN INICIAL'!$F$15,IF(E30='INFORMACIÓN INICIAL'!$D$16,'INFORMACIÓN INICIAL'!$F$16,IF(E30='INFORMACIÓN INICIAL'!$D$17,'INFORMACIÓN INICIAL'!$F$17,IF(E30='INFORMACIÓN INICIAL'!$D$18,'INFORMACIÓN INICIAL'!$F$18,IF(E30='INFORMACIÓN INICIAL'!$D$19,'INFORMACIÓN INICIAL'!$F$19,IF(E30='INFORMACIÓN INICIAL'!$D$20,'INFORMACIÓN INICIAL'!$F$20,IF(E30='INFORMACIÓN INICIAL'!$D$21,'INFORMACIÓN INICIAL'!$F$21,\" \"))))))))))))","v":"UNIDAD1"}]
[null,null,null,null,null,{"$f":"IF(E31='INFORMACIÓN INICIAL'!$D$10,'INFORMACIÓN INICIAL'!$F$10,IF(E31='INFORMACIÓN INICIAL'!$D$11,'INFORMACIÓN INICIAL'!$F$11,IF(E31='INFORMACIÓN INICIAL'!$D$12,'INFORMACIÓN INICIAL'!$F$12,IF(E31='INFORMACIÓN INICIAL'!$D$13,'INFORMACIÓN INICIAL'!$F$13,IF(E31='INFORMACIÓN INICIAL'!$D$14,'INFORMACIÓN INICIAL'!$F$14,IF(E31='INFORMACIÓN INICIAL'!$D$15,'INFORMACIÓN INICIAL'!$F$15,IF(E31='INFORMACIÓN INICIAL'!$D$16,'INFORMACIÓN INICIAL'!$F$16,IF(E31='INFORMACIÓN INICIAL'!$D$17,'INFORMACIÓN INICIAL'!$F$17,IF(E31='INFORMACIÓN INICIAL'!$D$18,'INFORMACIÓN INICIAL'!$F$18,IF(E31='INFORMACIÓN INICIAL'!$D$19,'INFORMACIÓN INICIAL'!$F$19,IF(E31='INFORMACIÓN INICIAL'!$D$20,'INFORMACIÓN INICIAL'!$F$20,IF(E31='INFORMACIÓN INICIAL'!$D$21,'INFORMACIÓN INICIAL'!$F$21,\" \"))))))))))))","v":"UNIDAD1"}]
[null,null,null,null,null,{"$f":"IF(E32='INFORMACIÓN INICIAL'!$D$10,'INFORMACIÓN INICIAL'!$F$10,IF(E32='INFORMACIÓN INICIAL'!$D$11,'INFORMACIÓN INICIAL'!$F$11,IF(E32='INFORMACIÓN INICIAL'!$D$12,'INFORMACIÓN INICIAL'!$F$12,IF(E32='INFORMACIÓN INICIAL'!$D$13,'INFORMACIÓN INICIAL'!$F$13,IF(E32='INFORMACIÓN INICIAL'!$D$14,'INFORMACIÓN INICIAL'!$F$14,IF(E32='INFORMACIÓN INICIAL'!$D$15,'INFORMACIÓN INICIAL'!$F$15,IF(E32='INFORMACIÓN INICIAL'!$D$16,'INFORMACIÓN INICIAL'!$F$16,IF(E32='INFORMACIÓN INICIAL'!$D$17,'INFORMACIÓN INICIAL'!$F$17,IF(E32='INFORMACIÓN INICIAL'!$D$18,'INFORMACIÓN INICIAL'!$F$18,IF(E32='INFORMACIÓN INICIAL'!$D$19,'INFORMACIÓN INICIAL'!$F$19,IF(E32='INFORMACIÓN INICIAL'!$D$20,'INFORMACIÓN INICIAL'!$F$20,IF(E32='INFORMACIÓN INICIAL'!$D$21,'INFORMACIÓN INICIAL'!$F$21,\" \"))))))))))))","v":"UNIDAD1"}]
[null,null,null,null,null,{"$f":"IF(E33='INFORMACIÓN INICIAL'!$D$10,'INFORMACIÓN INICIAL'!$F$10,IF(E33='INFORMACIÓN INICIAL'!$D$11,'INFORMACIÓN INICIAL'!$F$11,IF(E33='INFORMACIÓN INICIAL'!$D$12,'INFORMACIÓN INICIAL'!$F$12,IF(E33='INFORMACIÓN INICIAL'!$D$13,'INFORMACIÓN INICIAL'!$F$13,IF(E33='INFORMACIÓN INICIAL'!$D$14,'INFORMACIÓN INICIAL'!$F$14,IF(E33='INFORMACIÓN INICIAL'!$D$15,'INFORMACIÓN INICIAL'!$F$15,IF(E33='INFORMACIÓN INICIAL'!$D$16,'INFORMACIÓN INICIAL'!$F$16,IF(E33='INFORMACIÓN INICIAL'!$D$17,'INFORMACIÓN INICIAL'!$F$17,IF(E33='INFORMACIÓN INICIAL'!$D$18,'INFORMACIÓN INICIAL'!$F$18,IF(E33='INFORMACIÓN INICIAL'!$D$19,'INFORMACIÓN INICIAL'!$F$19,IF(E33='INFORMACIÓN INICIAL'!$D$20,'INFORMACIÓN INICIAL'!$F$20,IF(E33='INFORMACIÓN INICIAL'!$D$21,'INFORMACIÓN INICIAL'!$F$21,\" \"))))))))))))","v":"UNIDAD1"}]
[null,null,null,null,null,{"$f":"IF(E34='INFORMACIÓN INICIAL'!$D$10,'INFORMACIÓN INICIAL'!$F$10,IF(E34='INFORMACIÓN INICIAL'!$D$11,'INFORMACIÓN INICIAL'!$F$11,IF(E34='INFORMACIÓN INICIAL'!$D$12,'INFORMACIÓN INICIAL'!$F$12,IF(E34='INFORMACIÓN INICIAL'!$D$13,'INFORMACIÓN INICIAL'!$F$13,IF(E34='INFORMACIÓN INICIAL'!$D$14,'INFORMACIÓN INICIAL'!$F$14,IF(E34='INFORMACIÓN INICIAL'!$D$15,'INFORMACIÓN INICIAL'!$F$15,IF(E34='INFORMACIÓN INICIAL'!$D$16,'INFORMACIÓN INICIAL'!$F$16,IF(E34='INFORMACIÓN INICIAL'!$D$17,'INFORMACIÓN INICIAL'!$F$17,IF(E34='INFORMACIÓN INICIAL'!$D$18,'INFORMACIÓN INICIAL'!$F$18,IF(E34='INFORMACIÓN INICIAL'!$D$19,'INFORMACIÓN INICIAL'!$F$19,IF(E34='INFORMACIÓN INICIAL'!$D$20,'INFORMACIÓN INICIAL'!$F$20,IF(E34='INFORMACIÓN INICIAL'!$D$21,'INFORMACIÓN INICIAL'!$F$21,\" \"))))))))))))","v":"UNIDAD1"}]
[null,null,null,null,null,{"$f":"IF(E35='INFORMACIÓN INICIAL'!$D$10,'INFORMACIÓN INICIAL'!$F$10,IF(E35='INFORMACIÓN INICIAL'!$D$11,'INFORMACIÓN INICIAL'!$F$11,IF(E35='INFORMACIÓN INICIAL'!$D$12,'INFORMACIÓN INICIAL'!$F$12,IF(E35='INFORMACIÓN INICIAL'!$D$13,'INFORMACIÓN INICIAL'!$F$13,IF(E35='INFORMACIÓN INICIAL'!$D$14,'INFORMACIÓN INICIAL'!$F$14,IF(E35='INFORMACIÓN INICIAL'!$D$15,'INFORMACIÓN INICIAL'!$F$15,IF(E35='INFORMACIÓN INICIAL'!$D$16,'INFORMACIÓN INICIAL'!$F$16,IF(E35='INFORMACIÓN INICIAL'!$D$17,'INFORMACIÓN INICIAL'!$F$17,IF(E35='INFORMACIÓN INICIAL'!$D$18,'INFORMACIÓN INICIAL'!$F$18,IF(E35='INFORMACIÓN INICIAL'!$D$19,'INFORMACIÓN INICIAL'!$F$19,IF(E35='INFORMACIÓN INICIAL'!$D$20,'INFORMACIÓN INICIAL'!$F$20,IF(E35='INFORMACIÓN INICIAL'!$D$21,'INFORMACIÓN INICIAL'!$F$21,\" \"))))))))))))","v":"UNIDAD1"}]
[null,null,null,null,null,{"$f":"IF(E36='INFORMACIÓN INICIAL'!$D$10,'INFORMACIÓN INICIAL'!$F$10,IF(E36='INFORMACIÓN INICIAL'!$D$11,'INFORMACIÓN INICIAL'!$F$11,IF(E36='INFORMACIÓN INICIAL'!$D$12,'INFORMACIÓN INICIAL'!$F$12,IF(E36='INFORMACIÓN INICIAL'!$D$13,'INFORMACIÓN INICIAL'!$F$13,IF(E36='INFORMACIÓN INICIAL'!$D$14,'INFORMACIÓN INICIAL'!$F$14,IF(E36='INFORMACIÓN INICIAL'!$D$15,'INFORMACIÓN INICIAL'!$F$15,IF(E36='INFORMACIÓN INICIAL'!$D$16,'INFORMACIÓN INICIAL'!$F$16,IF(E36='INFORMACIÓN INICIAL'!$D$17,'INFORMACIÓN INICIAL'!$F$17,IF(E36='INFORMACIÓN INICIAL'!$D$18,'INFORMACIÓN INICIAL'!$F$18,IF(E36='INFORMACIÓN INICIAL'!$D$19,'INFORMACIÓN INICIAL'!$F$19,IF(E36='INFORMACIÓN INICIAL'!$D$20,'INFORMACIÓN INICIAL'!$F$20,IF(E36='INFORMACIÓN INICIAL'!$D$21,'INFORMACIÓN INICIAL'!$F$21,\" \"))))))))))))","v":"UNIDAD1"}]
[null,null,null,null,null,{"$f":"IF(E37='INFORMACIÓN INICIAL'!$D$10,'INFORMACIÓN INICIAL'!$F$10,IF(E37='INFORMACIÓN INICIAL'!$D$11,'INFORMACIÓN INICIAL'!$F$11,IF(E37='INFORMACIÓN INICIAL'!$D$12,'INFORMACIÓN INICIAL'!$F$12,IF(E37='INFORMACIÓN INICIAL'!$D$13,'INFORMACIÓN INICIAL'!$F$13,IF(E37='INFORMACIÓN INICIAL'!$D$14,'INFORMACIÓN INICIAL'!$F$14,IF(E37='INFORMACIÓN INICIAL'!$D$15,'INFORMACIÓN INICIAL'!$F$15,IF(E37='INFORMACIÓN INICIAL'!$D$16,'INFORMACIÓN INICIAL'!$F$16,IF(E37='INFORMACIÓN INICIAL'!$D$17,'INFORMACIÓN INICIAL'!$F$17,IF(E37='INFORMACIÓN INICIAL'!$D$18,'INFORMACIÓN INICIAL'!$F$18,IF(E37='INFORMACIÓN INICIAL'!$D$19,'INFORMACIÓN INICIAL'!$F$19,IF(E37='INFORMACIÓN INICIAL'!$D$20,'INFORMACIÓN INICIAL'!$F$20,IF(E37='INFORMACIÓN INICIAL'!$D$21,'INFORMACIÓN INICIAL'!$F$21,\" \"))))))))))))","v":"UNIDAD1"}]
[null,null,null,null,null,{"$f":"IF(E38='INFORMACIÓN INICIAL'!$D$10,'INFORMACIÓN INICIAL'!$F$10,IF(E38='INFORMACIÓN INICIAL'!$D$11,'INFORMACIÓN INICIAL'!$F$11,IF(E38='INFORMACIÓN INICIAL'!$D$12,'INFORMACIÓN INICIAL'!$F$12,IF(E38='INFORMACIÓN INICIAL'!$D$13,'INFORMACIÓN INICIAL'!$F$13,IF(E38='INFORMACIÓN INICIAL'!$D$14,'INFORMACIÓN INICIAL'!$F$14,IF(E38='INFORMACIÓN INICIAL'!$D$15,'INFORMACIÓN INICIAL'!$F$15,IF(E38='INFORMACIÓN INICIAL'!$D$16,'INFORMACIÓN INICIAL'!$F$16,IF(E38='INFORMACIÓN INICIAL'!$D$17,'INFORMACIÓN INICIAL'!$F$17,IF(E38='INFORMACIÓN INICIAL'!$D$18,'INFORMACIÓN INICIAL'!$F$18,IF(E38='INFORMACIÓN INICIAL'!$D$19,'INFORMACIÓN INICIAL'!$F$19,IF(E38='INFORMACIÓN INICIAL'!$D$20,'INFORMACIÓN INICIAL'!$F$20,IF(E38='INFORMACIÓN INICIAL'!$D$21,'INFORMACIÓN INICIAL'!$F$21,\" \"))))))))))))","v":"UNIDAD1"}]
[null,null,null,null,null,{"$f":"IF(E39='INFORMACIÓN INICIAL'!$D$10,'INFORMACIÓN INICIAL'!$F$10,IF(E39='INFORMACIÓN INICIAL'!$D$11,'INFORMACIÓN INICIAL'!$F$11,IF(E39='INFORMACIÓN INICIAL'!$D$12,'INFORMACIÓN INICIAL'!$F$12,IF(E39='INFORMACIÓN INICIAL'!$D$13,'INFORMACIÓN INICIAL'!$F$13,IF(E39='INFORMACIÓN INICIAL'!$D$14,'INFORMACIÓN INICIAL'!$F$14,IF(E39='INFORMACIÓN INICIAL'!$D$15,'INFORMACIÓN INICIAL'!$F$15,IF(E39='INFORMACIÓN INICIAL'!$D$16,'INFORMACIÓN INICIAL'!$F$16,IF(E39='INFORMACIÓN INICIAL'!$D$17,'INFORMACIÓN INICIAL'!$F$17,IF(E39='INFORMACIÓN INICIAL'!$D$18,'INFORMACIÓN INICIAL'!$F$18,IF(E39='INFORMACIÓN INICIAL'!$D$19,'INFORMACIÓN INICIAL'!$F$19,IF(E39='INFORMACIÓN INICIAL'!$D$20,'INFORMACIÓN INICIAL'!$F$20,IF(E39='INFORMACIÓN INICIAL'!$D$21,'INFORMACIÓN INICIAL'!$F$21,\" \"))))))))))))","v":"UNIDAD1"}]
[null,null,null,null,null,{"$f":"IF(E40='INFORMACIÓN INICIAL'!$D$10,'INFORMACIÓN INICIAL'!$F$10,IF(E40='INFORMACIÓN INICIAL'!$D$11,'INFORMACIÓN INICIAL'!$F$11,IF(E40='INFORMACIÓN INICIAL'!$D$12,'INFORMACIÓN INICIAL'!$F$12,IF(E40='INFORMACIÓN INICIAL'!$D$13,'INFORMACIÓN INICIAL'!$F$13,IF(E40='INFORMACIÓN INICIAL'!$D$14,'INFORMACIÓN INICIAL'!$F$14,IF(E40='INFORMACIÓN INICIAL'!$D$15,'INFORMACIÓN INICIAL'!$F$15,IF(E40='INFORMACIÓN INICIAL'!$D$16,'INFORMACIÓN INICIAL'!$F$16,IF(E40='INFORMACIÓN INICIAL'!$D$17,'INFORMACIÓN INICIAL'!$F$17,IF(E40='INFORMACIÓN INICIAL'!$D$18,'INFORMACIÓN INICIAL'!$F$18,IF(E40='INFORMACIÓN INICIAL'!$D$19,'INFORMACIÓN INICIAL'!$F$19,IF(E40='INFORMACIÓN INICIAL'!$D$20,'INFORMACIÓN INICIAL'!$F$20,IF(E40='INFORMACIÓN INICIAL'!$D$21,'INFORMACIÓN INICIAL'!$F$21,\" \"))))))))))))","v":"UNIDAD1"}]
[null,null,null,null,null,{"$f":"IF(E41='INFORMACIÓN INICIAL'!$D$10,'INFORMACIÓN INICIAL'!$F$10,IF(E41='INFORMACIÓN INICIAL'!$D$11,'INFORMACIÓN INICIAL'!$F$11,IF(E41='INFORMACIÓN INICIAL'!$D$12,'INFORMACIÓN INICIAL'!$F$12,IF(E41='INFORMACIÓN INICIAL'!$D$13,'INFORMACIÓN INICIAL'!$F$13,IF(E41='INFORMACIÓN INICIAL'!$D$14,'INFORMACIÓN INICIAL'!$F$14,IF(E41='INFORMACIÓN INICIAL'!$D$15,'INFORMACIÓN INICIAL'!$F$15,IF(E41='INFORMACIÓN INICIAL'!$D$16,'INFORMACIÓN INICIAL'!$F$16,IF(E41='INFORMACIÓN INICIAL'!$D$17,'INFORMACIÓN INICIAL'!$F$17,IF(E41='INFORMACIÓN INICIAL'!$D$18,'INFORMACIÓN INICIAL'!$F$18,IF(E41='INFORMACIÓN INICIAL'!$D$19,'INFORMACIÓN INICIAL'!$F$19,IF(E41='INFORMACIÓN INICIAL'!$D$20,'INFORMACIÓN INICIAL'!$F$20,IF(E41='INFORMACIÓN INICIAL'!$D$21,'INFORMACIÓN INICIAL'!$F$21,\" \"))))))))))))","v":"UNIDAD1"}]
[null,null,null,null,null,{"$f":"IF(E42='INFORMACIÓN INICIAL'!$D$10,'INFORMACIÓN INICIAL'!$F$10,IF(E42='INFORMACIÓN INICIAL'!$D$11,'INFORMACIÓN INICIAL'!$F$11,IF(E42='INFORMACIÓN INICIAL'!$D$12,'INFORMACIÓN INICIAL'!$F$12,IF(E42='INFORMACIÓN INICIAL'!$D$13,'INFORMACIÓN INICIAL'!$F$13,IF(E42='INFORMACIÓN INICIAL'!$D$14,'INFORMACIÓN INICIAL'!$F$14,IF(E42='INFORMACIÓN INICIAL'!$D$15,'INFORMACIÓN INICIAL'!$F$15,IF(E42='INFORMACIÓN INICIAL'!$D$16,'INFORMACIÓN INICIAL'!$F$16,IF(E42='INFORMACIÓN INICIAL'!$D$17,'INFORMACIÓN INICIAL'!$F$17,IF(E42='INFORMACIÓN INICIAL'!$D$18,'INFORMACIÓN INICIAL'!$F$18,IF(E42='INFORMACIÓN INICIAL'!$D$19,'INFORMACIÓN INICIAL'!$F$19,IF(E42='INFORMACIÓN INICIAL'!$D$20,'INFORMACIÓN INICIAL'!$F$20,IF(E42='INFORMACIÓN INICIAL'!$D$21,'INFORMACIÓN INICIAL'!$F$21,\" \"))))))))))))","v":"UNIDAD1"}]
[null,null,null,null,null,{"$f":"IF(E43='INFORMACIÓN INICIAL'!$D$10,'INFORMACIÓN INICIAL'!$F$10,IF(E43='INFORMACIÓN INICIAL'!$D$11,'INFORMACIÓN INICIAL'!$F$11,IF(E43='INFORMACIÓN INICIAL'!$D$12,'INFORMACIÓN INICIAL'!$F$12,IF(E43='INFORMACIÓN INICIAL'!$D$13,'INFORMACIÓN INICIAL'!$F$13,IF(E43='INFORMACIÓN INICIAL'!$D$14,'INFORMACIÓN INICIAL'!$F$14,IF(E43='INFORMACIÓN INICIAL'!$D$15,'INFORMACIÓN INICIAL'!$F$15,IF(E43='INFORMACIÓN INICIAL'!$D$16,'INFORMACIÓN INICIAL'!$F$16,IF(E43='INFORMACIÓN INICIAL'!$D$17,'INFORMACIÓN INICIAL'!$F$17,IF(E43='INFORMACIÓN INICIAL'!$D$18,'INFORMACIÓN INICIAL'!$F$18,IF(E43='INFORMACIÓN INICIAL'!$D$19,'INFORMACIÓN INICIAL'!$F$19,IF(E43='INFORMACIÓN INICIAL'!$D$20,'INFORMACIÓN INICIAL'!$F$20,IF(E43='INFORMACIÓN INICIAL'!$D$21,'INFORMACIÓN INICIAL'!$F$21,\" \"))))))))))))","v":"UNIDAD1"}]
[null,null,null,null,null,{"$f":"IF(E44='INFORMACIÓN INICIAL'!$D$10,'INFORMACIÓN INICIAL'!$F$10,IF(E44='INFORMACIÓN INICIAL'!$D$11,'INFORMACIÓN INICIAL'!$F$11,IF(E44='INFORMACIÓN INICIAL'!$D$12,'INFORMACIÓN INICIAL'!$F$12,IF(E44='INFORMACIÓN INICIAL'!$D$13,'INFORMACIÓN INICIAL'!$F$13,IF(E44='INFORMACIÓN INICIAL'!$D$14,'INFORMACIÓN INICIAL'!$F$14,IF(E44='INFORMACIÓN INICIAL'!$D$15,'INFORMACIÓN INICIAL'!$F$15,IF(E44='INFORMACIÓN INICIAL'!$D$16,'INFORMACIÓN INICIAL'!$F$16,IF(E44='INFORMACIÓN INICIAL'!$D$17,'INFORMACIÓN INICIAL'!$F$17,IF(E44='INFORMACIÓN INICIAL'!$D$18,'INFORMACIÓN INICIAL'!$F$18,IF(E44='INFORMACIÓN INICIAL'!$D$19,'INFORMACIÓN INICIAL'!$F$19,IF(E44='INFORMACIÓN INICIAL'!$D$20,'INFORMACIÓN INICIAL'!$F$20,IF(E44='INFORMACIÓN INICIAL'!$D$21,'INFORMACIÓN INICIAL'!$F$21,\" \"))))))))))))","v":"UNIDAD1"}]
[null,null,null,null,null,{"$f":"IF(E45='INFORMACIÓN INICIAL'!$D$10,'INFORMACIÓN INICIAL'!$F$10,IF(E45='INFORMACIÓN INICIAL'!$D$11,'INFORMACIÓN INICIAL'!$F$11,IF(E45='INFORMACIÓN INICIAL'!$D$12,'INFORMACIÓN INICIAL'!$F$12,IF(E45='INFORMACIÓN INICIAL'!$D$13,'INFORMACIÓN INICIAL'!$F$13,IF(E45='INFORMACIÓN INICIAL'!$D$14,'INFORMACIÓN INICIAL'!$F$14,IF(E45='INFORMACIÓN INICIAL'!$D$15,'INFORMACIÓN INICIAL'!$F$15,IF(E45='INFORMACIÓN INICIAL'!$D$16,'INFORMACIÓN INICIAL'!$F$16,IF(E45='INFORMACIÓN INICIAL'!$D$17,'INFORMACIÓN INICIAL'!$F$17,IF(E45='INFORMACIÓN INICIAL'!$D$18,'INFORMACIÓN INICIAL'!$F$18,IF(E45='INFORMACIÓN INICIAL'!$D$19,'INFORMACIÓN INICIAL'!$F$19,IF(E45='INFORMACIÓN INICIAL'!$D$20,'INFORMACIÓN INICIAL'!$F$20,IF(E45='INFORMACIÓN INICIAL'!$D$21,'INFORMACIÓN INICIAL'!$F$21,\" \"))))))))))))","v":"UNIDAD1"}]
[null,null,null,null,null,{"$f":"IF(E46='INFORMACIÓN INICIAL'!$D$10,'INFORMACIÓN INICIAL'!$F$10,IF(E46='INFORMACIÓN INICIAL'!$D$11,'INFORMACIÓN INICIAL'!$F$11,IF(E46='INFORMACIÓN INICIAL'!$D$12,'INFORMACIÓN INICIAL'!$F$12,IF(E46='INFORMACIÓN INICIAL'!$D$13,'INFORMACIÓN INICIAL'!$F$13,IF(E46='INFORMACIÓN INICIAL'!$D$14,'INFORMACIÓN INICIAL'!$F$14,IF(E46='INFORMACIÓN INICIAL'!$D$15,'INFORMACIÓN INICIAL'!$F$15,IF(E46='INFORMACIÓN INICIAL'!$D$16,'INFORMACIÓN INICIAL'!$F$16,IF(E46='INFORMACIÓN INICIAL'!$D$17,'INFORMACIÓN INICIAL'!$F$17,IF(E46='INFORMACIÓN INICIAL'!$D$18,'INFORMACIÓN INICIAL'!$F$18,IF(E46='INFORMACIÓN INICIAL'!$D$19,'INFORMACIÓN INICIAL'!$F$19,IF(E46='INFORMACIÓN INICIAL'!$D$20,'INFORMACIÓN INICIAL'!$F$20,IF(E46='INFORMACIÓN INICIAL'!$D$21,'INFORMACIÓN INICIAL'!$F$21,\" \"))))))))))))","v":"UNIDAD1"}]
[null,null,null,null,null,{"$f":"IF(E47='INFORMACIÓN INICIAL'!$D$10,'INFORMACIÓN INICIAL'!$F$10,IF(E47='INFORMACIÓN INICIAL'!$D$11,'INFORMACIÓN INICIAL'!$F$11,IF(E47='INFORMACIÓN INICIAL'!$D$12,'INFORMACIÓN INICIAL'!$F$12,IF(E47='INFORMACIÓN INICIAL'!$D$13,'INFORMACIÓN INICIAL'!$F$13,IF(E47='INFORMACIÓN INICIAL'!$D$14,'INFORMACIÓN INICIAL'!$F$14,IF(E47='INFORMACIÓN INICIAL'!$D$15,'INFORMACIÓN INICIAL'!$F$15,IF(E47='INFORMACIÓN INICIAL'!$D$16,'INFORMACIÓN INICIAL'!$F$16,IF(E47='INFORMACIÓN INICIAL'!$D$17,'INFORMACIÓN INICIAL'!$F$17,IF(E47='INFORMACIÓN INICIAL'!$D$18,'INFORMACIÓN INICIAL'!$F$18,IF(E47='INFORMACIÓN INICIAL'!$D$19,'INFORMACIÓN INICIAL'!$F$19,IF(E47='INFORMACIÓN INICIAL'!$D$20,'INFORMACIÓN INICIAL'!$F$20,IF(E47='INFORMACIÓN INICIAL'!$D$21,'INFORMACIÓN INICIAL'!$F$21,\" \"))))))))))))","v":"UNIDAD1"}]
[null,null,null,null,null,{"$f":"IF(E48='INFORMACIÓN INICIAL'!$D$10,'INFORMACIÓN INICIAL'!$F$10,IF(E48='INFORMACIÓN INICIAL'!$D$11,'INFORMACIÓN INICIAL'!$F$11,IF(E48='INFORMACIÓN INICIAL'!$D$12,'INFORMACIÓN INICIAL'!$F$12,IF(E48='INFORMACIÓN INICIAL'!$D$13,'INFORMACIÓN INICIAL'!$F$13,IF(E48='INFORMACIÓN INICIAL'!$D$14,'INFORMACIÓN INICIAL'!$F$14,IF(E48='INFORMACIÓN INICIAL'!$D$15,'INFORMACIÓN INICIAL'!$F$15,IF(E48='INFORMACIÓN INICIAL'!$D$16,'INFORMACIÓN INICIAL'!$F$16,IF(E48='INFORMACIÓN INICIAL'!$D$17,'INFORMACIÓN INICIAL'!$F$17,IF(E48='INFORMACIÓN INICIAL'!$D$18,'INFORMACIÓN INICIAL'!$F$18,IF(E48='INFORMACIÓN INICIAL'!$D$19,'INFORMACIÓN INICIAL'!$F$19,IF(E48='INFORMACIÓN INICIAL'!$D$20,'INFORMACIÓN INICIAL'!$F$20,IF(E48='INFORMACIÓN INICIAL'!$D$21,'INFORMACIÓN INICIAL'!$F$21,\" \"))))))))))))","v":"UNIDAD1"}]
[null,null,null,null,null,{"$f":"IF(E49='INFORMACIÓN INICIAL'!$D$10,'INFORMACIÓN INICIAL'!$F$10,IF(E49='INFORMACIÓN INICIAL'!$D$11,'INFORMACIÓN INICIAL'!$F$11,IF(E49='INFORMACIÓN INICIAL'!$D$12,'INFORMACIÓN INICIAL'!$F$12,IF(E49='INFORMACIÓN INICIAL'!$D$13,'INFORMACIÓN INICIAL'!$F$13,IF(E49='INFORMACIÓN INICIAL'!$D$14,'INFORMACIÓN INICIAL'!$F$14,IF(E49='INFORMACIÓN INICIAL'!$D$15,'INFORMACIÓN INICIAL'!$F$15,IF(E49='INFORMACIÓN INICIAL'!$D$16,'INFORMACIÓN INICIAL'!$F$16,IF(E49='INFORMACIÓN INICIAL'!$D$17,'INFORMACIÓN INICIAL'!$F$17,IF(E49='INFORMACIÓN INICIAL'!$D$18,'INFORMACIÓN INICIAL'!$F$18,IF(E49='INFORMACIÓN INICIAL'!$D$19,'INFORMACIÓN INICIAL'!$F$19,IF(E49='INFORMACIÓN INICIAL'!$D$20,'INFORMACIÓN INICIAL'!$F$20,IF(E49='INFORMACIÓN INICIAL'!$D$21,'INFORMACIÓN INICIAL'!$F$21,\" \"))))))))))))","v":"UNIDAD1"}]
[null,null,null,null,null,{"$f":"IF(E50='INFORMACIÓN INICIAL'!$D$10,'INFORMACIÓN INICIAL'!$F$10,IF(E50='INFORMACIÓN INICIAL'!$D$11,'INFORMACIÓN INICIAL'!$F$11,IF(E50='INFORMACIÓN INICIAL'!$D$12,'INFORMACIÓN INICIAL'!$F$12,IF(E50='INFORMACIÓN INICIAL'!$D$13,'INFORMACIÓN INICIAL'!$F$13,IF(E50='INFORMACIÓN INICIAL'!$D$14,'INFORMACIÓN INICIAL'!$F$14,IF(E50='INFORMACIÓN INICIAL'!$D$15,'INFORMACIÓN INICIAL'!$F$15,IF(E50='INFORMACIÓN INICIAL'!$D$16,'INFORMACIÓN INICIAL'!$F$16,IF(E50='INFORMACIÓN INICIAL'!$D$17,'INFORMACIÓN INICIAL'!$F$17,IF(E50='INFORMACIÓN INICIAL'!$D$18,'INFORMACIÓN INICIAL'!$F$18,IF(E50='INFORMACIÓN INICIAL'!$D$19,'INFORMACIÓN INICIAL'!$F$19,IF(E50='INFORMACIÓN INICIAL'!$D$20,'INFORMACIÓN INICIAL'!$F$20,IF(E50='INFORMACIÓN INICIAL'!$D$21,'INFORMACIÓN INICIAL'!$F$21,\" \"))))))))))))","v":"UNIDAD1"}]
[null,null,null,null,null,{"$f":"IF(E51='INFORMACIÓN INICIAL'!$D$10,'INFORMACIÓN INICIAL'!$F$10,IF(E51='INFORMACIÓN INICIAL'!$D$11,'INFORMACIÓN INICIAL'!$F$11,IF(E51='INFORMACIÓN INICIAL'!$D$12,'INFORMACIÓN INICIAL'!$F$12,IF(E51='INFORMACIÓN INICIAL'!$D$13,'INFORMACIÓN INICIAL'!$F$13,IF(E51='INFORMACIÓN INICIAL'!$D$14,'INFORMACIÓN INICIAL'!$F$14,IF(E51='INFORMACIÓN INICIAL'!$D$15,'INFORMACIÓN INICIAL'!$F$15,IF(E51='INFORMACIÓN INICIAL'!$D$16,'INFORMACIÓN INICIAL'!$F$16,IF(E51='INFORMACIÓN INICIAL'!$D$17,'INFORMACIÓN INICIAL'!$F$17,IF(E51='INFORMACIÓN INICIAL'!$D$18,'INFORMACIÓN INICIAL'!$F$18,IF(E51='INFORMACIÓN INICIAL'!$D$19,'INFORMACIÓN INICIAL'!$F$19,IF(E51='INFORMACIÓN INICIAL'!$D$20,'INFORMACIÓN INICIAL'!$F$20,IF(E51='INFORMACIÓN INICIAL'!$D$21,'INFORMACIÓN INICIAL'!$F$21,\" \"))))))))))))","v":"UNIDAD1"}]
[null,null,null,null,null,{"$f":"IF(E52='INFORMACIÓN INICIAL'!$D$10,'INFORMACIÓN INICIAL'!$F$10,IF(E52='INFORMACIÓN INICIAL'!$D$11,'INFORMACIÓN INICIAL'!$F$11,IF(E52='INFORMACIÓN INICIAL'!$D$12,'INFORMACIÓN INICIAL'!$F$12,IF(E52='INFORMACIÓN INICIAL'!$D$13,'INFORMACIÓN INICIAL'!$F$13,IF(E52='INFORMACIÓN INICIAL'!$D$14,'INFORMACIÓN INICIAL'!$F$14,IF(E52='INFORMACIÓN INICIAL'!$D$15,'INFORMACIÓN INICIAL'!$F$15,IF(E52='INFORMACIÓN INICIAL'!$D$16,'INFORMACIÓN INICIAL'!$F$16,IF(E52='INFORMACIÓN INICIAL'!$D$17,'INFORMACIÓN INICIAL'!$F$17,IF(E52='INFORMACIÓN INICIAL'!$D$18,'INFORMACIÓN INICIAL'!$F$18,IF(E52='INFORMACIÓN INICIAL'!$D$19,'INFORMACIÓN INICIAL'!$F$19,IF(E52='INFORMACIÓN INICIAL'!$D$20,'INFORMACIÓN INICIAL'!$F$20,IF(E52='INFORMACIÓN INICIAL'!$D$21,'INFORMACIÓN INICIAL'!$F$21,\" \"))))))))))))","v":"UNIDAD1"}]
[null,null,null,null,null,{"$f":"IF(E53='INFORMACIÓN INICIAL'!$D$10,'INFORMACIÓN INICIAL'!$F$10,IF(E53='INFORMACIÓN INICIAL'!$D$11,'INFORMACIÓN INICIAL'!$F$11,IF(E53='INFORMACIÓN INICIAL'!$D$12,'INFORMACIÓN INICIAL'!$F$12,IF(E53='INFORMACIÓN INICIAL'!$D$13,'INFORMACIÓN INICIAL'!$F$13,IF(E53='INFORMACIÓN INICIAL'!$D$14,'INFORMACIÓN INICIAL'!$F$14,IF(E53='INFORMACIÓN INICIAL'!$D$15,'INFORMACIÓN INICIAL'!$F$15,IF(E53='INFORMACIÓN INICIAL'!$D$16,'INFORMACIÓN INICIAL'!$F$16,IF(E53='INFORMACIÓN INICIAL'!$D$17,'INFORMACIÓN INICIAL'!$F$17,IF(E53='INFORMACIÓN INICIAL'!$D$18,'INFORMACIÓN INICIAL'!$F$18,IF(E53='INFORMACIÓN INICIAL'!$D$19,'INFORMACIÓN INICIAL'!$F$19,IF(E53='INFORMACIÓN INICIAL'!$D$20,'INFORMACIÓN INICIAL'!$F$20,IF(E53='INFORMACIÓN INICIAL'!$D$21,'INFORMACIÓN INICIAL'!$F$21,\" \"))))))))))))","v":"UNIDAD1"}]
[null,null,null,null,null,{"$f":"IF(E54='INFORMACIÓN INICIAL'!$D$10,'INFORMACIÓN INICIAL'!$F$10,IF(E54='INFORMACIÓN INICIAL'!$D$11,'INFORMACIÓN INICIAL'!$F$11,IF(E54='INFORMACIÓN INICIAL'!$D$12,'INFORMACIÓN INICIAL'!$F$12,IF(E54='INFORMACIÓN INICIAL'!$D$13,'INFORMACIÓN INICIAL'!$F$13,IF(E54='INFORMACIÓN INICIAL'!$D$14,'INFORMACIÓN INICIAL'!$F$14,IF(E54='INFORMACIÓN INICIAL'!$D$15,'INFORMACIÓN INICIAL'!$F$15,IF(E54='INFORMACIÓN INICIAL'!$D$16,'INFORMACIÓN INICIAL'!$F$16,IF(E54='INFORMACIÓN INICIAL'!$D$17,'INFORMACIÓN INICIAL'!$F$17,IF(E54='INFORMACIÓN INICIAL'!$D$18,'INFORMACIÓN INICIAL'!$F$18,IF(E54='INFORMACIÓN INICIAL'!$D$19,'INFORMACIÓN INICIAL'!$F$19,IF(E54='INFORMACIÓN INICIAL'!$D$20,'INFORMACIÓN INICIAL'!$F$20,IF(E54='INFORMACIÓN INICIAL'!$D$21,'INFORMACIÓN INICIAL'!$F$21,\" \"))))))))))))","v":"UNIDAD1"}]
[null,null,null,null,null,{"$f":"IF(E55='INFORMACIÓN INICIAL'!$D$10,'INFORMACIÓN INICIAL'!$F$10,IF(E55='INFORMACIÓN INICIAL'!$D$11,'INFORMACIÓN INICIAL'!$F$11,IF(E55='INFORMACIÓN INICIAL'!$D$12,'INFORMACIÓN INICIAL'!$F$12,IF(E55='INFORMACIÓN INICIAL'!$D$13,'INFORMACIÓN INICIAL'!$F$13,IF(E55='INFORMACIÓN INICIAL'!$D$14,'INFORMACIÓN INICIAL'!$F$14,IF(E55='INFORMACIÓN INICIAL'!$D$15,'INFORMACIÓN INICIAL'!$F$15,IF(E55='INFORMACIÓN INICIAL'!$D$16,'INFORMACIÓN INICIAL'!$F$16,IF(E55='INFORMACIÓN INICIAL'!$D$17,'INFORMACIÓN INICIAL'!$F$17,IF(E55='INFORMACIÓN INICIAL'!$D$18,'INFORMACIÓN INICIAL'!$F$18,IF(E55='INFORMACIÓN INICIAL'!$D$19,'INFORMACIÓN INICIAL'!$F$19,IF(E55='INFORMACIÓN INICIAL'!$D$20,'INFORMACIÓN INICIAL'!$F$20,IF(E55='INFORMACIÓN INICIAL'!$D$21,'INFORMACIÓN INICIAL'!$F$21,\" \"))))))))))))","v":"UNIDAD1"}]
[null,null,null,null,null,{"$f":"IF(E56='INFORMACIÓN INICIAL'!$D$10,'INFORMACIÓN INICIAL'!$F$10,IF(E56='INFORMACIÓN INICIAL'!$D$11,'INFORMACIÓN INICIAL'!$F$11,IF(E56='INFORMACIÓN INICIAL'!$D$12,'INFORMACIÓN INICIAL'!$F$12,IF(E56='INFORMACIÓN INICIAL'!$D$13,'INFORMACIÓN INICIAL'!$F$13,IF(E56='INFORMACIÓN INICIAL'!$D$14,'INFORMACIÓN INICIAL'!$F$14,IF(E56='INFORMACIÓN INICIAL'!$D$15,'INFORMACIÓN INICIAL'!$F$15,IF(E56='INFORMACIÓN INICIAL'!$D$16,'INFORMACIÓN INICIAL'!$F$16,IF(E56='INFORMACIÓN INICIAL'!$D$17,'INFORMACIÓN INICIAL'!$F$17,IF(E56='INFORMACIÓN INICIAL'!$D$18,'INFORMACIÓN INICIAL'!$F$18,IF(E56='INFORMACIÓN INICIAL'!$D$19,'INFORMACIÓN INICIAL'!$F$19,IF(E56='INFORMACIÓN INICIAL'!$D$20,'INFORMACIÓN INICIAL'!$F$20,IF(E56='INFORMACIÓN INICIAL'!$D$21,'INFORMACIÓN INICIAL'!$F$21,\" \"))))))))))))","v":"UNIDAD1"}]
[null,null,null,null,null,{"$f":"IF(E57='INFORMACIÓN INICIAL'!$D$10,'INFORMACIÓN INICIAL'!$F$10,IF(E57='INFORMACIÓN INICIAL'!$D$11,'INFORMACIÓN INICIAL'!$F$11,IF(E57='INFORMACIÓN INICIAL'!$D$12,'INFORMACIÓN INICIAL'!$F$12,IF(E57='INFORMACIÓN INICIAL'!$D$13,'INFORMACIÓN INICIAL'!$F$13,IF(E57='INFORMACIÓN INICIAL'!$D$14,'INFORMACIÓN INICIAL'!$F$14,IF(E57='INFORMACIÓN INICIAL'!$D$15,'INFORMACIÓN INICIAL'!$F$15,IF(E57='INFORMACIÓN INICIAL'!$D$16,'INFORMACIÓN INICIAL'!$F$16,IF(E57='INFORMACIÓN INICIAL'!$D$17,'INFORMACIÓN INICIAL'!$F$17,IF(E57='INFORMACIÓN INICIAL'!$D$18,'INFORMACIÓN INICIAL'!$F$18,IF(E57='INFORMACIÓN INICIAL'!$D$19,'INFORMACIÓN INICIAL'!$F$19,IF(E57='INFORMACIÓN INICIAL'!$D$20,'INFORMACIÓN INICIAL'!$F$20,IF(E57='INFORMACIÓN INICIAL'!$D$21,'INFORMACIÓN INICIAL'!$F$21,\" \"))))))))))))","v":"UNIDAD1"}]
[null,null,null,null,null,{"$f":"IF(E58='INFORMACIÓN INICIAL'!$D$10,'INFORMACIÓN INICIAL'!$F$10,IF(E58='INFORMACIÓN INICIAL'!$D$11,'INFORMACIÓN INICIAL'!$F$11,IF(E58='INFORMACIÓN INICIAL'!$D$12,'INFORMACIÓN INICIAL'!$F$12,IF(E58='INFORMACIÓN INICIAL'!$D$13,'INFORMACIÓN INICIAL'!$F$13,IF(E58='INFORMACIÓN INICIAL'!$D$14,'INFORMACIÓN INICIAL'!$F$14,IF(E58='INFORMACIÓN INICIAL'!$D$15,'INFORMACIÓN INICIAL'!$F$15,IF(E58='INFORMACIÓN INICIAL'!$D$16,'INFORMACIÓN INICIAL'!$F$16,IF(E58='INFORMACIÓN INICIAL'!$D$17,'INFORMACIÓN INICIAL'!$F$17,IF(E58='INFORMACIÓN INICIAL'!$D$18,'INFORMACIÓN INICIAL'!$F$18,IF(E58='INFORMACIÓN INICIAL'!$D$19,'INFORMACIÓN INICIAL'!$F$19,IF(E58='INFORMACIÓN INICIAL'!$D$20,'INFORMACIÓN INICIAL'!$F$20,IF(E58='INFORMACIÓN INICIAL'!$D$21,'INFORMACIÓN INICIAL'!$F$21,\" \"))))))))))))","v":"UNIDAD1"}]
[null,null,null,null,null,{"$f":"IF(E59='INFORMACIÓN INICIAL'!$D$10,'INFORMACIÓN INICIAL'!$F$10,IF(E59='INFORMACIÓN INICIAL'!$D$11,'INFORMACIÓN INICIAL'!$F$11,IF(E59='INFORMACIÓN INICIAL'!$D$12,'INFORMACIÓN INICIAL'!$F$12,IF(E59='INFORMACIÓN INICIAL'!$D$13,'INFORMACIÓN INICIAL'!$F$13,IF(E59='INFORMACIÓN INICIAL'!$D$14,'INFORMACIÓN INICIAL'!$F$14,IF(E59='INFORMACIÓN INICIAL'!$D$15,'INFORMACIÓN INICIAL'!$F$15,IF(E59='INFORMACIÓN INICIAL'!$D$16,'INFORMACIÓN INICIAL'!$F$16,IF(E59='INFORMACIÓN INICIAL'!$D$17,'INFORMACIÓN INICIAL'!$F$17,IF(E59='INFORMACIÓN INICIAL'!$D$18,'INFORMACIÓN INICIAL'!$F$18,IF(E59='INFORMACIÓN INICIAL'!$D$19,'INFORMACIÓN INICIAL'!$F$19,IF(E59='INFORMACIÓN INICIAL'!$D$20,'INFORMACIÓN INICIAL'!$F$20,IF(E59='INFORMACIÓN INICIAL'!$D$21,'INFORMACIÓN INICIAL'!$F$21,\" \"))))))))))))","v":"UNIDAD1"}]
[null,null,null,null,null,{"$f":"IF(E60='INFORMACIÓN INICIAL'!$D$10,'INFORMACIÓN INICIAL'!$F$10,IF(E60='INFORMACIÓN INICIAL'!$D$11,'INFORMACIÓN INICIAL'!$F$11,IF(E60='INFORMACIÓN INICIAL'!$D$12,'INFORMACIÓN INICIAL'!$F$12,IF(E60='INFORMACIÓN INICIAL'!$D$13,'INFORMACIÓN INICIAL'!$F$13,IF(E60='INFORMACIÓN INICIAL'!$D$14,'INFORMACIÓN INICIAL'!$F$14,IF(E60='INFORMACIÓN INICIAL'!$D$15,'INFORMACIÓN INICIAL'!$F$15,IF(E60='INFORMACIÓN INICIAL'!$D$16,'INFORMACIÓN INICIAL'!$F$16,IF(E60='INFORMACIÓN INICIAL'!$D$17,'INFORMACIÓN INICIAL'!$F$17,IF(E60='INFORMACIÓN INICIAL'!$D$18,'INFORMACIÓN INICIAL'!$F$18,IF(E60='INFORMACIÓN INICIAL'!$D$19,'INFORMACIÓN INICIAL'!$F$19,IF(E60='INFORMACIÓN INICIAL'!$D$20,'INFORMACIÓN INICIAL'!$F$20,IF(E60='INFORMACIÓN INICIAL'!$D$21,'INFORMACIÓN INICIAL'!$F$21,\" \"))))))))))))","v":"UNIDAD1"}]
[null,null,null,null,null,{"$f":"IF(E61='INFORMACIÓN INICIAL'!$D$10,'INFORMACIÓN INICIAL'!$F$10,IF(E61='INFORMACIÓN INICIAL'!$D$11,'INFORMACIÓN INICIAL'!$F$11,IF(E61='INFORMACIÓN INICIAL'!$D$12,'INFORMACIÓN INICIAL'!$F$12,IF(E61='INFORMACIÓN INICIAL'!$D$13,'INFORMACIÓN INICIAL'!$F$13,IF(E61='INFORMACIÓN INICIAL'!$D$14,'INFORMACIÓN INICIAL'!$F$14,IF(E61='INFORMACIÓN INICIAL'!$D$15,'INFORMACIÓN INICIAL'!$F$15,IF(E61='INFORMACIÓN INICIAL'!$D$16,'INFORMACIÓN INICIAL'!$F$16,IF(E61='INFORMACIÓN INICIAL'!$D$17,'INFORMACIÓN INICIAL'!$F$17,IF(E61='INFORMACIÓN INICIAL'!$D$18,'INFORMACIÓN INICIAL'!$F$18,IF(E61='INFORMACIÓN INICIAL'!$D$19,'INFORMACIÓN INICIAL'!$F$19,IF(E61='INFORMACIÓN INICIAL'!$D$20,'INFORMACIÓN INICIAL'!$F$20,IF(E61='INFORMACIÓN INICIAL'!$D$21,'INFORMACIÓN INICIAL'!$F$21,\" \"))))))))))))","v":"UNIDAD1"}]
[null,null,null,null,null,{"$f":"IF(E62='INFORMACIÓN INICIAL'!$D$10,'INFORMACIÓN INICIAL'!$F$10,IF(E62='INFORMACIÓN INICIAL'!$D$11,'INFORMACIÓN INICIAL'!$F$11,IF(E62='INFORMACIÓN INICIAL'!$D$12,'INFORMACIÓN INICIAL'!$F$12,IF(E62='INFORMACIÓN INICIAL'!$D$13,'INFORMACIÓN INICIAL'!$F$13,IF(E62='INFORMACIÓN INICIAL'!$D$14,'INFORMACIÓN INICIAL'!$F$14,IF(E62='INFORMACIÓN INICIAL'!$D$15,'INFORMACIÓN INICIAL'!$F$15,IF(E62='INFORMACIÓN INICIAL'!$D$16,'INFORMACIÓN INICIAL'!$F$16,IF(E62='INFORMACIÓN INICIAL'!$D$17,'INFORMACIÓN INICIAL'!$F$17,IF(E62='INFORMACIÓN INICIAL'!$D$18,'INFORMACIÓN INICIAL'!$F$18,IF(E62='INFORMACIÓN INICIAL'!$D$19,'INFORMACIÓN INICIAL'!$F$19,IF(E62='INFORMACIÓN INICIAL'!$D$20,'INFORMACIÓN INICIAL'!$F$20,IF(E62='INFORMACIÓN INICIAL'!$D$21,'INFORMACIÓN INICIAL'!$F$21,\" \"))))))))))))","v":"UNIDAD1"}]
[null,null,null,null,null,{"$f":"IF(E63='INFORMACIÓN INICIAL'!$D$10,'INFORMACIÓN INICIAL'!$F$10,IF(E63='INFORMACIÓN INICIAL'!$D$11,'INFORMACIÓN INICIAL'!$F$11,IF(E63='INFORMACIÓN INICIAL'!$D$12,'INFORMACIÓN INICIAL'!$F$12,IF(E63='INFORMACIÓN INICIAL'!$D$13,'INFORMACIÓN INICIAL'!$F$13,IF(E63='INFORMACIÓN INICIAL'!$D$14,'INFORMACIÓN INICIAL'!$F$14,IF(E63='INFORMACIÓN INICIAL'!$D$15,'INFORMACIÓN INICIAL'!$F$15,IF(E63='INFORMACIÓN INICIAL'!$D$16,'INFORMACIÓN INICIAL'!$F$16,IF(E63='INFORMACIÓN INICIAL'!$D$17,'INFORMACIÓN INICIAL'!$F$17,IF(E63='INFORMACIÓN INICIAL'!$D$18,'INFORMACIÓN INICIAL'!$F$18,IF(E63='INFORMACIÓN INICIAL'!$D$19,'INFORMACIÓN INICIAL'!$F$19,IF(E63='INFORMACIÓN INICIAL'!$D$20,'INFORMACIÓN INICIAL'!$F$20,IF(E63='INFORMACIÓN INICIAL'!$D$21,'INFORMACIÓN INICIAL'!$F$21,\" \"))))))))))))","v":"UNIDAD1"}]
[null,null,null,null,null,{"$f":"IF(E64='INFORMACIÓN INICIAL'!$D$10,'INFORMACIÓN INICIAL'!$F$10,IF(E64='INFORMACIÓN INICIAL'!$D$11,'INFORMACIÓN INICIAL'!$F$11,IF(E64='INFORMACIÓN INICIAL'!$D$12,'INFORMACIÓN INICIAL'!$F$12,IF(E64='INFORMACIÓN INICIAL'!$D$13,'INFORMACIÓN INICIAL'!$F$13,IF(E64='INFORMACIÓN INICIAL'!$D$14,'INFORMACIÓN INICIAL'!$F$14,IF(E64='INFORMACIÓN INICIAL'!$D$15,'INFORMACIÓN INICIAL'!$F$15,IF(E64='INFORMACIÓN INICIAL'!$D$16,'INFORMACIÓN INICIAL'!$F$16,IF(E64='INFORMACIÓN INICIAL'!$D$17,'INFORMACIÓN INICIAL'!$F$17,IF(E64='INFORMACIÓN INICIAL'!$D$18,'INFORMACIÓN INICIAL'!$F$18,IF(E64='INFORMACIÓN INICIAL'!$D$19,'INFORMACIÓN INICIAL'!$F$19,IF(E64='INFORMACIÓN INICIAL'!$D$20,'INFORMACIÓN INICIAL'!$F$20,IF(E64='INFORMACIÓN INICIAL'!$D$21,'INFORMACIÓN INICIAL'!$F$21,\" \"))))))))))))","v":"UNIDAD1"}]
[null,null,null,null,null,{"$f":"IF(E65='INFORMACIÓN INICIAL'!$D$10,'INFORMACIÓN INICIAL'!$F$10,IF(E65='INFORMACIÓN INICIAL'!$D$11,'INFORMACIÓN INICIAL'!$F$11,IF(E65='INFORMACIÓN INICIAL'!$D$12,'INFORMACIÓN INICIAL'!$F$12,IF(E65='INFORMACIÓN INICIAL'!$D$13,'INFORMACIÓN INICIAL'!$F$13,IF(E65='INFORMACIÓN INICIAL'!$D$14,'INFORMACIÓN INICIAL'!$F$14,IF(E65='INFORMACIÓN INICIAL'!$D$15,'INFORMACIÓN INICIAL'!$F$15,IF(E65='INFORMACIÓN INICIAL'!$D$16,'INFORMACIÓN INICIAL'!$F$16,IF(E65='INFORMACIÓN INICIAL'!$D$17,'INFORMACIÓN INICIAL'!$F$17,IF(E65='INFORMACIÓN INICIAL'!$D$18,'INFORMACIÓN INICIAL'!$F$18,IF(E65='INFORMACIÓN INICIAL'!$D$19,'INFORMACIÓN INICIAL'!$F$19,IF(E65='INFORMACIÓN INICIAL'!$D$20,'INFORMACIÓN INICIAL'!$F$20,IF(E65='INFORMACIÓN INICIAL'!$D$21,'INFORMACIÓN INICIAL'!$F$21,\" \"))))))))))))","v":"UNIDAD1"}]
[null,null,null,null,null,{"$f":"IF(E66='INFORMACIÓN INICIAL'!$D$10,'INFORMACIÓN INICIAL'!$F$10,IF(E66='INFORMACIÓN INICIAL'!$D$11,'INFORMACIÓN INICIAL'!$F$11,IF(E66='INFORMACIÓN INICIAL'!$D$12,'INFORMACIÓN INICIAL'!$F$12,IF(E66='INFORMACIÓN INICIAL'!$D$13,'INFORMACIÓN INICIAL'!$F$13,IF(E66='INFORMACIÓN INICIAL'!$D$14,'INFORMACIÓN INICIAL'!$F$14,IF(E66='INFORMACIÓN INICIAL'!$D$15,'INFORMACIÓN INICIAL'!$F$15,IF(E66='INFORMACIÓN INICIAL'!$D$16,'INFORMACIÓN INICIAL'!$F$16,IF(E66='INFORMACIÓN INICIAL'!$D$17,'INFORMACIÓN INICIAL'!$F$17,IF(E66='INFORMACIÓN INICIAL'!$D$18,'INFORMACIÓN INICIAL'!$F$18,IF(E66='INFORMACIÓN INICIAL'!$D$19,'INFORMACIÓN INICIAL'!$F$19,IF(E66='INFORMACIÓN INICIAL'!$D$20,'INFORMACIÓN INICIAL'!$F$20,IF(E66='INFORMACIÓN INICIAL'!$D$21,'INFORMACIÓN INICIAL'!$F$21,\" \"))))))))))))","v":"UNIDAD1"}]
[null,null,null,null,null,{"$f":"IF(E67='INFORMACIÓN INICIAL'!$D$10,'INFORMACIÓN INICIAL'!$F$10,IF(E67='INFORMACIÓN INICIAL'!$D$11,'INFORMACIÓN INICIAL'!$F$11,IF(E67='INFORMACIÓN INICIAL'!$D$12,'INFORMACIÓN INICIAL'!$F$12,IF(E67='INFORMACIÓN INICIAL'!$D$13,'INFORMACIÓN INICIAL'!$F$13,IF(E67='INFORMACIÓN INICIAL'!$D$14,'INFORMACIÓN INICIAL'!$F$14,IF(E67='INFORMACIÓN INICIAL'!$D$15,'INFORMACIÓN INICIAL'!$F$15,IF(E67='INFORMACIÓN INICIAL'!$D$16,'INFORMACIÓN INICIAL'!$F$16,IF(E67='INFORMACIÓN INICIAL'!$D$17,'INFORMACIÓN INICIAL'!$F$17,IF(E67='INFORMACIÓN INICIAL'!$D$18,'INFORMACIÓN INICIAL'!$F$18,IF(E67='INFORMACIÓN INICIAL'!$D$19,'INFORMACIÓN INICIAL'!$F$19,IF(E67='INFORMACIÓN INICIAL'!$D$20,'INFORMACIÓN INICIAL'!$F$20,IF(E67='INFORMACIÓN INICIAL'!$D$21,'INFORMACIÓN INICIAL'!$F$21,\" \"))))))))))))","v":"UNIDAD1"}]
[null,null,null,null,null,{"$f":"IF(E68='INFORMACIÓN INICIAL'!$D$10,'INFORMACIÓN INICIAL'!$F$10,IF(E68='INFORMACIÓN INICIAL'!$D$11,'INFORMACIÓN INICIAL'!$F$11,IF(E68='INFORMACIÓN INICIAL'!$D$12,'INFORMACIÓN INICIAL'!$F$12,IF(E68='INFORMACIÓN INICIAL'!$D$13,'INFORMACIÓN INICIAL'!$F$13,IF(E68='INFORMACIÓN INICIAL'!$D$14,'INFORMACIÓN INICIAL'!$F$14,IF(E68='INFORMACIÓN INICIAL'!$D$15,'INFORMACIÓN INICIAL'!$F$15,IF(E68='INFORMACIÓN INICIAL'!$D$16,'INFORMACIÓN INICIAL'!$F$16,IF(E68='INFORMACIÓN INICIAL'!$D$17,'INFORMACIÓN INICIAL'!$F$17,IF(E68='INFORMACIÓN INICIAL'!$D$18,'INFORMACIÓN INICIAL'!$F$18,IF(E68='INFORMACIÓN INICIAL'!$D$19,'INFORMACIÓN INICIAL'!$F$19,IF(E68='INFORMACIÓN INICIAL'!$D$20,'INFORMACIÓN INICIAL'!$F$20,IF(E68='INFORMACIÓN INICIAL'!$D$21,'INFORMACIÓN INICIAL'!$F$21,\" \"))))))))))))","v":"UNIDAD1"}]
[null,null,null,null,null,{"$f":"IF(E69='INFORMACIÓN INICIAL'!$D$10,'INFORMACIÓN INICIAL'!$F$10,IF(E69='INFORMACIÓN INICIAL'!$D$11,'INFORMACIÓN INICIAL'!$F$11,IF(E69='INFORMACIÓN INICIAL'!$D$12,'INFORMACIÓN INICIAL'!$F$12,IF(E69='INFORMACIÓN INICIAL'!$D$13,'INFORMACIÓN INICIAL'!$F$13,IF(E69='INFORMACIÓN INICIAL'!$D$14,'INFORMACIÓN INICIAL'!$F$14,IF(E69='INFORMACIÓN INICIAL'!$D$15,'INFORMACIÓN INICIAL'!$F$15,IF(E69='INFORMACIÓN INICIAL'!$D$16,'INFORMACIÓN INICIAL'!$F$16,IF(E69='INFORMACIÓN INICIAL'!$D$17,'INFORMACIÓN INICIAL'!$F$17,IF(E69='INFORMACIÓN INICIAL'!$D$18,'INFORMACIÓN INICIAL'!$F$18,IF(E69='INFORMACIÓN INICIAL'!$D$19,'INFORMACIÓN INICIAL'!$F$19,IF(E69='INFORMACIÓN INICIAL'!$D$20,'INFORMACIÓN INICIAL'!$F$20,IF(E69='INFORMACIÓN INICIAL'!$D$21,'INFORMACIÓN INICIAL'!$F$21,\" \"))))))))))))","v":"UNIDAD1"}]
[null,null,null,null,null,{"$f":"IF(E70='INFORMACIÓN INICIAL'!$D$10,'INFORMACIÓN INICIAL'!$F$10,IF(E70='INFORMACIÓN INICIAL'!$D$11,'INFORMACIÓN INICIAL'!$F$11,IF(E70='INFORMACIÓN INICIAL'!$D$12,'INFORMACIÓN INICIAL'!$F$12,IF(E70='INFORMACIÓN INICIAL'!$D$13,'INFORMACIÓN INICIAL'!$F$13,IF(E70='INFORMACIÓN INICIAL'!$D$14,'INFORMACIÓN INICIAL'!$F$14,IF(E70='INFORMACIÓN INICIAL'!$D$15,'INFORMACIÓN INICIAL'!$F$15,IF(E70='INFORMACIÓN INICIAL'!$D$16,'INFORMACIÓN INICIAL'!$F$16,IF(E70='INFORMACIÓN INICIAL'!$D$17,'INFORMACIÓN INICIAL'!$F$17,IF(E70='INFORMACIÓN INICIAL'!$D$18,'INFORMACIÓN INICIAL'!$F$18,IF(E70='INFORMACIÓN INICIAL'!$D$19,'INFORMACIÓN INICIAL'!$F$19,IF(E70='INFORMACIÓN INICIAL'!$D$20,'INFORMACIÓN INICIAL'!$F$20,IF(E70='INFORMACIÓN INICIAL'!$D$21,'INFORMACIÓN INICIAL'!$F$21,\" \"))))))))))))","v":"UNIDAD1"}]
[null,null,null,null,null,{"$f":"IF(E71='INFORMACIÓN INICIAL'!$D$10,'INFORMACIÓN INICIAL'!$F$10,IF(E71='INFORMACIÓN INICIAL'!$D$11,'INFORMACIÓN INICIAL'!$F$11,IF(E71='INFORMACIÓN INICIAL'!$D$12,'INFORMACIÓN INICIAL'!$F$12,IF(E71='INFORMACIÓN INICIAL'!$D$13,'INFORMACIÓN INICIAL'!$F$13,IF(E71='INFORMACIÓN INICIAL'!$D$14,'INFORMACIÓN INICIAL'!$F$14,IF(E71='INFORMACIÓN INICIAL'!$D$15,'INFORMACIÓN INICIAL'!$F$15,IF(E71='INFORMACIÓN INICIAL'!$D$16,'INFORMACIÓN INICIAL'!$F$16,IF(E71='INFORMACIÓN INICIAL'!$D$17,'INFORMACIÓN INICIAL'!$F$17,IF(E71='INFORMACIÓN INICIAL'!$D$18,'INFORMACIÓN INICIAL'!$F$18,IF(E71='INFORMACIÓN INICIAL'!$D$19,'INFORMACIÓN INICIAL'!$F$19,IF(E71='INFORMACIÓN INICIAL'!$D$20,'INFORMACIÓN INICIAL'!$F$20,IF(E71='INFORMACIÓN INICIAL'!$D$21,'INFORMACIÓN INICIAL'!$F$21,\" \"))))))))))))","v":"UNIDAD1"}]
[null,null,null,null,null,{"$f":"IF(E72='INFORMACIÓN INICIAL'!$D$10,'INFORMACIÓN INICIAL'!$F$10,IF(E72='INFORMACIÓN INICIAL'!$D$11,'INFORMACIÓN INICIAL'!$F$11,IF(E72='INFORMACIÓN INICIAL'!$D$12,'INFORMACIÓN INICIAL'!$F$12,IF(E72='INFORMACIÓN INICIAL'!$D$13,'INFORMACIÓN INICIAL'!$F$13,IF(E72='INFORMACIÓN INICIAL'!$D$14,'INFORMACIÓN INICIAL'!$F$14,IF(E72='INFORMACIÓN INICIAL'!$D$15,'INFORMACIÓN INICIAL'!$F$15,IF(E72='INFORMACIÓN INICIAL'!$D$16,'INFORMACIÓN INICIAL'!$F$16,IF(E72='INFORMACIÓN INICIAL'!$D$17,'INFORMACIÓN INICIAL'!$F$17,IF(E72='INFORMACIÓN INICIAL'!$D$18,'INFORMACIÓN INICIAL'!$F$18,IF(E72='INFORMACIÓN INICIAL'!$D$19,'INFORMACIÓN INICIAL'!$F$19,IF(E72='INFORMACIÓN INICIAL'!$D$20,'INFORMACIÓN INICIAL'!$F$20,IF(E72='INFORMACIÓN INICIAL'!$D$21,'INFORMACIÓN INICIAL'!$F$21,\" \"))))))))))))","v":"UNIDAD1"}]
[null,null,null,null,null,{"$f":"IF(E73='INFORMACIÓN INICIAL'!$D$10,'INFORMACIÓN INICIAL'!$F$10,IF(E73='INFORMACIÓN INICIAL'!$D$11,'INFORMACIÓN INICIAL'!$F$11,IF(E73='INFORMACIÓN INICIAL'!$D$12,'INFORMACIÓN INICIAL'!$F$12,IF(E73='INFORMACIÓN INICIAL'!$D$13,'INFORMACIÓN INICIAL'!$F$13,IF(E73='INFORMACIÓN INICIAL'!$D$14,'INFORMACIÓN INICIAL'!$F$14,IF(E73='INFORMACIÓN INICIAL'!$D$15,'INFORMACIÓN INICIAL'!$F$15,IF(E73='INFORMACIÓN INICIAL'!$D$16,'INFORMACIÓN INICIAL'!$F$16,IF(E73='INFORMACIÓN INICIAL'!$D$17,'INFORMACIÓN INICIAL'!$F$17,IF(E73='INFORMACIÓN INICIAL'!$D$18,'INFORMACIÓN INICIAL'!$F$18,IF(E73='INFORMACIÓN INICIAL'!$D$19,'INFORMACIÓN INICIAL'!$F$19,IF(E73='INFORMACIÓN INICIAL'!$D$20,'INFORMACIÓN INICIAL'!$F$20,IF(E73='INFORMACIÓN INICIAL'!$D$21,'INFORMACIÓN INICIAL'!$F$21,\" \"))))))))))))","v":"UNIDAD1"}]
[null,null,null,null,null,{"$f":"IF(E74='INFORMACIÓN INICIAL'!$D$10,'INFORMACIÓN INICIAL'!$F$10,IF(E74='INFORMACIÓN INICIAL'!$D$11,'INFORMACIÓN INICIAL'!$F$11,IF(E74='INFORMACIÓN INICIAL'!$D$12,'INFORMACIÓN INICIAL'!$F$12,IF(E74='INFORMACIÓN INICIAL'!$D$13,'INFORMACIÓN INICIAL'!$F$13,IF(E74='INFORMACIÓN INICIAL'!$D$14,'INFORMACIÓN INICIAL'!$F$14,IF(E74='INFORMACIÓN INICIAL'!$D$15,'INFORMACIÓN INICIAL'!$F$15,IF(E74='INFORMACIÓN INICIAL'!$D$16,'INFORMACIÓN INICIAL'!$F$16,IF(E74='INFORMACIÓN INICIAL'!$D$17,'INFORMACIÓN INICIAL'!$F$17,IF(E74='INFORMACIÓN INICIAL'!$D$18,'INFORMACIÓN INICIAL'!$F$18,IF(E74='INFORMACIÓN INICIAL'!$D$19,'INFORMACIÓN INICIAL'!$F$19,IF(E74='INFORMACIÓN INICIAL'!$D$20,'INFORMACIÓN INICIAL'!$F$20,IF(E74='INFORMACIÓN INICIAL'!$D$21,'INFORMACIÓN INICIAL'!$F$21,\" \"))))))))))))","v":"UNIDAD1"}]
[null,null,null,null,null,{"$f":"IF(E75='INFORMACIÓN INICIAL'!$D$10,'INFORMACIÓN INICIAL'!$F$10,IF(E75='INFORMACIÓN INICIAL'!$D$11,'INFORMACIÓN INICIAL'!$F$11,IF(E75='INFORMACIÓN INICIAL'!$D$12,'INFORMACIÓN INICIAL'!$F$12,IF(E75='INFORMACIÓN INICIAL'!$D$13,'INFORMACIÓN INICIAL'!$F$13,IF(E75='INFORMACIÓN INICIAL'!$D$14,'INFORMACIÓN INICIAL'!$F$14,IF(E75='INFORMACIÓN INICIAL'!$D$15,'INFORMACIÓN INICIAL'!$F$15,IF(E75='INFORMACIÓN INICIAL'!$D$16,'INFORMACIÓN INICIAL'!$F$16,IF(E75='INFORMACIÓN INICIAL'!$D$17,'INFORMACIÓN INICIAL'!$F$17,IF(E75='INFORMACIÓN INICIAL'!$D$18,'INFORMACIÓN INICIAL'!$F$18,IF(E75='INFORMACIÓN INICIAL'!$D$19,'INFORMACIÓN INICIAL'!$F$19,IF(E75='INFORMACIÓN INICIAL'!$D$20,'INFORMACIÓN INICIAL'!$F$20,IF(E75='INFORMACIÓN INICIAL'!$D$21,'INFORMACIÓN INICIAL'!$F$21,\" \"))))))))))))","v":"UNIDAD1"}]
[null,null,null,null,null,{"$f":"IF(E76='INFORMACIÓN INICIAL'!$D$10,'INFORMACIÓN INICIAL'!$F$10,IF(E76='INFORMACIÓN INICIAL'!$D$11,'INFORMACIÓN INICIAL'!$F$11,IF(E76='INFORMACIÓN INICIAL'!$D$12,'INFORMACIÓN INICIAL'!$F$12,IF(E76='INFORMACIÓN INICIAL'!$D$13,'INFORMACIÓN INICIAL'!$F$13,IF(E76='INFORMACIÓN INICIAL'!$D$14,'INFORMACIÓN INICIAL'!$F$14,IF(E76='INFORMACIÓN INICIAL'!$D$15,'INFORMACIÓN INICIAL'!$F$15,IF(E76='INFORMACIÓN INICIAL'!$D$16,'INFORMACIÓN INICIAL'!$F$16,IF(E76='INFORMACIÓN INICIAL'!$D$17,'INFORMACIÓN INICIAL'!$F$17,IF(E76='INFORMACIÓN INICIAL'!$D$18,'INFORMACIÓN INICIAL'!$F$18,IF(E76='INFORMACIÓN INICIAL'!$D$19,'INFORMACIÓN INICIAL'!$F$19,IF(E76='INFORMACIÓN INICIAL'!$D$20,'INFORMACIÓN INICIAL'!$F$20,IF(E76='INFORMACIÓN INICIAL'!$D$21,'INFORMACIÓN INICIAL'!$F$21,\" \"))))))))))))","v":"UNIDAD1"}]
[null,null,null,null,null,{"$f":"IF(E77='INFORMACIÓN INICIAL'!$D$10,'INFORMACIÓN INICIAL'!$F$10,IF(E77='INFORMACIÓN INICIAL'!$D$11,'INFORMACIÓN INICIAL'!$F$11,IF(E77='INFORMACIÓN INICIAL'!$D$12,'INFORMACIÓN INICIAL'!$F$12,IF(E77='INFORMACIÓN INICIAL'!$D$13,'INFORMACIÓN INICIAL'!$F$13,IF(E77='INFORMACIÓN INICIAL'!$D$14,'INFORMACIÓN INICIAL'!$F$14,IF(E77='INFORMACIÓN INICIAL'!$D$15,'INFORMACIÓN INICIAL'!$F$15,IF(E77='INFORMACIÓN INICIAL'!$D$16,'INFORMACIÓN INICIAL'!$F$16,IF(E77='INFORMACIÓN INICIAL'!$D$17,'INFORMACIÓN INICIAL'!$F$17,IF(E77='INFORMACIÓN INICIAL'!$D$18,'INFORMACIÓN INICIAL'!$F$18,IF(E77='INFORMACIÓN INICIAL'!$D$19,'INFORMACIÓN INICIAL'!$F$19,IF(E77='INFORMACIÓN INICIAL'!$D$20,'INFORMACIÓN INICIAL'!$F$20,IF(E77='INFORMACIÓN INICIAL'!$D$21,'INFORMACIÓN INICIAL'!$F$21,\" \"))))))))))))","v":"UNIDAD1"}]
[null,null,null,null,null,{"$f":"IF(E78='INFORMACIÓN INICIAL'!$D$10,'INFORMACIÓN INICIAL'!$F$10,IF(E78='INFORMACIÓN INICIAL'!$D$11,'INFORMACIÓN INICIAL'!$F$11,IF(E78='INFORMACIÓN INICIAL'!$D$12,'INFORMACIÓN INICIAL'!$F$12,IF(E78='INFORMACIÓN INICIAL'!$D$13,'INFORMACIÓN INICIAL'!$F$13,IF(E78='INFORMACIÓN INICIAL'!$D$14,'INFORMACIÓN INICIAL'!$F$14,IF(E78='INFORMACIÓN INICIAL'!$D$15,'INFORMACIÓN INICIAL'!$F$15,IF(E78='INFORMACIÓN INICIAL'!$D$16,'INFORMACIÓN INICIAL'!$F$16,IF(E78='INFORMACIÓN INICIAL'!$D$17,'INFORMACIÓN INICIAL'!$F$17,IF(E78='INFORMACIÓN INICIAL'!$D$18,'INFORMACIÓN INICIAL'!$F$18,IF(E78='INFORMACIÓN INICIAL'!$D$19,'INFORMACIÓN INICIAL'!$F$19,IF(E78='INFORMACIÓN INICIAL'!$D$20,'INFORMACIÓN INICIAL'!$F$20,IF(E78='INFORMACIÓN INICIAL'!$D$21,'INFORMACIÓN INICIAL'!$F$21,\" \"))))))))))))","v":"UNIDAD1"}]
[null,null,null,null,null,{"$f":"IF(E79='INFORMACIÓN INICIAL'!$D$10,'INFORMACIÓN INICIAL'!$F$10,IF(E79='INFORMACIÓN INICIAL'!$D$11,'INFORMACIÓN INICIAL'!$F$11,IF(E79='INFORMACIÓN INICIAL'!$D$12,'INFORMACIÓN INICIAL'!$F$12,IF(E79='INFORMACIÓN INICIAL'!$D$13,'INFORMACIÓN INICIAL'!$F$13,IF(E79='INFORMACIÓN INICIAL'!$D$14,'INFORMACIÓN INICIAL'!$F$14,IF(E79='INFORMACIÓN INICIAL'!$D$15,'INFORMACIÓN INICIAL'!$F$15,IF(E79='INFORMACIÓN INICIAL'!$D$16,'INFORMACIÓN INICIAL'!$F$16,IF(E79='INFORMACIÓN INICIAL'!$D$17,'INFORMACIÓN INICIAL'!$F$17,IF(E79='INFORMACIÓN INICIAL'!$D$18,'INFORMACIÓN INICIAL'!$F$18,IF(E79='INFORMACIÓN INICIAL'!$D$19,'INFORMACIÓN INICIAL'!$F$19,IF(E79='INFORMACIÓN INICIAL'!$D$20,'INFORMACIÓN INICIAL'!$F$20,IF(E79='INFORMACIÓN INICIAL'!$D$21,'INFORMACIÓN INICIAL'!$F$21,\" \"))))))))))))","v":"UNIDAD1"}]
[null,null,null,null,null,{"$f":"IF(E80='INFORMACIÓN INICIAL'!$D$10,'INFORMACIÓN INICIAL'!$F$10,IF(E80='INFORMACIÓN INICIAL'!$D$11,'INFORMACIÓN INICIAL'!$F$11,IF(E80='INFORMACIÓN INICIAL'!$D$12,'INFORMACIÓN INICIAL'!$F$12,IF(E80='INFORMACIÓN INICIAL'!$D$13,'INFORMACIÓN INICIAL'!$F$13,IF(E80='INFORMACIÓN INICIAL'!$D$14,'INFORMACIÓN INICIAL'!$F$14,IF(E80='INFORMACIÓN INICIAL'!$D$15,'INFORMACIÓN INICIAL'!$F$15,IF(E80='INFORMACIÓN INICIAL'!$D$16,'INFORMACIÓN INICIAL'!$F$16,IF(E80='INFORMACIÓN INICIAL'!$D$17,'INFORMACIÓN INICIAL'!$F$17,IF(E80='INFORMACIÓN INICIAL'!$D$18,'INFORMACIÓN INICIAL'!$F$18,IF(E80='INFORMACIÓN INICIAL'!$D$19,'INFORMACIÓN INICIAL'!$F$19,IF(E80='INFORMACIÓN INICIAL'!$D$20,'INFORMACIÓN INICIAL'!$F$20,IF(E80='INFORMACIÓN INICIAL'!$D$21,'INFORMACIÓN INICIAL'!$F$21,\" \"))))))))))))","v":"UNIDAD1"}]
[null,null,null,null,null,{"$f":"IF(E81='INFORMACIÓN INICIAL'!$D$10,'INFORMACIÓN INICIAL'!$F$10,IF(E81='INFORMACIÓN INICIAL'!$D$11,'INFORMACIÓN INICIAL'!$F$11,IF(E81='INFORMACIÓN INICIAL'!$D$12,'INFORMACIÓN INICIAL'!$F$12,IF(E81='INFORMACIÓN INICIAL'!$D$13,'INFORMACIÓN INICIAL'!$F$13,IF(E81='INFORMACIÓN INICIAL'!$D$14,'INFORMACIÓN INICIAL'!$F$14,IF(E81='INFORMACIÓN INICIAL'!$D$15,'INFORMACIÓN INICIAL'!$F$15,IF(E81='INFORMACIÓN INICIAL'!$D$16,'INFORMACIÓN INICIAL'!$F$16,IF(E81='INFORMACIÓN INICIAL'!$D$17,'INFORMACIÓN INICIAL'!$F$17,IF(E81='INFORMACIÓN INICIAL'!$D$18,'INFORMACIÓN INICIAL'!$F$18,IF(E81='INFORMACIÓN INICIAL'!$D$19,'INFORMACIÓN INICIAL'!$F$19,IF(E81='INFORMACIÓN INICIAL'!$D$20,'INFORMACIÓN INICIAL'!$F$20,IF(E81='INFORMACIÓN INICIAL'!$D$21,'INFORMACIÓN INICIAL'!$F$21,\" \"))))))))))))","v":"UNIDAD1"}]
[null,null,null,null,null,{"$f":"IF(E82='INFORMACIÓN INICIAL'!$D$10,'INFORMACIÓN INICIAL'!$F$10,IF(E82='INFORMACIÓN INICIAL'!$D$11,'INFORMACIÓN INICIAL'!$F$11,IF(E82='INFORMACIÓN INICIAL'!$D$12,'INFORMACIÓN INICIAL'!$F$12,IF(E82='INFORMACIÓN INICIAL'!$D$13,'INFORMACIÓN INICIAL'!$F$13,IF(E82='INFORMACIÓN INICIAL'!$D$14,'INFORMACIÓN INICIAL'!$F$14,IF(E82='INFORMACIÓN INICIAL'!$D$15,'INFORMACIÓN INICIAL'!$F$15,IF(E82='INFORMACIÓN INICIAL'!$D$16,'INFORMACIÓN INICIAL'!$F$16,IF(E82='INFORMACIÓN INICIAL'!$D$17,'INFORMACIÓN INICIAL'!$F$17,IF(E82='INFORMACIÓN INICIAL'!$D$18,'INFORMACIÓN INICIAL'!$F$18,IF(E82='INFORMACIÓN INICIAL'!$D$19,'INFORMACIÓN INICIAL'!$F$19,IF(E82='INFORMACIÓN INICIAL'!$D$20,'INFORMACIÓN INICIAL'!$F$20,IF(E82='INFORMACIÓN INICIAL'!$D$21,'INFORMACIÓN INICIAL'!$F$21,\" \"))))))))))))","v":"UNIDAD1"}]
[null,null,null,null,null,{"$f":"IF(E83='INFORMACIÓN INICIAL'!$D$10,'INFORMACIÓN INICIAL'!$F$10,IF(E83='INFORMACIÓN INICIAL'!$D$11,'INFORMACIÓN INICIAL'!$F$11,IF(E83='INFORMACIÓN INICIAL'!$D$12,'INFORMACIÓN INICIAL'!$F$12,IF(E83='INFORMACIÓN INICIAL'!$D$13,'INFORMACIÓN INICIAL'!$F$13,IF(E83='INFORMACIÓN INICIAL'!$D$14,'INFORMACIÓN INICIAL'!$F$14,IF(E83='INFORMACIÓN INICIAL'!$D$15,'INFORMACIÓN INICIAL'!$F$15,IF(E83='INFORMACIÓN INICIAL'!$D$16,'INFORMACIÓN INICIAL'!$F$16,IF(E83='INFORMACIÓN INICIAL'!$D$17,'INFORMACIÓN INICIAL'!$F$17,IF(E83='INFORMACIÓN INICIAL'!$D$18,'INFORMACIÓN INICIAL'!$F$18,IF(E83='INFORMACIÓN INICIAL'!$D$19,'INFORMACIÓN INICIAL'!$F$19,IF(E83='INFORMACIÓN INICIAL'!$D$20,'INFORMACIÓN INICIAL'!$F$20,IF(E83='INFORMACIÓN INICIAL'!$D$21,'INFORMACIÓN INICIAL'!$F$21,\" \"))))))))))))","v":"UNIDAD1"}]
[null,null,null,null,null,{"$f":"IF(E84='INFORMACIÓN INICIAL'!$D$10,'INFORMACIÓN INICIAL'!$F$10,IF(E84='INFORMACIÓN INICIAL'!$D$11,'INFORMACIÓN INICIAL'!$F$11,IF(E84='INFORMACIÓN INICIAL'!$D$12,'INFORMACIÓN INICIAL'!$F$12,IF(E84='INFORMACIÓN INICIAL'!$D$13,'INFORMACIÓN INICIAL'!$F$13,IF(E84='INFORMACIÓN INICIAL'!$D$14,'INFORMACIÓN INICIAL'!$F$14,IF(E84='INFORMACIÓN INICIAL'!$D$15,'INFORMACIÓN INICIAL'!$F$15,IF(E84='INFORMACIÓN INICIAL'!$D$16,'INFORMACIÓN INICIAL'!$F$16,IF(E84='INFORMACIÓN INICIAL'!$D$17,'INFORMACIÓN INICIAL'!$F$17,IF(E84='INFORMACIÓN INICIAL'!$D$18,'INFORMACIÓN INICIAL'!$F$18,IF(E84='INFORMACIÓN INICIAL'!$D$19,'INFORMACIÓN INICIAL'!$F$19,IF(E84='INFORMACIÓN INICIAL'!$D$20,'INFORMACIÓN INICIAL'!$F$20,IF(E84='INFORMACIÓN INICIAL'!$D$21,'INFORMACIÓN INICIAL'!$F$21,\" \"))))))))))))","v":"UNIDAD1"}]
[null,null,null,null,null,{"$f":"IF(E85='INFORMACIÓN INICIAL'!$D$10,'INFORMACIÓN INICIAL'!$F$10,IF(E85='INFORMACIÓN INICIAL'!$D$11,'INFORMACIÓN INICIAL'!$F$11,IF(E85='INFORMACIÓN INICIAL'!$D$12,'INFORMACIÓN INICIAL'!$F$12,IF(E85='INFORMACIÓN INICIAL'!$D$13,'INFORMACIÓN INICIAL'!$F$13,IF(E85='INFORMACIÓN INICIAL'!$D$14,'INFORMACIÓN INICIAL'!$F$14,IF(E85='INFORMACIÓN INICIAL'!$D$15,'INFORMACIÓN INICIAL'!$F$15,IF(E85='INFORMACIÓN INICIAL'!$D$16,'INFORMACIÓN INICIAL'!$F$16,IF(E85='INFORMACIÓN INICIAL'!$D$17,'INFORMACIÓN INICIAL'!$F$17,IF(E85='INFORMACIÓN INICIAL'!$D$18,'INFORMACIÓN INICIAL'!$F$18,IF(E85='INFORMACIÓN INICIAL'!$D$19,'INFORMACIÓN INICIAL'!$F$19,IF(E85='INFORMACIÓN INICIAL'!$D$20,'INFORMACIÓN INICIAL'!$F$20,IF(E85='INFORMACIÓN INICIAL'!$D$21,'INFORMACIÓN INICIAL'!$F$21,\" \"))))))))))))","v":"UNIDAD1"}]
[null,null,null,null,null,{"$f":"IF(E86='INFORMACIÓN INICIAL'!$D$10,'INFORMACIÓN INICIAL'!$F$10,IF(E86='INFORMACIÓN INICIAL'!$D$11,'INFORMACIÓN INICIAL'!$F$11,IF(E86='INFORMACIÓN INICIAL'!$D$12,'INFORMACIÓN INICIAL'!$F$12,IF(E86='INFORMACIÓN INICIAL'!$D$13,'INFORMACIÓN INICIAL'!$F$13,IF(E86='INFORMACIÓN INICIAL'!$D$14,'INFORMACIÓN INICIAL'!$F$14,IF(E86='INFORMACIÓN INICIAL'!$D$15,'INFORMACIÓN INICIAL'!$F$15,IF(E86='INFORMACIÓN INICIAL'!$D$16,'INFORMACIÓN INICIAL'!$F$16,IF(E86='INFORMACIÓN INICIAL'!$D$17,'INFORMACIÓN INICIAL'!$F$17,IF(E86='INFORMACIÓN INICIAL'!$D$18,'INFORMACIÓN INICIAL'!$F$18,IF(E86='INFORMACIÓN INICIAL'!$D$19,'INFORMACIÓN INICIAL'!$F$19,IF(E86='INFORMACIÓN INICIAL'!$D$20,'INFORMACIÓN INICIAL'!$F$20,IF(E86='INFORMACIÓN INICIAL'!$D$21,'INFORMACIÓN INICIAL'!$F$21,\" \"))))))))))))","v":"UNIDAD1"}]
[null,null,null,null,null,{"$f":"IF(E87='INFORMACIÓN INICIAL'!$D$10,'INFORMACIÓN INICIAL'!$F$10,IF(E87='INFORMACIÓN INICIAL'!$D$11,'INFORMACIÓN INICIAL'!$F$11,IF(E87='INFORMACIÓN INICIAL'!$D$12,'INFORMACIÓN INICIAL'!$F$12,IF(E87='INFORMACIÓN INICIAL'!$D$13,'INFORMACIÓN INICIAL'!$F$13,IF(E87='INFORMACIÓN INICIAL'!$D$14,'INFORMACIÓN INICIAL'!$F$14,IF(E87='INFORMACIÓN INICIAL'!$D$15,'INFORMACIÓN INICIAL'!$F$15,IF(E87='INFORMACIÓN INICIAL'!$D$16,'INFORMACIÓN INICIAL'!$F$16,IF(E87='INFORMACIÓN INICIAL'!$D$17,'INFORMACIÓN INICIAL'!$F$17,IF(E87='INFORMACIÓN INICIAL'!$D$18,'INFORMACIÓN INICIAL'!$F$18,IF(E87='INFORMACIÓN INICIAL'!$D$19,'INFORMACIÓN INICIAL'!$F$19,IF(E87='INFORMACIÓN INICIAL'!$D$20,'INFORMACIÓN INICIAL'!$F$20,IF(E87='INFORMACIÓN INICIAL'!$D$21,'INFORMACIÓN INICIAL'!$F$21,\" \"))))))))))))","v":"UNIDAD1"}]
[null,null,null,null,null,{"$f":"IF(E88='INFORMACIÓN INICIAL'!$D$10,'INFORMACIÓN INICIAL'!$F$10,IF(E88='INFORMACIÓN INICIAL'!$D$11,'INFORMACIÓN INICIAL'!$F$11,IF(E88='INFORMACIÓN INICIAL'!$D$12,'INFORMACIÓN INICIAL'!$F$12,IF(E88='INFORMACIÓN INICIAL'!$D$13,'INFORMACIÓN INICIAL'!$F$13,IF(E88='INFORMACIÓN INICIAL'!$D$14,'INFORMACIÓN INICIAL'!$F$14,IF(E88='INFORMACIÓN INICIAL'!$D$15,'INFORMACIÓN INICIAL'!$F$15,IF(E88='INFORMACIÓN INICIAL'!$D$16,'INFORMACIÓN INICIAL'!$F$16,IF(E88='INFORMACIÓN INICIAL'!$D$17,'INFORMACIÓN INICIAL'!$F$17,IF(E88='INFORMACIÓN INICIAL'!$D$18,'INFORMACIÓN INICIAL'!$F$18,IF(E88='INFORMACIÓN INICIAL'!$D$19,'INFORMACIÓN INICIAL'!$F$19,IF(E88='INFORMACIÓN INICIAL'!$D$20,'INFORMACIÓN INICIAL'!$F$20,IF(E88='INFORMACIÓN INICIAL'!$D$21,'INFORMACIÓN INICIAL'!$F$21,\" \"))))))))))))","v":"UNIDAD1"}]
[null,null,null,null,null,{"$f":"IF(E89='INFORMACIÓN INICIAL'!$D$10,'INFORMACIÓN INICIAL'!$F$10,IF(E89='INFORMACIÓN INICIAL'!$D$11,'INFORMACIÓN INICIAL'!$F$11,IF(E89='INFORMACIÓN INICIAL'!$D$12,'INFORMACIÓN INICIAL'!$F$12,IF(E89='INFORMACIÓN INICIAL'!$D$13,'INFORMACIÓN INICIAL'!$F$13,IF(E89='INFORMACIÓN INICIAL'!$D$14,'INFORMACIÓN INICIAL'!$F$14,IF(E89='INFORMACIÓN INICIAL'!$D$15,'INFORMACIÓN INICIAL'!$F$15,IF(E89='INFORMACIÓN INICIAL'!$D$16,'INFORMACIÓN INICIAL'!$F$16,IF(E89='INFORMACIÓN INICIAL'!$D$17,'INFORMACIÓN INICIAL'!$F$17,IF(E89='INFORMACIÓN INICIAL'!$D$18,'INFORMACIÓN INICIAL'!$F$18,IF(E89='INFORMACIÓN INICIAL'!$D$19,'INFORMACIÓN INICIAL'!$F$19,IF(E89='INFORMACIÓN INICIAL'!$D$20,'INFORMACIÓN INICIAL'!$F$20,IF(E89='INFORMACIÓN INICIAL'!$D$21,'INFORMACIÓN INICIAL'!$F$21,\" \"))))))))))))","v":"UNIDAD1"}]
[null,null,null,null,null,{"$f":"IF(E90='INFORMACIÓN INICIAL'!$D$10,'INFORMACIÓN INICIAL'!$F$10,IF(E90='INFORMACIÓN INICIAL'!$D$11,'INFORMACIÓN INICIAL'!$F$11,IF(E90='INFORMACIÓN INICIAL'!$D$12,'INFORMACIÓN INICIAL'!$F$12,IF(E90='INFORMACIÓN INICIAL'!$D$13,'INFORMACIÓN INICIAL'!$F$13,IF(E90='INFORMACIÓN INICIAL'!$D$14,'INFORMACIÓN INICIAL'!$F$14,IF(E90='INFORMACIÓN INICIAL'!$D$15,'INFORMACIÓN INICIAL'!$F$15,IF(E90='INFORMACIÓN INICIAL'!$D$16,'INFORMACIÓN INICIAL'!$F$16,IF(E90='INFORMACIÓN INICIAL'!$D$17,'INFORMACIÓN INICIAL'!$F$17,IF(E90='INFORMACIÓN INICIAL'!$D$18,'INFORMACIÓN INICIAL'!$F$18,IF(E90='INFORMACIÓN INICIAL'!$D$19,'INFORMACIÓN INICIAL'!$F$19,IF(E90='INFORMACIÓN INICIAL'!$D$20,'INFORMACIÓN INICIAL'!$F$20,IF(E90='INFORMACIÓN INICIAL'!$D$21,'INFORMACIÓN INICIAL'!$F$21,\" \"))))))))))))","v":"UNIDAD1"}]
[null,null,null,null,null,{"$f":"IF(E91='INFORMACIÓN INICIAL'!$D$10,'INFORMACIÓN INICIAL'!$F$10,IF(E91='INFORMACIÓN INICIAL'!$D$11,'INFORMACIÓN INICIAL'!$F$11,IF(E91='INFORMACIÓN INICIAL'!$D$12,'INFORMACIÓN INICIAL'!$F$12,IF(E91='INFORMACIÓN INICIAL'!$D$13,'INFORMACIÓN INICIAL'!$F$13,IF(E91='INFORMACIÓN INICIAL'!$D$14,'INFORMACIÓN INICIAL'!$F$14,IF(E91='INFORMACIÓN INICIAL'!$D$15,'INFORMACIÓN INICIAL'!$F$15,IF(E91='INFORMACIÓN INICIAL'!$D$16,'INFORMACIÓN INICIAL'!$F$16,IF(E91='INFORMACIÓN INICIAL'!$D$17,'INFORMACIÓN INICIAL'!$F$17,IF(E91='INFORMACIÓN INICIAL'!$D$18,'INFORMACIÓN INICIAL'!$F$18,IF(E91='INFORMACIÓN INICIAL'!$D$19,'INFORMACIÓN INICIAL'!$F$19,IF(E91='INFORMACIÓN INICIAL'!$D$20,'INFORMACIÓN INICIAL'!$F$20,IF(E91='INFORMACIÓN INICIAL'!$D$21,'INFORMACIÓN INICIAL'!$F$21,\" \"))))))))))))","v":"UNIDAD1"}]
[null,null,null,null,null,{"$f":"IF(E92='INFORMACIÓN INICIAL'!$D$10,'INFORMACIÓN INICIAL'!$F$10,IF(E92='INFORMACIÓN INICIAL'!$D$11,'INFORMACIÓN INICIAL'!$F$11,IF(E92='INFORMACIÓN INICIAL'!$D$12,'INFORMACIÓN INICIAL'!$F$12,IF(E92='INFORMACIÓN INICIAL'!$D$13,'INFORMACIÓN INICIAL'!$F$13,IF(E92='INFORMACIÓN INICIAL'!$D$14,'INFORMACIÓN INICIAL'!$F$14,IF(E92='INFORMACIÓN INICIAL'!$D$15,'INFORMACIÓN INICIAL'!$F$15,IF(E92='INFORMACIÓN INICIAL'!$D$16,'INFORMACIÓN INICIAL'!$F$16,IF(E92='INFORMACIÓN INICIAL'!$D$17,'INFORMACIÓN INICIAL'!$F$17,IF(E92='INFORMACIÓN INICIAL'!$D$18,'INFORMACIÓN INICIAL'!$F$18,IF(E92='INFORMACIÓN INICIAL'!$D$19,'INFORMACIÓN INICIAL'!$F$19,IF(E92='INFORMACIÓN INICIAL'!$D$20,'INFORMACIÓN INICIAL'!$F$20,IF(E92='INFORMACIÓN INICIAL'!$D$21,'INFORMACIÓN INICIAL'!$F$21,\" \"))))))))))))","v":"UNIDAD1"}]
[null,null,null,null,null,{"$f":"IF(E93='INFORMACIÓN INICIAL'!$D$10,'INFORMACIÓN INICIAL'!$F$10,IF(E93='INFORMACIÓN INICIAL'!$D$11,'INFORMACIÓN INICIAL'!$F$11,IF(E93='INFORMACIÓN INICIAL'!$D$12,'INFORMACIÓN INICIAL'!$F$12,IF(E93='INFORMACIÓN INICIAL'!$D$13,'INFORMACIÓN INICIAL'!$F$13,IF(E93='INFORMACIÓN INICIAL'!$D$14,'INFORMACIÓN INICIAL'!$F$14,IF(E93='INFORMACIÓN INICIAL'!$D$15,'INFORMACIÓN INICIAL'!$F$15,IF(E93='INFORMACIÓN INICIAL'!$D$16,'INFORMACIÓN INICIAL'!$F$16,IF(E93='INFORMACIÓN INICIAL'!$D$17,'INFORMACIÓN INICIAL'!$F$17,IF(E93='INFORMACIÓN INICIAL'!$D$18,'INFORMACIÓN INICIAL'!$F$18,IF(E93='INFORMACIÓN INICIAL'!$D$19,'INFORMACIÓN INICIAL'!$F$19,IF(E93='INFORMACIÓN INICIAL'!$D$20,'INFORMACIÓN INICIAL'!$F$20,IF(E93='INFORMACIÓN INICIAL'!$D$21,'INFORMACIÓN INICIAL'!$F$21,\" \"))))))))))))","v":"UNIDAD1"}]
[null,null,null,null,null,{"$f":"IF(E94='INFORMACIÓN INICIAL'!$D$10,'INFORMACIÓN INICIAL'!$F$10,IF(E94='INFORMACIÓN INICIAL'!$D$11,'INFORMACIÓN INICIAL'!$F$11,IF(E94='INFORMACIÓN INICIAL'!$D$12,'INFORMACIÓN INICIAL'!$F$12,IF(E94='INFORMACIÓN INICIAL'!$D$13,'INFORMACIÓN INICIAL'!$F$13,IF(E94='INFORMACIÓN INICIAL'!$D$14,'INFORMACIÓN INICIAL'!$F$14,IF(E94='INFORMACIÓN INICIAL'!$D$15,'INFORMACIÓN INICIAL'!$F$15,IF(E94='INFORMACIÓN INICIAL'!$D$16,'INFORMACIÓN INICIAL'!$F$16,IF(E94='INFORMACIÓN INICIAL'!$D$17,'INFORMACIÓN INICIAL'!$F$17,IF(E94='INFORMACIÓN INICIAL'!$D$18,'INFORMACIÓN INICIAL'!$F$18,IF(E94='INFORMACIÓN INICIAL'!$D$19,'INFORMACIÓN INICIAL'!$F$19,IF(E94='INFORMACIÓN INICIAL'!$D$20,'INFORMACIÓN INICIAL'!$F$20,IF(E94='INFORMACIÓN INICIAL'!$D$21,'INFORMACIÓN INICIAL'!$F$21,\" \"))))))))))))","v":"UNIDAD1"}]
[null,null,null,null,null,{"$f":"IF(E95='INFORMACIÓN INICIAL'!$D$10,'INFORMACIÓN INICIAL'!$F$10,IF(E95='INFORMACIÓN INICIAL'!$D$11,'INFORMACIÓN INICIAL'!$F$11,IF(E95='INFORMACIÓN INICIAL'!$D$12,'INFORMACIÓN INICIAL'!$F$12,IF(E95='INFORMACIÓN INICIAL'!$D$13,'INFORMACIÓN INICIAL'!$F$13,IF(E95='INFORMACIÓN INICIAL'!$D$14,'INFORMACIÓN INICIAL'!$F$14,IF(E95='INFORMACIÓN INICIAL'!$D$15,'INFORMACIÓN INICIAL'!$F$15,IF(E95='INFORMACIÓN INICIAL'!$D$16,'INFORMACIÓN INICIAL'!$F$16,IF(E95='INFORMACIÓN INICIAL'!$D$17,'INFORMACIÓN INICIAL'!$F$17,IF(E95='INFORMACIÓN INICIAL'!$D$18,'INFORMACIÓN INICIAL'!$F$18,IF(E95='INFORMACIÓN INICIAL'!$D$19,'INFORMACIÓN INICIAL'!$F$19,IF(E95='INFORMACIÓN INICIAL'!$D$20,'INFORMACIÓN INICIAL'!$F$20,IF(E95='INFORMACIÓN INICIAL'!$D$21,'INFORMACIÓN INICIAL'!$F$21,\" \"))))))))))))","v":"UNIDAD1"}]
[null,null,null,null,null,{"$f":"IF(E96='INFORMACIÓN INICIAL'!$D$10,'INFORMACIÓN INICIAL'!$F$10,IF(E96='INFORMACIÓN INICIAL'!$D$11,'INFORMACIÓN INICIAL'!$F$11,IF(E96='INFORMACIÓN INICIAL'!$D$12,'INFORMACIÓN INICIAL'!$F$12,IF(E96='INFORMACIÓN INICIAL'!$D$13,'INFORMACIÓN INICIAL'!$F$13,IF(E96='INFORMACIÓN INICIAL'!$D$14,'INFORMACIÓN INICIAL'!$F$14,IF(E96='INFORMACIÓN INICIAL'!$D$15,'INFORMACIÓN INICIAL'!$F$15,IF(E96='INFORMACIÓN INICIAL'!$D$16,'INFORMACIÓN INICIAL'!$F$16,IF(E96='INFORMACIÓN INICIAL'!$D$17,'INFORMACIÓN INICIAL'!$F$17,IF(E96='INFORMACIÓN INICIAL'!$D$18,'INFORMACIÓN INICIAL'!$F$18,IF(E96='INFORMACIÓN INICIAL'!$D$19,'INFORMACIÓN INICIAL'!$F$19,IF(E96='INFORMACIÓN INICIAL'!$D$20,'INFORMACIÓN INICIAL'!$F$20,IF(E96='INFORMACIÓN INICIAL'!$D$21,'INFORMACIÓN INICIAL'!$F$21,\" \"))))))))))))","v":"UNIDAD1"}]
[null,null,null,null,null,{"$f":"IF(E97='INFORMACIÓN INICIAL'!$D$10,'INFORMACIÓN INICIAL'!$F$10,IF(E97='INFORMACIÓN INICIAL'!$D$11,'INFORMACIÓN INICIAL'!$F$11,IF(E97='INFORMACIÓN INICIAL'!$D$12,'INFORMACIÓN INICIAL'!$F$12,IF(E97='INFORMACIÓN INICIAL'!$D$13,'INFORMACIÓN INICIAL'!$F$13,IF(E97='INFORMACIÓN INICIAL'!$D$14,'INFORMACIÓN INICIAL'!$F$14,IF(E97='INFORMACIÓN INICIAL'!$D$15,'INFORMACIÓN INICIAL'!$F$15,IF(E97='INFORMACIÓN INICIAL'!$D$16,'INFORMACIÓN INICIAL'!$F$16,IF(E97='INFORMACIÓN INICIAL'!$D$17,'INFORMACIÓN INICIAL'!$F$17,IF(E97='INFORMACIÓN INICIAL'!$D$18,'INFORMACIÓN INICIAL'!$F$18,IF(E97='INFORMACIÓN INICIAL'!$D$19,'INFORMACIÓN INICIAL'!$F$19,IF(E97='INFORMACIÓN INICIAL'!$D$20,'INFORMACIÓN INICIAL'!$F$20,IF(E97='INFORMACIÓN INICIAL'!$D$21,'INFORMACIÓN INICIAL'!$F$21,\" \"))))))))))))","v":"UNIDAD1"}]
[null,null,null,null,null,{"$f":"IF(E98='INFORMACIÓN INICIAL'!$D$10,'INFORMACIÓN INICIAL'!$F$10,IF(E98='INFORMACIÓN INICIAL'!$D$11,'INFORMACIÓN INICIAL'!$F$11,IF(E98='INFORMACIÓN INICIAL'!$D$12,'INFORMACIÓN INICIAL'!$F$12,IF(E98='INFORMACIÓN INICIAL'!$D$13,'INFORMACIÓN INICIAL'!$F$13,IF(E98='INFORMACIÓN INICIAL'!$D$14,'INFORMACIÓN INICIAL'!$F$14,IF(E98='INFORMACIÓN INICIAL'!$D$15,'INFORMACIÓN INICIAL'!$F$15,IF(E98='INFORMACIÓN INICIAL'!$D$16,'INFORMACIÓN INICIAL'!$F$16,IF(E98='INFORMACIÓN INICIAL'!$D$17,'INFORMACIÓN INICIAL'!$F$17,IF(E98='INFORMACIÓN INICIAL'!$D$18,'INFORMACIÓN INICIAL'!$F$18,IF(E98='INFORMACIÓN INICIAL'!$D$19,'INFORMACIÓN INICIAL'!$F$19,IF(E98='INFORMACIÓN INICIAL'!$D$20,'INFORMACIÓN INICIAL'!$F$20,IF(E98='INFORMACIÓN INICIAL'!$D$21,'INFORMACIÓN INICIAL'!$F$21,\" \"))))))))))))","v":"UNIDAD1"}]

{"sheet":"DIAGNOSTICO DEL INCISO","index":4,"n_rows":24,"n_cols":8,"rows_kept":24,"cut":false,"hidden":false,"merged":[[12,8,12,13],[11,8,11,13],[12,2,12,7],[7,2,7,7],[9,2,9,7],[11,2,11,7],[10,2,10,7],[8,2,8,7],[4,1,4,7],[22,2,22,3],[23,2,23,3],[17,2,17,3],[18,2,18,3],[19,2,19,3],[20,2,20,3],[21,2,21,3],[16,4,16,5]]}
[]
[]
[]
[]
[null,"Diagnóstico y estrategia para el INCISO"]
[]
[]
[null,null,"1. DESCRIPCIÓN DEL CAMBIO (¿En qué consiste el cambio propuesto?)"]
[]
[null,null,"2. CAPACIDADES ORGANIZACIONALES (Identificar en qué medida las capacidades organizacionales actuales se adecuan al proceso de cambio. Las capacidades organizacionales a considerar son: infraestructura, procesos, estructura, habilidades de las personas, cultura y poder.)"]
[]
[null,null,"3. SITUACIÓN ACTUAL DEL ORGANISMO EN RELACIÓN AL CAMBIO PROPUESTO (Algunos aspectos a valorar: momento del gobierno, aspectos políticos (apoyo, cambio de autoridades, importancia de sus cometidos en la agenda política, etc.), otros procesos de cambio en curso, nivel de conflictividad, presión de la opinión pública, zafra de trabajo)."]
[]
[]
[null,null,"Dimensiones de SEGUIMIENTO"]
[]
[null,null,null,null,"ESTADO DE PARTIDA",null,"ESTADO AL QUE ASPIRAMOS LLEGAR"]
[null,null,"DIMENSIÓN DE SEGUIMIENTO",null,"DESCRIPCIÓN","PUNTAJE",null,"ESTRATEGIA (descripción)"]
[null,null,"EQUIPO transversal",null,null,null,"Existe un equipo de trabajo designado y trabajando para cada uno de los roles solicitados (una persona puede tener más de un rol asignado)."]
[null,null,"COMUNICACIÓN del proyecto",null,null,null,"Los impactados directos por el cambio entienden el proceso y el resto de la organización conoce el proyecto. "]
[null,null,"VISIÓN COMPARTIDA del cambio ",null,null,null,"Los involucrados directos (es decir, el equipo de trabajo y los referentes de las unidades) comparten una visión que incluye un \"para qué\" y los principales beneficios para el organismo."]
[null,null,"PARTICIPACIÓN de involucrados directos",null,null,null,"Los involucrados de los trámites (dueños y usuarios finales) han participado en el relevamiento, validación y capacitación. "]
[null,null,"SOPORTE a usuarios ",null,null,null,"Las mesas de ayuda están asignadas y funcionando correctamente. "]
[null,null,"APOYO POLÍTICO",null,null,null,"Se cuenta con el apoyo del patrocinador en las instancias clave."]

{"sheet":"RA COM","index":5,"n_rows":28,"n_cols":8,"rows_kept":28,"cut":false,"hidden":false,"merged":[[21,2,21,3]]}
[]
[]
[]
[]
[null,null,"Registro de ACTIVIDAD"]
[]
[]
[null,null,null,"Identificador",null,{"$f":"COUNT(ACTIVIDADES!C11:C1048576)+1","v":1}]
[]
[null,null,null,"Fecha/Frecuencia planificada"]
[]
[null,null,null,"UE",null,null,null,{"$f":"IF(F12='INFORMACIÓN INICIAL'!D10,'INFORMACIÓN INICIAL'!F10,IF(F12='INFORMACIÓN INICIAL'!D11,'INFORMACIÓN INICIAL'!F11,IF(F12='INFORMACIÓN INICIAL'!D12,'INFORMACIÓN INICIAL'!F12,IF(F12='INFORMACIÓN INICIAL'!D13,'INFORMACIÓN INICIAL'!F13,IF(F12='INFORMACIÓN INICIAL'!D14,'INFORMACIÓN INICIAL'!F14,IF(F12='INFORMACIÓN INICIAL'!D15,'INFORMACIÓN INICIAL'!F129,IF(F12='INFORMACIÓN INICIAL'!D16,'INFORMACIÓN INICIAL'!F16,IF(F12='INFORMACIÓN INICIAL'!D17,'INFORMACIÓN INICIAL'!F17,IF(F12='INFORMACIÓN INICIAL'!D18,'INFORMACIÓN INICIAL'!F18,IF(F12='INFORMACIÓN INICIAL'!D19,'INFORMACIÓN INICIAL'!F19,IF(F12='INFORMACIÓN INICIAL'!D20,'INFORMACIÓN INICIAL'!F20,IF(F12='INFORMACIÓN INICIAL'!D21,'INFORMACIÓN INICIAL'!F21,\" \"))))))))))))","v":"UNIDAD1"}]
[]
[null,null,null,"Área/Unidad/División"]
[]
[null,null,null,"Tipo de actividad"]
[]
[null,null,null,"Nombre de la actividad"]
[]
[null,null,null,"Desencadenante",null,"Estrategia general"]
[]
[null,null,"Dimensión clave o Impacto asociado  \n(según corresponda)",null,null,"COMUNICACIÓN del proyecto"]
[]
[null,null,null,"Objetivo específico\n* En el caso de que la actiuvidad surja a partir de un inmprevisto o hecho putual, además se debe describir aquí  la situación y el contexto en el cual se desarrolló."]
[]
[null,null,null,"Público objetivo \n(Actores)",null,"Patrocinador"]
[]
[null,null,null,"Responsable",null,"daniel sarro"]

{"sheet":"RA VISION","index":6,"n_rows":28,"n_cols":8,"rows_kept":28,"cut":false,"hidden":false,"merged":[[21,2,21,3]]}
[]
[]
[]
[]
[null,null,"Registro de ACTIVIDAD"]
[]
[]
[null,null,null,"Identificador",null,{"$f":"COUNT(ACTIVIDADES!C11:C1048576)+1","v":1}]
[]
[null,null,null,"Fecha/Frecuencia planificada"]
[]
[null,null,null,"UE",null,null,null,{"$f":"IF(F12='INFORMACIÓN INICIAL'!D10,'INFORMACIÓN INICIAL'!F10,IF(F12='INFORMACIÓN INICIAL'!D11,'INFORMACIÓN INICIAL'!F11,IF(F12='INFORMACIÓN INICIAL'!D12,'INFORMACIÓN INICIAL'!F12,IF(F12='INFORMACIÓN INICIAL'!D13,'INFORMACIÓN INICIAL'!F13,IF(F12='INFORMACIÓN INICIAL'!D14,'INFORMACIÓN INICIAL'!F14,IF(F12='INFORMACIÓN INICIAL'!D15,'INFORMACIÓN INICIAL'!F129,IF(F12='INFORMACIÓN INICIAL'!D16,'INFORMACIÓN INICIAL'!F16,IF(F12='INFORMACIÓN INICIAL'!D17,'INFORMACIÓN INICIAL'!F17,IF(F12='INFORMACIÓN INICIAL'!D18,'INFORMACIÓN INICIAL'!F18,IF(F12='INFORMACIÓN INICIAL'!D19,'INFORMACIÓN INICIAL'!F19,IF(F12='INFORMACIÓN INICIAL'!D20,'INFORMACIÓN INICIAL'!F20,IF(F12='INFORMACIÓN INICIAL'!D21,'INFORMACIÓN INICIAL'!F21,\" \"))))))))))))","v":"UNIDAD1"}]
[]
[null,null,null,"Área/Unidad/División"]
[]
[null,null,null,"Tipo de actividad"]
[]
[null,null,null,"Nombre de la actividad"]
[]
[null,null,null,"Desencadenante",null,"Estrategia general"]
[]
[null,null,"Dimensión clave o Impacto asociado  \n(según corresponda)",null,null,"VISIÓN COMPARTIDA del cambio "]
[]
[null,null,null,"Objetivo específico\n* En el caso de que la actiuvidad surja a partir de un inmprevisto o hecho putual, además se debe describir aquí  la situación y el contexto en el cual se desarrolló."]
[]
[null,null,null,"Público objetivo \n(Actores)",null,"Patrocinador"]
[]
[null,null,null,"Responsable",null,"daniel sarro"]

{"sheet":"RA PART","index":7,"n_rows":28,"n_cols":8,"rows_kept":28,"cut":false,"hidden":false,"merged":[[21,2,21,3]]}
[]
[]
[]
[]
[null,null,"Registro de ACTIVIDAD"]
[]
[]
[null,null,null,"Identificador",null,{"$f":"COUNT(ACTIVIDADES!C11:C1048576)+1","v":1}]
[]
[null,null,null,"Fecha/Frecuencia planificada"]
[]
[null,null,null,"UE",null,null,null,{"$f":"IF(F12='INFORMACIÓN INICIAL'!D10,'INFORMACIÓN INICIAL'!F10,IF(F12='INFORMACIÓN INICIAL'!D11,'INFORMACIÓN INICIAL'!F11,IF(F12='INFORMACIÓN INICIAL'!D12,'INFORMACIÓN INICIAL'!F12,IF(F12='INFORMACIÓN INICIAL'!D13,'INFORMACIÓN INICIAL'!F13,IF(F12='INFORMACIÓN INICIAL'!D14,'INFORMACIÓN INICIAL'!F14,IF(F12='INFORMACIÓN INICIAL'!D15,'INFORMACIÓN INICIAL'!F129,IF(F12='INFORMACIÓN INICIAL'!D16,'INFORMACIÓN INICIAL'!F16,IF(F12='INFORMACIÓN INICIAL'!D17,'INFORMACIÓN INICIAL'!F17,IF(F12='INFORMACIÓN INICIAL'!D18,'INFORMACIÓN INICIAL'!F18,IF(F12='INFORMACIÓN INICIAL'!D19,'INFORMACIÓN INICIAL'!F19,IF(F12='INFORMACIÓN INICIAL'!D20,'INFORMACIÓN INICIAL'!F20,IF(F12='INFORMACIÓN INICIAL'!D21,'INFORMACIÓN INICIAL'!F21,\" \"))))))))))))","v":"UNIDAD1"}]
[]
[null,null,null,"Área/Unidad/División"]
[]
[null,null,null,"Tipo de actividad"]
[]
[null,null,null,"Nombre de la actividad"]
[]
[null,null,null,"Desencadenante",null,"Estrategia general"]
[]
[null,null,"Dimensión clave o Impacto asociado  \n(según corresponda)",null,null,"PARTICIPACIÓN de involucrados directos"]
[]
[null,null,null,"Objetivo específico\n* En el caso de que la actiuvidad surja a partir de un inmprevisto o hecho putual, además se debe describir aquí  la situación y el contexto en el cual se desarrolló."]
[]
[null,null,null,"Público objetivo \n(Actores)",null,"Patrocinador"]
[]
[null,null,null,"Responsable",null,"daniel sarro"]

{"sheet":"RA SOPORTE","index":8,"n_rows":28,"n_cols":8,"rows_kept":28,"cut":false,"hidden":false,"merged":[[21,2,21,3]]}
[]
[]
[]
[]
[null,null,"Registro de ACTIVIDAD"]
[]
[]
[null,null,null,"Identificador",null,{"$f":"COUNT(ACTIVIDADES!C11:C1048576)+1","v":1}]
[]
[null,null,null,"Fecha/Frecuencia planificada"]
[]
[null,null,null,"UE",null,null,null,{"$f":"IF(F12='INFORMACIÓN INICIAL'!D10,'INFORMACIÓN INICIAL'!F10,IF(F12='INFORMACIÓN INICIAL'!D11,'INFORMACIÓN INICIAL'!F11,IF(F12='INFORMACIÓN INICIAL'!D12,'INFORMACIÓN INICIAL'!F12,IF(F12='INFORMACIÓN INICIAL'!D13,'INFORMACIÓN INICIAL'!F13,IF(F12='INFORMACIÓN INICIAL'!D14,'INFORMACIÓN INICIAL'!F14,IF(F12='INFORMACIÓN INICIAL'!D15,'INFORMACIÓN INICIAL'!F129,IF(F12='INFORMACIÓN INICIAL'!D16,'INFORMACIÓN INICIAL'!F16,IF(F12='INFORMACIÓN INICIAL'!D17,'INFORMACIÓN INICIAL'!F17,IF(F12='INFORMACIÓN INICIAL'!D18,'INFORMACIÓN INICIAL'!F18,IF(F12='INFORMACIÓN INICIAL'!D19,'INFORMACIÓN INICIAL'!F19,IF(F12='INFORMACIÓN INICIAL'!D20,'INFORMACIÓN INICIAL'!F20,IF(F12='INFORMACIÓN INICIAL'!D21,'INFORMACIÓN INICIAL'!F21,\" \"))))))))))))","v":"UNIDAD1"}]
[]
[null,null,null,"Área/Unidad/División"]
[]
[null,null,null,"Tipo de actividad"]
[]
[null,null,null,"Nombre de la actividad"]
[]
[null,null,null,"Desencadenante",null,"Estrategia general"]
[]
[null,null,"Dimensión clave o Impacto asociado  \n(según corresponda)",null,null,"SOPORTE a usuarios "]
[]
[null,null,null,"Objetivo específico\n* En el caso de que la actiuvidad surja a partir de un inmprevisto o hecho putual, además se debe describir aquí  la situación y el contexto en el cual se desarrolló."]
[]
[null,null,null,"Público objetivo \n(Actores)",null,"Patrocinador"]
[]
[null,null,null,"Responsable",null,"daniel sarro"]

{"sheet":"RA AP","index":9,"n_rows":28,"n_cols":8,"rows_kept":28,"cut":false,"hidden":false,"merged":[[21,2,21,3]]}
[]
[]
[]
[]
[null,null,"Registro de ACTIVIDAD"]
[]
[]
[null,null,null,"Identificador",null,{"$f":"COUNT(ACTIVIDADES!C11:C1048576)+1","v":1}]
[]
[null,null,null,"Fecha/Frecuencia planificada"]
[]
[null,null,null,"UE",null,null,null,{"$f":"IF(F12='INFORMACIÓN INICIAL'!D10,'INFORMACIÓN INICIAL'!F10,IF(F12='INFORMACIÓN INICIAL'!D11,'INFORMACIÓN INICIAL'!F11,IF(F12='INFORMACIÓN INICIAL'!D12,'INFORMACIÓN INICIAL'!F12,IF(F12='INFORMACIÓN INICIAL'!D13,'INFORMACIÓN INICIAL'!F13,IF(F12='INFORMACIÓN INICIAL'!D14,'INFORMACIÓN INICIAL'!F14,IF(F12='INFORMACIÓN INICIAL'!D15,'INFORMACIÓN INICIAL'!F129,IF(F12='INFORMACIÓN INICIAL'!D16,'INFORMACIÓN INICIAL'!F16,IF(F12='INFORMACIÓN INICIAL'!D17,'INFORMACIÓN INICIAL'!F17,IF(F12='INFORMACIÓN INICIAL'!D18,'INFORMACIÓN INICIAL'!F18,IF(F12='INFORMACIÓN INICIAL'!D19,'INFORMACIÓN INICIAL'!F19,IF(F12='INFORMACIÓN INICIAL'!D20,'INFORMACIÓN INICIAL'!F20,IF(F12='INFORMACIÓN INICIAL'!D21,'INFORMACIÓN INICIAL'!F21,\" \"))))))))))))","v":"UNIDAD1"}]
[]
[null,null,null,"Área/Unidad/División"]
[]
[null,null,null,"Tipo de actividad"]
[]
[null,null,null,"Nombre de la actividad"]
[]
[null,null,null,"Desencadenante",null,"Estrategia general"]
[]
[null,null,"Dimensión clave o Impacto asociado  \n(según corresponda)",null,null,"APOYO POLÍTICO"]
[]
[null,null,null,"Objetivo específico\n* En el caso de que la actiuvidad surja a partir de un inmprevisto o hecho putual, además se debe describir aquí  la situación y el contexto en el cual se desarrolló."]
[]
[null,null,null,"Público objetivo \n(Actores)",null,"Patrocinador"]
[]
[null,null,null,"Responsable",null,"daniel sarro"]

{"sheet":"RA ET","index":10,"n_rows":28,"n_cols":8,"rows_kept":28,"cut":false,"hidden":false,"merged":[[21,2,21,3]]}
[]
[]
[]
[]
[null,null,"Registro de ACTIVIDAD"]
[]
[]
[null,null,null,"Identificador",null,{"$f":"COUNT(ACTIVIDADES!C11:C1048576)+1","v":1}]
[]
[null,null,null,"Fecha/Frecuencia planificada"]
[]
[null,null,null,"UE",null,null,null,{"$f":"IF(F12='INFORMACIÓN INICIAL'!D10,'INFORMACIÓN INICIAL'!F10,IF(F12='INFORMACIÓN INICIAL'!D11,'INFORMACIÓN INICIAL'!F11,IF(F12='INFORMACIÓN INICIAL'!D12,'INFORMACIÓN INICIAL'!F12,IF(F12='INFORMACIÓN INICIAL'!D13,'INFORMACIÓN INICIAL'!F13,IF(F12='INFORMACIÓN INICIAL'!D14,'INFORMACIÓN INICIAL'!F14,IF(F12='INFORMACIÓN INICIAL'!D15,'INFORMACIÓN INICIAL'!F129,IF(F12='INFORMACIÓN INICIAL'!D16,'INFORMACIÓN INICIAL'!F16,IF(F12='INFORMACIÓN INICIAL'!D17,'INFORMACIÓN INICIAL'!F17,IF(F12='INFORMACIÓN INICIAL'!D18,'INFORMACIÓN INICIAL'!F18,IF(F12='INFORMACIÓN INICIAL'!D19,'INFORMACIÓN INICIAL'!F19,IF(F12='INFORMACIÓN INICIAL'!D20,'INFORMACIÓN INICIAL'!F20,IF(F12='INFORMACIÓN INICIAL'!D21,'INFORMACIÓN INICIAL'!F21,\" \"))))))))))))","v":"UNIDAD1"}]
[]
[null,null,null,"Área/Unidad/División"]
[]
[null,null,null,"Tipo de actividad"]
[]
[null,null,null,"Nombre de la actividad"]
[]
[null,null,null,"Desencadenante",null,"Estrategia general"]
[]
[null,null,"Dimensión clave o Impacto asociado  \n(según corresponda)",null,null,"EQUIPO transversal"]
[]
[null,null,null,"Objetivo específico\n* En el caso de que la actiuvidad surja a partir de un inmprevisto o hecho putual, además se debe describir aquí  la situación y el contexto en el cual se desarrolló."]
[]
[null,null,null,"Público objetivo \n(Actores)",null,"Patrocinador"]
[]
[null,null,null,"Responsable",null,"daniel sarro"]

{"sheet":"Registro de actividad","index":11,"n_rows":28,"n_cols":8,"rows_kept":28,"cut":false,"hidden":false,"merged":[[21,2,21,3]]}
[]
[]
[]
[]
[null,null,"Registro de ACTIVIDAD"]
[]
[]
[null,null,null,"Identificador",null,{"$f":"COUNT(ACTIVIDADES!C11:C1048576)+1","v":1}]
[]
[null,null,null,"Fecha/Frecuencia planificada"]
[]
[null,null,null,"UE",null,null,null,{"$f":"IF(F12='INFORMACIÓN INICIAL'!D10,'INFORMACIÓN INICIAL'!F10,IF(F12='INFORMACIÓN INICIAL'!D11,'INFORMACIÓN INICIAL'!F11,IF(F12='INFORMACIÓN INICIAL'!D12,'INFORMACIÓN INICIAL'!F12,IF(F12='INFORMACIÓN INICIAL'!D13,'INFORMACIÓN INICIAL'!F13,IF(F12='INFORMACIÓN INICIAL'!D14,'INFORMACIÓN INICIAL'!F14,IF(F12='INFORMACIÓN INICIAL'!D15,'INFORMACIÓN INICIAL'!F129,IF(F12='INFORMACIÓN INICIAL'!D16,'INFORMACIÓN INICIAL'!F16,IF(F12='INFORMACIÓN INICIAL'!D17,'INFORMACIÓN INICIAL'!F17,IF(F12='INFORMACIÓN INICIAL'!D18,'INFORMACIÓN INICIAL'!F18,IF(F12='INFORMACIÓN INICIAL'!D19,'INFORMACIÓN INICIAL'!F19,IF(F12='INFORMACIÓN INICIAL'!D20,'INFORMACIÓN INICIAL'!F20,IF(F12='INFORMACIÓN INICIAL'!D21,'INFORMACIÓN INICIAL'!F21,\" \"))))))))))))","v":"UNIDAD1"}]
[]
[null,null,null,"Área/Unidad/División"]
[]
[null,null,null,"Tipo de actividad"]
[]
[null,null,null,"Nombre de la actividad"]
[]
[null,null,null,"Desencadenante"]
[]
[null,null,"Dimensión clave o Impacto asociado  \n(según corresponda)"]
[]
[null,null,null,"Objetivo específico\n* En el caso de que la actiuvidad surja a partir de un inmprevisto o hecho putual, además se debe describir aquí  la situación y el contexto en el cual se desarrolló."]
[]
[null,null,null,"Público objetivo \n(Actores)"]
[]
[null,null,null,"Responsable"]

{"sheet":"ACTIVIDADES","index":12,"n_rows":11,"n_cols":17,"rows_kept":11,"cut":false,"hidden":false,"merged":[]}
[]
[]
[]
[]
[null,null,"Tabla de ACTIVIDADES"]
[]
[]
[]
[null,null,"Identificador","Fecha/Frecuencia planificada","UE","Área/Unidad/División ","Tipo de actividad","Nombre de la actividad","Desencadenante","Dimensión clave o Impacto asociado  \n( según corresponda)","Objetivo específico","Público objetivo \n(Actores)","Responsable","Ejecutada","Fecha de ejecución","Participantes","Resumen de la actividad "]
[]
[null,null,null,null,null,null,null,null,null,null,null,null,null,"SI"]

{"sheet":"Registro de actores","index":13,"n_rows":42,"n_cols":8,"rows_kept":42,"cut":false,"hidden":false,"merged":[[29,3,29,6],[35,3,35,6],[38,4,38,6],[38,7,38,9],[39,4,39,6],[39,7,39,9],[32,4,32,6],[33,4,33,6],[36,4,36,6],[36,7,36,9],[37,4,37,6],[37,7,37,9],[30,4,30,6],[31,4,31,6],[41,4,41,6],[41,7,41,9],[40,4,40,6],[40,7,40,9]]}
[]
[]
[]
[]
[null,null,"Registro de ACTOR"]
[]
[]
[]
[null,null,null,"UE",null,null,null,{"$f":"IF(F9='INFORMACIÓN INICIAL'!D10,'INFORMACIÓN INICIAL'!F10,IF(F9='INFORMACIÓN INICIAL'!D11,'INFORMACIÓN INICIAL'!F11,IF(F9='INFORMACIÓN INICIAL'!D12,'INFORMACIÓN INICIAL'!F12,IF(F9='INFORMACIÓN INICIAL'!D13,'INFORMACIÓN INICIAL'!F13,IF(F9='INFORMACIÓN INICIAL'!D14,'INFORMACIÓN INICIAL'!F14,IF(F9='INFORMACIÓN INICIAL'!D15,'INFORMACIÓN INICIAL'!F129,IF(F9='INFORMACIÓN INICIAL'!D16,'INFORMACIÓN INICIAL'!F16,IF(F9='INFORMACIÓN INICIAL'!D17,'INFORMACIÓN INICIAL'!F17,IF(F9='INFORMACIÓN INICIAL'!D18,'INFORMACIÓN INICIAL'!F18,IF(F9='INFORMACIÓN INICIAL'!D19,'INFORMACIÓN INICIAL'!F19,IF(F9='INFORMACIÓN INICIAL'!D20,'INFORMACIÓN INICIAL'!F20,IF(F9='INFORMACIÓN INICIAL'!D21,'INFORMACIÓN INICIAL'!F21,\" \"))))))))))))","v":"UNIDAD1"}]
[]
[null,null,null,"Área/Unidad/División"]
[]
[null,null,null,"Nombre \n(grupo o individuo)"]
[]
[null,null,null,"Cantidad de personas"]
[]
[null,null,null,"Perfil*"]
[]
[null,null,null,"¿Qué gana?"]
[]
[null,null,null,"¿Qué pierde?"]
[]
[null,null,null,"Nivel ACTUAL de apoyo*  "]
[]
[null,null,null,"Nivel DESEADO de apoyo* "]
[]
[null,null,null,"Estrategia a seguir \n(si corresponde) "]
[]
[]
[null,null,null,"*Perfil (Gonçalves, V., & Campos, C. (2016). HCMBOK - Gestión del Cambio Organizacional. El factor Humano en el Liderazgo de Proyectos. Rio de Janeiro: HUCMI.\n\n"]
[null,null,null,"Decisor","Son los que toman las decisiones del proyecto. Su participación y compromiso es fundamental para el éxito de los cambios propuestos."]
[null,null,null,"Influenciador directo","No tiene el poder para decidir, pero influencia directamente el rumbo y el ánimo del proyecto."]
[null,null,null,"Influenciador indirecto","No tiene el poder para decidir pero, trabajando entre bastidores, puede influir en el proyecto. Es un formador de opinión y si tiene un perfil persuasivo puede tener un gran peso en el nivel de compromiso de otros stakeholders."]
[null,null,null,"Espectador","Sentirá el cambio, podrá sabotearlo, pero, solo no tiene el poder de alterar el resultado del proyecto. Un número importante de espectadores antagonistas pude ser un alerta para el proyecto."]
[]
[null,null,null,"*Apoyo (Gonçalves, V., & Campos, C. (2016). HCMBOK - Gestión del Cambio Organizacional. El factor Humano en el Liderazgo de Proyectos. Rio de Janeiro: HUCMI."]
[null,null,null,"Vendedor","Apoya y vende el proyecto naturalmente; se siente orgulloso de participar."]
[null,null,null,"Soporte","Apoyará desde que entienda claramente el propósito."]
[null,null,null,"Inestable","Falta de posicionamiento entre apoyar o resistir al cambio."]
[null,null,null,"Probable resistente","Es el instable que, basado en su histórico anterior, estilo personal o impacto del cambio, permite concluir que probablemente se resistirá al cambio. "]
[null,null,null,"Saboteador abierto","No esconde su insatisfacción y no consigue contener su ímeptu de resistirse abiertamente al cambio."]
[null,null,null,"Saboteador oculto","Es aquel que parece apoyar, pero por detrás se resiste. "]

{"sheet":"ACTORES","index":14,"n_rows":9,"n_cols":12,"rows_kept":9,"cut":false,"hidden":false,"merged":[]}
[]
[]
[]
[]
[null,null,"Tabla de ACTORES"]
[]
[]
[]
[null,null,"UE","Área/Unidad/División ","Nombre \n(grupo o individuo)","Cantidad de Personas","Perfil*","¿Qué gana?","¿Qué pierde?","Nivel ACTUAL de apoyo*  ","Nivel DESEADO de apoyo* ","Estrategia a Seguir"]

{"sheet":"Registro de impactos","index":15,"n_rows":39,"n_cols":9,"rows_kept":39,"cut":false,"hidden":false,"merged":[[38,2,38,3],[32,2,32,3],[33,2,33,3],[34,2,34,3],[35,2,35,3],[36,2,36,3],[37,2,37,3]]}
[]
[]
[]
[]
[null,null,"Registro de IMPACTO"]
[]
[]
[null,null,null,"Identificador",null,{"$f":"COUNT(IMPACTOS!C11:C1048576)+1","v":1},null," "]
[]
[null,null,null,"Trámite relacionado",null,null,null," "]
[]
[null,null,null,"UE",null,{"$f":"VLOOKUP('Registro de impactos'!F10,'INFORMACIÓN INICIAL'!D26:H98,2,TRUE)","v":{"$error":"#N/A"}},null,null,{"$f":"IF(F12='INFORMACIÓN INICIAL'!D10,'INFORMACIÓN INICIAL'!F10,IF(F12='INFORMACIÓN INICIAL'!D11,'INFORMACIÓN INICIAL'!F11,IF(F12='INFORMACIÓN INICIAL'!D12,'INFORMACIÓN INICIAL'!F12,IF(F12='INFORMACIÓN INICIAL'!D13,'INFORMACIÓN INICIAL'!F13,IF(F12='INFORMACIÓN INICIAL'!D14,'INFORMACIÓN INICIAL'!F14,IF(F12='INFORMACIÓN INICIAL'!D15,'INFORMACIÓN INICIAL'!F129,IF(F12='INFORMACIÓN INICIAL'!D16,'INFORMACIÓN INICIAL'!F16,IF(F12='INFORMACIÓN INICIAL'!D17,'INFORMACIÓN INICIAL'!F17,IF(F12='INFORMACIÓN INICIAL'!D18,'INFORMACIÓN INICIAL'!F18,IF(F12='INFORMACIÓN INICIAL'!D19,'INFORMACIÓN INICIAL'!F19,IF(F12='INFORMACIÓN INICIAL'!D20,'INFORMACIÓN INICIAL'!F20,IF(F12='INFORMACIÓN INICIAL'!D21,'INFORMACIÓN INICIAL'!F21,\" \"))))))))))))","v":{"$error":"#N/A"}}]
[]
[null,null,null,"Área/Unidad/División",null,{"$f":"VLOOKUP('Registro de impactos'!F10,'INFORMACIÓN INICIAL'!D26:H98,4,TRUE)","v":{"$error":"#N/A"}}]
[]
[null,null,null,"Capacidad impactada*  "]
[]
[null,null,null,"Descripción"]
[]
[null,null,null,"Tipo de impacto"]
[]
[null,null,null,"Consecuencias "]
[]
[null,null,null,"Momento del impacto"]
[]
[null,null,null,"Actores"]
[]
[null,null,null,"Observaciones"]
[]
[]
[]
[]
[null,null,"*Capacidad impactada",null,null,"Descripción"]
[null,null,"Procesos del organismo",null,null,"Los procedimientos, procesos y rutinas que caracterizan cómo debe ser hecho el trabajo."]
[null,null,"Estrucutra organizativa",null,null,"La forma en que las unidades de la organización se relacionan entre sí."]
[null,null,"Infraestrucutra y tecnología",null,null,"Infraestructura tecnológica del organismo (Hardware y software)"]
[null,null,"Personas",null,null,"La organización tendrá que nombrar a más funcionarios para lograr los cambios. Redistribución del trabajo.  Puestos de trabajo dejarán de existir. Formación y capacitación. Etc."]
[null,null,"Cultura",null,null,"Estilo cultural de la organización y cómo se conducen los principales directivos en el logro de los objetivos de la organización. "]
[null,null,"Poder",null,null,"La toma de decisiones,  autoridad, manejo de información, líneas de responsabilidad"]

{"sheet":"IMPACTOS","index":16,"n_rows":9,"n_cols":13,"rows_kept":9,"cut":false,"hidden":false,"merged":[]}
[]
[]
[]
[]
[null,null,"Tabla de IMPACTOS"]
[]
[]
[]
[null,null,"Identificador","Trámite relacionado","UE","Área/Unidad/División ","Capacidad impactada","Descripción","Tipo de impacto","Consecuencias ","Momento del impacto","Actores","Observaciones"]

{"sheet":"Estrategia de capacitación","index":17,"n_rows":24,"n_cols":3,"rows_kept":24,"cut":false,"hidden":false,"merged":[[7,2,7,3],[12,2,12,3]]}
[]
[]
[]
[]
[null,null,"Estrategia de CAPACITACIÓN"]
[]
[]
[null,null,"DIMENSIÓN DE LA CAPACITACIÓN"]
[null,null,"A. Cálculo inicial de usuarios finales del sistema (usuarios, mesas de ayuda y administradores)"]
[null,null,"B. Cantidad de usuarios por locación."]
[null,null,"C. Identificar necesidades de nivelación de alfabetización informática."]
[]
[null,null,"DEFINICIÓN DE ASPECTOS PEDAGÓGICOS Y LOGÍSTICOS"]
[null,null,"D. Modalidad de capacitación (directa/indirecta)."]
[null,null,"E. Infraestructura locativa e informática."]
[null,null,"F. Tipo de docentes asignados a cada curso."]
[null,null,"G . Cantidad máxima de asistentes por grupos. "]
[null,null,"H. Recursos didácticos a utilizar."]
[null,null,"I. Materiales de apoyo (manual de usuario, guías, FAQ, etc.)."]
[null,null,"J. Metodología de evaluación de aprendizaje. "]
[null,null,"K. Metodología de evaluación de la satisfacción de los participantes."]
[null,null,"L. Actividades de reentrenamiento y apoyo."]
[null,null,"M. Contenido temático a incluir en cada instancia."]
[null,null,"N. Momento de realización de la capacitación a los diferentes usuarios: finales, mesa de ayuda y administradores."]

{"sheet":"Estrategia de comunicación","index":18,"n_rows":24,"n_cols":6,"rows_kept":24,"cut":false,"hidden":false,"merged":[[12,3,12,5],[13,3,13,5],[14,3,14,5],[15,3,15,5],[7,2,7,5],[8,3,8,5],[9,3,9,5],[10,3,10,5],[11,3,11,5]]}
[]
[]
[]
[]
[null,null,"Estrategia de COMUNICACIÓN"]
[]
[]
[null,null," En qué consiste su estrategia general en términos de:  "]
[null,null,"A. ¿Cuáles son las principales audiencias?"]
[null,null,"B. Mesaje Central a contemplar para la elaboración de cada una de las instancias de comunicación."]
[null,null,"C. ¿Cuáles serán los voceros principales?"]
[null,null,"D. Consideraciones a tener en cuenta en la comunicación."]
[null,null,"E. Evaluación de métodos y medios de comunicación utilizados en la organización."]
[null,null,"F. Definición de los medios a utilizar para comunicar el proyecto."]
[null,null,"G. ¿Cómo potenciaría usted las rutinas existentes en la organización o los eventos próximos a ocurrir?   "]
[null,null,"H. ¿Qué presupuesto y qué otros recursos especiales se requieren para las actividades de comunicación relacionadas con el cambio?   "]
[]
[]
[null,null,"Etapas del proyecto","Actividad o Hito Clave del Proyecto   ","Mensajes y actividades principales    ","Medios/Método de Comunicación\n(Remítase a la Evaluación de Medios/Métodos de Comunicación)"]
[null,null,"Primeras etapas del proyecto "]
[null,null,"Durante el diseño del cambio"]
[null,null,"Antes de la implementación"]
[null,null,"Durante la implementación"]
[null,null,"Post-implementación"]

{"sheet":"UE 1","index":19,"n_rows":36,"n_cols":7,"rows_kept":36,"cut":false,"hidden":false,"merged":[[33,2,33,3],[34,2,34,3],[35,2,35,3],[28,2,28,4],[29,2,29,3],[30,2,30,3],[31,2,31,3],[32,2,32,3]]}
[]
[]
[]
[]
[]
[null,{"$f":"'INFORMACIÓN INICIAL'!D10","v":0}]
[]
[]
[null,"Área/Unidad/División","Cantidad de trámites"]
[null,null,{"$f":"COUNTIF('INFORMACIÓN INICIAL'!$G$26:$H$98,'UE 1'!B10)","v":0}]
[null,null,{"$f":"COUNTIF('INFORMACIÓN INICIAL'!$G$26:$H$98,'UE 1'!B11)","v":0}]
[null,null,{"$f":"COUNTIF('INFORMACIÓN INICIAL'!$G$26:$H$98,'UE 1'!B12)","v":0}]
[null,null,{"$f":"COUNTIF('INFORMACIÓN INICIAL'!$G$26:$H$98,'UE 1'!B13)","v":0}]
[null,null,{"$f":"COUNTIF('INFORMACIÓN INICIAL'!$G$26:$H$98,'UE 1'!B14)","v":0}]
[null,null,{"$f":"COUNTIF('INFORMACIÓN INICIAL'!$G$26:$H$98,'UE 1'!B15)","v":0}]
[null,null,{"$f":"COUNTIF('INFORMACIÓN INICIAL'!$G$26:$H$98,'UE 1'!B16)","v":0}]
[null,null,{"$f":"COUNTIF('INFORMACIÓN INICIAL'!$G$26:$H$98,'UE 1'!B17)","v":0}]
[null,null,{"$f":"COUNTIF('INFORMACIÓN INICIAL'!$G$26:$H$98,'UE 1'!B18)","v":0}]
[null,null,{"$f":"COUNTIF('INFORMACIÓN INICIAL'!$G$26:$H$98,'UE 1'!B19)","v":0}]
[null,"Cantidad total de trámites",{"$f":"COUNTIF('INFORMACIÓN INICIAL'!E26:E98,'INFORMACIÓN INICIAL'!D10)","v":0}]
[]
[]
[]
[]
[]
[]
[]
[]
[null,null,"ESTADO DE PARTIDA",null,null,"ESTADO AL QUE ASPIRAMOS LLEGAR"]
[null,"DIMENSIÓN DE SEGUIMIENTO","DESCRIPCIÓN",null,"PUNTAJE",null,"ESTRATEGIA (descripción)"]
[null,"EQUIPO de trabajo",null,null,0,"Existe un equipo de trabajo designado y trabajando para los trámites seleccionados de la UE."]
[null,"COMUNICACIÓN del proyecto",null,null,0,"Los impactados directos por el cambio entienden el proceso y el resto de la UE conoce el proyecto. "]
[null,"VISIÓN compartida del cambio ",null,null,0,"Los involucrados directos (es decir, el equipo de trabajo y los referentes de los trámites) comparten una visión que incluye un \"para qué\" y los principales beneficios para el organismo."]
[null,"PARTICIPACIÓN de involucrados directos",null,null,0,"Los involucrados de los trámites (dueños y usuarios finales) han participado en el relevamiento, validación y capacitación. "]
[null,"SOPORTE a usuarios ",null,null,0,"Las mesas de ayuda están asignadas y funcionando correctamente. "]
[null,"APOYO POLÍTICO",null,null,0,"Se cuenta con el apoyo de autoridades de la UE en las instancias clave."]

{"sheet":"UE 2","index":20,"n_rows":36,"n_cols":7,"rows_kept":36,"cut":false,"hidden":false,"merged":[[34,2,34,3],[35,2,35,3],[28,2,28,4],[29,2,29,3],[30,2,30,3],[31,2,31,3],[32,2,32,3],[33,2,33,3]]}
[]
[]
[]
[]
[]
[null,{"$f":"'INFORMACIÓN INICIAL'!D11","v":0}]
[]
[]
[null,"Área/Unidad/División","Cantidad de trámites"]
[null,null,{"$f":"COUNTIF('INFORMACIÓN INICIAL'!$G$26:$H$98,'UE 2'!B10)","v":0}]
[null,null,{"$f":"COUNTIF('INFORMACIÓN INICIAL'!$G$26:$H$98,'UE 2'!B11)","v":0}]
[null,null,{"$f":"COUNTIF('INFORMACIÓN INICIAL'!$G$26:$H$98,'UE 2'!B12)","v":0}]
[null,null,{"$f":"COUNTIF('INFORMACIÓN INICIAL'!$G$26:$H$98,'UE 2'!B13)","v":0}]
[null,null,{"$f":"COUNTIF('INFORMACIÓN INICIAL'!$G$26:$H$98,'UE 2'!B14)","v":0}]
[null,null,{"$f":"COUNTIF('INFORMACIÓN INICIAL'!$G$26:$H$98,'UE 2'!B15)","v":0}]
[null,null,{"$f":"COUNTIF('INFORMACIÓN INICIAL'!$G$26:$H$98,'UE 2'!B16)","v":0}]
[null,null,{"$f":"COUNTIF('INFORMACIÓN INICIAL'!$G$26:$H$98,'UE 2'!B17)","v":0}]
[null,null,{"$f":"COUNTIF('INFORMACIÓN INICIAL'!$G$26:$H$98,'UE 2'!B18)","v":0}]
[null,null,{"$f":"COUNTIF('INFORMACIÓN INICIAL'!$G$26:$H$98,'UE 2'!B19)","v":0}]
[null,"Cantidad total de trámites",{"$f":"COUNTIF('INFORMACIÓN INICIAL'!E26:E98,'INFORMACIÓN INICIAL'!D11)","v":0}]
[]
[]
[]
[]
[]
[]
[]
[]
[null,null,"ESTADO DE PARTIDA",null,null,"ESTADO AL QUE ASPIRAMOS LLEGAR"]
[null,"DIMENSIÓN DE SEGUIMIENTO","DESCRIPCIÓN",null,"PUNTAJE",null,"ESTRATEGIA (descripción)"]
[null,"EQUIPO de trabajo",null,null,0,"Existe un equipo de trabajo designado y trabajando para los trámites seleccionados de la UE."]
[null,"COMUNICACIÓN del proyecto",null,null,0,"Los impactados directos por el cambio entienden el proceso y el resto de la UE conoce el proyecto. "]
[null,"VISIÓN compartida del cambio ",null,null,0,"Los involucrados directos (es decir, el equipo de trabajo y los referentes de los trámites) comparten una visión que incluye un \"para qué\" y los principales beneficios para el organismo."]
[null,"PARTICIPACIÓN de involucrados directos",null,null,0,"Los involucrados de los trámites (dueños y usuarios finales) han participado en el relevamiento, validación y capacitación. "]
[null,"SOPORTE a usuarios ",null,null,0,"Las mesas de ayuda están asignadas y funcionando correctamente. "]
[null,"APOYO POLÍTICO",null,null,0,"Se cuenta con el apoyo de autoridades de la UE en las instancias clave."]

{"sheet":"UE 3","index":21,"n_rows":36,"n_cols":7,"rows_kept":36,"cut":false,"hidden":false,"merged":[[34,2,34,3],[35,2,35,3],[28,2,28,4],[29,2,29,3],[30,2,30,3],[31,2,31,3],[32,2,32,3],[33,2,33,3]]}
[]
[]
[]
[]
[]
[null,{"$f":"'INFORMACIÓN INICIAL'!D12","v":0}]
[]
[]
[null,"Área/Unidad/División","Cantidad de trámites"]
[null,null,{"$f":"COUNTIF('INFORMACIÓN INICIAL'!$G$26:$H$98,'UE 3'!B10)","v":0}]
[null,null,{"$f":"COUNTIF('INFORMACIÓN INICIAL'!$G$26:$H$98,'UE 3'!B11)","v":0}]
[null,null,{"$f":"COUNTIF('INFORMACIÓN INICIAL'!$G$26:$H$98,'UE 3'!B12)","v":0}]
[null,null,{"$f":"COUNTIF('INFORMACIÓN INICIAL'!$G$26:$H$98,'UE 3'!B13)","v":0}]
[null,null,{"$f":"COUNTIF('INFORMACIÓN INICIAL'!$G$26:$H$98,'UE 3'!B14)","v":0}]
[null,null,{"$f":"COUNTIF('INFORMACIÓN INICIAL'!$G$26:$H$98,'UE 3'!B15)","v":0}]
[null,null,{"$f":"COUNTIF('INFORMACIÓN INICIAL'!$G$26:$H$98,'UE 3'!B16)","v":0}]
[null,null,{"$f":"COUNTIF('INFORMACIÓN INICIAL'!$G$26:$H$98,'UE 3'!B17)","v":0}]
[null,null,{"$f":"COUNTIF('INFORMACIÓN INICIAL'!$G$26:$H$98,'UE 3'!B18)","v":0}]
[null,null,{"$f":"COUNTIF('INFORMACIÓN INICIAL'!$G$26:$H$98,'UE 3'!B19)","v":0}]
[null,"Cantidad total de trámites",{"$f":"COUNTIF('INFORMACIÓN INICIAL'!E26:E98,'INFORMACIÓN INICIAL'!D12)","v":0}]
[]
[]
[]
[]
[]
[]
[]
[]
[null,null,"ESTADO DE PARTIDA",null,null,"ESTADO AL QUE ASPIRAMOS LLEGAR"]
[null,"DIMENSIÓN DE SEGUIMIENTO","DESCRIPCIÓN",null,"PUNTAJE",null,"ESTRATEGIA (descripción)"]
[null,"EQUIPO de trabajo",null,null,0,"Existe un equipo de trabajo designado y trabajando para los trámites seleccionados de la UE."]
[null,"COMUNICACIÓN del proyecto",null,null,0,"Los impactados directos por el cambio entienden el proceso y el resto de la UE conoce el proyecto. "]
[null,"VISIÓN compartida del cambio ",null,null,0,"Los involucrados directos (es decir, el equipo de trabajo y los referentes de los trámites) comparten una visión que incluye un \"para qué\" y los principales beneficios para el organismo."]
[null,"PARTICIPACIÓN de involucrados directos",null,null,0,"Los involucrados de los trámites (dueños y usuarios finales) han participado en el relevamiento, validación y capacitación. "]
[null,"SOPORTE a usuarios ",null,null,0,"Las mesas de ayuda están asignadas y funcionando correctamente. "]
[null,"APOYO POLÍTICO",null,null,0,"Se cuenta con el apoyo de autoridades de la UE en las instancias clave."]

{"sheet":"UE 4","index":22,"n_rows":36,"n_cols":7,"rows_kept":36,"cut":false,"hidden":false,"merged":[[34,2,34,3],[35,2,35,3],[28,2,28,4],[29,2,29,3],[30,2,30,3],[31,2,31,3],[32,2,32,3],[33,2,33,3]]}
[]
[]
[]
[]
[]
[null,{"$f":"'INFORMACIÓN INICIAL'!D13","v":0}]
[]
[]
[null,"Área/Unidad/División","Cantidad de trámites"]
[null,null,{"$f":"COUNTIF('INFORMACIÓN INICIAL'!$G$26:$H$98,'UE 4'!B10)","v":0}]
[null,null,{"$f":"COUNTIF('INFORMACIÓN INICIAL'!$G$26:$H$98,'UE 4'!B11)","v":0}]
[null,null,{"$f":"COUNTIF('INFORMACIÓN INICIAL'!$G$26:$H$98,'UE 4'!B12)","v":0}]
[null,null,{"$f":"COUNTIF('INFORMACIÓN INICIAL'!$G$26:$H$98,'UE 4'!B13)","v":0}]
[null,null,{"$f":"COUNTIF('INFORMACIÓN INICIAL'!$G$26:$H$98,'UE 4'!B14)","v":0}]
[null,null,{"$f":"COUNTIF('INFORMACIÓN INICIAL'!$G$26:$H$98,'UE 4'!B15)","v":0}]
[null,null,{"$f":"COUNTIF('INFORMACIÓN INICIAL'!$G$26:$H$98,'UE 4'!B16)","v":0}]
[null,null,{"$f":"COUNTIF('INFORMACIÓN INICIAL'!$G$26:$H$98,'UE 4'!B17)","v":0}]
[null,null,{"$f":"COUNTIF('INFORMACIÓN INICIAL'!$G$26:$H$98,'UE 4'!B18)","v":0}]
[null,null,{"$f":"COUNTIF('INFORMACIÓN INICIAL'!$G$26:$H$98,'UE 4'!B19)","v":0}]
[null,"Cantidad total de trámites",{"$f":"COUNTIF('INFORMACIÓN INICIAL'!E26:E98,'INFORMACIÓN INICIAL'!D13)","v":0}]
[]
[]
[]
[]
[]
[]
[]
[]
[null,null,"ESTADO DE PARTIDA",null,null,"ESTADO AL QUE ASPIRAMOS LLEGAR"]
[null,"DIMENSIÓN DE SEGUIMIENTO","DESCRIPCIÓN",null,"PUNTAJE",null,"ESTRATEGIA (descripción)"]
[null,"EQUIPO de trabajo",null,null,0,"Existe un equipo de trabajo designado y trabajando para los trámites seleccionados de la UE."]
[null,"COMUNICACIÓN del proyecto",null,null,0,"Los impactados directos por el cambio entienden el proceso y el resto de la UE conoce el proyecto. "]
[null,"VISIÓN compartida del cambio ",null,null,0,"Los involucrados directos (es decir, el equipo de trabajo y los referentes de los trámites) comparten una visión que incluye un \"para qué\" y los principales beneficios para el organismo."]
[null,"PARTICIPACIÓN de involucrados directos",null,null,0,"Los involucrados de los trámites (dueños y usuarios finales) han participado en el relevamiento, validación y capacitación. "]
[null,"SOPORTE a usuarios ",null,null,0,"Las mesas de ayuda están asignadas y funcionando correctamente. "]
[null,"APOYO POLÍTICO",null,null,0,"Se cuenta con el apoyo de autoridades de la UE en las instancias clave."]

{"sheet":"UE 5","index":23,"n_rows":36,"n_cols":7,"rows_kept":36,"cut":false,"hidden":false,"merged":[[34,2,34,3],[35,2,35,3],[28,2,28,4],[29,2,29,3],[30,2,30,3],[31,2,31,3],[32,2,32,3],[33,2,33,3]]}
[]
[]
[]
[]
[]
[null,{"$f":"'INFORMACIÓN INICIAL'!D14","v":0}]
[]
[]
[null,"Área/Unidad/División","Cantidad de trámites"]
[null,null,{"$f":"COUNTIF('INFORMACIÓN INICIAL'!$G$26:$H$98,'UE 5'!B10)","v":0}]
[null,null,{"$f":"COUNTIF('INFORMACIÓN INICIAL'!$G$26:$H$98,'UE 5'!B11)","v":0}]
[null,null,{"$f":"COUNTIF('INFORMACIÓN INICIAL'!$G$26:$H$98,'UE 5'!B12)","v":0}]
[null,null,{"$f":"COUNTIF('INFORMACIÓN INICIAL'!$G$26:$H$98,'UE 5'!B13)","v":0}]
[null,null,{"$f":"COUNTIF('INFORMACIÓN INICIAL'!$G$26:$H$98,'UE 5'!B14)","v":0}]
[null,null,{"$f":"COUNTIF('INFORMACIÓN INICIAL'!$G$26:$H$98,'UE 5'!B15)","v":0}]
[null,null,{"$f":"COUNTIF('INFORMACIÓN INICIAL'!$G$26:$H$98,'UE 5'!B16)","v":0}]
[null,null,{"$f":"COUNTIF('INFORMACIÓN INICIAL'!$G$26:$H$98,'UE 5'!B17)","v":0}]
[null,null,{"$f":"COUNTIF('INFORMACIÓN INICIAL'!$G$26:$H$98,'UE 5'!B18)","v":0}]
[null,null,{"$f":"COUNTIF('INFORMACIÓN INICIAL'!$G$26:$H$98,'UE 5'!B19)","v":0}]
[null,"Cantidad total de trámites",{"$f":"COUNTIF('INFORMACIÓN INICIAL'!E26:E98,'INFORMACIÓN INICIAL'!D14)","v":0}]
[]
[]
[]
[]
[]
[]
[]
[]
[null,null,"ESTADO DE PARTIDA",null,null,"ESTADO AL QUE ASPIRAMOS LLEGAR"]
[null,"DIMENSIÓN DE SEGUIMIENTO","DESCRIPCIÓN",null,"PUNTAJE",null,"ESTRATEGIA (descripción)"]
[null,"EQUIPO de trabajo",null,null,0,"Existe un equipo de trabajo designado y trabajando para los trámites seleccionados de la UE."]
[null,"COMUNICACIÓN del proyecto",null,null,0,"Los impactados directos por el cambio entienden el proceso y el resto de la UE conoce el proyecto. "]
[null,"VISIÓN compartida del cambio ",null,null,0,"Los involucrados directos (es decir, el equipo de trabajo y los referentes de los trámites) comparten una visión que incluye un \"para qué\" y los principales beneficios para el organismo."]
[null,"PARTICIPACIÓN de involucrados directos",null,null,0,"Los involucrados de los trámites (dueños y usuarios finales) han participado en el relevamiento, validación y capacitación. "]
[null,"SOPORTE a usuarios ",null,null,0,"Las mesas de ayuda están asignadas y funcionando correctamente. "]
[null,"APOYO POLÍTICO",null,null,0,"Se cuenta con el apoyo de autoridades de la UE en las instancias clave."]

{"sheet":"UE 6","index":24,"n_rows":36,"n_cols":7,"rows_kept":36,"cut":false,"hidden":false,"merged":[[34,2,34,3],[35,2,35,3],[28,2,28,4],[29,2,29,3],[30,2,30,3],[31,2,31,3],[32,2,32,3],[33,2,33,3]]}
[]
[]
[]
[]
[]
[null,{"$f":"'INFORMACIÓN INICIAL'!D15","v":0}]
[]
[]
[null,"Área/Unidad/División","Cantidad de trámites"]
[null,null,{"$f":"COUNTIF('INFORMACIÓN INICIAL'!$G$26:$H$98,'UE 6'!B10)","v":0}]
[null,null,{"$f":"COUNTIF('INFORMACIÓN INICIAL'!$G$26:$H$98,'UE 6'!B11)","v":0}]
[null,null,{"$f":"COUNTIF('INFORMACIÓN INICIAL'!$G$26:$H$98,'UE 6'!B12)","v":0}]
[null,null,{"$f":"COUNTIF('INFORMACIÓN INICIAL'!$G$26:$H$98,'UE 6'!B13)","v":0}]
[null,null,{"$f":"COUNTIF('INFORMACIÓN INICIAL'!$G$26:$H$98,'UE 6'!B14)","v":0}]
[null,null,{"$f":"COUNTIF('INFORMACIÓN INICIAL'!$G$26:$H$98,'UE 6'!B15)","v":0}]
[null,null,{"$f":"COUNTIF('INFORMACIÓN INICIAL'!$G$26:$H$98,'UE 6'!B16)","v":0}]
[null,null,{"$f":"COUNTIF('INFORMACIÓN INICIAL'!$G$26:$H$98,'UE 6'!B17)","v":0}]
[null,null,{"$f":"COUNTIF('INFORMACIÓN INICIAL'!$G$26:$H$98,'UE 6'!B18)","v":0}]
[null,null,{"$f":"COUNTIF('INFORMACIÓN INICIAL'!$G$26:$H$98,'UE 6'!B19)","v":0}]
[null,"Cantidad total de trámites",{"$f":"COUNTIF('INFORMACIÓN INICIAL'!E26:E98,'INFORMACIÓN INICIAL'!D15)","v":0}]
[]
[]
[]
[]
[]
[]
[]
[]
[null,null,"ESTADO DE PARTIDA",null,null,"ESTADO AL QUE ASPIRAMOS LLEGAR"]
[null,"DIMENSIÓN DE SEGUIMIENTO","DESCRIPCIÓN",null,"PUNTAJE",null,"ESTRATEGIA (descripción)"]
[null,"EQUIPO de trabajo",null,null,0,"Existe un equipo de trabajo designado y trabajando para los trámites seleccionados de la UE."]
[null,"COMUNICACIÓN del proyecto",null,null,0,"Los impactados directos por el cambio entienden el proceso y el resto de la UE conoce el proyecto. "]
[null,"VISIÓN compartida del cambio ",null,null,0,"Los involucrados directos (es decir, el equipo de trabajo y los referentes de los trámites) comparten una visión que incluye un \"para qué\" y los principales beneficios para el organismo."]
[null,"PARTICIPACIÓN de involucrados directos",null,null,0,"Los involucrados de los trámites (dueños y usuarios finales) han participado en el relevamiento, validación y capacitación. "]
[null,"SOPORTE a usuarios ",null,null,0,"Las mesas de ayuda están asignadas y funcionando correctamente. "]
[null,"APOYO POLÍTICO",null,null,0,"Se cuenta con el apoyo de autoridades de la UE en las instancias clave."]

{"sheet":"UE 7","index":25,"n_rows":36,"n_cols":7,"rows_kept":36,"cut":false,"hidden":false,"merged":[[34,2,34,3],[35,2,35,3],[28,2,28,4],[29,2,29,3],[30,2,30,3],[31,2,31,3],[32,2,32,3],[33,2,33,3]]}
[]
[]
[]
[]
[]
[null,{"$f":"'INFORMACIÓN INICIAL'!D16","v":0}]
[]
[]
[null,"Área/Unidad/División","Cantidad de trámites"]
[null,null,{"$f":"COUNTIF('INFORMACIÓN INICIAL'!$G$26:$H$98,'UE 7'!B10)","v":0}]
[null,null,{"$f":"COUNTIF('INFORMACIÓN INICIAL'!$G$26:$H$98,'UE 7'!B11)","v":0}]
[null,null,{"$f":"COUNTIF('INFORMACIÓN INICIAL'!$G$26:$H$98,'UE 7'!B12)","v":0}]
[null,null,{"$f":"COUNTIF('INFORMACIÓN INICIAL'!$G$26:$H$98,'UE 7'!B13)","v":0}]
[null,null,{"$f":"COUNTIF('INFORMACIÓN INICIAL'!$G$26:$H$98,'UE 7'!B14)","v":0}]
[null,null,{"$f":"COUNTIF('INFORMACIÓN INICIAL'!$G$26:$H$98,'UE 7'!B15)","v":0}]
[null,null,{"$f":"COUNTIF('INFORMACIÓN INICIAL'!$G$26:$H$98,'UE 7'!B16)","v":0}]
[null,null,{"$f":"COUNTIF('INFORMACIÓN INICIAL'!$G$26:$H$98,'UE 7'!B17)","v":0}]
[null,null,{"$f":"COUNTIF('INFORMACIÓN INICIAL'!$G$26:$H$98,'UE 7'!B18)","v":0}]
[null,null,{"$f":"COUNTIF('INFORMACIÓN INICIAL'!$G$26:$H$98,'UE 7'!B19)","v":0}]
[null,"Cantidad total de trámites",{"$f":"COUNTIF('INFORMACIÓN INICIAL'!E26:E98,'INFORMACIÓN INICIAL'!D16)","v":0}]
[]
[]
[]
[]
[]
[]
[]
[]
[null,null,"ESTADO DE PARTIDA",null,null,"ESTADO AL QUE ASPIRAMOS LLEGAR"]
[null,"DIMENSIÓN DE SEGUIMIENTO","DESCRIPCIÓN",null,"PUNTAJE",null,"ESTRATEGIA (descripción)"]
[null,"EQUIPO de trabajo",null,null,0,"Existe un equipo de trabajo designado y trabajando para los trámites seleccionados de la UE."]
[null,"COMUNICACIÓN del proyecto",null,null,0,"Los impactados directos por el cambio entienden el proceso y el resto de la UE conoce el proyecto. "]
[null,"VISIÓN compartida del cambio ",null,null,0,"Los involucrados directos (es decir, el equipo de trabajo y los referentes de los trámites) comparten una visión que incluye un \"para qué\" y los principales beneficios para el organismo."]
[null,"PARTICIPACIÓN de involucrados directos",null,null,0,"Los involucrados de los trámites (dueños y usuarios finales) han participado en el relevamiento, validación y capacitación. "]
[null,"SOPORTE a usuarios ",null,null,0,"Las mesas de ayuda están asignadas y funcionando correctamente. "]
[null,"APOYO POLÍTICO",null,null,0,"Se cuenta con el apoyo de autoridades de la UE en las instancias clave."]

{"sheet":"UE 8","index":26,"n_rows":36,"n_cols":7,"rows_kept":36,"cut":false,"hidden":false,"merged":[[34,2,34,3],[35,2,35,3],[28,2,28,4],[29,2,29,3],[30,2,30,3],[31,2,31,3],[32,2,32,3],[33,2,33,3]]}
[]
[]
[]
[]
[]
[null,{"$f":"'INFORMACIÓN INICIAL'!D17","v":0}]
[]
[]
[null,"Área/Unidad/División","Cantidad de trámites"]
[null,null,{"$f":"COUNTIF('INFORMACIÓN INICIAL'!$G$26:$H$98,'UE 8'!B10)","v":0}]
[null,null,{"$f":"COUNTIF('INFORMACIÓN INICIAL'!$G$26:$H$98,'UE 8'!B11)","v":0}]
[null,null,{"$f":"COUNTIF('INFORMACIÓN INICIAL'!$G$26:$H$98,'UE 8'!B12)","v":0}]
[null,null,{"$f":"COUNTIF('INFORMACIÓN INICIAL'!$G$26:$H$98,'UE 8'!B13)","v":0}]
[null,null,{"$f":"COUNTIF('INFORMACIÓN INICIAL'!$G$26:$H$98,'UE 8'!B14)","v":0}]
[null,null,{"$f":"COUNTIF('INFORMACIÓN INICIAL'!$G$26:$H$98,'UE 8'!B15)","v":0}]
[null,null,{"$f":"COUNTIF('INFORMACIÓN INICIAL'!$G$26:$H$98,'UE 8'!B16)","v":0}]
[null,null,{"$f":"COUNTIF('INFORMACIÓN INICIAL'!$G$26:$H$98,'UE 8'!B17)","v":0}]
[null,null,{"$f":"COUNTIF('INFORMACIÓN INICIAL'!$G$26:$H$98,'UE 8'!B18)","v":0}]
[null,null,{"$f":"COUNTIF('INFORMACIÓN INICIAL'!$G$26:$H$98,'UE 8'!B19)","v":0}]
[null,"Cantidad total de trámites",{"$f":"COUNTIF('INFORMACIÓN INICIAL'!E26:E98,'INFORMACIÓN INICIAL'!D17)","v":0}]
[]
[]
[]
[]
[]
[]
[]
[]
[null,null,"ESTADO DE PARTIDA",null,null,"ESTADO AL QUE ASPIRAMOS LLEGAR"]
[null,"DIMENSIÓN DE SEGUIMIENTO","DESCRIPCIÓN",null,"PUNTAJE",null,"ESTRATEGIA (descripción)"]
[null,"EQUIPO de trabajo",null,null,0,"Existe un equipo de trabajo designado y trabajando para los trámites seleccionados de la UE."]
[null,"COMUNICACIÓN del proyecto",null,null,0,"Los impactados directos por el cambio entienden el proceso y el resto de la UE conoce el proyecto. "]
[null,"VISIÓN compartida del cambio ",null,null,0,"Los involucrados directos (es decir, el equipo de trabajo y los referentes de los trámites) comparten una visión que incluye un \"para qué\" y los principales beneficios para el organismo."]
[null,"PARTICIPACIÓN de involucrados directos",null,null,0,"Los involucrados de los trámites (dueños y usuarios finales) han participado en el relevamiento, validación y capacitación. "]
[null,"SOPORTE a usuarios ",null,null,0,"Las mesas de ayuda están asignadas y funcionando correctamente. "]
[null,"APOYO POLÍTICO",null,null,0,"Se cuenta con el apoyo de autoridades de la UE en las instancias clave."]

{"sheet":"UE 9","index":27,"n_rows":36,"n_cols":7,"rows_kept":36,"cut":false,"hidden":false,"merged":[[34,2,34,3],[35,2,35,3],[28,2,28,4],[29,2,29,3],[30,2,30,3],[31,2,31,3],[32,2,32,3],[33,2,33,3]]}
[]
[]
[]
[]
[]
[null,{"$f":"'INFORMACIÓN INICIAL'!D18","v":0}]
[]
[]
[null,"Área/Unidad/División","Cantidad de trámites"]
[null,null,{"$f":"COUNTIF('INFORMACIÓN INICIAL'!$G$26:$H$98,'UE 9'!B10)","v":0}]
[null,null,{"$f":"COUNTIF('INFORMACIÓN INICIAL'!$G$26:$H$98,'UE 9'!B11)","v":0}]
[null,null,{"$f":"COUNTIF('INFORMACIÓN INICIAL'!$G$26:$H$98,'UE 9'!B12)","v":0}]
[null,null,{"$f":"COUNTIF('INFORMACIÓN INICIAL'!$G$26:$H$98,'UE 9'!B13)","v":0}]
[null,null,{"$f":"COUNTIF('INFORMACIÓN INICIAL'!$G$26:$H$98,'UE 9'!B14)","v":0}]
[null,null,{"$f":"COUNTIF('INFORMACIÓN INICIAL'!$G$26:$H$98,'UE 9'!B15)","v":0}]
[null,null,{"$f":"COUNTIF('INFORMACIÓN INICIAL'!$G$26:$H$98,'UE 9'!B16)","v":0}]
[null,null,{"$f":"COUNTIF('INFORMACIÓN INICIAL'!$G$26:$H$98,'UE 9'!B17)","v":0}]
[null,null,{"$f":"COUNTIF('INFORMACIÓN INICIAL'!$G$26:$H$98,'UE 9'!B18)","v":0}]
[null,null,{"$f":"COUNTIF('INFORMACIÓN INICIAL'!$G$26:$H$98,'UE 9'!B19)","v":0}]
[null,"Cantidad total de trámites",{"$f":"COUNTIF('INFORMACIÓN INICIAL'!E26:E98,'INFORMACIÓN INICIAL'!D18)","v":0}]
[]
[]
[]
[]
[]
[]
[]
[]
[null,null,"ESTADO DE PARTIDA",null,null,"ESTADO AL QUE ASPIRAMOS LLEGAR"]
[null,"DIMENSIÓN DE SEGUIMIENTO","DESCRIPCIÓN",null,"PUNTAJE",null,"ESTRATEGIA (descripción)"]
[null,"EQUIPO de trabajo",null,null,0,"Existe un equipo de trabajo designado y trabajando para los trámites seleccionados de la UE."]
[null,"COMUNICACIÓN del proyecto",null,null,0,"Los impactados directos por el cambio entienden el proceso y el resto de la UE conoce el proyecto. "]
[null,"VISIÓN compartida del cambio ",null,null,0,"Los involucrados directos (es decir, el equipo de trabajo y los referentes de los trámites) comparten una visión que incluye un \"para qué\" y los principales beneficios para el organismo."]
[null,"PARTICIPACIÓN de involucrados directos",null,null,0,"Los involucrados de los trámites (dueños y usuarios finales) han participado en el relevamiento, validación y capacitación. "]
[null,"SOPORTE a usuarios ",null,null,0,"Las mesas de ayuda están asignadas y funcionando correctamente. "]
[null,"APOYO POLÍTICO",null,null,0,"Se cuenta con el apoyo de autoridades de la UE en las instancias clave."]

{"sheet":"UE 10","index":28,"n_rows":36,"n_cols":7,"rows_kept":36,"cut":false,"hidden":false,"merged":[[34,2,34,3],[35,2,35,3],[28,2,28,4],[29,2,29,3],[30,2,30,3],[31,2,31,3],[32,2,32,3],[33,2,33,3]]}
[]
[]
[]
[]
[]
[null,{"$f":"'INFORMACIÓN INICIAL'!D19","v":0}]
[]
[]
[null,"Área/Unidad/División","Cantidad de trámites"]
[null,null,{"$f":"COUNTIF('INFORMACIÓN INICIAL'!$G$26:$H$98,'UE 10'!B10)","v":0}]
[null,null,{"$f":"COUNTIF('INFORMACIÓN INICIAL'!$G$26:$H$98,'UE 10'!B11)","v":0}]
[null,null,{"$f":"COUNTIF('INFORMACIÓN INICIAL'!$G$26:$H$98,'UE 10'!B12)","v":0}]
[null,null,{"$f":"COUNTIF('INFORMACIÓN INICIAL'!$G$26:$H$98,'UE 10'!B13)","v":0}]
[null,null,{"$f":"COUNTIF('INFORMACIÓN INICIAL'!$G$26:$H$98,'UE 10'!B14)","v":0}]
[null,null,{"$f":"COUNTIF('INFORMACIÓN INICIAL'!$G$26:$H$98,'UE 10'!B15)","v":0}]
[null,null,{"$f":"COUNTIF('INFORMACIÓN INICIAL'!$G$26:$H$98,'UE 10'!B16)","v":0}]
[null,null,{"$f":"COUNTIF('INFORMACIÓN INICIAL'!$G$26:$H$98,'UE 10'!B17)","v":0}]
[null,null,{"$f":"COUNTIF('INFORMACIÓN INICIAL'!$G$26:$H$98,'UE 10'!B18)","v":0}]
[null,null,{"$f":"COUNTIF('INFORMACIÓN INICIAL'!$G$26:$H$98,'UE 10'!B19)","v":0}]
[null,"Cantidad total de trámites",{"$f":"COUNTIF('INFORMACIÓN INICIAL'!E26:E98,'INFORMACIÓN INICIAL'!D19)","v":0}]
[]
[]
[]
[]
[]
[]
[]
[]
[null,null,"ESTADO DE PARTIDA",null,null,"ESTADO AL QUE ASPIRAMOS LLEGAR"]
[null,"DIMENSIÓN DE SEGUIMIENTO","DESCRIPCIÓN",null,"PUNTAJE",null,"ESTRATEGIA (descripción)"]
[null,"EQUIPO de trabajo",null,null,0,"Existe un equipo de trabajo designado y trabajando para los trámites seleccionados de la UE."]
[null,"COMUNICACIÓN del proyecto",null,null,0,"Los impactados directos por el cambio entienden el proceso y el resto de la UE conoce el proyecto. "]
[null,"VISIÓN compartida del cambio ",null,null,0,"Los involucrados directos (es decir, el equipo de trabajo y los referentes de los trámites) comparten una visión que incluye un \"para qué\" y los principales beneficios para el organismo."]
[null,"PARTICIPACIÓN de involucrados directos",null,null,0,"Los involucrados de los trámites (dueños y usuarios finales) han participado en el relevamiento, validación y capacitación. "]
[null,"SOPORTE a usuarios ",null,null,0,"Las mesas de ayuda están asignadas y funcionando correctamente. "]
[null,"APOYO POLÍTICO",null,null,0,"Se cuenta con el apoyo de autoridades de la UE en las instancias clave."]

{"sheet":"UE 11","index":29,"n_rows":36,"n_cols":7,"rows_kept":36,"cut":false,"hidden":false,"merged":[[34,2,34,3],[35,2,35,3],[28,2,28,4],[29,2,29,3],[30,2,30,3],[31,2,31,3],[32,2,32,3],[33,2,33,3]]}
[]
[]
[]
[]
[]
[null,{"$f":"'INFORMACIÓN INICIAL'!D20","v":0}]
[]
[]
[null,"Área/Unidad/División","Cantidad de trámites"]
[null,null,{"$f":"COUNTIF('INFORMACIÓN INICIAL'!$G$26:$H$98,'UE 11'!B10)","v":0}]
[null,null,{"$f":"COUNTIF('INFORMACIÓN INICIAL'!$G$26:$H$98,'UE 11'!B11)","v":0}]
[null,null,{"$f":"COUNTIF('INFORMACIÓN INICIAL'!$G$26:$H$98,'UE 11'!B12)","v":0}]
[null,null,{"$f":"COUNTIF('INFORMACIÓN INICIAL'!$G$26:$H$98,'UE 11'!B13)","v":0}]
[null,null,{"$f":"COUNTIF('INFORMACIÓN INICIAL'!$G$26:$H$98,'UE 11'!B14)","v":0}]
[null,null,{"$f":"COUNTIF('INFORMACIÓN INICIAL'!$G$26:$H$98,'UE 11'!B15)","v":0}]
[null,null,{"$f":"COUNTIF('INFORMACIÓN INICIAL'!$G$26:$H$98,'UE 11'!B16)","v":0}]
[null,null,{"$f":"COUNTIF('INFORMACIÓN INICIAL'!$G$26:$H$98,'UE 11'!B17)","v":0}]
[null,null,{"$f":"COUNTIF('INFORMACIÓN INICIAL'!$G$26:$H$98,'UE 11'!B18)","v":0}]
[null,null,{"$f":"COUNTIF('INFORMACIÓN INICIAL'!$G$26:$H$98,'UE 11'!B19)","v":0}]
[null,"Cantidad total de trámites",{"$f":"COUNTIF('INFORMACIÓN INICIAL'!E26:E98,'INFORMACIÓN INICIAL'!D20)","v":0}]
[]
[]
[]
[]
[]
[]
[]
[]
[null,null,"ESTADO DE PARTIDA",null,null,"ESTADO AL QUE ASPIRAMOS LLEGAR"]
[null,"DIMENSIÓN DE SEGUIMIENTO","DESCRIPCIÓN",null,"PUNTAJE",null,"ESTRATEGIA (descripción)"]
[null,"EQUIPO de trabajo",null,null,0,"Existe un equipo de trabajo designado y trabajando para los trámites seleccionados de la UE."]
[null,"COMUNICACIÓN del proyecto",null,null,0,"Los impactados directos por el cambio entienden el proceso y el resto de la UE conoce el proyecto. "]
[null,"VISIÓN compartida del cambio ",null,null,0,"Los involucrados directos (es decir, el equipo de trabajo y los referentes de los trámites) comparten una visión que incluye un \"para qué\" y los principales beneficios para el organismo."]
[null,"PARTICIPACIÓN de involucrados directos",null,null,0,"Los involucrados de los trámites (dueños y usuarios finales) han participado en el relevamiento, validación y capacitación. "]
[null,"SOPORTE a usuarios ",null,null,0,"Las mesas de ayuda están asignadas y funcionando correctamente. "]
[null,"APOYO POLÍTICO",null,null,0,"Se cuenta con el apoyo de autoridades de la UE en las instancias clave."]

{"sheet":"UE 12","index":30,"n_rows":36,"n_cols":7,"rows_kept":36,"cut":false,"hidden":false,"merged":[[34,2,34,3],[35,2,35,3],[28,2,28,4],[29,2,29,3],[30,2,30,3],[31,2,31,3],[32,2,32,3],[33,2,33,3]]}
[]
[]
[]
[]
[]
[null,{"$f":"'INFORMACIÓN INICIAL'!D21","v":0}]
[]
[]
[null,"Área/Unidad/División","Cantidad de trámites"]
[null,null,{"$f":"COUNTIF('INFORMACIÓN INICIAL'!$G$26:$H$98,'UE 12'!B10)","v":0}]
[null,null,{"$f":"COUNTIF('INFORMACIÓN INICIAL'!$G$26:$H$98,'UE 12'!B11)","v":0}]
[null,null,{"$f":"COUNTIF('INFORMACIÓN INICIAL'!$G$26:$H$98,'UE 12'!B12)","v":0}]
[null,null,{"$f":"COUNTIF('INFORMACIÓN INICIAL'!$G$26:$H$98,'UE 12'!B13)","v":0}]
[null,null,{"$f":"COUNTIF('INFORMACIÓN INICIAL'!$G$26:$H$98,'UE 12'!B14)","v":0}]
[null,null,{"$f":"COUNTIF('INFORMACIÓN INICIAL'!$G$26:$H$98,'UE 12'!B15)","v":0}]
[null,null,{"$f":"COUNTIF('INFORMACIÓN INICIAL'!$G$26:$H$98,'UE 12'!B16)","v":0}]
[null,null,{"$f":"COUNTIF('INFORMACIÓN INICIAL'!$G$26:$H$98,'UE 12'!B17)","v":0}]
[null,null,{"$f":"COUNTIF('INFORMACIÓN INICIAL'!$G$26:$H$98,'UE 12'!B18)","v":0}]
[null,null,{"$f":"COUNTIF('INFORMACIÓN INICIAL'!$G$26:$H$98,'UE 12'!B19)","v":0}]
[null,"Cantidad total de trámites",{"$f":"COUNTIF('INFORMACIÓN INICIAL'!E26:E98,'INFORMACIÓN INICIAL'!D21)","v":0}]
[]
[]
[]
[]
[]
[]
[]
[]
[null,null,"ESTADO DE PARTIDA",null,null,"ESTADO AL QUE ASPIRAMOS LLEGAR"]
[null,"DIMENSIÓN DE SEGUIMIENTO","DESCRIPCIÓN",null,"PUNTAJE",null,"ESTRATEGIA (descripción)"]
[null,"EQUIPO de trabajo",null,null,0,"Existe un equipo de trabajo designado y trabajando para los trámites seleccionados de la UE."]
[null,"COMUNICACIÓN del proyecto",null,null,0,"Los impactados directos por el cambio entienden el proceso y el resto de la UE conoce el proyecto. "]
[null,"VISIÓN compartida del cambio ",null,null,0,"Los involucrados directos (es decir, el equipo de trabajo y los referentes de los trámites) comparten una visión que incluye un \"para qué\" y los principales beneficios para el organismo."]
[null,"PARTICIPACIÓN de involucrados directos",null,null,0,"Los involucrados de los trámites (dueños y usuarios finales) han participado en el relevamiento, validación y capacitación. "]
[null,"SOPORTE a usuarios ",null,null,0,"Las mesas de ayuda están asignadas y funcionando correctamente. "]
[null,"APOYO POLÍTICO",null,null,0,"Se cuenta con el apoyo de autoridades de la UE en las instancias clave."]

{"sheet":"Tablero de Actividades","index":31,"n_rows":115,"n_cols":22,"rows_kept":115,"cut":false,"hidden":false,"merged":[[110,7,110,8],[111,7,111,8],[112,7,112,8],[113,7,113,8],[114,7,114,8],[110,4,110,6],[111,4,111,6],[112,4,112,6],[113,4,113,6],[114,4,114,6],[1,3,2,5],[5,20,5,21],[4,20,4,21],[108,3,108,4],[109,4,109,6],[109,7,109,8]]}
["Columna1"]
[null,null,null,null,null,null,"Publico Objetivo"]
[null,null,null,null,null,null,"*mesa"]
[]
[null,null,"Desencadenante","Dimensión o impacto asociado","ID","Actividad","Objetivo","Ejecutada","Resumen de la actividad","Tipo de actividad","Conteo tipo de actividad",null,null,null,null,"Publico Objetivo",null,null,null,null,"Tipo de actividad"]
[null,null,{"$f":"IF(E6<>\" \",ACTIVIDADES!I11,\" \")","v":" "},{"$f":"IF(E6<>\" \",ACTIVIDADES!J11,\" \")","v":" "},{"$f":"IF(ACTIVIDADES!C11<>0,ACTIVIDADES!C11,\" \")","v":" "},{"$f":"IF(ACTIVIDADES!H11<>0,ACTIVIDADES!H11,\" \")","v":" "},{"$f":"IF((AND(ACTIVIDADES!C11<>0,ACTIVIDADES!K11<>0)),ACTIVIDADES!K11,\" \")","v":" "},{"$f":"IF(ACTIVIDADES!N11<>0,ACTIVIDADES!N11,\"Pendiente\")","v":"SI"},{"$f":"IF(ACTIVIDADES!Q10<>0,ACTIVIDADES!Q10,\" \")","v":" "},{"$f":"IF((AND(ACTIVIDADES!C11<>0,ACTIVIDADES!H11<>0)),ACTIVIDADES!G11,\"Sin definir\")","v":"Sin definir"},null,null,null,null,null,{"$f":"IF(ACTIVIDADES!L10<>0,ACTIVIDADES!L10,\" \")","v":" "},null,null,null,null,"Tipo de actividad"]
[null,null,{"$f":"IF(E7<>\" \",ACTIVIDADES!I12,\" \")","v":" "},{"$f":"IF(E7<>\" \",ACTIVIDADES!J12,\" \")","v":" "},{"$f":"IF(ACTIVIDADES!C12<>0,ACTIVIDADES!C12,\" \")","v":" "},{"$f":"IF(ACTIVIDADES!H12<>0,ACTIVIDADES!H12,\" \")","v":" "},{"$f":"IF((AND(ACTIVIDADES!C12<>0,ACTIVIDADES!K12<>0)),ACTIVIDADES!K12,\" \")","v":" "},{"$f":"IF(ACTIVIDADES!N12<>0,ACTIVIDADES!N12,\"Pendiente\")","v":"Pendiente"},{"$f":"IF(ACTIVIDADES!Q11<>0,ACTIVIDADES!Q11,\" \")","v":" "},{"$f":"IF((AND(ACTIVIDADES!C12<>0,ACTIVIDADES!H12<>0)),ACTIVIDADES!G12,\"Sin definir\")","v":"Sin definir"},null,null,null,null,null,{"$f":"IF(ACTIVIDADES!L11<>0,ACTIVIDADES!L11,\" \")","v":" "},null,null,null,null,"Comunicación",{"$f":"K108","v":0}]
[null,null,{"$f":"IF(E8<>\" \",ACTIVIDADES!I13,\" \")","v":" "},{"$f":"IF(E8<>\" \",ACTIVIDADES!J13,\" \")","v":" "},{"$f":"IF(ACTIVIDADES!C13<>0,ACTIVIDADES!C13,\" \")","v":" "},{"$f":"IF(ACTIVIDADES!H13<>0,ACTIVIDADES!H13,\" \")","v":" "},{"$f":"IF((AND(ACTIVIDADES!C13<>0,ACTIVIDADES!K13<>0)),ACTIVIDADES!K13,\" \")","v":" "},{"$f":"IF(ACTIVIDADES!N13<>0,ACTIVIDADES!N13,\"Pendiente\")","v":"Pendiente"},{"$f":"IF(ACTIVIDADES!Q12<>0,ACTIVIDADES!Q12,\" \")","v":" "},{"$f":"IF((AND(ACTIVIDADES!C13<>0,ACTIVIDADES!H13<>0)),ACTIVIDADES!G13,\"Sin definir\")","v":"Sin definir"},null,null,null,null,null,{"$f":"IF(ACTIVIDADES!L12<>0,ACTIVIDADES!L12,\" \")","v":" "},null,null,null,null,"Capacitación",{"$f":"L108","v":0}]
[null,null,{"$f":"IF(E9<>\" \",ACTIVIDADES!I14,\" \")","v":" "},{"$f":"IF(E9<>\" \",ACTIVIDADES!J14,\" \")","v":" "},{"$f":"IF(ACTIVIDADES!C14<>0,ACTIVIDADES!C14,\" \")","v":" "},{"$f":"IF(ACTIVIDADES!H14<>0,ACTIVIDADES!H14,\" \")","v":" "},{"$f":"IF((AND(ACTIVIDADES!C14<>0,ACTIVIDADES!K14<>0)),ACTIVIDADES!K14,\" \")","v":" "},{"$f":"IF(ACTIVIDADES!N14<>0,ACTIVIDADES!N14,\"Pendiente\")","v":"Pendiente"},{"$f":"IF(ACTIVIDADES!Q13<>0,ACTIVIDADES!Q13,\" \")","v":" "},{"$f":"IF((AND(ACTIVIDADES!C14<>0,ACTIVIDADES!H14<>0)),ACTIVIDADES!G14,\"Sin definir\")","v":"Sin definir"},null,null,null,null,null,{"$f":"IF(ACTIVIDADES!L13<>0,ACTIVIDADES!L13,\" \")","v":" "},null,null,null,null,"Gestión de personas",{"$f":"M108","v":0}]
[null,null,{"$f":"IF(E10<>\" \",ACTIVIDADES!I15,\" \")","v":" "},{"$f":"IF(E10<>\" \",ACTIVIDADES!J15,\" \")","v":" "},{"$f":"IF(ACTIVIDADES!C15<>0,ACTIVIDADES!C15,\" \")","v":" "},{"$f":"IF(ACTIVIDADES!H15<>0,ACTIVIDADES!H15,\" \")","v":" "},{"$f":"IF((AND(ACTIVIDADES!C15<>0,ACTIVIDADES!K15<>0)),ACTIVIDADES!K15,\" \")","v":" "},{"$f":"IF(ACTIVIDADES!N15<>0,ACTIVIDADES!N15,\"Pendiente\")","v":"Pendiente"},{"$f":"IF(ACTIVIDADES!Q14<>0,ACTIVIDADES!Q14,\" \")","v":" "},{"$f":"IF((AND(ACTIVIDADES!C15<>0,ACTIVIDADES!H15<>0)),ACTIVIDADES!G15,\"Sin definir\")","v":"Sin definir"},null,null,null,null,null,{"$f":"IF(ACTIVIDADES!L14<>0,ACTIVIDADES!L14,\" \")","v":" "},null,null,null,null,"Organización del trabajo",{"$f":"N108","v":0}]
[null,null,{"$f":"IF(E11<>\" \",ACTIVIDADES!I16,\" \")","v":" "},{"$f":"IF(E11<>\" \",ACTIVIDADES!J16,\" \")","v":" "},{"$f":"IF(ACTIVIDADES!C16<>0,ACTIVIDADES!C16,\" \")","v":" "},{"$f":"IF(ACTIVIDADES!H16<>0,ACTIVIDADES!H16,\" \")","v":" "},{"$f":"IF((AND(ACTIVIDADES!C16<>0,ACTIVIDADES!K16<>0)),ACTIVIDADES!K16,\" \")","v":" "},{"$f":"IF(ACTIVIDADES!N16<>0,ACTIVIDADES!N16,\"Pendiente\")","v":"Pendiente"},{"$f":"IF(ACTIVIDADES!Q15<>0,ACTIVIDADES!Q15,\" \")","v":" "},{"$f":"IF((AND(ACTIVIDADES!C16<>0,ACTIVIDADES!H16<>0)),ACTIVIDADES!G16,\"Sin definir\")","v":"Sin definir"},null,null,null,null,null,{"$f":"IF(ACTIVIDADES!L15<>0,ACTIVIDADES!L15,\" \")","v":" "},null,null,null,null,"Otra",{"$f":"O108","v":0}]
[null,null,{"$f":"IF(E12<>\" \",ACTIVIDADES!I17,\" \")","v":" "},{"$f":"IF(E12<>\" \",ACTIVIDADES!J17,\" \")","v":" "},{"$f":"IF(ACTIVIDADES!C17<>0,ACTIVIDADES!C17,\" \")","v":" "},{"$f":"IF(ACTIVIDADES!H17<>0,ACTIVIDADES!H17,\" \")","v":" "},{"$f":"IF((AND(ACTIVIDADES!C17<>0,ACTIVIDADES!K17<>0)),ACTIVIDADES!K17,\" \")","v":" "},{"$f":"IF(ACTIVIDADES!N17<>0,ACTIVIDADES!N17,\"Pendiente\")","v":"Pendiente"},{"$f":"IF(ACTIVIDADES!Q16<>0,ACTIVIDADES!Q16,\" \")","v":" "},{"$f":"IF((AND(ACTIVIDADES!C17<>0,ACTIVIDADES!H17<>0)),ACTIVIDADES!G17,\"Sin definir\")","v":"Sin definir"},null,null,null,null,null,{"$f":"IF(ACTIVIDADES!L16<>0,ACTIVIDADES!L16,\" \")","v":" "}]
[null,null,{"$f":"IF(E13<>\" \",ACTIVIDADES!I18,\" \")","v":" "},{"$f":"IF(E13<>\" \",ACTIVIDADES!J18,\" \")","v":" "},{"$f":"IF(ACTIVIDADES!C18<>0,ACTIVIDADES!C18,\" \")","v":" "},{"$f":"IF(ACTIVIDADES!H18<>0,ACTIVIDADES!H18,\" \")","v":" "},{"$f":"IF((AND(ACTIVIDADES!C18<>0,ACTIVIDADES!K18<>0)),ACTIVIDADES!K18,\" \")","v":" "},{"$f":"IF(ACTIVIDADES!N18<>0,ACTIVIDADES!N18,\"Pendiente\")","v":"Pendiente"},{"$f":"IF(ACTIVIDADES!Q17<>0,ACTIVIDADES!Q17,\" \")","v":" "},{"$f":"IF((AND(ACTIVIDADES!C18<>0,ACTIVIDADES!H18<>0)),ACTIVIDADES!G18,\"Sin definir\")","v":"Sin definir"},null,null,null,null,null,{"$f":"IF(ACTIVIDADES!L17<>0,ACTIVIDADES!L17,\" \")","v":" "}]
[null,null,{"$f":"IF(E14<>\" \",ACTIVIDADES!I19,\" \")","v":" "},{"$f":"IF(E14<>\" \",ACTIVIDADES!J19,\" \")","v":" "},{"$f":"IF(ACTIVIDADES!C19<>0,ACTIVIDADES!C19,\" \")","v":" "},{"$f":"IF(ACTIVIDADES!H19<>0,ACTIVIDADES!H19,\" \")","v":" "},{"$f":"IF((AND(ACTIVIDADES!C19<>0,ACTIVIDADES!K19<>0)),ACTIVIDADES!K19,\" \")","v":" "},{"$f":"IF(ACTIVIDADES!N19<>0,ACTIVIDADES!N19,\"Pendiente\")","v":"Pendiente"},{"$f":"IF(ACTIVIDADES!Q18<>0,ACTIVIDADES!Q18,\" \")","v":" "},{"$f":"IF((AND(ACTIVIDADES!C19<>0,ACTIVIDADES!H19<>0)),ACTIVIDADES!G19,\"Sin definir\")","v":"Sin definir"},null,null,null,null,null,{"$f":"IF(ACTIVIDADES!L18<>0,ACTIVIDADES!L18,\" \")","v":" "}]
[null,null,{"$f":"IF(E15<>\" \",ACTIVIDADES!I20,\" \")","v":" "},{"$f":"IF(E15<>\" \",ACTIVIDADES!J20,\" \")","v":" "},{"$f":"IF(ACTIVIDADES!C20<>0,ACTIVIDADES!C20,\" \")","v":" "},{"$f":"IF(ACTIVIDADES!H20<>0,ACTIVIDADES!H20,\" \")","v":" "},{"$f":"IF((AND(ACTIVIDADES!C20<>0,ACTIVIDADES!K20<>0)),ACTIVIDADES!K20,\" \")","v":" "},{"$f":"IF(ACTIVIDADES!N20<>0,ACTIVIDADES!N20,\"Pendiente\")","v":"Pendiente"},{"$f":"IF(ACTIVIDADES!Q19<>0,ACTIVIDADES!Q19,\" \")","v":" "},{"$f":"IF((AND(ACTIVIDADES!C20<>0,ACTIVIDADES!H20<>0)),ACTIVIDADES!G20,\"Sin definir\")","v":"Sin definir"},null,null,null,null,null,{"$f":"IF(ACTIVIDADES!L19<>0,ACTIVIDADES!L19,\" \")","v":" "}]
[null,null,{"$f":"IF(E16<>\" \",ACTIVIDADES!I21,\" \")","v":" "},{"$f":"IF(E16<>\" \",ACTIVIDADES!J21,\" \")","v":" "},{"$f":"IF(ACTIVIDADES!C21<>0,ACTIVIDADES!C21,\" \")","v":" "},{"$f":"IF(ACTIVIDADES!H21<>0,ACTIVIDADES!H21,\" \")","v":" "},{"$f":"IF((AND(ACTIVIDADES!C21<>0,ACTIVIDADES!K21<>0)),ACTIVIDADES!K21,\" \")","v":" "},{"$f":"IF(ACTIVIDADES!N21<>0,ACTIVIDADES!N21,\"Pendiente\")","v":"Pendiente"},{"$f":"IF(ACTIVIDADES!Q20<>0,ACTIVIDADES!Q20,\" \")","v":" "},{"$f":"IF((AND(ACTIVIDADES!C21<>0,ACTIVIDADES!H21<>0)),ACTIVIDADES!G21,\"Sin definir\")","v":"Sin definir"},null,null,null,null,null,{"$f":"IF(ACTIVIDADES!L20<>0,ACTIVIDADES!L20,\" \")","v":" "}]
[null,null,{"$f":"IF(E17<>\" \",ACTIVIDADES!I22,\" \")","v":" "},{"$f":"IF(E17<>\" \",ACTIVIDADES!J22,\" \")","v":" "},{"$f":"IF(ACTIVIDADES!C22<>0,ACTIVIDADES!C22,\" \")","v":" "},{"$f":"IF(ACTIVIDADES!H22<>0,ACTIVIDADES!H22,\" \")","v":" "},{"$f":"IF((AND(ACTIVIDADES!C22<>0,ACTIVIDADES!K22<>0)),ACTIVIDADES!K22,\" \")","v":" "},{"$f":"IF(ACTIVIDADES!N22<>0,ACTIVIDADES!N22,\"Pendiente\")","v":"Pendiente"},{"$f":"IF(ACTIVIDADES!Q21<>0,ACTIVIDADES!Q21,\" \")","v":" "},{"$f":"IF((AND(ACTIVIDADES!C22<>0,ACTIVIDADES!H22<>0)),ACTIVIDADES!G22,\"Sin definir\")","v":"Sin definir"},null,null,null,null,null,{"$f":"IF(ACTIVIDADES!L21<>0,ACTIVIDADES!L21,\" \")","v":" "}]
[null,null,{"$f":"IF(E18<>\" \",ACTIVIDADES!I23,\" \")","v":" "},{"$f":"IF(E18<>\" \",ACTIVIDADES!J23,\" \")","v":" "},{"$f":"IF(ACTIVIDADES!C23<>0,ACTIVIDADES!C23,\" \")","v":" "},{"$f":"IF(ACTIVIDADES!H23<>0,ACTIVIDADES!H23,\" \")","v":" "},{"$f":"IF((AND(ACTIVIDADES!C23<>0,ACTIVIDADES!K23<>0)),ACTIVIDADES!K23,\" \")","v":" "},{"$f":"IF(ACTIVIDADES!N23<>0,ACTIVIDADES!N23,\"Pendiente\")","v":"Pendiente"},{"$f":"IF(ACTIVIDADES!Q22<>0,ACTIVIDADES!Q22,\" \")","v":" "},{"$f":"IF((AND(ACTIVIDADES!C23<>0,ACTIVIDADES!H23<>0)),ACTIVIDADES!G23,\"Sin definir\")","v":"Sin definir"},null,null,null,null,null,{"$f":"IF(ACTIVIDADES!L22<>0,ACTIVIDADES!L22,\" \")","v":" "}]
[null,null,{"$f":"IF(E19<>\" \",ACTIVIDADES!I24,\" \")","v":" "},{"$f":"IF(E19<>\" \",ACTIVIDADES!J24,\" \")","v":" "},{"$f":"IF(ACTIVIDADES!C24<>0,ACTIVIDADES!C24,\" \")","v":" "},{"$f":"IF(ACTIVIDADES!H24<>0,ACTIVIDADES!H24,\" \")","v":" "},{"$f":"IF((AND(ACTIVIDADES!C24<>0,ACTIVIDADES!K24<>0)),ACTIVIDADES!K24,\" \")","v":" "},{"$f":"IF(ACTIVIDADES!N24<>0,ACTIVIDADES!N24,\"Pendiente\")","v":"Pendiente"},{"$f":"IF(ACTIVIDADES!Q23<>0,ACTIVIDADES!Q23,\" \")","v":" "},{"$f":"IF((AND(ACTIVIDADES!C24<>0,ACTIVIDADES!H24<>0)),ACTIVIDADES!G24,\"Sin definir\")","v":"Sin definir"},null,null,null,null,null,{"$f":"IF(ACTIVIDADES!L23<>0,ACTIVIDADES!L23,\" \")","v":" "}]
[null,null,{"$f":"IF(E20<>\" \",ACTIVIDADES!I25,\" \")","v":" "},{"$f":"IF(E20<>\" \",ACTIVIDADES!J25,\" \")","v":" "},{"$f":"IF(ACTIVIDADES!C25<>0,ACTIVIDADES!C25,\" \")","v":" "},{"$f":"IF(ACTIVIDADES!H25<>0,ACTIVIDADES!H25,\" \")","v":" "},{"$f":"IF((AND(ACTIVIDADES!C25<>0,ACTIVIDADES!K25<>0)),ACTIVIDADES!K25,\" \")","v":" "},{"$f":"IF(ACTIVIDADES!N25<>0,ACTIVIDADES!N25,\"Pendiente\")","v":"Pendiente"},{"$f":"IF(ACTIVIDADES!Q24<>0,ACTIVIDADES!Q24,\" \")","v":" "},{"$f":"IF((AND(ACTIVIDADES!C25<>0,ACTIVIDADES!H25<>0)),ACTIVIDADES!G25,\"Sin definir\")","v":"Sin definir"},null,null,null,null,null,{"$f":"IF(ACTIVIDADES!L24<>0,ACTIVIDADES!L24,\" \")","v":" "}]
[null,null,{"$f":"IF(E21<>\" \",ACTIVIDADES!I26,\" \")","v":" "},{"$f":"IF(E21<>\" \",ACTIVIDADES!J26,\" \")","v":" "},{"$f":"IF(ACTIVIDADES!C26<>0,ACTIVIDADES!C26,\" \")","v":" "},{"$f":"IF(ACTIVIDADES!H26<>0,ACTIVIDADES!H26,\" \")","v":" "},{"$f":"IF((AND(ACTIVIDADES!C26<>0,ACTIVIDADES!K26<>0)),ACTIVIDADES!K26,\" \")","v":" "},{"$f":"IF(ACTIVIDADES!N26<>0,ACTIVIDADES!N26,\"Pendiente\")","v":"Pendiente"},{"$f":"IF(ACTIVIDADES!Q25<>0,ACTIVIDADES!Q25,\" \")","v":" "},{"$f":"IF((AND(ACTIVIDADES!C26<>0,ACTIVIDADES!H26<>0)),ACTIVIDADES!G26,\"Sin definir\")","v":"Sin definir"},null,null,null,null,null,{"$f":"IF(ACTIVIDADES!L25<>0,ACTIVIDADES!L25,\" \")","v":" "}]
[null,null,{"$f":"IF(E22<>\" \",ACTIVIDADES!I27,\" \")","v":" "},{"$f":"IF(E22<>\" \",ACTIVIDADES!J27,\" \")","v":" "},{"$f":"IF(ACTIVIDADES!C27<>0,ACTIVIDADES!C27,\" \")","v":" "},{"$f":"IF(ACTIVIDADES!H27<>0,ACTIVIDADES!H27,\" \")","v":" "},{"$f":"IF((AND(ACTIVIDADES!C27<>0,ACTIVIDADES!K27<>0)),ACTIVIDADES!K27,\" \")","v":" "},{"$f":"IF(ACTIVIDADES!N27<>0,ACTIVIDADES!N27,\"Pendiente\")","v":"Pendiente"},{"$f":"IF(ACTIVIDADES!Q26<>0,ACTIVIDADES!Q26,\" \")","v":" "},{"$f":"IF((AND(ACTIVIDADES!C27<>0,ACTIVIDADES!H27<>0)),ACTIVIDADES!G27,\"Sin definir\")","v":"Sin definir"},null,null,null,null,null,{"$f":"IF(ACTIVIDADES!L26<>0,ACTIVIDADES!L26,\" \")","v":" "}]
[null,null,{"$f":"IF(E23<>\" \",ACTIVIDADES!I28,\" \")","v":" "},{"$f":"IF(E23<>\" \",ACTIVIDADES!J28,\" \")","v":" "},{"$f":"IF(ACTIVIDADES!C28<>0,ACTIVIDADES!C28,\" \")","v":" "},{"$f":"IF(ACTIVIDADES!H28<>0,ACTIVIDADES!H28,\" \")","v":" "},{"$f":"IF((AND(ACTIVIDADES!C28<>0,ACTIVIDADES!K28<>0)),ACTIVIDADES!K28,\" \")","v":" "},{"$f":"IF(ACTIVIDADES!N28<>0,ACTIVIDADES!N28,\"Pendiente\")","v":"Pendiente"},{"$f":"IF(ACTIVIDADES!Q27<>0,ACTIVIDADES!Q27,\" \")","v":" "},{"$f":"IF((AND(ACTIVIDADES!C28<>0,ACTIVIDADES!H28<>0)),ACTIVIDADES!G28,\"Sin definir\")","v":"Sin definir"},null,null,null,null,null,{"$f":"IF(ACTIVIDADES!L27<>0,ACTIVIDADES!L27,\" \")","v":" "}]
[null,null,{"$f":"IF(E24<>\" \",ACTIVIDADES!I29,\" \")","v":" "},{"$f":"IF(E24<>\" \",ACTIVIDADES!J29,\" \")","v":" "},{"$f":"IF(ACTIVIDADES!C29<>0,ACTIVIDADES!C29,\" \")","v":" "},{"$f":"IF(ACTIVIDADES!H29<>0,ACTIVIDADES!H29,\" \")","v":" "},{"$f":"IF((AND(ACTIVIDADES!C29<>0,ACTIVIDADES!K29<>0)),ACTIVIDADES!K29,\" \")","v":" "},{"$f":"IF(ACTIVIDADES!N29<>0,ACTIVIDADES!N29,\"Pendiente\")","v":"Pendiente"},{"$f":"IF(ACTIVIDADES!Q28<>0,ACTIVIDADES!Q28,\" \")","v":" "},{"$f":"IF((AND(ACTIVIDADES!C29<>0,ACTIVIDADES!H29<>0)),ACTIVIDADES!G29,\"Sin definir\")","v":"Sin definir"},null,null,null,null,null,{"$f":"IF(ACTIVIDADES!L28<>0,ACTIVIDADES!L28,\" \")","v":" "}]
[null,null,{"$f":"IF(E25<>\" \",ACTIVIDADES!I30,\" \")","v":" "},{"$f":"IF(E25<>\" \",ACTIVIDADES!J30,\" \")","v":" "},{"$f":"IF(ACTIVIDADES!C30<>0,ACTIVIDADES!C30,\" \")","v":" "},{"$f":"IF(ACTIVIDADES!H30<>0,ACTIVIDADES!H30,\" \")","v":" "},{"$f":"IF((AND(ACTIVIDADES!C30<>0,ACTIVIDADES!K30<>0)),ACTIVIDADES!K30,\" \")","v":" "},{"$f":"IF(ACTIVIDADES!N30<>0,ACTIVIDADES!N30,\"Pendiente\")","v":"Pendiente"},{"$f":"IF(ACTIVIDADES!Q29<>0,ACTIVIDADES!Q29,\" \")","v":" "},{"$f":"IF((AND(ACTIVIDADES!C30<>0,ACTIVIDADES!H30<>0)),ACTIVIDADES!G30,\"Sin definir\")","v":"Sin definir"},null,null,null,null,null,{"$f":"IF(ACTIVIDADES!L29<>0,ACTIVIDADES!L29,\" \")","v":" "}]
[null,null,{"$f":"IF(E26<>\" \",ACTIVIDADES!I31,\" \")","v":" "},{"$f":"IF(E26<>\" \",ACTIVIDADES!J31,\" \")","v":" "},{"$f":"IF(ACTIVIDADES!C31<>0,ACTIVIDADES!C31,\" \")","v":" "},{"$f":"IF(ACTIVIDADES!H31<>0,ACTIVIDADES!H31,\" \")","v":" "},{"$f":"IF((AND(ACTIVIDADES!C31<>0,ACTIVIDADES!K31<>0)),ACTIVIDADES!K31,\" \")","v":" "},{"$f":"IF(ACTIVIDADES!N31<>0,ACTIVIDADES!N31,\"Pendiente\")","v":"Pendiente"},{"$f":"IF(ACTIVIDADES!Q30<>0,ACTIVIDADES!Q30,\" \")","v":" "},{"$f":"IF((AND(ACTIVIDADES!C31<>0,ACTIVIDADES!H31<>0)),ACTIVIDADES!G31,\"Sin definir\")","v":"Sin definir"},null,null,null,null,null,{"$f":"IF(ACTIVIDADES!L30<>0,ACTIVIDADES!L30,\" \")","v":" "}]
[null,null,{"$f":"IF(E27<>\" \",ACTIVIDADES!I32,\" \")","v":" "},{"$f":"IF(E27<>\" \",ACTIVIDADES!J32,\" \")","v":" "},{"$f":"IF(ACTIVIDADES!C32<>0,ACTIVIDADES!C32,\" \")","v":" "},{"$f":"IF(ACTIVIDADES!H32<>0,ACTIVIDADES!H32,\" \")","v":" "},{"$f":"IF((AND(ACTIVIDADES!C32<>0,ACTIVIDADES!K32<>0)),ACTIVIDADES!K32,\" \")","v":" "},{"$f":"IF(ACTIVIDADES!N32<>0,ACTIVIDADES!N32,\"Pendiente\")","v":"Pendiente"},{"$f":"IF(ACTIVIDADES!Q31<>0,ACTIVIDADES!Q31,\" \")","v":" "},{"$f":"IF((AND(ACTIVIDADES!C32<>0,ACTIVIDADES!H32<>0)),ACTIVIDADES!G32,\"Sin definir\")","v":"Sin definir"},null,null,null,null,null,{"$f":"IF(ACTIVIDADES!L31<>0,ACTIVIDADES!L31,\" \")","v":" "}]
[null,null,{"$f":"IF(E28<>\" \",ACTIVIDADES!I33,\" \")","v":" "},{"$f":"IF(E28<>\" \",ACTIVIDADES!J33,\" \")","v":" "},{"$f":"IF(ACTIVIDADES!C33<>0,ACTIVIDADES!C33,\" \")","v":" "},{"$f":"IF(ACTIVIDADES!H33<>0,ACTIVIDADES!H33,\" \")","v":" "},{"$f":"IF((AND(ACTIVIDADES!C33<>0,ACTIVIDADES!K33<>0)),ACTIVIDADES!K33,\" \")","v":" "},{"$f":"IF(ACTIVIDADES!N33<>0,ACTIVIDADES!N33,\"Pendiente\")","v":"Pendiente"},{"$f":"IF(ACTIVIDADES!Q32<>0,ACTIVIDADES!Q32,\" \")","v":" "},{"$f":"IF((AND(ACTIVIDADES!C33<>0,ACTIVIDADES!H33<>0)),ACTIVIDADES!G33,\"Sin definir\")","v":"Sin definir"},null,null,null,null,null,{"$f":"IF(ACTIVIDADES!L32<>0,ACTIVIDADES!L32,\" \")","v":" "}]
[null,null,{"$f":"IF(E29<>\" \",ACTIVIDADES!I34,\" \")","v":" "},{"$f":"IF(E29<>\" \",ACTIVIDADES!J34,\" \")","v":" "},{"$f":"IF(ACTIVIDADES!C34<>0,ACTIVIDADES!C34,\" \")","v":" "},{"$f":"IF(ACTIVIDADES!H34<>0,ACTIVIDADES!H34,\" \")","v":" "},{"$f":"IF((AND(ACTIVIDADES!C34<>0,ACTIVIDADES!K34<>0)),ACTIVIDADES!K34,\" \")","v":" "},{"$f":"IF(ACTIVIDADES!N34<>0,ACTIVIDADES!N34,\"Pendiente\")","v":"Pendiente"},{"$f":"IF(ACTIVIDADES!Q33<>0,ACTIVIDADES!Q33,\" \")","v":" "},{"$f":"IF((AND(ACTIVIDADES!C34<>0,ACTIVIDADES!H34<>0)),ACTIVIDADES!G34,\"Sin definir\")","v":"Sin definir"},null,null,null,null,null,{"$f":"IF(ACTIVIDADES!L33<>0,ACTIVIDADES!L33,\" \")","v":" "}]
[null,null,{"$f":"IF(E30<>\" \",ACTIVIDADES!I35,\" \")","v":" "},{"$f":"IF(E30<>\" \",ACTIVIDADES!J35,\" \")","v":" "},{"$f":"IF(ACTIVIDADES!C35<>0,ACTIVIDADES!C35,\" \")","v":" "},{"$f":"IF(ACTIVIDADES!H35<>0,ACTIVIDADES!H35,\" \")","v":" "},{"$f":"IF((AND(ACTIVIDADES!C35<>0,ACTIVIDADES!K35<>0)),ACTIVIDADES!K35,\" \")","v":" "},{"$f":"IF(ACTIVIDADES!N35<>0,ACTIVIDADES!N35,\"Pendiente\")","v":"Pendiente"},{"$f":"IF(ACTIVIDADES!Q34<>0,ACTIVIDADES!Q34,\" \")","v":" "},{"$f":"IF((AND(ACTIVIDADES!C35<>0,ACTIVIDADES!H35<>0)),ACTIVIDADES!G35,\"Sin definir\")","v":"Sin definir"},null,null,null,null,null,{"$f":"IF(ACTIVIDADES!L34<>0,ACTIVIDADES!L34,\" \")","v":" "}]
[null,null,{"$f":"IF(E31<>\" \",ACTIVIDADES!I36,\" \")","v":" "},{"$f":"IF(E31<>\" \",ACTIVIDADES!J36,\" \")","v":" "},{"$f":"IF(ACTIVIDADES!C36<>0,ACTIVIDADES!C36,\" \")","v":" "},{"$f":"IF(ACTIVIDADES!H36<>0,ACTIVIDADES!H36,\" \")","v":" "},{"$f":"IF((AND(ACTIVIDADES!C36<>0,ACTIVIDADES!K36<>0)),ACTIVIDADES!K36,\" \")","v":" "},{"$f":"IF(ACTIVIDADES!N36<>0,ACTIVIDADES!N36,\"Pendiente\")","v":"Pendiente"},{"$f":"IF(ACTIVIDADES!Q35<>0,ACTIVIDADES!Q35,\" \")","v":" "},{"$f":"IF((AND(ACTIVIDADES!C36<>0,ACTIVIDADES!H36<>0)),ACTIVIDADES!G36,\"Sin definir\")","v":"Sin definir"},null,null,null,null,null,{"$f":"IF(ACTIVIDADES!L35<>0,ACTIVIDADES!L35,\" \")","v":" "}]
[null,null,{"$f":"IF(E32<>\" \",ACTIVIDADES!I37,\" \")","v":" "},{"$f":"IF(E32<>\" \",ACTIVIDADES!J37,\" \")","v":" "},{"$f":"IF(ACTIVIDADES!C37<>0,ACTIVIDADES!C37,\" \")","v":" "},{"$f":"IF(ACTIVIDADES!H37<>0,ACTIVIDADES!H37,\" \")","v":" "},{"$f":"IF((AND(ACTIVIDADES!C37<>0,ACTIVIDADES!K37<>0)),ACTIVIDADES!K37,\" \")","v":" "},{"$f":"IF(ACTIVIDADES!N37<>0,ACTIVIDADES!N37,\"Pendiente\")","v":"Pendiente"},{"$f":"IF(ACTIVIDADES!Q36<>0,ACTIVIDADES!Q36,\" \")","v":" "},{"$f":"IF((AND(ACTIVIDADES!C37<>0,ACTIVIDADES!H37<>0)),ACTIVIDADES!G37,\"Sin definir\")","v":"Sin definir"},null,null,null,null,null,{"$f":"IF(ACTIVIDADES!L36<>0,ACTIVIDADES!L36,\" \")","v":" "}]
[null,null,{"$f":"IF(E33<>\" \",ACTIVIDADES!I38,\" \")","v":" "},{"$f":"IF(E33<>\" \",ACTIVIDADES!J38,\" \")","v":" "},{"$f":"IF(ACTIVIDADES!C38<>0,ACTIVIDADES!C38,\" \")","v":" "},{"$f":"IF(ACTIVIDADES!H38<>0,ACTIVIDADES!H38,\" \")","v":" "},{"$f":"IF((AND(ACTIVIDADES!C38<>0,ACTIVIDADES!K38<>0)),ACTIVIDADES!K38,\" \")","v":" "},{"$f":"IF(ACTIVIDADES!N38<>0,ACTIVIDADES!N38,\"Pendiente\")","v":"Pendiente"},{"$f":"IF(ACTIVIDADES!Q37<>0,ACTIVIDADES!Q37,\" \")","v":" "},{"$f":"IF((AND(ACTIVIDADES!C38<>0,ACTIVIDADES!H38<>0)),ACTIVIDADES!G38,\"Sin definir\")","v":"Sin definir"},null,null,null,null,null,{"$f":"IF(ACTIVIDADES!L37<>0,ACTIVIDADES!L37,\" \")","v":" "}]
[null,null,{"$f":"IF(E34<>\" \",ACTIVIDADES!I39,\" \")","v":" "},{"$f":"IF(E34<>\" \",ACTIVIDADES!J39,\" \")","v":" "},{"$f":"IF(ACTIVIDADES!C39<>0,ACTIVIDADES!C39,\" \")","v":" "},{"$f":"IF(ACTIVIDADES!H39<>0,ACTIVIDADES!H39,\" \")","v":" "},{"$f":"IF((AND(ACTIVIDADES!C39<>0,ACTIVIDADES!K39<>0)),ACTIVIDADES!K39,\" \")","v":" "},{"$f":"IF(ACTIVIDADES!N39<>0,ACTIVIDADES!N39,\"Pendiente\")","v":"Pendiente"},{"$f":"IF(ACTIVIDADES!Q38<>0,ACTIVIDADES!Q38,\" \")","v":" "},{"$f":"IF((AND(ACTIVIDADES!C39<>0,ACTIVIDADES!H39<>0)),ACTIVIDADES!G39,\"Sin definir\")","v":"Sin definir"},null,null,null,null,null,{"$f":"IF(ACTIVIDADES!L38<>0,ACTIVIDADES!L38,\" \")","v":" "}]
[null,null,{"$f":"IF(E35<>\" \",ACTIVIDADES!I40,\" \")","v":" "},{"$f":"IF(E35<>\" \",ACTIVIDADES!J40,\" \")","v":" "},{"$f":"IF(ACTIVIDADES!C40<>0,ACTIVIDADES!C40,\" \")","v":" "},{"$f":"IF(ACTIVIDADES!H40<>0,ACTIVIDADES!H40,\" \")","v":" "},{"$f":"IF((AND(ACTIVIDADES!C40<>0,ACTIVIDADES!K40<>0)),ACTIVIDADES!K40,\" \")","v":" "},{"$f":"IF(ACTIVIDADES!N40<>0,ACTIVIDADES!N40,\"Pendiente\")","v":"Pendiente"},{"$f":"IF(ACTIVIDADES!Q39<>0,ACTIVIDADES!Q39,\" \")","v":" "},{"$f":"IF((AND(ACTIVIDADES!C40<>0,ACTIVIDADES!H40<>0)),ACTIVIDADES!G40,\"Sin definir\")","v":"Sin definir"},null,null,null,null,null,{"$f":"IF(ACTIVIDADES!L39<>0,ACTIVIDADES!L39,\" \")","v":" "}]
[null,null,{"$f":"IF(E36<>\" \",ACTIVIDADES!I41,\" \")","v":" "},{"$f":"IF(E36<>\" \",ACTIVIDADES!J41,\" \")","v":" "},{"$f":"IF(ACTIVIDADES!C41<>0,ACTIVIDADES!C41,\" \")","v":" "},{"$f":"IF(ACTIVIDADES!H41<>0,ACTIVIDADES!H41,\" \")","v":" "},{"$f":"IF((AND(ACTIVIDADES!C41<>0,ACTIVIDADES!K41<>0)),ACTIVIDADES!K41,\" \")","v":" "},{"$f":"IF(ACTIVIDADES!N41<>0,ACTIVIDADES!N41,\"Pendiente\")","v":"Pendiente"},{"$f":"IF(ACTIVIDADES!Q40<>0,ACTIVIDADES!Q40,\" \")","v":" "},{"$f":"IF((AND(ACTIVIDADES!C41<>0,ACTIVIDADES!H41<>0)),ACTIVIDADES!G41,\"Sin definir\")","v":"Sin definir"},null,null,null,null,null,{"$f":"IF(ACTIVIDADES!L40<>0,ACTIVIDADES!L40,\" \")","v":" "}]
[null,null,{"$f":"IF(E37<>\" \",ACTIVIDADES!I42,\" \")","v":" "},{"$f":"IF(E37<>\" \",ACTIVIDADES!J42,\" \")","v":" "},{"$f":"IF(ACTIVIDADES!C42<>0,ACTIVIDADES!C42,\" \")","v":" "},{"$f":"IF(ACTIVIDADES!H42<>0,ACTIVIDADES!H42,\" \")","v":" "},{"$f":"IF((AND(ACTIVIDADES!C42<>0,ACTIVIDADES!K42<>0)),ACTIVIDADES!K42,\" \")","v":" "},{"$f":"IF(ACTIVIDADES!N42<>0,ACTIVIDADES!N42,\"Pendiente\")","v":"Pendiente"},{"$f":"IF(ACTIVIDADES!Q41<>0,ACTIVIDADES!Q41,\" \")","v":" "},{"$f":"IF((AND(ACTIVIDADES!C42<>0,ACTIVIDADES!H42<>0)),ACTIVIDADES!G42,\"Sin definir\")","v":"Sin definir"},null,null,null,null,null,{"$f":"IF(ACTIVIDADES!L41<>0,ACTIVIDADES!L41,\" \")","v":" "}]
[null,null,{"$f":"IF(E38<>\" \",ACTIVIDADES!I43,\" \")","v":" "},{"$f":"IF(E38<>\" \",ACTIVIDADES!J43,\" \")","v":" "},{"$f":"IF(ACTIVIDADES!C43<>0,ACTIVIDADES!C43,\" \")","v":" "},{"$f":"IF(ACTIVIDADES!H43<>0,ACTIVIDADES!H43,\" \")","v":" "},{"$f":"IF((AND(ACTIVIDADES!C43<>0,ACTIVIDADES!K43<>0)),ACTIVIDADES!K43,\" \")","v":" "},{"$f":"IF(ACTIVIDADES!N43<>0,ACTIVIDADES!N43,\"Pendiente\")","v":"Pendiente"},{"$f":"IF(ACTIVIDADES!Q42<>0,ACTIVIDADES!Q42,\" \")","v":" "},{"$f":"IF((AND(ACTIVIDADES!C43<>0,ACTIVIDADES!H43<>0)),ACTIVIDADES!G43,\"Sin definir\")","v":"Sin definir"},null,null,null,null,null,{"$f":"IF(ACTIVIDADES!L42<>0,ACTIVIDADES!L42,\" \")","v":" "}]
[null,null,{"$f":"IF(E39<>\" \",ACTIVIDADES!I44,\" \")","v":" "},{"$f":"IF(E39<>\" \",ACTIVIDADES!J44,\" \")","v":" "},{"$f":"IF(ACTIVIDADES!C44<>0,ACTIVIDADES!C44,\" \")","v":" "},{"$f":"IF(ACTIVIDADES!H44<>0,ACTIVIDADES!H44,\" \")","v":" "},{"$f":"IF((AND(ACTIVIDADES!C44<>0,ACTIVIDADES!K44<>0)),ACTIVIDADES!K44,\" \")","v":" "},{"$f":"IF(ACTIVIDADES!N44<>0,ACTIVIDADES!N44,\"Pendiente\")","v":"Pendiente"},{"$f":"IF(ACTIVIDADES!Q43<>0,ACTIVIDADES!Q43,\" \")","v":" "},{"$f":"IF((AND(ACTIVIDADES!C44<>0,ACTIVIDADES!H44<>0)),ACTIVIDADES!G44,\"Sin definir\")","v":"Sin definir"},null,null,null,null,null,{"$f":"IF(ACTIVIDADES!L43<>0,ACTIVIDADES!L43,\" \")","v":" "}]
[null,null,{"$f":"IF(E40<>\" \",ACTIVIDADES!I45,\" \")","v":" "},{"$f":"IF(E40<>\" \",ACTIVIDADES!J45,\" \")","v":" "},{"$f":"IF(ACTIVIDADES!C45<>0,ACTIVIDADES!C45,\" \")","v":" "},{"$f":"IF(ACTIVIDADES!H45<>0,ACTIVIDADES!H45,\" \")","v":" "},{"$f":"IF((AND(ACTIVIDADES!C45<>0,ACTIVIDADES!K45<>0)),ACTIVIDADES!K45,\" \")","v":" "},{"$f":"IF(ACTIVIDADES!N45<>0,ACTIVIDADES!N45,\"Pendiente\")","v":"Pendiente"},{"$f":"IF(ACTIVIDADES!Q44<>0,ACTIVIDADES!Q44,\" \")","v":" "},{"$f":"IF((AND(ACTIVIDADES!C45<>0,ACTIVIDADES!H45<>0)),ACTIVIDADES!G45,\"Sin definir\")","v":"Sin definir"},null,null,null,null,null,{"$f":"IF(ACTIVIDADES!L44<>0,ACTIVIDADES!L44,\" \")","v":" "}]
[null,null,{"$f":"IF(E41<>\" \",ACTIVIDADES!I46,\" \")","v":" "},{"$f":"IF(E41<>\" \",ACTIVIDADES!J46,\" \")","v":" "},{"$f":"IF(ACTIVIDADES!C46<>0,ACTIVIDADES!C46,\" \")","v":" "},{"$f":"IF(ACTIVIDADES!H46<>0,ACTIVIDADES!H46,\" \")","v":" "},{"$f":"IF((AND(ACTIVIDADES!C46<>0,ACTIVIDADES!K46<>0)),ACTIVIDADES!K46,\" \")","v":" "},{"$f":"IF(ACTIVIDADES!N46<>0,ACTIVIDADES!N46,\"Pendiente\")","v":"Pendiente"},{"$f":"IF(ACTIVIDADES!Q45<>0,ACTIVIDADES!Q45,\" \")","v":" "},{"$f":"IF((AND(ACTIVIDADES!C46<>0,ACTIVIDADES!H46<>0)),ACTIVIDADES!G46,\"Sin definir\")","v":"Sin definir"},null,null,null,null,null,{"$f":"IF(ACTIVIDADES!L45<>0,ACTIVIDADES!L45,\" \")","v":" "}]
[null,null,{"$f":"IF(E42<>\" \",ACTIVIDADES!I47,\" \")","v":" "},{"$f":"IF(E42<>\" \",ACTIVIDADES!J47,\" \")","v":" "},{"$f":"IF(ACTIVIDADES!C47<>0,ACTIVIDADES!C47,\" \")","v":" "},{"$f":"IF(ACTIVIDADES!H47<>0,ACTIVIDADES!H47,\" \")","v":" "},{"$f":"IF((AND(ACTIVIDADES!C47<>0,ACTIVIDADES!K47<>0)),ACTIVIDADES!K47,\" \")","v":" "},{"$f":"IF(ACTIVIDADES!N47<>0,ACTIVIDADES!N47,\"Pendiente\")","v":"Pendiente"},{"$f":"IF(ACTIVIDADES!Q46<>0,ACTIVIDADES!Q46,\" \")","v":" "},{"$f":"IF((AND(ACTIVIDADES!C47<>0,ACTIVIDADES!H47<>0)),ACTIVIDADES!G47,\"Sin definir\")","v":"Sin definir"},null,null,null,null,null,{"$f":"IF(ACTIVIDADES!L46<>0,ACTIVIDADES!L46,\" \")","v":" "}]
[null,null,{"$f":"IF(E43<>\" \",ACTIVIDADES!I48,\" \")","v":" "},{"$f":"IF(E43<>\" \",ACTIVIDADES!J48,\" \")","v":" "},{"$f":"IF(ACTIVIDADES!C48<>0,ACTIVIDADES!C48,\" \")","v":" "},{"$f":"IF(ACTIVIDADES!H48<>0,ACTIVIDADES!H48,\" \")","v":" "},{"$f":"IF((AND(ACTIVIDADES!C48<>0,ACTIVIDADES!K48<>0)),ACTIVIDADES!K48,\" \")","v":" "},{"$f":"IF(ACTIVIDADES!N48<>0,ACTIVIDADES!N48,\"Pendiente\")","v":"Pendiente"},{"$f":"IF(ACTIVIDADES!Q47<>0,ACTIVIDADES!Q47,\" \")","v":" "},{"$f":"IF((AND(ACTIVIDADES!C48<>0,ACTIVIDADES!H48<>0)),ACTIVIDADES!G48,\"Sin definir\")","v":"Sin definir"},null,null,null,null,null,{"$f":"IF(ACTIVIDADES!L47<>0,ACTIVIDADES!L47,\" \")","v":" "}]
[null,null,{"$f":"IF(E44<>\" \",ACTIVIDADES!I49,\" \")","v":" "},{"$f":"IF(E44<>\" \",ACTIVIDADES!J49,\" \")","v":" "},{"$f":"IF(ACTIVIDADES!C49<>0,ACTIVIDADES!C49,\" \")","v":" "},{"$f":"IF(ACTIVIDADES!H49<>0,ACTIVIDADES!H49,\" \")","v":" "},{"$f":"IF((AND(ACTIVIDADES!C49<>0,ACTIVIDADES!K49<>0)),ACTIVIDADES!K49,\" \")","v":" "},{"$f":"IF(ACTIVIDADES!N49<>0,ACTIVIDADES!N49,\"Pendiente\")","v":"Pendiente"},{"$f":"IF(ACTIVIDADES!Q48<>0,ACTIVIDADES!Q48,\" \")","v":" "},{"$f":"IF((AND(ACTIVIDADES!C49<>0,ACTIVIDADES!H49<>0)),ACTIVIDADES!G49,\"Sin definir\")","v":"Sin definir"},null,null,null,null,null,{"$f":"IF(ACTIVIDADES!L48<>0,ACTIVIDADES!L48,\" \")","v":" "}]
[null,null,{"$f":"IF(E45<>\" \",ACTIVIDADES!I50,\" \")","v":" "},{"$f":"IF(E45<>\" \",ACTIVIDADES!J50,\" \")","v":" "},{"$f":"IF(ACTIVIDADES!C50<>0,ACTIVIDADES!C50,\" \")","v":" "},{"$f":"IF(ACTIVIDADES!H50<>0,ACTIVIDADES!H50,\" \")","v":" "},{"$f":"IF((AND(ACTIVIDADES!C50<>0,ACTIVIDADES!K50<>0)),ACTIVIDADES!K50,\" \")","v":" "},{"$f":"IF(ACTIVIDADES!N50<>0,ACTIVIDADES!N50,\"Pendiente\")","v":"Pendiente"},{"$f":"IF(ACTIVIDADES!Q49<>0,ACTIVIDADES!Q49,\" \")","v":" "},{"$f":"IF((AND(ACTIVIDADES!C50<>0,ACTIVIDADES!H50<>0)),ACTIVIDADES!G50,\"Sin definir\")","v":"Sin definir"},null,null,null,null,null,{"$f":"IF(ACTIVIDADES!L49<>0,ACTIVIDADES!L49,\" \")","v":" "}]
[null,null,{"$f":"IF(E46<>\" \",ACTIVIDADES!I51,\" \")","v":" "},{"$f":"IF(E46<>\" \",ACTIVIDADES!J51,\" \")","v":" "},{"$f":"IF(ACTIVIDADES!C51<>0,ACTIVIDADES!C51,\" \")","v":" "},{"$f":"IF(ACTIVIDADES!H51<>0,ACTIVIDADES!H51,\" \")","v":" "},{"$f":"IF((AND(ACTIVIDADES!C51<>0,ACTIVIDADES!K51<>0)),ACTIVIDADES!K51,\" \")","v":" "},{"$f":"IF(ACTIVIDADES!N51<>0,ACTIVIDADES!N51,\"Pendiente\")","v":"Pendiente"},{"$f":"IF(ACTIVIDADES!Q50<>0,ACTIVIDADES!Q50,\" \")","v":" "},{"$f":"IF((AND(ACTIVIDADES!C51<>0,ACTIVIDADES!H51<>0)),ACTIVIDADES!G51,\"Sin definir\")","v":"Sin definir"},null,null,null,null,null,{"$f":"IF(ACTIVIDADES!L50<>0,ACTIVIDADES!L50,\" \")","v":" "}]
[null,null,{"$f":"IF(E47<>\" \",ACTIVIDADES!I52,\" \")","v":" "},{"$f":"IF(E47<>\" \",ACTIVIDADES!J52,\" \")","v":" "},{"$f":"IF(ACTIVIDADES!C52<>0,ACTIVIDADES!C52,\" \")","v":" "},{"$f":"IF(ACTIVIDADES!H52<>0,ACTIVIDADES!H52,\" \")","v":" "},{"$f":"IF((AND(ACTIVIDADES!C52<>0,ACTIVIDADES!K52<>0)),ACTIVIDADES!K52,\" \")","v":" "},{"$f":"IF(ACTIVIDADES!N52<>0,ACTIVIDADES!N52,\"Pendiente\")","v":"Pendiente"},{"$f":"IF(ACTIVIDADES!Q51<>0,ACTIVIDADES!Q51,\" \")","v":" "},{"$f":"IF((AND(ACTIVIDADES!C52<>0,ACTIVIDADES!H52<>0)),ACTIVIDADES!G52,\"Sin definir\")","v":"Sin definir"},null,null,null,null,null,{"$f":"IF(ACTIVIDADES!L51<>0,ACTIVIDADES!L51,\" \")","v":" "}]
[null,null,{"$f":"IF(E48<>\" \",ACTIVIDADES!I53,\" \")","v":" "},{"$f":"IF(E48<>\" \",ACTIVIDADES!J53,\" \")","v":" "},{"$f":"IF(ACTIVIDADES!C53<>0,ACTIVIDADES!C53,\" \")","v":" "},{"$f":"IF(ACTIVIDADES!H53<>0,ACTIVIDADES!H53,\" \")","v":" "},{"$f":"IF((AND(ACTIVIDADES!C53<>0,ACTIVIDADES!K53<>0)),ACTIVIDADES!K53,\" \")","v":" "},{"$f":"IF(ACTIVIDADES!N53<>0,ACTIVIDADES!N53,\"Pendiente\")","v":"Pendiente"},{"$f":"IF(ACTIVIDADES!Q52<>0,ACTIVIDADES!Q52,\" \")","v":" "},{"$f":"IF((AND(ACTIVIDADES!C53<>0,ACTIVIDADES!H53<>0)),ACTIVIDADES!G53,\"Sin definir\")","v":"Sin definir"},null,null,null,null,null,{"$f":"IF(ACTIVIDADES!L52<>0,ACTIVIDADES!L52,\" \")","v":" "}]
[null,null,{"$f":"IF(E49<>\" \",ACTIVIDADES!I54,\" \")","v":" "},{"$f":"IF(E49<>\" \",ACTIVIDADES!J54,\" \")","v":" "},{"$f":"IF(ACTIVIDADES!C54<>0,ACTIVIDADES!C54,\" \")","v":" "},{"$f":"IF(ACTIVIDADES!H54<>0,ACTIVIDADES!H54,\" \")","v":" "},{"$f":"IF((AND(ACTIVIDADES!C54<>0,ACTIVIDADES!K54<>0)),ACTIVIDADES!K54,\" \")","v":" "},{"$f":"IF(ACTIVIDADES!N54<>0,ACTIVIDADES!N54,\"Pendiente\")","v":"Pendiente"},{"$f":"IF(ACTIVIDADES!Q53<>0,ACTIVIDADES!Q53,\" \")","v":" "},{"$f":"IF((AND(ACTIVIDADES!C54<>0,ACTIVIDADES!H54<>0)),ACTIVIDADES!G54,\"Sin definir\")","v":"Sin definir"},null,null,null,null,null,{"$f":"IF(ACTIVIDADES!L53<>0,ACTIVIDADES!L53,\" \")","v":" "}]
[null,null,{"$f":"IF(E50<>\" \",ACTIVIDADES!I55,\" \")","v":" "},{"$f":"IF(E50<>\" \",ACTIVIDADES!J55,\" \")","v":" "},{"$f":"IF(ACTIVIDADES!C55<>0,ACTIVIDADES!C55,\" \")","v":" "},{"$f":"IF(ACTIVIDADES!H55<>0,ACTIVIDADES!H55,\" \")","v":" "},{"$f":"IF((AND(ACTIVIDADES!C55<>0,ACTIVIDADES!K55<>0)),ACTIVIDADES!K55,\" \")","v":" "},{"$f":"IF(ACTIVIDADES!N55<>0,ACTIVIDADES!N55,\"Pendiente\")","v":"Pendiente"},{"$f":"IF(ACTIVIDADES!Q54<>0,ACTIVIDADES!Q54,\" \")","v":" "},{"$f":"IF((AND(ACTIVIDADES!C55<>0,ACTIVIDADES!H55<>0)),ACTIVIDADES!G55,\"Sin definir\")","v":"Sin definir"},null,null,null,null,null,{"$f":"IF(ACTIVIDADES!L54<>0,ACTIVIDADES!L54,\" \")","v":" "}]
[null,null,{"$f":"IF(E51<>\" \",ACTIVIDADES!I56,\" \")","v":" "},{"$f":"IF(E51<>\" \",ACTIVIDADES!J56,\" \")","v":" "},{"$f":"IF(ACTIVIDADES!C56<>0,ACTIVIDADES!C56,\" \")","v":" "},{"$f":"IF(ACTIVIDADES!H56<>0,ACTIVIDADES!H56,\" \")","v":" "},{"$f":"IF((AND(ACTIVIDADES!C56<>0,ACTIVIDADES!K56<>0)),ACTIVIDADES!K56,\" \")","v":" "},{"$f":"IF(ACTIVIDADES!N56<>0,ACTIVIDADES!N56,\"Pendiente\")","v":"Pendiente"},{"$f":"IF(ACTIVIDADES!Q55<>0,ACTIVIDADES!Q55,\" \")","v":" "},{"$f":"IF((AND(ACTIVIDADES!C56<>0,ACTIVIDADES!H56<>0)),ACTIVIDADES!G56,\"Sin definir\")","v":"Sin definir"},null,null,null,null,null,{"$f":"IF(ACTIVIDADES!L55<>0,ACTIVIDADES!L55,\" \")","v":" "}]
[null,null,{"$f":"IF(E52<>\" \",ACTIVIDADES!I57,\" \")","v":" "},{"$f":"IF(E52<>\" \",ACTIVIDADES!J57,\" \")","v":" "},{"$f":"IF(ACTIVIDADES!C57<>0,ACTIVIDADES!C57,\" \")","v":" "},{"$f":"IF(ACTIVIDADES!H57<>0,ACTIVIDADES!H57,\" \")","v":" "},{"$f":"IF((AND(ACTIVIDADES!C57<>0,ACTIVIDADES!K57<>0)),ACTIVIDADES!K57,\" \")","v":" "},{"$f":"IF(ACTIVIDADES!N57<>0,ACTIVIDADES!N57,\"Pendiente\")","v":"Pendiente"},{"$f":"IF(ACTIVIDADES!Q56<>0,ACTIVIDADES!Q56,\" \")","v":" "},{"$f":"IF((AND(ACTIVIDADES!C57<>0,ACTIVIDADES!H57<>0)),ACTIVIDADES!G57,\"Sin definir\")","v":"Sin definir"},null,null,null,null,null,{"$f":"IF(ACTIVIDADES!L56<>0,ACTIVIDADES!L56,\" \")","v":" "}]
[null,null,{"$f":"IF(E53<>\" \",ACTIVIDADES!I58,\" \")","v":" "},{"$f":"IF(E53<>\" \",ACTIVIDADES!J58,\" \")","v":" "},{"$f":"IF(ACTIVIDADES!C58<>0,ACTIVIDADES!C58,\" \")","v":" "},{"$f":"IF(ACTIVIDADES!H58<>0,ACTIVIDADES!H58,\" \")","v":" "},{"$f":"IF((AND(ACTIVIDADES!C58<>0,ACTIVIDADES!K58<>0)),ACTIVIDADES!K58,\" \")","v":" "},{"$f":"IF(ACTIVIDADES!N58<>0,ACTIVIDADES!N58,\"Pendiente\")","v":"Pendiente"},{"$f":"IF(ACTIVIDADES!Q57<>0,ACTIVIDADES!Q57,\" \")","v":" "},{"$f":"IF((AND(ACTIVIDADES!C58<>0,ACTIVIDADES!H58<>0)),ACTIVIDADES!G58,\"Sin definir\")","v":"Sin definir"},null,null,null,null,null,{"$f":"IF(ACTIVIDADES!L57<>0,ACTIVIDADES!L57,\" \")","v":" "}]
[null,null,{"$f":"IF(E54<>\" \",ACTIVIDADES!I59,\" \")","v":" "},{"$f":"IF(E54<>\" \",ACTIVIDADES!J59,\" \")","v":" "},{"$f":"IF(ACTIVIDADES!C59<>0,ACTIVIDADES!C59,\" \")","v":" "},{"$f":"IF(ACTIVIDADES!H59<>0,ACTIVIDADES!H59,\" \")","v":" "},{"$f":"IF((AND(ACTIVIDADES!C59<>0,ACTIVIDADES!K59<>0)),ACTIVIDADES!K59,\" \")","v":" "},{"$f":"IF(ACTIVIDADES!N59<>0,ACTIVIDADES!N59,\"Pendiente\")","v":"Pendiente"},{"$f":"IF(ACTIVIDADES!Q58<>0,ACTIVIDADES!Q58,\" \")","v":" "},{"$f":"IF((AND(ACTIVIDADES!C59<>0,ACTIVIDADES!H59<>0)),ACTIVIDADES!G59,\"Sin definir\")","v":"Sin definir"},null,null,null,null,null,{"$f":"IF(ACTIVIDADES!L58<>0,ACTIVIDADES!L58,\" \")","v":" "}]
[null,null,{"$f":"IF(E55<>\" \",ACTIVIDADES!I60,\" \")","v":" "},{"$f":"IF(E55<>\" \",ACTIVIDADES!J60,\" \")","v":" "},{"$f":"IF(ACTIVIDADES!C60<>0,ACTIVIDADES!C60,\" \")","v":" "},{"$f":"IF(ACTIVIDADES!H60<>0,ACTIVIDADES!H60,\" \")","v":" "},{"$f":"IF((AND(ACTIVIDADES!C60<>0,ACTIVIDADES!K60<>0)),ACTIVIDADES!K60,\" \")","v":" "},{"$f":"IF(ACTIVIDADES!N60<>0,ACTIVIDADES!N60,\"Pendiente\")","v":"Pendiente"},{"$f":"IF(ACTIVIDADES!Q59<>0,ACTIVIDADES!Q59,\" \")","v":" "},{"$f":"IF((AND(ACTIVIDADES!C60<>0,ACTIVIDADES!H60<>0)),ACTIVIDADES!G60,\"Sin definir\")","v":"Sin definir"},null,null,null,null,null,{"$f":"IF(ACTIVIDADES!L59<>0,ACTIVIDADES!L59,\" \")","v":" "}]
[null,null,{"$f":"IF(E56<>\" \",ACTIVIDADES!I61,\" \")","v":" "},{"$f":"IF(E56<>\" \",ACTIVIDADES!J61,\" \")","v":" "},{"$f":"IF(ACTIVIDADES!C61<>0,ACTIVIDADES!C61,\" \")","v":" "},{"$f":"IF(ACTIVIDADES!H61<>0,ACTIVIDADES!H61,\" \")","v":" "},{"$f":"IF((AND(ACTIVIDADES!C61<>0,ACTIVIDADES!K61<>0)),ACTIVIDADES!K61,\" \")","v":" "},{"$f":"IF(ACTIVIDADES!N61<>0,ACTIVIDADES!N61,\"Pendiente\")","v":"Pendiente"},{"$f":"IF(ACTIVIDADES!Q60<>0,ACTIVIDADES!Q60,\" \")","v":" "},{"$f":"IF((AND(ACTIVIDADES!C61<>0,ACTIVIDADES!H61<>0)),ACTIVIDADES!G61,\"Sin definir\")","v":"Sin definir"},null,null,null,null,null,{"$f":"IF(ACTIVIDADES!L60<>0,ACTIVIDADES!L60,\" \")","v":" "}]
[null,null,{"$f":"IF(E57<>\" \",ACTIVIDADES!I62,\" \")","v":" "},{"$f":"IF(E57<>\" \",ACTIVIDADES!J62,\" \")","v":" "},{"$f":"IF(ACTIVIDADES!C62<>0,ACTIVIDADES!C62,\" \")","v":" "},{"$f":"IF(ACTIVIDADES!H62<>0,ACTIVIDADES!H62,\" \")","v":" "},{"$f":"IF((AND(ACTIVIDADES!C62<>0,ACTIVIDADES!K62<>0)),ACTIVIDADES!K62,\" \")","v":" "},{"$f":"IF(ACTIVIDADES!N62<>0,ACTIVIDADES!N62,\"Pendiente\")","v":"Pendiente"},{"$f":"IF(ACTIVIDADES!Q61<>0,ACTIVIDADES!Q61,\" \")","v":" "},{"$f":"IF((AND(ACTIVIDADES!C62<>0,ACTIVIDADES!H62<>0)),ACTIVIDADES!G62,\"Sin definir\")","v":"Sin definir"},null,null,null,null,null,{"$f":"IF(ACTIVIDADES!L61<>0,ACTIVIDADES!L61,\" \")","v":" "}]
[null,null,{"$f":"IF(E58<>\" \",ACTIVIDADES!I63,\" \")","v":" "},{"$f":"IF(E58<>\" \",ACTIVIDADES!J63,\" \")","v":" "},{"$f":"IF(ACTIVIDADES!C63<>0,ACTIVIDADES!C63,\" \")","v":" "},{"$f":"IF(ACTIVIDADES!H63<>0,ACTIVIDADES!H63,\" \")","v":" "},{"$f":"IF((AND(ACTIVIDADES!C63<>0,ACTIVIDADES!K63<>0)),ACTIVIDADES!K63,\" \")","v":" "},{"$f":"IF(ACTIVIDADES!N63<>0,ACTIVIDADES!N63,\"Pendiente\")","v":"Pendiente"},{"$f":"IF(ACTIVIDADES!Q62<>0,ACTIVIDADES!Q62,\" \")","v":" "},{"$f":"IF((AND(ACTIVIDADES!C63<>0,ACTIVIDADES!H63<>0)),ACTIVIDADES!G63,\"Sin definir\")","v":"Sin definir"},null,null,null,null,null,{"$f":"IF(ACTIVIDADES!L62<>0,ACTIVIDADES!L62,\" \")","v":" "}]
[null,null,{"$f":"IF(E59<>\" \",ACTIVIDADES!I64,\" \")","v":" "},{"$f":"IF(E59<>\" \",ACTIVIDADES!J64,\" \")","v":" "},{"$f":"IF(ACTIVIDADES!C64<>0,ACTIVIDADES!C64,\" \")","v":" "},{"$f":"IF(ACTIVIDADES!H64<>0,ACTIVIDADES!H64,\" \")","v":" "},{"$f":"IF((AND(ACTIVIDADES!C64<>0,ACTIVIDADES!K64<>0)),ACTIVIDADES!K64,\" \")","v":" "},{"$f":"IF(ACTIVIDADES!N64<>0,ACTIVIDADES!N64,\"Pendiente\")","v":"Pendiente"},{"$f":"IF(ACTIVIDADES!Q63<>0,ACTIVIDADES!Q63,\" \")","v":" "},{"$f":"IF((AND(ACTIVIDADES!C64<>0,ACTIVIDADES!H64<>0)),ACTIVIDADES!G64,\"Sin definir\")","v":"Sin definir"},null,null,null,null,null,{"$f":"IF(ACTIVIDADES!L63<>0,ACTIVIDADES!L63,\" \")","v":" "}]
[null,null,{"$f":"IF(E60<>\" \",ACTIVIDADES!I65,\" \")","v":" "},{"$f":"IF(E60<>\" \",ACTIVIDADES!J65,\" \")","v":" "},{"$f":"IF(ACTIVIDADES!C65<>0,ACTIVIDADES!C65,\" \")","v":" "},{"$f":"IF(ACTIVIDADES!H65<>0,ACTIVIDADES!H65,\" \")","v":" "},{"$f":"IF((AND(ACTIVIDADES!C65<>0,ACTIVIDADES!K65<>0)),ACTIVIDADES!K65,\" \")","v":" "},{"$f":"IF(ACTIVIDADES!N65<>0,ACTIVIDADES!N65,\"Pendiente\")","v":"Pendiente"},{"$f":"IF(ACTIVIDADES!Q64<>0,ACTIVIDADES!Q64,\" \")","v":" "},{"$f":"IF((AND(ACTIVIDADES!C65<>0,ACTIVIDADES!H65<>0)),ACTIVIDADES!G65,\"Sin definir\")","v":"Sin definir"},null,null,null,null,null,{"$f":"IF(ACTIVIDADES!L64<>0,ACTIVIDADES!L64,\" \")","v":" "}]
[null,null,{"$f":"IF(E61<>\" \",ACTIVIDADES!I66,\" \")","v":" "},{"$f":"IF(E61<>\" \",ACTIVIDADES!J66,\" \")","v":" "},{"$f":"IF(ACTIVIDADES!C66<>0,ACTIVIDADES!C66,\" \")","v":" "},{"$f":"IF(ACTIVIDADES!H66<>0,ACTIVIDADES!H66,\" \")","v":" "},{"$f":"IF((AND(ACTIVIDADES!C66<>0,ACTIVIDADES!K66<>0)),ACTIVIDADES!K66,\" \")","v":" "},{"$f":"IF(ACTIVIDADES!N66<>0,ACTIVIDADES!N66,\"Pendiente\")","v":"Pendiente"},{"$f":"IF(ACTIVIDADES!Q65<>0,ACTIVIDADES!Q65,\" \")","v":" "},{"$f":"IF((AND(ACTIVIDADES!C66<>0,ACTIVIDADES!H66<>0)),ACTIVIDADES!G66,\"Sin definir\")","v":"Sin definir"},null,null,null,null,null,{"$f":"IF(ACTIVIDADES!L65<>0,ACTIVIDADES!L65,\" \")","v":" "}]
[null,null,{"$f":"IF(E62<>\" \",ACTIVIDADES!I67,\" \")","v":" "},{"$f":"IF(E62<>\" \",ACTIVIDADES!J67,\" \")","v":" "},{"$f":"IF(ACTIVIDADES!C67<>0,ACTIVIDADES!C67,\" \")","v":" "},{"$f":"IF(ACTIVIDADES!H67<>0,ACTIVIDADES!H67,\" \")","v":" "},{"$f":"IF((AND(ACTIVIDADES!C67<>0,ACTIVIDADES!K67<>0)),ACTIVIDADES!K67,\" \")","v":" "},{"$f":"IF(ACTIVIDADES!N67<>0,ACTIVIDADES!N67,\"Pendiente\")","v":"Pendiente"},{"$f":"IF(ACTIVIDADES!Q66<>0,ACTIVIDADES!Q66,\" \")","v":" "},{"$f":"IF((AND(ACTIVIDADES!C67<>0,ACTIVIDADES!H67<>0)),ACTIVIDADES!G67,\"Sin definir\")","v":"Sin definir"},null,null,null,null,null,{"$f":"IF(ACTIVIDADES!L66<>0,ACTIVIDADES!L66,\" \")","v":" "}]
[null,null,{"$f":"IF(E63<>\" \",ACTIVIDADES!I68,\" \")","v":" "},{"$f":"IF(E63<>\" \",ACTIVIDADES!J68,\" \")","v":" "},{"$f":"IF(ACTIVIDADES!C68<>0,ACTIVIDADES!C68,\" \")","v":" "},{"$f":"IF(ACTIVIDADES!H68<>0,ACTIVIDADES!H68,\" \")","v":" "},{"$f":"IF((AND(ACTIVIDADES!C68<>0,ACTIVIDADES!K68<>0)),ACTIVIDADES!K68,\" \")","v":" "},{"$f":"IF(ACTIVIDADES!N68<>0,ACTIVIDADES!N68,\"Pendiente\")","v":"Pendiente"},{"$f":"IF(ACTIVIDADES!Q67<>0,ACTIVIDADES!Q67,\" \")","v":" "},{"$f":"IF((AND(ACTIVIDADES!C68<>0,ACTIVIDADES!H68<>0)),ACTIVIDADES!G68,\"Sin definir\")","v":"Sin definir"},null,null,null,null,null,{"$f":"IF(ACTIVIDADES!L67<>0,ACTIVIDADES!L67,\" \")","v":" "}]
[null,null,{"$f":"IF(E64<>\" \",ACTIVIDADES!I69,\" \")","v":" "},{"$f":"IF(E64<>\" \",ACTIVIDADES!J69,\" \")","v":" "},{"$f":"IF(ACTIVIDADES!C69<>0,ACTIVIDADES!C69,\" \")","v":" "},{"$f":"IF(ACTIVIDADES!H69<>0,ACTIVIDADES!H69,\" \")","v":" "},{"$f":"IF((AND(ACTIVIDADES!C69<>0,ACTIVIDADES!K69<>0)),ACTIVIDADES!K69,\" \")","v":" "},{"$f":"IF(ACTIVIDADES!N69<>0,ACTIVIDADES!N69,\"Pendiente\")","v":"Pendiente"},{"$f":"IF(ACTIVIDADES!Q68<>0,ACTIVIDADES!Q68,\" \")","v":" "},{"$f":"IF((AND(ACTIVIDADES!C69<>0,ACTIVIDADES!H69<>0)),ACTIVIDADES!G69,\"Sin definir\")","v":"Sin definir"},null,null,null,null,null,{"$f":"IF(ACTIVIDADES!L68<>0,ACTIVIDADES!L68,\" \")","v":" "}]
[null,null,{"$f":"IF(E65<>\" \",ACTIVIDADES!I70,\" \")","v":" "},{"$f":"IF(E65<>\" \",ACTIVIDADES!J70,\" \")","v":" "},{"$f":"IF(ACTIVIDADES!C70<>0,ACTIVIDADES!C70,\" \")","v":" "},{"$f":"IF(ACTIVIDADES!H70<>0,ACTIVIDADES!H70,\" \")","v":" "},{"$f":"IF((AND(ACTIVIDADES!C70<>0,ACTIVIDADES!K70<>0)),ACTIVIDADES!K70,\" \")","v":" "},{"$f":"IF(ACTIVIDADES!N70<>0,ACTIVIDADES!N70,\"Pendiente\")","v":"Pendiente"},{"$f":"IF(ACTIVIDADES!Q69<>0,ACTIVIDADES!Q69,\" \")","v":" "},{"$f":"IF((AND(ACTIVIDADES!C70<>0,ACTIVIDADES!H70<>0)),ACTIVIDADES!G70,\"Sin definir\")","v":"Sin definir"},null,null,null,null,null,{"$f":"IF(ACTIVIDADES!L69<>0,ACTIVIDADES!L69,\" \")","v":" "}]
[null,null,{"$f":"IF(E66<>\" \",ACTIVIDADES!I71,\" \")","v":" "},{"$f":"IF(E66<>\" \",ACTIVIDADES!J71,\" \")","v":" "},{"$f":"IF(ACTIVIDADES!C71<>0,ACTIVIDADES!C71,\" \")","v":" "},{"$f":"IF(ACTIVIDADES!H71<>0,ACTIVIDADES!H71,\" \")","v":" "},{"$f":"IF((AND(ACTIVIDADES!C71<>0,ACTIVIDADES!K71<>0)),ACTIVIDADES!K71,\" \")","v":" "},{"$f":"IF(ACTIVIDADES!N71<>0,ACTIVIDADES!N71,\"Pendiente\")","v":"Pendiente"},{"$f":"IF(ACTIVIDADES!Q70<>0,ACTIVIDADES!Q70,\" \")","v":" "},{"$f":"IF((AND(ACTIVIDADES!C71<>0,ACTIVIDADES!H71<>0)),ACTIVIDADES!G71,\"Sin definir\")","v":"Sin definir"},null,null,null,null,null,{"$f":"IF(ACTIVIDADES!L70<>0,ACTIVIDADES!L70,\" \")","v":" "}]
[null,null,{"$f":"IF(E67<>\" \",ACTIVIDADES!I72,\" \")","v":" "},{"$f":"IF(E67<>\" \",ACTIVIDADES!J72,\" \")","v":" "},{"$f":"IF(ACTIVIDADES!C72<>0,ACTIVIDADES!C72,\" \")","v":" "},{"$f":"IF(ACTIVIDADES!H72<>0,ACTIVIDADES!H72,\" \")","v":" "},{"$f":"IF((AND(ACTIVIDADES!C72<>0,ACTIVIDADES!K72<>0)),ACTIVIDADES!K72,\" \")","v":" "},{"$f":"IF(ACTIVIDADES!N72<>0,ACTIVIDADES!N72,\"Pendiente\")","v":"Pendiente"},{"$f":"IF(ACTIVIDADES!Q71<>0,ACTIVIDADES!Q71,\" \")","v":" "},{"$f":"IF((AND(ACTIVIDADES!C72<>0,ACTIVIDADES!H72<>0)),ACTIVIDADES!G72,\"Sin definir\")","v":"Sin definir"},null,null,null,null,null,{"$f":"IF(ACTIVIDADES!L71<>0,ACTIVIDADES!L71,\" \")","v":" "}]
[null,null,{"$f":"IF(E68<>\" \",ACTIVIDADES!I73,\" \")","v":" "},{"$f":"IF(E68<>\" \",ACTIVIDADES!J73,\" \")","v":" "},{"$f":"IF(ACTIVIDADES!C73<>0,ACTIVIDADES!C73,\" \")","v":" "},{"$f":"IF(ACTIVIDADES!H73<>0,ACTIVIDADES!H73,\" \")","v":" "},{"$f":"IF((AND(ACTIVIDADES!C73<>0,ACTIVIDADES!K73<>0)),ACTIVIDADES!K73,\" \")","v":" "},{"$f":"IF(ACTIVIDADES!N73<>0,ACTIVIDADES!N73,\"Pendiente\")","v":"Pendiente"},{"$f":"IF(ACTIVIDADES!Q72<>0,ACTIVIDADES!Q72,\" \")","v":" "},{"$f":"IF((AND(ACTIVIDADES!C73<>0,ACTIVIDADES!H73<>0)),ACTIVIDADES!G73,\"Sin definir\")","v":"Sin definir"},null,null,null,null,null,{"$f":"IF(ACTIVIDADES!L72<>0,ACTIVIDADES!L72,\" \")","v":" "}]
[null,null,{"$f":"IF(E69<>\" \",ACTIVIDADES!I74,\" \")","v":" "},{"$f":"IF(E69<>\" \",ACTIVIDADES!J74,\" \")","v":" "},{"$f":"IF(ACTIVIDADES!C74<>0,ACTIVIDADES!C74,\" \")","v":" "},{"$f":"IF(ACTIVIDADES!H74<>0,ACTIVIDADES!H74,\" \")","v":" "},{"$f":"IF((AND(ACTIVIDADES!C74<>0,ACTIVIDADES!K74<>0)),ACTIVIDADES!K74,\" \")","v":" "},{"$f":"IF(ACTIVIDADES!N74<>0,ACTIVIDADES!N74,\"Pendiente\")","v":"Pendiente"},{"$f":"IF(ACTIVIDADES!Q73<>0,ACTIVIDADES!Q73,\" \")","v":" "},{"$f":"IF((AND(ACTIVIDADES!C74<>0,ACTIVIDADES!H74<>0)),ACTIVIDADES!G74,\"Sin definir\")","v":"Sin definir"},null,null,null,null,null,{"$f":"IF(ACTIVIDADES!L73<>0,ACTIVIDADES!L73,\" \")","v":" "}]
[null,null,{"$f":"IF(E70<>\" \",ACTIVIDADES!I75,\" \")","v":" "},{"$f":"IF(E70<>\" \",ACTIVIDADES!J75,\" \")","v":" "},{"$f":"IF(ACTIVIDADES!C75<>0,ACTIVIDADES!C75,\" \")","v":" "},{"$f":"IF(ACTIVIDADES!H75<>0,ACTIVIDADES!H75,\" \")","v":" "},{"$f":"IF((AND(ACTIVIDADES!C75<>0,ACTIVIDADES!K75<>0)),ACTIVIDADES!K75,\" \")","v":" "},{"$f":"IF(ACTIVIDADES!N75<>0,ACTIVIDADES!N75,\"Pendiente\")","v":"Pendiente"},{"$f":"IF(ACTIVIDADES!Q74<>0,ACTIVIDADES!Q74,\" \")","v":" "},{"$f":"IF((AND(ACTIVIDADES!C75<>0,ACTIVIDADES!H75<>0)),ACTIVIDADES!G75,\"Sin definir\")","v":"Sin definir"},null,null,null,null,null,{"$f":"IF(ACTIVIDADES!L74<>0,ACTIVIDADES!L74,\" \")","v":" "}]
[null,null,{"$f":"IF(E71<>\" \",ACTIVIDADES!I76,\" \")","v":" "},{"$f":"IF(E71<>\" \",ACTIVIDADES!J76,\" \")","v":" "},{"$f":"IF(ACTIVIDADES!C76<>0,ACTIVIDADES!C76,\" \")","v":" "},{"$f":"IF(ACTIVIDADES!H76<>0,ACTIVIDADES!H76,\" \")","v":" "},{"$f":"IF((AND(ACTIVIDADES!C76<>0,ACTIVIDADES!K76<>0)),ACTIVIDADES!K76,\" \")","v":" "},{"$f":"IF(ACTIVIDADES!N76<>0,ACTIVIDADES!N76,\"Pendiente\")","v":"Pendiente"},{"$f":"IF(ACTIVIDADES!Q75<>0,ACTIVIDADES!Q75,\" \")","v":" "},{"$f":"IF((AND(ACTIVIDADES!C76<>0,ACTIVIDADES!H76<>0)),ACTIVIDADES!G76,\"Sin definir\")","v":"Sin definir"},null,null,null,null,null,{"$f":"IF(ACTIVIDADES!L75<>0,ACTIVIDADES!L75,\" \")","v":" "}]
[null,null,{"$f":"IF(E72<>\" \",ACTIVIDADES!I77,\" \")","v":" "},{"$f":"IF(E72<>\" \",ACTIVIDADES!J77,\" \")","v":" "},{"$f":"IF(ACTIVIDADES!C77<>0,ACTIVIDADES!C77,\" \")","v":" "},{"$f":"IF(ACTIVIDADES!H77<>0,ACTIVIDADES!H77,\" \")","v":" "},{"$f":"IF((AND(ACTIVIDADES!C77<>0,ACTIVIDADES!K77<>0)),ACTIVIDADES!K77,\" \")","v":" "},{"$f":"IF(ACTIVIDADES!N77<>0,ACTIVIDADES!N77,\"Pendiente\")","v":"Pendiente"},{"$f":"IF(ACTIVIDADES!Q76<>0,ACTIVIDADES!Q76,\" \")","v":" "},{"$f":"IF((AND(ACTIVIDADES!C77<>0,ACTIVIDADES!H77<>0)),ACTIVIDADES!G77,\"Sin definir\")","v":"Sin definir"},null,null,null,null,null,{"$f":"IF(ACTIVIDADES!L76<>0,ACTIVIDADES!L76,\" \")","v":" "}]
[null,null,{"$f":"IF(E73<>\" \",ACTIVIDADES!I78,\" \")","v":" "},{"$f":"IF(E73<>\" \",ACTIVIDADES!J78,\" \")","v":" "},{"$f":"IF(ACTIVIDADES!C78<>0,ACTIVIDADES!C78,\" \")","v":" "},{"$f":"IF(ACTIVIDADES!H78<>0,ACTIVIDADES!H78,\" \")","v":" "},{"$f":"IF((AND(ACTIVIDADES!C78<>0,ACTIVIDADES!K78<>0)),ACTIVIDADES!K78,\" \")","v":" "},{"$f":"IF(ACTIVIDADES!N78<>0,ACTIVIDADES!N78,\"Pendiente\")","v":"Pendiente"},{"$f":"IF(ACTIVIDADES!Q77<>0,ACTIVIDADES!Q77,\" \")","v":" "},{"$f":"IF((AND(ACTIVIDADES!C78<>0,ACTIVIDADES!H78<>0)),ACTIVIDADES!G78,\"Sin definir\")","v":"Sin definir"},null,null,null,null,null,{"$f":"IF(ACTIVIDADES!L77<>0,ACTIVIDADES!L77,\" \")","v":" "}]
[null,null,{"$f":"IF(E74<>\" \",ACTIVIDADES!I79,\" \")","v":" "},{"$f":"IF(E74<>\" \",ACTIVIDADES!J79,\" \")","v":" "},{"$f":"IF(ACTIVIDADES!C79<>0,ACTIVIDADES!C79,\" \")","v":" "},{"$f":"IF(ACTIVIDADES!H79<>0,ACTIVIDADES!H79,\" \")","v":" "},{"$f":"IF((AND(ACTIVIDADES!C79<>0,ACTIVIDADES!K79<>0)),ACTIVIDADES!K79,\" \")","v":" "},{"$f":"IF(ACTIVIDADES!N79<>0,ACTIVIDADES!N79,\"Pendiente\")","v":"Pendiente"},{"$f":"IF(ACTIVIDADES!Q78<>0,ACTIVIDADES!Q78,\" \")","v":" "},{"$f":"IF((AND(ACTIVIDADES!C79<>0,ACTIVIDADES!H79<>0)),ACTIVIDADES!G79,\"Sin definir\")","v":"Sin definir"},null,null,null,null,null,{"$f":"IF(ACTIVIDADES!L78<>0,ACTIVIDADES!L78,\" \")","v":" "}]
[null,null,{"$f":"IF(E75<>\" \",ACTIVIDADES!I80,\" \")","v":" "},{"$f":"IF(E75<>\" \",ACTIVIDADES!J80,\" \")","v":" "},{"$f":"IF(ACTIVIDADES!C80<>0,ACTIVIDADES!C80,\" \")","v":" "},{"$f":"IF(ACTIVIDADES!H80<>0,ACTIVIDADES!H80,\" \")","v":" "},{"$f":"IF((AND(ACTIVIDADES!C80<>0,ACTIVIDADES!K80<>0)),ACTIVIDADES!K80,\" \")","v":" "},{"$f":"IF(ACTIVIDADES!N80<>0,ACTIVIDADES!N80,\"Pendiente\")","v":"Pendiente"},{"$f":"IF(ACTIVIDADES!Q79<>0,ACTIVIDADES!Q79,\" \")","v":" "},{"$f":"IF((AND(ACTIVIDADES!C80<>0,ACTIVIDADES!H80<>0)),ACTIVIDADES!G80,\"Sin definir\")","v":"Sin definir"},null,null,null,null,null,{"$f":"IF(ACTIVIDADES!L79<>0,ACTIVIDADES!L79,\" \")","v":" "}]
[null,null,{"$f":"IF(E76<>\" \",ACTIVIDADES!I81,\" \")","v":" "},{"$f":"IF(E76<>\" \",ACTIVIDADES!J81,\" \")","v":" "},{"$f":"IF(ACTIVIDADES!C81<>0,ACTIVIDADES!C81,\" \")","v":" "},{"$f":"IF(ACTIVIDADES!H81<>0,ACTIVIDADES!H81,\" \")","v":" "},{"$f":"IF((AND(ACTIVIDADES!C81<>0,ACTIVIDADES!K81<>0)),ACTIVIDADES!K81,\" \")","v":" "},{"$f":"IF(ACTIVIDADES!N81<>0,ACTIVIDADES!N81,\"Pendiente\")","v":"Pendiente"},{"$f":"IF(ACTIVIDADES!Q80<>0,ACTIVIDADES!Q80,\" \")","v":" "},{"$f":"IF((AND(ACTIVIDADES!C81<>0,ACTIVIDADES!H81<>0)),ACTIVIDADES!G81,\"Sin definir\")","v":"Sin definir"},null,null,null,null,null,{"$f":"IF(ACTIVIDADES!L80<>0,ACTIVIDADES!L80,\" \")","v":" "}]
[null,null,{"$f":"IF(E77<>\" \",ACTIVIDADES!I82,\" \")","v":" "},{"$f":"IF(E77<>\" \",ACTIVIDADES!J82,\" \")","v":" "},{"$f":"IF(ACTIVIDADES!C82<>0,ACTIVIDADES!C82,\" \")","v":" "},{"$f":"IF(ACTIVIDADES!H82<>0,ACTIVIDADES!H82,\" \")","v":" "},{"$f":"IF((AND(ACTIVIDADES!C82<>0,ACTIVIDADES!K82<>0)),ACTIVIDADES!K82,\" \")","v":" "},{"$f":"IF(ACTIVIDADES!N82<>0,ACTIVIDADES!N82,\"Pendiente\")","v":"Pendiente"},{"$f":"IF(ACTIVIDADES!Q81<>0,ACTIVIDADES!Q81,\" \")","v":" "},{"$f":"IF((AND(ACTIVIDADES!C82<>0,ACTIVIDADES!H82<>0)),ACTIVIDADES!G82,\"Sin definir\")","v":"Sin definir"},null,null,null,null,null,{"$f":"IF(ACTIVIDADES!L81<>0,ACTIVIDADES!L81,\" \")","v":" "}]
[null,null,{"$f":"IF(E78<>\" \",ACTIVIDADES!I83,\" \")","v":" "},{"$f":"IF(E78<>\" \",ACTIVIDADES!J83,\" \")","v":" "},{"$f":"IF(ACTIVIDADES!C83<>0,ACTIVIDADES!C83,\" \")","v":" "},{"$f":"IF(ACTIVIDADES!H83<>0,ACTIVIDADES!H83,\" \")","v":" "},{"$f":"IF((AND(ACTIVIDADES!C83<>0,ACTIVIDADES!K83<>0)),ACTIVIDADES!K83,\" \")","v":" "},{"$f":"IF(ACTIVIDADES!N83<>0,ACTIVIDADES!N83,\"Pendiente\")","v":"Pendiente"},{"$f":"IF(ACTIVIDADES!Q82<>0,ACTIVIDADES!Q82,\" \")","v":" "},{"$f":"IF((AND(ACTIVIDADES!C83<>0,ACTIVIDADES!H83<>0)),ACTIVIDADES!G83,\"Sin definir\")","v":"Sin definir"},null,null,null,null,null,{"$f":"IF(ACTIVIDADES!L82<>0,ACTIVIDADES!L82,\" \")","v":" "}]
[null,null,{"$f":"IF(E79<>\" \",ACTIVIDADES!I84,\" \")","v":" "},{"$f":"IF(E79<>\" \",ACTIVIDADES!J84,\" \")","v":" "},{"$f":"IF(ACTIVIDADES!C84<>0,ACTIVIDADES!C84,\" \")","v":" "},{"$f":"IF(ACTIVIDADES!H84<>0,ACTIVIDADES!H84,\" \")","v":" "},{"$f":"IF((AND(ACTIVIDADES!C84<>0,ACTIVIDADES!K84<>0)),ACTIVIDADES!K84,\" \")","v":" "},{"$f":"IF(ACTIVIDADES!N84<>0,ACTIVIDADES!N84,\"Pendiente\")","v":"Pendiente"},{"$f":"IF(ACTIVIDADES!Q83<>0,ACTIVIDADES!Q83,\" \")","v":" "},{"$f":"IF((AND(ACTIVIDADES!C84<>0,ACTIVIDADES!H84<>0)),ACTIVIDADES!G84,\"Sin definir\")","v":"Sin definir"},null,null,null,null,null,{"$f":"IF(ACTIVIDADES!L83<>0,ACTIVIDADES!L83,\" \")","v":" "}]
[null,null,{"$f":"IF(E80<>\" \",ACTIVIDADES!I85,\" \")","v":" "},{"$f":"IF(E80<>\" \",ACTIVIDADES!J85,\" \")","v":" "},{"$f":"IF(ACTIVIDADES!C85<>0,ACTIVIDADES!C85,\" \")","v":" "},{"$f":"IF(ACTIVIDADES!H85<>0,ACTIVIDADES!H85,\" \")","v":" "},{"$f":"IF((AND(ACTIVIDADES!C85<>0,ACTIVIDADES!K85<>0)),ACTIVIDADES!K85,\" \")","v":" "},{"$f":"IF(ACTIVIDADES!N85<>0,ACTIVIDADES!N85,\"Pendiente\")","v":"Pendiente"},{"$f":"IF(ACTIVIDADES!Q84<>0,ACTIVIDADES!Q84,\" \")","v":" "},{"$f":"IF((AND(ACTIVIDADES!C85<>0,ACTIVIDADES!H85<>0)),ACTIVIDADES!G85,\"Sin definir\")","v":"Sin definir"},null,null,null,null,null,{"$f":"IF(ACTIVIDADES!L84<>0,ACTIVIDADES!L84,\" \")","v":" "}]
[null,null,{"$f":"IF(E81<>\" \",ACTIVIDADES!I86,\" \")","v":" "},{"$f":"IF(E81<>\" \",ACTIVIDADES!J86,\" \")","v":" "},{"$f":"IF(ACTIVIDADES!C86<>0,ACTIVIDADES!C86,\" \")","v":" "},{"$f":"IF(ACTIVIDADES!H86<>0,ACTIVIDADES!H86,\" \")","v":" "},{"$f":"IF((AND(ACTIVIDADES!C86<>0,ACTIVIDADES!K86<>0)),ACTIVIDADES!K86,\" \")","v":" "},{"$f":"IF(ACTIVIDADES!N86<>0,ACTIVIDADES!N86,\"Pendiente\")","v":"Pendiente"},{"$f":"IF(ACTIVIDADES!Q85<>0,ACTIVIDADES!Q85,\" \")","v":" "},{"$f":"IF((AND(ACTIVIDADES!C86<>0,ACTIVIDADES!H86<>0)),ACTIVIDADES!G86,\"Sin definir\")","v":"Sin definir"},null,null,null,null,null,{"$f":"IF(ACTIVIDADES!L85<>0,ACTIVIDADES!L85,\" \")","v":" "}]
[null,null,{"$f":"IF(E82<>\" \",ACTIVIDADES!I87,\" \")","v":" "},{"$f":"IF(E82<>\" \",ACTIVIDADES!J87,\" \")","v":" "},{"$f":"IF(ACTIVIDADES!C87<>0,ACTIVIDADES!C87,\" \")","v":" "},{"$f":"IF(ACTIVIDADES!H87<>0,ACTIVIDADES!H87,\" \")","v":" "},{"$f":"IF((AND(ACTIVIDADES!C87<>0,ACTIVIDADES!K87<>0)),ACTIVIDADES!K87,\" \")","v":" "},{"$f":"IF(ACTIVIDADES!N87<>0,ACTIVIDADES!N87,\"Pendiente\")","v":"Pendiente"},{"$f":"IF(ACTIVIDADES!Q86<>0,ACTIVIDADES!Q86,\" \")","v":" "},{"$f":"IF((AND(ACTIVIDADES!C87<>0,ACTIVIDADES!H87<>0)),ACTIVIDADES!G87,\"Sin definir\")","v":"Sin definir"},null,null,null,null,null,{"$f":"IF(ACTIVIDADES!L86<>0,ACTIVIDADES!L86,\" \")","v":" "}]
[null,null,{"$f":"IF(E83<>\" \",ACTIVIDADES!I88,\" \")","v":" "},{"$f":"IF(E83<>\" \",ACTIVIDADES!J88,\" \")","v":" "},{"$f":"IF(ACTIVIDADES!C88<>0,ACTIVIDADES!C88,\" \")","v":" "},{"$f":"IF(ACTIVIDADES!H88<>0,ACTIVIDADES!H88,\" \")","v":" "},{"$f":"IF((AND(ACTIVIDADES!C88<>0,ACTIVIDADES!K88<>0)),ACTIVIDADES!K88,\" \")","v":" "},{"$f":"IF(ACTIVIDADES!N88<>0,ACTIVIDADES!N88,\"Pendiente\")","v":"Pendiente"},{"$f":"IF(ACTIVIDADES!Q87<>0,ACTIVIDADES!Q87,\" \")","v":" "},{"$f":"IF((AND(ACTIVIDADES!C88<>0,ACTIVIDADES!H88<>0)),ACTIVIDADES!G88,\"Sin definir\")","v":"Sin definir"},null,null,null,null,null,{"$f":"IF(ACTIVIDADES!L87<>0,ACTIVIDADES!L87,\" \")","v":" "}]
[null,null,{"$f":"IF(E84<>\" \",ACTIVIDADES!I89,\" \")","v":" "},{"$f":"IF(E84<>\" \",ACTIVIDADES!J89,\" \")","v":" "},{"$f":"IF(ACTIVIDADES!C89<>0,ACTIVIDADES!C89,\" \")","v":" "},{"$f":"IF(ACTIVIDADES!H89<>0,ACTIVIDADES!H89,\" \")","v":" "},{"$f":"IF((AND(ACTIVIDADES!C89<>0,ACTIVIDADES!K89<>0)),ACTIVIDADES!K89,\" \")","v":" "},{"$f":"IF(ACTIVIDADES!N89<>0,ACTIVIDADES!N89,\"Pendiente\")","v":"Pendiente"},{"$f":"IF(ACTIVIDADES!Q88<>0,ACTIVIDADES!Q88,\" \")","v":" "},{"$f":"IF((AND(ACTIVIDADES!C89<>0,ACTIVIDADES!H89<>0)),ACTIVIDADES!G89,\"Sin definir\")","v":"Sin definir"},null,null,null,null,null,{"$f":"IF(ACTIVIDADES!L88<>0,ACTIVIDADES!L88,\" \")","v":" "}]
[null,null,{"$f":"IF(E85<>\" \",ACTIVIDADES!I90,\" \")","v":" "},{"$f":"IF(E85<>\" \",ACTIVIDADES!J90,\" \")","v":" "},{"$f":"IF(ACTIVIDADES!C90<>0,ACTIVIDADES!C90,\" \")","v":" "},{"$f":"IF(ACTIVIDADES!H90<>0,ACTIVIDADES!H90,\" \")","v":" "},{"$f":"IF((AND(ACTIVIDADES!C90<>0,ACTIVIDADES!K90<>0)),ACTIVIDADES!K90,\" \")","v":" "},{"$f":"IF(ACTIVIDADES!N90<>0,ACTIVIDADES!N90,\"Pendiente\")","v":"Pendiente"},{"$f":"IF(ACTIVIDADES!Q89<>0,ACTIVIDADES!Q89,\" \")","v":" "},{"$f":"IF((AND(ACTIVIDADES!C90<>0,ACTIVIDADES!H90<>0)),ACTIVIDADES!G90,\"Sin definir\")","v":"Sin definir"},null,null,null,null,null,{"$f":"IF(ACTIVIDADES!L89<>0,ACTIVIDADES!L89,\" \")","v":" "}]
[null,null,{"$f":"IF(E86<>\" \",ACTIVIDADES!I91,\" \")","v":" "},{"$f":"IF(E86<>\" \",ACTIVIDADES!J91,\" \")","v":" "},{"$f":"IF(ACTIVIDADES!C91<>0,ACTIVIDADES!C91,\" \")","v":" "},{"$f":"IF(ACTIVIDADES!H91<>0,ACTIVIDADES!H91,\" \")","v":" "},{"$f":"IF((AND(ACTIVIDADES!C91<>0,ACTIVIDADES!K91<>0)),ACTIVIDADES!K91,\" \")","v":" "},{"$f":"IF(ACTIVIDADES!N91<>0,ACTIVIDADES!N91,\"Pendiente\")","v":"Pendiente"},{"$f":"IF(ACTIVIDADES!Q90<>0,ACTIVIDADES!Q90,\" \")","v":" "},{"$f":"IF((AND(ACTIVIDADES!C91<>0,ACTIVIDADES!H91<>0)),ACTIVIDADES!G91,\"Sin definir\")","v":"Sin definir"},null,null,null,null,null,{"$f":"IF(ACTIVIDADES!L90<>0,ACTIVIDADES!L90,\" \")","v":" "}]
[null,null,{"$f":"IF(E87<>\" \",ACTIVIDADES!I92,\" \")","v":" "},{"$f":"IF(E87<>\" \",ACTIVIDADES!J92,\" \")","v":" "},{"$f":"IF(ACTIVIDADES!C92<>0,ACTIVIDADES!C92,\" \")","v":" "},{"$f":"IF(ACTIVIDADES!H92<>0,ACTIVIDADES!H92,\" \")","v":" "},{"$f":"IF((AND(ACTIVIDADES!C92<>0,ACTIVIDADES!K92<>0)),ACTIVIDADES!K92,\" \")","v":" "},{"$f":"IF(ACTIVIDADES!N92<>0,ACTIVIDADES!N92,\"Pendiente\")","v":"Pendiente"},{"$f":"IF(ACTIVIDADES!Q91<>0,ACTIVIDADES!Q91,\" \")","v":" "},{"$f":"IF((AND(ACTIVIDADES!C92<>0,ACTIVIDADES!H92<>0)),ACTIVIDADES!G92,\"Sin definir\")","v":"Sin definir"},null,null,null,null,null,{"$f":"IF(ACTIVIDADES!L91<>0,ACTIVIDADES!L91,\" \")","v":" "}]
[null,null,{"$f":"IF(E88<>\" \",ACTIVIDADES!I93,\" \")","v":" "},{"$f":"IF(E88<>\" \",ACTIVIDADES!J93,\" \")","v":" "},{"$f":"IF(ACTIVIDADES!C93<>0,ACTIVIDADES!C93,\" \")","v":" "},{"$f":"IF(ACTIVIDADES!H93<>0,ACTIVIDADES!H93,\" \")","v":" "},{"$f":"IF((AND(ACTIVIDADES!C93<>0,ACTIVIDADES!K93<>0)),ACTIVIDADES!K93,\" \")","v":" "},{"$f":"IF(ACTIVIDADES!N93<>0,ACTIVIDADES!N93,\"Pendiente\")","v":"Pendiente"},{"$f":"IF(ACTIVIDADES!Q92<>0,ACTIVIDADES!Q92,\" \")","v":" "},{"$f":"IF((AND(ACTIVIDADES!C93<>0,ACTIVIDADES!H93<>0)),ACTIVIDADES!G93,\"Sin definir\")","v":"Sin definir"},null,null,null,null,null,{"$f":"IF(ACTIVIDADES!L92<>0,ACTIVIDADES!L92,\" \")","v":" "}]
[null,null,{"$f":"IF(E89<>\" \",ACTIVIDADES!I94,\" \")","v":" "},{"$f":"IF(E89<>\" \",ACTIVIDADES!J94,\" \")","v":" "},{"$f":"IF(ACTIVIDADES!C94<>0,ACTIVIDADES!C94,\" \")","v":" "},{"$f":"IF(ACTIVIDADES!H94<>0,ACTIVIDADES!H94,\" \")","v":" "},{"$f":"IF((AND(ACTIVIDADES!C94<>0,ACTIVIDADES!K94<>0)),ACTIVIDADES!K94,\" \")","v":" "},{"$f":"IF(ACTIVIDADES!N94<>0,ACTIVIDADES!N94,\"Pendiente\")","v":"Pendiente"},{"$f":"IF(ACTIVIDADES!Q93<>0,ACTIVIDADES!Q93,\" \")","v":" "},{"$f":"IF((AND(ACTIVIDADES!C94<>0,ACTIVIDADES!H94<>0)),ACTIVIDADES!G94,\"Sin definir\")","v":"Sin definir"},null,null,null,null,null,{"$f":"IF(ACTIVIDADES!L93<>0,ACTIVIDADES!L93,\" \")","v":" "}]
[null,null,{"$f":"IF(E90<>\" \",ACTIVIDADES!I95,\" \")","v":" "},{"$f":"IF(E90<>\" \",ACTIVIDADES!J95,\" \")","v":" "},{"$f":"IF(ACTIVIDADES!C95<>0,ACTIVIDADES!C95,\" \")","v":" "},{"$f":"IF(ACTIVIDADES!H95<>0,ACTIVIDADES!H95,\" \")","v":" "},{"$f":"IF((AND(ACTIVIDADES!C95<>0,ACTIVIDADES!K95<>0)),ACTIVIDADES!K95,\" \")","v":" "},{"$f":"IF(ACTIVIDADES!N95<>0,ACTIVIDADES!N95,\"Pendiente\")","v":"Pendiente"},{"$f":"IF(ACTIVIDADES!Q94<>0,ACTIVIDADES!Q94,\" \")","v":" "},{"$f":"IF((AND(ACTIVIDADES!C95<>0,ACTIVIDADES!H95<>0)),ACTIVIDADES!G95,\"Sin definir\")","v":"Sin definir"},null,null,null,null,null,{"$f":"IF(ACTIVIDADES!L94<>0,ACTIVIDADES!L94,\" \")","v":" "}]
[null,null,{"$f":"IF(E91<>\" \",ACTIVIDADES!I96,\" \")","v":" "},{"$f":"IF(E91<>\" \",ACTIVIDADES!J96,\" \")","v":" "},{"$f":"IF(ACTIVIDADES!C96<>0,ACTIVIDADES!C96,\" \")","v":" "},{"$f":"IF(ACTIVIDADES!H96<>0,ACTIVIDADES!H96,\" \")","v":" "},{"$f":"IF((AND(ACTIVIDADES!C96<>0,ACTIVIDADES!K96<>0)),ACTIVIDADES!K96,\" \")","v":" "},{"$f":"IF(ACTIVIDADES!N96<>0,ACTIVIDADES!N96,\"Pendiente\")","v":"Pendiente"},{"$f":"IF(ACTIVIDADES!Q95<>0,ACTIVIDADES!Q95,\" \")","v":" "},{"$f":"IF((AND(ACTIVIDADES!C96<>0,ACTIVIDADES!H96<>0)),ACTIVIDADES!G96,\"Sin definir\")","v":"Sin definir"},null,null,null,null,null,{"$f":"IF(ACTIVIDADES!L95<>0,ACTIVIDADES!L95,\" \")","v":" "}]
[null,null,{"$f":"IF(E92<>\" \",ACTIVIDADES!I97,\" \")","v":" "},{"$f":"IF(E92<>\" \",ACTIVIDADES!J97,\" \")","v":" "},{"$f":"IF(ACTIVIDADES!C97<>0,ACTIVIDADES!C97,\" \")","v":" "},{"$f":"IF(ACTIVIDADES!H97<>0,ACTIVIDADES!H97,\" \")","v":" "},{"$f":"IF((AND(ACTIVIDADES!C97<>0,ACTIVIDADES!K97<>0)),ACTIVIDADES!K97,\" \")","v":" "},{"$f":"IF(ACTIVIDADES!N97<>0,ACTIVIDADES!N97,\"Pendiente\")","v":"Pendiente"},{"$f":"IF(ACTIVIDADES!Q96<>0,ACTIVIDADES!Q96,\" \")","v":" "},{"$f":"IF((AND(ACTIVIDADES!C97<>0,ACTIVIDADES!H97<>0)),ACTIVIDADES!G97,\"Sin definir\")","v":"Sin definir"},null,null,null,null,null,{"$f":"IF(ACTIVIDADES!L96<>0,ACTIVIDADES!L96,\" \")","v":" "}]
[null,null,{"$f":"IF(E93<>\" \",ACTIVIDADES!I98,\" \")","v":" "},{"$f":"IF(E93<>\" \",ACTIVIDADES!J98,\" \")","v":" "},{"$f":"IF(ACTIVIDADES!C98<>0,ACTIVIDADES!C98,\" \")","v":" "},{"$f":"IF(ACTIVIDADES!H98<>0,ACTIVIDADES!H98,\" \")","v":" "},{"$f":"IF((AND(ACTIVIDADES!C98<>0,ACTIVIDADES!K98<>0)),ACTIVIDADES!K98,\" \")","v":" "},{"$f":"IF(ACTIVIDADES!N98<>0,ACTIVIDADES!N98,\"Pendiente\")","v":"Pendiente"},{"$f":"IF(ACTIVIDADES!Q97<>0,ACTIVIDADES!Q97,\" \")","v":" "},{"$f":"IF((AND(ACTIVIDADES!C98<>0,ACTIVIDADES!H98<>0)),ACTIVIDADES!G98,\"Sin definir\")","v":"Sin definir"},null,null,null,null,null,{"$f":"IF(ACTIVIDADES!L97<>0,ACTIVIDADES!L97,\" \")","v":" "}]
[null,null,{"$f":"IF(E94<>\" \",ACTIVIDADES!I99,\" \")","v":" "},{"$f":"IF(E94<>\" \",ACTIVIDADES!J99,\" \")","v":" "},{"$f":"IF(ACTIVIDADES!C99<>0,ACTIVIDADES!C99,\" \")","v":" "},{"$f":"IF(ACTIVIDADES!H99<>0,ACTIVIDADES!H99,\" \")","v":" "},{"$f":"IF((AND(ACTIVIDADES!C99<>0,ACTIVIDADES!K99<>0)),ACTIVIDADES!K99,\" \")","v":" "},{"$f":"IF(ACTIVIDADES!N99<>0,ACTIVIDADES!N99,\"Pendiente\")","v":"Pendiente"},{"$f":"IF(ACTIVIDADES!Q98<>0,ACTIVIDADES!Q98,\" \")","v":" "},{"$f":"IF((AND(ACTIVIDADES!C99<>0,ACTIVIDADES!H99<>0)),ACTIVIDADES!G99,\"Sin definir\")","v":"Sin definir"},null,null,null,null,null,{"$f":"IF(ACTIVIDADES!L98<>0,ACTIVIDADES!L98,\" \")","v":" "}]
[null,null,{"$f":"IF(E95<>\" \",ACTIVIDADES!I100,\" \")","v":" "},{"$f":"IF(E95<>\" \",ACTIVIDADES!J100,\" \")","v":" "},{"$f":"IF(ACTIVIDADES!C100<>0,ACTIVIDADES!C100,\" \")","v":" "},{"$f":"IF(ACTIVIDADES!H100<>0,ACTIVIDADES!H100,\" \")","v":" "},{"$f":"IF((AND(ACTIVIDADES!C100<>0,ACTIVIDADES!K100<>0)),ACTIVIDADES!K100,\" \")","v":" "},{"$f":"IF(ACTIVIDADES!N100<>0,ACTIVIDADES!N100,\"Pendiente\")","v":"Pendiente"},{"$f":"IF(ACTIVIDADES!Q99<>0,ACTIVIDADES!Q99,\" \")","v":" "},{"$f":"IF((AND(ACTIVIDADES!C100<>0,ACTIVIDADES!H100<>0)),ACTIVIDADES!G100,\"Sin definir\")","v":"Sin definir"},null,null,null,null,null,{"$f":"IF(ACTIVIDADES!L99<>0,ACTIVIDADES!L99,\" \")","v":" "}]
[null,null,{"$f":"IF(E96<>\" \",ACTIVIDADES!I101,\" \")","v":" "},{"$f":"IF(E96<>\" \",ACTIVIDADES!J101,\" \")","v":" "},{"$f":"IF(ACTIVIDADES!C101<>0,ACTIVIDADES!C101,\" \")","v":" "},{"$f":"IF(ACTIVIDADES!H101<>0,ACTIVIDADES!H101,\" \")","v":" "},{"$f":"IF((AND(ACTIVIDADES!C101<>0,ACTIVIDADES!K101<>0)),ACTIVIDADES!K101,\" \")","v":" "},{"$f":"IF(ACTIVIDADES!N101<>0,ACTIVIDADES!N101,\"Pendiente\")","v":"Pendiente"},{"$f":"IF(ACTIVIDADES!Q100<>0,ACTIVIDADES!Q100,\" \")","v":" "},{"$f":"IF((AND(ACTIVIDADES!C101<>0,ACTIVIDADES!H101<>0)),ACTIVIDADES!G101,\"Sin definir\")","v":"Sin definir"},null,null,null,null,null,{"$f":"IF(ACTIVIDADES!L100<>0,ACTIVIDADES!L100,\" \")","v":" "}]
[null,null,{"$f":"IF(E97<>\" \",ACTIVIDADES!I102,\" \")","v":" "},{"$f":"IF(E97<>\" \",ACTIVIDADES!J102,\" \")","v":" "},{"$f":"IF(ACTIVIDADES!C102<>0,ACTIVIDADES!C102,\" \")","v":" "},{"$f":"IF(ACTIVIDADES!H102<>0,ACTIVIDADES!H102,\" \")","v":" "},{"$f":"IF((AND(ACTIVIDADES!C102<>0,ACTIVIDADES!K102<>0)),ACTIVIDADES!K102,\" \")","v":" "},{"$f":"IF(ACTIVIDADES!N102<>0,ACTIVIDADES!N102,\"Pendiente\")","v":"Pendiente"},{"$f":"IF(ACTIVIDADES!Q101<>0,ACTIVIDADES!Q101,\" \")","v":" "},{"$f":"IF((AND(ACTIVIDADES!C102<>0,ACTIVIDADES!H102<>0)),ACTIVIDADES!G102,\"Sin definir\")","v":"Sin definir"},null,null,null,null,null,{"$f":"IF(ACTIVIDADES!L101<>0,ACTIVIDADES!L101,\" \")","v":" "}]
[null,null,{"$f":"IF(E98<>\" \",ACTIVIDADES!I103,\" \")","v":" "},{"$f":"IF(E98<>\" \",ACTIVIDADES!J103,\" \")","v":" "},{"$f":"IF(ACTIVIDADES!C103<>0,ACTIVIDADES!C103,\" \")","v":" "},{"$f":"IF(ACTIVIDADES!H103<>0,ACTIVIDADES!H103,\" \")","v":" "},{"$f":"IF((AND(ACTIVIDADES!C103<>0,ACTIVIDADES!K103<>0)),ACTIVIDADES!K103,\" \")","v":" "},{"$f":"IF(ACTIVIDADES!N103<>0,ACTIVIDADES!N103,\"Pendiente\")","v":"Pendiente"},{"$f":"IF(ACTIVIDADES!Q102<>0,ACTIVIDADES!Q102,\" \")","v":" "},{"$f":"IF((AND(ACTIVIDADES!C103<>0,ACTIVIDADES!H103<>0)),ACTIVIDADES!G103,\"Sin definir\")","v":"Sin definir"},null,null,null,null,null,{"$f":"IF(ACTIVIDADES!L102<>0,ACTIVIDADES!L102,\" \")","v":" "}]
[null,null,{"$f":"IF(E99<>\" \",ACTIVIDADES!I104,\" \")","v":" "},{"$f":"IF(E99<>\" \",ACTIVIDADES!J104,\" \")","v":" "},{"$f":"IF(ACTIVIDADES!C104<>0,ACTIVIDADES!C104,\" \")","v":" "},{"$f":"IF(ACTIVIDADES!H104<>0,ACTIVIDADES!H104,\" \")","v":" "},{"$f":"IF((AND(ACTIVIDADES!C104<>0,ACTIVIDADES!K104<>0)),ACTIVIDADES!K104,\" \")","v":" "},{"$f":"IF(ACTIVIDADES!N104<>0,ACTIVIDADES!N104,\"Pendiente\")","v":"Pendiente"},{"$f":"IF(ACTIVIDADES!Q103<>0,ACTIVIDADES!Q103,\" \")","v":" "},{"$f":"IF((AND(ACTIVIDADES!C104<>0,ACTIVIDADES!H104<>0)),ACTIVIDADES!G104,\"Sin definir\")","v":"Sin definir"},null,null,null,null,null,{"$f":"IF(ACTIVIDADES!L103<>0,ACTIVIDADES!L103,\" \")","v":" "}]
[null,null,{"$f":"IF(E100<>\" \",ACTIVIDADES!I105,\" \")","v":" "},{"$f":"IF(E100<>\" \",ACTIVIDADES!J105,\" \")","v":" "},{"$f":"IF(ACTIVIDADES!C105<>0,ACTIVIDADES!C105,\" \")","v":" "},{"$f":"IF(ACTIVIDADES!H105<>0,ACTIVIDADES!H105,\" \")","v":" "},{"$f":"IF((AND(ACTIVIDADES!C105<>0,ACTIVIDADES!K105<>0)),ACTIVIDADES!K105,\" \")","v":" "},{"$f":"IF(ACTIVIDADES!N105<>0,ACTIVIDADES!N105,\"Pendiente\")","v":"Pendiente"},{"$f":"IF(ACTIVIDADES!Q104<>0,ACTIVIDADES!Q104,\" \")","v":" "},{"$f":"IF((AND(ACTIVIDADES!C105<>0,ACTIVIDADES!H105<>0)),ACTIVIDADES!G105,\"Sin definir\")","v":"Sin definir"},null,null,null,null,null,{"$f":"IF(ACTIVIDADES!L104<>0,ACTIVIDADES!L104,\" \")","v":" "}]
[null,null,{"$f":"IF(E101<>\" \",ACTIVIDADES!I106,\" \")","v":" "},{"$f":"IF(E101<>\" \",ACTIVIDADES!J106,\" \")","v":" "},{"$f":"IF(ACTIVIDADES!C106<>0,ACTIVIDADES!C106,\" \")","v":" "},{"$f":"IF(ACTIVIDADES!H106<>0,ACTIVIDADES!H106,\" \")","v":" "},{"$f":"IF((AND(ACTIVIDADES!C106<>0,ACTIVIDADES!K106<>0)),ACTIVIDADES!K106,\" \")","v":" "},{"$f":"IF(ACTIVIDADES!N106<>0,ACTIVIDADES!N106,\"Pendiente\")","v":"Pendiente"},{"$f":"IF(ACTIVIDADES!Q105<>0,ACTIVIDADES!Q105,\" \")","v":" "},{"$f":"IF((AND(ACTIVIDADES!C106<>0,ACTIVIDADES!H106<>0)),ACTIVIDADES!G106,\"Sin definir\")","v":"Sin definir"},null,null,null,null,null,{"$f":"IF(ACTIVIDADES!L105<>0,ACTIVIDADES!L105,\" \")","v":" "}]
[null,null,{"$f":"IF(E102<>\" \",ACTIVIDADES!I107,\" \")","v":" "},{"$f":"IF(E102<>\" \",ACTIVIDADES!J107,\" \")","v":" "},{"$f":"IF(ACTIVIDADES!C107<>0,ACTIVIDADES!C107,\" \")","v":" "},{"$f":"IF(ACTIVIDADES!H107<>0,ACTIVIDADES!H107,\" \")","v":" "},{"$f":"IF((AND(ACTIVIDADES!C107<>0,ACTIVIDADES!K107<>0)),ACTIVIDADES!K107,\" \")","v":" "},{"$f":"IF(ACTIVIDADES!N107<>0,ACTIVIDADES!N107,\"Pendiente\")","v":"Pendiente"},{"$f":"IF(ACTIVIDADES!Q106<>0,ACTIVIDADES!Q106,\" \")","v":" "},{"$f":"IF((AND(ACTIVIDADES!C107<>0,ACTIVIDADES!H107<>0)),ACTIVIDADES!G107,\"Sin definir\")","v":"Sin definir"},null,null,null,null,null,{"$f":"IF(ACTIVIDADES!L106<>0,ACTIVIDADES!L106,\" \")","v":" "}]
[null,null,{"$f":"IF(E103<>\" \",ACTIVIDADES!I108,\" \")","v":" "},{"$f":"IF(E103<>\" \",ACTIVIDADES!J108,\" \")","v":" "},{"$f":"IF(ACTIVIDADES!C108<>0,ACTIVIDADES!C108,\" \")","v":" "},{"$f":"IF(ACTIVIDADES!H108<>0,ACTIVIDADES!H108,\" \")","v":" "},{"$f":"IF((AND(ACTIVIDADES!C108<>0,ACTIVIDADES!K108<>0)),ACTIVIDADES!K108,\" \")","v":" "},{"$f":"IF(ACTIVIDADES!N108<>0,ACTIVIDADES!N108,\"Pendiente\")","v":"Pendiente"},{"$f":"IF(ACTIVIDADES!Q107<>0,ACTIVIDADES!Q107,\" \")","v":" "},{"$f":"IF((AND(ACTIVIDADES!C108<>0,ACTIVIDADES!H108<>0)),ACTIVIDADES!G108,\"Sin definir\")","v":"Sin definir"},null,null,null,null,null,{"$f":"IF(ACTIVIDADES!L107<>0,ACTIVIDADES!L107,\" \")","v":" "}]
[null,null,{"$f":"IF(E104<>\" \",ACTIVIDADES!I109,\" \")","v":" "},{"$f":"IF(E104<>\" \",ACTIVIDADES!J109,\" \")","v":" "},{"$f":"IF(ACTIVIDADES!C109<>0,ACTIVIDADES!C109,\" \")","v":" "},{"$f":"IF(ACTIVIDADES!H109<>0,ACTIVIDADES!H109,\" \")","v":" "},{"$f":"IF((AND(ACTIVIDADES!C109<>0,ACTIVIDADES!K109<>0)),ACTIVIDADES!K109,\" \")","v":" "},{"$f":"IF(ACTIVIDADES!N109<>0,ACTIVIDADES!N109,\"Pendiente\")","v":"Pendiente"},{"$f":"IF(ACTIVIDADES!Q108<>0,ACTIVIDADES!Q108,\" \")","v":" "},{"$f":"IF((AND(ACTIVIDADES!C109<>0,ACTIVIDADES!H109<>0)),ACTIVIDADES!G109,\"Sin definir\")","v":"Sin definir"},null,null,null,null,null,{"$f":"IF(ACTIVIDADES!L108<>0,ACTIVIDADES!L108,\" \")","v":" "}]
[null,null,{"$f":"IF(E105<>\" \",ACTIVIDADES!I110,\" \")","v":" "},{"$f":"IF(E105<>\" \",ACTIVIDADES!J110,\" \")","v":" "},{"$f":"IF(ACTIVIDADES!C110<>0,ACTIVIDADES!C110,\" \")","v":" "},{"$f":"IF(ACTIVIDADES!H110<>0,ACTIVIDADES!H110,\" \")","v":" "},{"$f":"IF((AND(ACTIVIDADES!C110<>0,ACTIVIDADES!K110<>0)),ACTIVIDADES!K110,\" \")","v":" "},{"$f":"IF(ACTIVIDADES!N110<>0,ACTIVIDADES!N110,\"Pendiente\")","v":"Pendiente"},{"$f":"IF(ACTIVIDADES!Q109<>0,ACTIVIDADES!Q109,\" \")","v":" "},{"$f":"IF((AND(ACTIVIDADES!C110<>0,ACTIVIDADES!H110<>0)),ACTIVIDADES!G110,\"Sin definir\")","v":"Sin definir"},null,null,null,null,null,{"$f":"IF(ACTIVIDADES!L109<>0,ACTIVIDADES!L109,\" \")","v":" "}]
[null,null,{"$f":"IF(E106<>\" \",ACTIVIDADES!I111,\" \")","v":" "},{"$f":"IF(E106<>\" \",ACTIVIDADES!J111,\" \")","v":" "},{"$f":"IF(ACTIVIDADES!C111<>0,ACTIVIDADES!C111,\" \")","v":" "},{"$f":"IF(ACTIVIDADES!H111<>0,ACTIVIDADES!H111,\" \")","v":" "},{"$f":"IF((AND(ACTIVIDADES!C111<>0,ACTIVIDADES!K111<>0)),ACTIVIDADES!K111,\" \")","v":" "},{"$f":"IF(ACTIVIDADES!N111<>0,ACTIVIDADES!N111,\"Pendiente\")","v":"Pendiente"},{"$f":"IF(ACTIVIDADES!Q110<>0,ACTIVIDADES!Q110,\" \")","v":" "},{"$f":"IF((AND(ACTIVIDADES!C111<>0,ACTIVIDADES!H111<>0)),ACTIVIDADES!G111,\"Sin definir\")","v":"Sin definir"},null,null,null,null,null,{"$f":"IF(ACTIVIDADES!L110<>0,ACTIVIDADES!L110,\" \")","v":" "}]
[null,null,{"$f":"IF(E107<>\" \",ACTIVIDADES!I112,\" \")","v":" "},{"$f":"IF(E107<>\" \",ACTIVIDADES!J112,\" \")","v":" "},{"$f":"IF(ACTIVIDADES!C112<>0,ACTIVIDADES!C112,\" \")","v":" "},{"$f":"IF(ACTIVIDADES!H112<>0,ACTIVIDADES!H112,\" \")","v":" "},{"$f":"IF((AND(ACTIVIDADES!C112<>0,ACTIVIDADES!K112<>0)),ACTIVIDADES!K112,\" \")","v":" "},{"$f":"IF(ACTIVIDADES!N112<>0,ACTIVIDADES!N112,\"Pendiente\")","v":"Pendiente"},{"$f":"IF(ACTIVIDADES!Q111<>0,ACTIVIDADES!Q111,\" \")","v":" "},{"$f":"IF((AND(ACTIVIDADES!C112<>0,ACTIVIDADES!H112<>0)),ACTIVIDADES!G112,\"Sin definir\")","v":"Sin definir"},null,null,null,null,null,{"$f":"IF(ACTIVIDADES!L111<>0,ACTIVIDADES!L111,\" \")","v":" "}]
[null,null,null,null,null,null,null,null,null,null,{"$f":"SUM(K7:K107)","v":0},{"$f":"SUM(L7:L107)","v":0},0,0,0]
[]
[null,null,null,{"$f":"'DIAGNOSTICO DEL INCISO'!C19","v":"EQUIPO transversal"},{"$f":"'DIAGNOSTICO DEL INCISO'!E19","v":0},null,null,{"$f":"'DIAGNOSTICO DEL INCISO'!H19","v":0}]
[null,null,null,{"$f":"'DIAGNOSTICO DEL INCISO'!C20","v":"COMUNICACIÓN del proyecto"},{"$f":"'DIAGNOSTICO DEL INCISO'!E20","v":0},null,null,{"$f":"'DIAGNOSTICO DEL INCISO'!H20","v":0}]
[null,null,null,{"$f":"'DIAGNOSTICO DEL INCISO'!C21","v":"VISIÓN COMPARTIDA del cambio "},{"$f":"'DIAGNOSTICO DEL INCISO'!E21","v":0},null,null,{"$f":"'DIAGNOSTICO DEL INCISO'!H21","v":0}]
[null,null,null,{"$f":"'DIAGNOSTICO DEL INCISO'!C22","v":"PARTICIPACIÓN de involucrados directos"},{"$f":"'DIAGNOSTICO DEL INCISO'!E22","v":0},null,null,{"$f":"'DIAGNOSTICO DEL INCISO'!H22","v":0}]
[null,null,null,{"$f":"'DIAGNOSTICO DEL INCISO'!C23","v":"SOPORTE a usuarios "},{"$f":"'DIAGNOSTICO DEL INCISO'!E23","v":0},null,null,{"$f":"'DIAGNOSTICO DEL INCISO'!H23","v":0}]
[null,null,null,{"$f":"'DIAGNOSTICO DEL INCISO'!C24","v":"APOYO POLÍTICO"},{"$f":"'DIAGNOSTICO DEL INCISO'!E24","v":0},null,null,{"$f":"'DIAGNOSTICO DEL INCISO'!H24","v":0}]

{"sheet":"Tablero de impactos","index":32,"n_rows":114,"n_cols":18,"rows_kept":114,"cut":false,"hidden":false,"merged":[[5,11,5,17]]}
[]
[]
[null,null,null,"Tablero de IMPACTOS "]
[]
[]
[null,null,null,"Id ","Trámite relacionado","Capacidad impactada","Tipo de impacto","Descripción del impacto ","Momento del impacto","Actividad planificada","ID Actividad","Sumatoria de impactos"]
[null,null,null,{"$f":"IMPACTOS!C11","v":0},{"$f":"IF(AND(D7<>0,IMPACTOS!D11<>0),IMPACTOS!D11,\" \")","v":" "},{"$f":"IF(AND(D7<>0,IMPACTOS!G11<>0),IMPACTOS!G11,\" \")","v":" "},{"$f":"IF(AND(D7<>0,IMPACTOS!I11<>0),IMPACTOS!I11,\" \")","v":" "},{"$f":"IF(AND(D7<>0,IMPACTOS!H11<>0),IMPACTOS!H11,\" \")","v":" "},{"$f":"IF(AND(D7<>0,IMPACTOS!K11<>0),IMPACTOS!K11,\" \")","v":" "},{"$f":"IF(K7<>\"\",\"SI\",\"NO\")","v":"SI"},{"$f":"IFERROR(IF(D7<>0,VLOOKUP(D7,'Tablas Tablero'!$B$3:$C$100,2,FALSE),\" \"),\"\")","v":" "},{"$f":"SUM(LEN(F7)-LEN(SUBSTITUTE(F7,\"Procesos\",\"\")))/LEN(\"Procesos\")","v":0},{"$f":"SUM(LEN(F7)-LEN(SUBSTITUTE(F7,\"Estrucutra\",\"\")))/LEN(\"Estrucutra\")","v":0},{"$f":"SUM(LEN(F7)-LEN(SUBSTITUTE(F7,\"Infraestrucutra\",\"\")))/LEN(\"Infraestrucutra\")","v":0},{"$f":"SUM(LEN(F7)-LEN(SUBSTITUTE(F7,\"Personas\",\"\")))/LEN(\"Personas\")","v":0},{"$f":"SUM(LEN(F7)-LEN(SUBSTITUTE(F7,\"Cultura\",\"\")))/LEN(\"Cultura\")","v":0},{"$f":"SUM(LEN(F7)-LEN(SUBSTITUTE(F7,\"Poder\",\"\")))/LEN(\"Poder\")","v":0},{"$f":"SUM(LEN(F7)-LEN(SUBSTITUTE(F7,\"Otra\",\"\")))/LEN(\"Otra\")","v":0}]
[null,null,null,{"$f":"IMPACTOS!#REF!","v":{"$error":"#REF!"}},{"$f":"IF(AND(D8<>0,IMPACTOS!#REF!<>0),IMPACTOS!#REF!,\" \")","v":{"$error":"#REF!"}},{"$f":"IF(AND(D8<>0,IMPACTOS!#REF!<>0),IMPACTOS!#REF!,\" \")","v":{"$error":"#REF!"}},{"$f":"IF(AND(D8<>0,IMPACTOS!#REF!<>0),IMPACTOS!#REF!,\" \")","v":{"$error":"#REF!"}},{"$f":"IF(AND(D8<>0,IMPACTOS!#REF!<>0),IMPACTOS!#REF!,\" \")","v":{"$error":"#REF!"}},{"$f":"IF(AND(D8<>0,IMPACTOS!#REF!<>0),IMPACTOS!#REF!,\" \")","v":{"$error":"#REF!"}},{"$f":"IF(K8<>\"\",\"SI\",\"NO\")","v":"NO"},{"$f":"IFERROR(IF(D8<>0,VLOOKUP(D8,'Tablas Tablero'!$B$3:$C$100,2,FALSE),\" \"),\"\")","v":""},{"$error":"#REF!"},{"$error":"#REF!"},{"$error":"#REF!"},{"$error":"#REF!"},{"$error":"#REF!"},{"$error":"#REF!"},{"$error":"#REF!"}]
[null,null,null,{"$f":"IMPACTOS!#REF!","v":{"$error":"#REF!"}},{"$f":"IF(AND(D9<>0,IMPACTOS!#REF!<>0),IMPACTOS!#REF!,\" \")","v":{"$error":"#REF!"}},{"$f":"IF(AND(D9<>0,IMPACTOS!#REF!<>0),IMPACTOS!#REF!,\" \")","v":{"$error":"#REF!"}},{"$f":"IF(AND(D9<>0,IMPACTOS!#REF!<>0),IMPACTOS!#REF!,\" \")","v":{"$error":"#REF!"}},{"$f":"IF(AND(D9<>0,IMPACTOS!#REF!<>0),IMPACTOS!#REF!,\" \")","v":{"$error":"#REF!"}},{"$f":"IF(AND(D9<>0,IMPACTOS!#REF!<>0),IMPACTOS!#REF!,\" \")","v":{"$error":"#REF!"}},"NO",{"$f":"IFERROR(IF(D9<>0,VLOOKUP(D9,'Tablas Tablero'!$B$3:$C$100,2,FALSE),\" \"),\"\")","v":""},{"$error":"#REF!"},{"$error":"#REF!"},{"$error":"#REF!"},{"$error":"#REF!"},{"$error":"#REF!"},{"$error":"#REF!"},{"$error":"#REF!"}]
[null,null,null,{"$f":"IMPACTOS!#REF!","v":{"$error":"#REF!"}},{"$f":"IF(AND(D10<>0,IMPACTOS!#REF!<>0),IMPACTOS!#REF!,\" \")","v":{"$error":"#REF!"}},{"$f":"IF(AND(D10<>0,IMPACTOS!#REF!<>0),IMPACTOS!#REF!,\" \")","v":{"$error":"#REF!"}},{"$f":"IF(AND(D10<>0,IMPACTOS!#REF!<>0),IMPACTOS!#REF!,\" \")","v":{"$error":"#REF!"}},{"$f":"IF(AND(D10<>0,IMPACTOS!#REF!<>0),IMPACTOS!#REF!,\" \")","v":{"$error":"#REF!"}},{"$f":"IF(AND(D10<>0,IMPACTOS!#REF!<>0),IMPACTOS!#REF!,\" \")","v":{"$error":"#REF!"}},"NO",{"$f":"IFERROR(IF(D10<>0,VLOOKUP(D10,'Tablas Tablero'!$B$3:$C$100,2,FALSE),\" \"),\"\")","v":""},{"$error":"#REF!"},{"$error":"#REF!"},{"$error":"#REF!"},{"$error":"#REF!"},{"$error":"#REF!"},{"$error":"#REF!"},{"$error":"#REF!"}]
[null,null,null,{"$f":"IMPACTOS!#REF!","v":{"$error":"#REF!"}},{"$f":"IF(AND(D11<>0,IMPACTOS!#REF!<>0),IMPACTOS!#REF!,\" \")","v":{"$error":"#REF!"}},{"$f":"IF(AND(D11<>0,IMPACTOS!#REF!<>0),IMPACTOS!#REF!,\" \")","v":{"$error":"#REF!"}},{"$f":"IF(AND(D11<>0,IMPACTOS!#REF!<>0),IMPACTOS!#REF!,\" \")","v":{"$error":"#REF!"}},{"$f":"IF(AND(D11<>0,IMPACTOS!#REF!<>0),IMPACTOS!#REF!,\" \")","v":{"$error":"#REF!"}},{"$f":"IF(AND(D11<>0,IMPACTOS!#REF!<>0),IMPACTOS!#REF!,\" \")","v":{"$error":"#REF!"}},"NO",{"$f":"IFERROR(IF(D11<>0,VLOOKUP(D11,'Tablas Tablero'!$B$3:$C$100,2,FALSE),\" \"),\"\")","v":""},{"$error":"#REF!"},{"$error":"#REF!"},{"$error":"#REF!"},{"$error":"#REF!"},{"$error":"#REF!"},{"$error":"#REF!"},{"$error":"#REF!"}]
[null,null,null,{"$f":"IMPACTOS!#REF!","v":{"$error":"#REF!"}},{"$f":"IF(AND(D12<>0,IMPACTOS!#REF!<>0),IMPACTOS!#REF!,\" \")","v":{"$error":"#REF!"}},{"$f":"IF(AND(D12<>0,IMPACTOS!#REF!<>0),IMPACTOS!#REF!,\" \")","v":{"$error":"#REF!"}},{"$f":"IF(AND(D12<>0,IMPACTOS!#REF!<>0),IMPACTOS!#REF!,\" \")","v":{"$error":"#REF!"}},{"$f":"IF(AND(D12<>0,IMPACTOS!#REF!<>0),IMPACTOS!#REF!,\" \")","v":{"$error":"#REF!"}},{"$f":"IF(AND(D12<>0,IMPACTOS!#REF!<>0),IMPACTOS!#REF!,\" \")","v":{"$error":"#REF!"}},"NO",{"$f":"IFERROR(IF(D12<>0,VLOOKUP(D12,'Tablas Tablero'!$B$3:$C$100,2,FALSE),\" \"),\"\")","v":""},{"$error":"#REF!"},{"$error":"#REF!"},{"$error":"#REF!"},{"$error":"#REF!"},{"$error":"#REF!"},{"$error":"#REF!"},{"$error":"#REF!"}]
[null,null,null,{"$f":"IMPACTOS!#REF!","v":{"$error":"#REF!"}},{"$f":"IF(AND(D13<>0,IMPACTOS!#REF!<>0),IMPACTOS!#REF!,\" \")","v":{"$error":"#REF!"}},{"$f":"IF(AND(D13<>0,IMPACTOS!#REF!<>0),IMPACTOS!#REF!,\" \")","v":{"$error":"#REF!"}},{"$f":"IF(AND(D13<>0,IMPACTOS!#REF!<>0),IMPACTOS!#REF!,\" \")","v":{"$error":"#REF!"}},{"$f":"IF(AND(D13<>0,IMPACTOS!#REF!<>0),IMPACTOS!#REF!,\" \")","v":{"$error":"#REF!"}},{"$f":"IF(AND(D13<>0,IMPACTOS!#REF!<>0),IMPACTOS!#REF!,\" \")","v":{"$error":"#REF!"}},"NO",{"$f":"IFERROR(IF(D13<>0,VLOOKUP(D13,'Tablas Tablero'!$B$3:$C$100,2,FALSE),\" \"),\"\")","v":""},{"$error":"#REF!"},{"$error":"#REF!"},{"$error":"#REF!"},{"$error":"#REF!"},{"$error":"#REF!"},{"$error":"#REF!"},{"$error":"#REF!"}]
[null,null,null,{"$f":"IMPACTOS!#REF!","v":{"$error":"#REF!"}},{"$f":"IF(AND(D14<>0,IMPACTOS!#REF!<>0),IMPACTOS!#REF!,\" \")","v":{"$error":"#REF!"}},{"$f":"IF(AND(D14<>0,IMPACTOS!#REF!<>0),IMPACTOS!#REF!,\" \")","v":{"$error":"#REF!"}},{"$f":"IF(AND(D14<>0,IMPACTOS!#REF!<>0),IMPACTOS!#REF!,\" \")","v":{"$error":"#REF!"}},{"$f":"IF(AND(D14<>0,IMPACTOS!#REF!<>0),IMPACTOS!#REF!,\" \")","v":{"$error":"#REF!"}},{"$f":"IF(AND(D14<>0,IMPACTOS!#REF!<>0),IMPACTOS!#REF!,\" \")","v":{"$error":"#REF!"}},"NO",{"$f":"IFERROR(IF(D14<>0,VLOOKUP(D14,'Tablas Tablero'!$B$3:$C$100,2,FALSE),\" \"),\"\")","v":""},{"$error":"#REF!"},{"$error":"#REF!"},{"$error":"#REF!"},{"$error":"#REF!"},{"$error":"#REF!"},{"$error":"#REF!"},{"$error":"#REF!"}]
[null,null,null,{"$f":"IMPACTOS!#REF!","v":{"$error":"#REF!"}},{"$f":"IF(AND(D15<>0,IMPACTOS!#REF!<>0),IMPACTOS!#REF!,\" \")","v":{"$error":"#REF!"}},{"$f":"IF(AND(D15<>0,IMPACTOS!#REF!<>0),IMPACTOS!#REF!,\" \")","v":{"$error":"#REF!"}},{"$f":"IF(AND(D15<>0,IMPACTOS!#REF!<>0),IMPACTOS!#REF!,\" \")","v":{"$error":"#REF!"}},{"$f":"IF(AND(D15<>0,IMPACTOS!#REF!<>0),IMPACTOS!#REF!,\" \")","v":{"$error":"#REF!"}},{"$f":"IF(AND(D15<>0,IMPACTOS!#REF!<>0),IMPACTOS!#REF!,\" \")","v":{"$error":"#REF!"}},"NO",{"$f":"IFERROR(IF(D15<>0,VLOOKUP(D15,'Tablas Tablero'!$B$3:$C$100,2,FALSE),\" \"),\"\")","v":""},{"$error":"#REF!"},{"$error":"#REF!"},{"$error":"#REF!"},{"$error":"#REF!"},{"$error":"#REF!"},{"$error":"#REF!"},{"$error":"#REF!"}]
[null,null,null,{"$f":"IMPACTOS!#REF!","v":{"$error":"#REF!"}},{"$f":"IF(AND(D16<>0,IMPACTOS!#REF!<>0),IMPACTOS!#REF!,\" \")","v":{"$error":"#REF!"}},{"$f":"IF(AND(D16<>0,IMPACTOS!#REF!<>0),IMPACTOS!#REF!,\" \")","v":{"$error":"#REF!"}},{"$f":"IF(AND(D16<>0,IMPACTOS!#REF!<>0),IMPACTOS!#REF!,\" \")","v":{"$error":"#REF!"}},{"$f":"IF(AND(D16<>0,IMPACTOS!#REF!<>0),IMPACTOS!#REF!,\" \")","v":{"$error":"#REF!"}},{"$f":"IF(AND(D16<>0,IMPACTOS!#REF!<>0),IMPACTOS!#REF!,\" \")","v":{"$error":"#REF!"}},"NO",{"$f":"IFERROR(IF(D16<>0,VLOOKUP(D16,'Tablas Tablero'!$B$3:$C$100,2,FALSE),\" \"),\"\")","v":""},{"$error":"#REF!"},{"$error":"#REF!"},{"$error":"#REF!"},{"$error":"#REF!"},{"$error":"#REF!"},{"$error":"#REF!"},{"$error":"#REF!"}]
[null,null,null,{"$f":"IMPACTOS!#REF!","v":{"$error":"#REF!"}},{"$f":"IF(AND(D17<>0,IMPACTOS!#REF!<>0),IMPACTOS!#REF!,\" \")","v":{"$error":"#REF!"}},{"$f":"IF(AND(D17<>0,IMPACTOS!#REF!<>0),IMPACTOS!#REF!,\" \")","v":{"$error":"#REF!"}},{"$f":"IF(AND(D17<>0,IMPACTOS!#REF!<>0),IMPACTOS!#REF!,\" \")","v":{"$error":"#REF!"}},{"$f":"IF(AND(D17<>0,IMPACTOS!#REF!<>0),IMPACTOS!#REF!,\" \")","v":{"$error":"#REF!"}},{"$f":"IF(AND(D17<>0,IMPACTOS!#REF!<>0),IMPACTOS!#REF!,\" \")","v":{"$error":"#REF!"}},"NO",{"$f":"IFERROR(IF(D17<>0,VLOOKUP(D17,'Tablas Tablero'!$B$3:$C$100,2,FALSE),\" \"),\"\")","v":""},{"$error":"#REF!"},{"$error":"#REF!"},{"$error":"#REF!"},{"$error":"#REF!"},{"$error":"#REF!"},{"$error":"#REF!"},{"$error":"#REF!"}]
[null,null,null,{"$f":"IMPACTOS!#REF!","v":{"$error":"#REF!"}},{"$f":"IF(AND(D18<>0,IMPACTOS!#REF!<>0),IMPACTOS!#REF!,\" \")","v":{"$error":"#REF!"}},{"$f":"IF(AND(D18<>0,IMPACTOS!#REF!<>0),IMPACTOS!#REF!,\" \")","v":{"$error":"#REF!"}},{"$f":"IF(AND(D18<>0,IMPACTOS!#REF!<>0),IMPACTOS!#REF!,\" \")","v":{"$error":"#REF!"}},{"$f":"IF(AND(D18<>0,IMPACTOS!#REF!<>0),IMPACTOS!#REF!,\" \")","v":{"$error":"#REF!"}},{"$f":"IF(AND(D18<>0,IMPACTOS!#REF!<>0),IMPACTOS!#REF!,\" \")","v":{"$error":"#REF!"}},"NO",{"$f":"IFERROR(IF(D18<>0,VLOOKUP(D18,'Tablas Tablero'!$B$3:$C$100,2,FALSE),\" \"),\"\")","v":""},{"$error":"#REF!"},{"$error":"#REF!"},{"$error":"#REF!"},{"$error":"#REF!"},{"$error":"#REF!"},{"$error":"#REF!"},{"$error":"#REF!"}]
[null,null,null,{"$f":"IMPACTOS!#REF!","v":{"$error":"#REF!"}},{"$f":"IF(AND(D19<>0,IMPACTOS!#REF!<>0),IMPACTOS!#REF!,\" \")","v":{"$error":"#REF!"}},{"$f":"IF(AND(D19<>0,IMPACTOS!#REF!<>0),IMPACTOS!#REF!,\" \")","v":{"$error":"#REF!"}},{"$f":"IF(AND(D19<>0,IMPACTOS!#REF!<>0),IMPACTOS!#REF!,\" \")","v":{"$error":"#REF!"}},{"$f":"IF(AND(D19<>0,IMPACTOS!#REF!<>0),IMPACTOS!#REF!,\" \")","v":{"$error":"#REF!"}},{"$f":"IF(AND(D19<>0,IMPACTOS!#REF!<>0),IMPACTOS!#REF!,\" \")","v":{"$error":"#REF!"}},"NO",{"$f":"IFERROR(IF(D19<>0,VLOOKUP(D19,'Tablas Tablero'!$B$3:$C$100,2,FALSE),\" \"),\"\")","v":""},{"$error":"#REF!"},{"$error":"#REF!"},{"$error":"#REF!"},{"$error":"#REF!"},{"$error":"#REF!"},{"$error":"#REF!"},{"$error":"#REF!"}]
[null,null,null,{"$f":"IMPACTOS!#REF!","v":{"$error":"#REF!"}},{"$f":"IF(AND(D20<>0,IMPACTOS!#REF!<>0),IMPACTOS!#REF!,\" \")","v":{"$error":"#REF!"}},{"$f":"IF(AND(D20<>0,IMPACTOS!#REF!<>0),IMPACTOS!#REF!,\" \")","v":{"$error":"#REF!"}},{"$f":"IF(AND(D20<>0,IMPACTOS!#REF!<>0),IMPACTOS!#REF!,\" \")","v":{"$error":"#REF!"}},{"$f":"IF(AND(D20<>0,IMPACTOS!#REF!<>0),IMPACTOS!#REF!,\" \")","v":{"$error":"#REF!"}},{"$f":"IF(AND(D20<>0,IMPACTOS!#REF!<>0),IMPACTOS!#REF!,\" \")","v":{"$error":"#REF!"}},"NO",{"$f":"IFERROR(IF(D20<>0,VLOOKUP(D20,'Tablas Tablero'!$B$3:$C$100,2,FALSE),\" \"),\"\")","v":""},{"$error":"#REF!"},{"$error":"#REF!"},{"$error":"#REF!"},{"$error":"#REF!"},{"$error":"#REF!"},{"$error":"#REF!"},{"$error":"#REF!"}]
[null,null,null,{"$f":"IMPACTOS!#REF!","v":{"$error":"#REF!"}},{"$f":"IF(AND(D21<>0,IMPACTOS!#REF!<>0),IMPACTOS!#REF!,\" \")","v":{"$error":"#REF!"}},{"$f":"IF(AND(D21<>0,IMPACTOS!#REF!<>0),IMPACTOS!#REF!,\" \")","v":{"$error":"#REF!"}},{"$f":"IF(AND(D21<>0,IMPACTOS!#REF!<>0),IMPACTOS!#REF!,\" \")","v":{"$error":"#REF!"}},{"$f":"IF(AND(D21<>0,IMPACTOS!#REF!<>0),IMPACTOS!#REF!,\" \")","v":{"$error":"#REF!"}},{"$f":"IF(AND(D21<>0,IMPACTOS!#REF!<>0),IMPACTOS!#REF!,\" \")","v":{"$error":"#REF!"}},"NO",{"$f":"IFERROR(IF(D21<>0,VLOOKUP(D21,'Tablas Tablero'!$B$3:$C$100,2,FALSE),\" \"),\"\")","v":""},{"$error":"#REF!"},{"$error":"#REF!"},{"$error":"#REF!"},{"$error":"#REF!"},{"$error":"#REF!"},{"$error":"#REF!"},{"$error":"#REF!"}]
[null,null,null,{"$f":"IMPACTOS!#REF!","v":{"$error":"#REF!"}},{"$f":"IF(AND(D22<>0,IMPACTOS!#REF!<>0),IMPACTOS!#REF!,\" \")","v":{"$error":"#REF!"}},{"$f":"IF(AND(D22<>0,IMPACTOS!#REF!<>0),IMPACTOS!#REF!,\" \")","v":{"$error":"#REF!"}},{"$f":"IF(AND(D22<>0,IMPACTOS!#REF!<>0),IMPACTOS!#REF!,\" \")","v":{"$error":"#REF!"}},{"$f":"IF(AND(D22<>0,IMPACTOS!#REF!<>0),IMPACTOS!#REF!,\" \")","v":{"$error":"#REF!"}},{"$f":"IF(AND(D22<>0,IMPACTOS!#REF!<>0),IMPACTOS!#REF!,\" \")","v":{"$error":"#REF!"}},"NO",{"$f":"IFERROR(IF(D22<>0,VLOOKUP(D22,'Tablas Tablero'!$B$3:$C$100,2,FALSE),\" \"),\"\")","v":""},{"$error":"#REF!"},{"$error":"#REF!"},{"$error":"#REF!"},{"$error":"#REF!"},{"$error":"#REF!"},{"$error":"#REF!"},{"$error":"#REF!"}]
[null,null,null,{"$f":"IMPACTOS!#REF!","v":{"$error":"#REF!"}},{"$f":"IF(AND(D23<>0,IMPACTOS!#REF!<>0),IMPACTOS!#REF!,\" \")","v":{"$error":"#REF!"}},{"$f":"IF(AND(D23<>0,IMPACTOS!#REF!<>0),IMPACTOS!#REF!,\" \")","v":{"$error":"#REF!"}},{"$f":"IF(AND(D23<>0,IMPACTOS!#REF!<>0),IMPACTOS!#REF!,\" \")","v":{"$error":"#REF!"}},{"$f":"IF(AND(D23<>0,IMPACTOS!#REF!<>0),IMPACTOS!#REF!,\" \")","v":{"$error":"#REF!"}},{"$f":"IF(AND(D23<>0,IMPACTOS!#REF!<>0),IMPACTOS!#REF!,\" \")","v":{"$error":"#REF!"}},"NO",{"$f":"IFERROR(IF(D23<>0,VLOOKUP(D23,'Tablas Tablero'!$B$3:$C$100,2,FALSE),\" \"),\"\")","v":""},{"$error":"#REF!"},{"$error":"#REF!"},{"$error":"#REF!"},{"$error":"#REF!"},{"$error":"#REF!"},{"$error":"#REF!"},{"$error":"#REF!"}]
[null,null,null,{"$f":"IMPACTOS!#REF!","v":{"$error":"#REF!"}},{"$f":"IF(AND(D24<>0,IMPACTOS!#REF!<>0),IMPACTOS!#REF!,\" \")","v":{"$error":"#REF!"}},{"$f":"IF(AND(D24<>0,IMPACTOS!#REF!<>0),IMPACTOS!#REF!,\" \")","v":{"$error":"#REF!"}},{"$f":"IF(AND(D24<>0,IMPACTOS!#REF!<>0),IMPACTOS!#REF!,\" \")","v":{"$error":"#REF!"}},{"$f":"IF(AND(D24<>0,IMPACTOS!#REF!<>0),IMPACTOS!#REF!,\" \")","v":{"$error":"#REF!"}},{"$f":"IF(AND(D24<>0,IMPACTOS!#REF!<>0),IMPACTOS!#REF!,\" \")","v":{"$error":"#REF!"}},"NO",{"$f":"IFERROR(IF(D24<>0,VLOOKUP(D24,'Tablas Tablero'!$B$3:$C$100,2,FALSE),\" \"),\"\")","v":""},{"$error":"#REF!"},{"$error":"#REF!"},{"$error":"#REF!"},{"$error":"#REF!"},{"$error":"#REF!"},{"$error":"#REF!"},{"$error":"#REF!"}]
[null,null,null,{"$f":"IMPACTOS!C13","v":0},{"$f":"IF(AND(D25<>0,IMPACTOS!D13<>0),IMPACTOS!D13,\" \")","v":" "},{"$f":"IF(AND(D25<>0,IMPACTOS!G13<>0),IMPACTOS!G13,\" \")","v":" "},{"$f":"IF(AND(D25<>0,IMPACTOS!I13<>0),IMPACTOS!I13,\" \")","v":" "},{"$f":"IF(AND(D25<>0,IMPACTOS!H13<>0),IMPACTOS!H13,\" \")","v":" "},{"$f":"IF(AND(D25<>0,IMPACTOS!K13<>0),IMPACTOS!K13,\" \")","v":" "},"SI",{"$f":"IFERROR(IF(D25<>0,VLOOKUP(D25,'Tablas Tablero'!$B$3:$C$100,2,FALSE),\" \"),\"\")","v":" "},0,0,0,0,0,0,0]
[null,null,null,{"$f":"IMPACTOS!C14","v":0},{"$f":"IF(AND(D26<>0,IMPACTOS!D14<>0),IMPACTOS!D14,\" \")","v":" "},{"$f":"IF(AND(D26<>0,IMPACTOS!G14<>0),IMPACTOS!G14,\" \")","v":" "},{"$f":"IF(AND(D26<>0,IMPACTOS!I14<>0),IMPACTOS!I14,\" \")","v":" "},{"$f":"IF(AND(D26<>0,IMPACTOS!H14<>0),IMPACTOS!H14,\" \")","v":" "},{"$f":"IF(AND(D26<>0,IMPACTOS!K14<>0),IMPACTOS!K14,\" \")","v":" "},"SI",{"$f":"IFERROR(IF(D26<>0,VLOOKUP(D26,'Tablas Tablero'!$B$3:$C$100,2,FALSE),\" \"),\"\")","v":" "},0,0,0,0,0,0,0]
[null,null,null,{"$f":"IMPACTOS!C15","v":0},{"$f":"IF(AND(D27<>0,IMPACTOS!D15<>0),IMPACTOS!D15,\" \")","v":" "},{"$f":"IF(AND(D27<>0,IMPACTOS!G15<>0),IMPACTOS!G15,\" \")","v":" "},{"$f":"IF(AND(D27<>0,IMPACTOS!I15<>0),IMPACTOS!I15,\" \")","v":" "},{"$f":"IF(AND(D27<>0,IMPACTOS!H15<>0),IMPACTOS!H15,\" \")","v":" "},{"$f":"IF(AND(D27<>0,IMPACTOS!K15<>0),IMPACTOS!K15,\" \")","v":" "},"SI",{"$f":"IFERROR(IF(D27<>0,VLOOKUP(D27,'Tablas Tablero'!$B$3:$C$100,2,FALSE),\" \"),\"\")","v":" "},0,0,0,0,0,0,0]
[null,null,null,{"$f":"IMPACTOS!C16","v":0},{"$f":"IF(AND(D28<>0,IMPACTOS!D16<>0),IMPACTOS!D16,\" \")","v":" "},{"$f":"IF(AND(D28<>0,IMPACTOS!G16<>0),IMPACTOS!G16,\" \")","v":" "},{"$f":"IF(AND(D28<>0,IMPACTOS!I16<>0),IMPACTOS!I16,\" \")","v":" "},{"$f":"IF(AND(D28<>0,IMPACTOS!H16<>0),IMPACTOS!H16,\" \")","v":" "},{"$f":"IF(AND(D28<>0,IMPACTOS!K16<>0),IMPACTOS!K16,\" \")","v":" "},"SI",{"$f":"IFERROR(IF(D28<>0,VLOOKUP(D28,'Tablas Tablero'!$B$3:$C$100,2,FALSE),\" \"),\"\")","v":" "},0,0,0,0,0,0,0]
[null,null,null,{"$f":"IMPACTOS!C17","v":0},{"$f":"IF(AND(D29<>0,IMPACTOS!D17<>0),IMPACTOS!D17,\" \")","v":" "},{"$f":"IF(AND(D29<>0,IMPACTOS!G17<>0),IMPACTOS!G17,\" \")","v":" "},{"$f":"IF(AND(D29<>0,IMPACTOS!I17<>0),IMPACTOS!I17,\" \")","v":" "},{"$f":"IF(AND(D29<>0,IMPACTOS!H17<>0),IMPACTOS!H17,\" \")","v":" "},{"$f":"IF(AND(D29<>0,IMPACTOS!K17<>0),IMPACTOS!K17,\" \")","v":" "},"SI",{"$f":"IFERROR(IF(D29<>0,VLOOKUP(D29,'Tablas Tablero'!$B$3:$C$100,2,FALSE),\" \"),\"\")","v":" "},0,0,0,0,0,0,0]
[null,null,null,{"$f":"IMPACTOS!C18","v":0},{"$f":"IF(AND(D30<>0,IMPACTOS!D18<>0),IMPACTOS!D18,\" \")","v":" "},{"$f":"IF(AND(D30<>0,IMPACTOS!G18<>0),IMPACTOS!G18,\" \")","v":" "},{"$f":"IF(AND(D30<>0,IMPACTOS!I18<>0),IMPACTOS!I18,\" \")","v":" "},{"$f":"IF(AND(D30<>0,IMPACTOS!H18<>0),IMPACTOS!H18,\" \")","v":" "},{"$f":"IF(AND(D30<>0,IMPACTOS!K18<>0),IMPACTOS!K18,\" \")","v":" "},"SI",{"$f":"IFERROR(IF(D30<>0,VLOOKUP(D30,'Tablas Tablero'!$B$3:$C$100,2,FALSE),\" \"),\"\")","v":" "},0,0,0,0,0,0,0]
[null,null,null,{"$f":"IMPACTOS!C19","v":0},{"$f":"IF(AND(D31<>0,IMPACTOS!D19<>0),IMPACTOS!D19,\" \")","v":" "},{"$f":"IF(AND(D31<>0,IMPACTOS!G19<>0),IMPACTOS!G19,\" \")","v":" "},{"$f":"IF(AND(D31<>0,IMPACTOS!I19<>0),IMPACTOS!I19,\" \")","v":" "},{"$f":"IF(AND(D31<>0,IMPACTOS!H19<>0),IMPACTOS!H19,\" \")","v":" "},{"$f":"IF(AND(D31<>0,IMPACTOS!K19<>0),IMPACTOS!K19,\" \")","v":" "},"SI",{"$f":"IFERROR(IF(D31<>0,VLOOKUP(D31,'Tablas Tablero'!$B$3:$C$100,2,FALSE),\" \"),\"\")","v":" "},0,0,0,0,0,0,0]
[null,null,null,{"$f":"IMPACTOS!C20","v":0},{"$f":"IF(AND(D32<>0,IMPACTOS!D20<>0),IMPACTOS!D20,\" \")","v":" "},{"$f":"IF(AND(D32<>0,IMPACTOS!G20<>0),IMPACTOS!G20,\" \")","v":" "},{"$f":"IF(AND(D32<>0,IMPACTOS!I20<>0),IMPACTOS!I20,\" \")","v":" "},{"$f":"IF(AND(D32<>0,IMPACTOS!H20<>0),IMPACTOS!H20,\" \")","v":" "},{"$f":"IF(AND(D32<>0,IMPACTOS!K20<>0),IMPACTOS!K20,\" \")","v":" "},"SI",{"$f":"IFERROR(IF(D32<>0,VLOOKUP(D32,'Tablas Tablero'!$B$3:$C$100,2,FALSE),\" \"),\"\")","v":" "},0,0,0,0,0,0,0]
[null,null,null,{"$f":"IMPACTOS!C21","v":0},{"$f":"IF(AND(D33<>0,IMPACTOS!D21<>0),IMPACTOS!D21,\" \")","v":" "},{"$f":"IF(AND(D33<>0,IMPACTOS!G21<>0),IMPACTOS!G21,\" \")","v":" "},{"$f":"IF(AND(D33<>0,IMPACTOS!I21<>0),IMPACTOS!I21,\" \")","v":" "},{"$f":"IF(AND(D33<>0,IMPACTOS!H21<>0),IMPACTOS!H21,\" \")","v":" "},{"$f":"IF(AND(D33<>0,IMPACTOS!K21<>0),IMPACTOS!K21,\" \")","v":" "},"SI",{"$f":"IFERROR(IF(D33<>0,VLOOKUP(D33,'Tablas Tablero'!$B$3:$C$100,2,FALSE),\" \"),\"\")","v":" "},0,0,0,0,0,0,0]
[null,null,null,{"$f":"IMPACTOS!C22","v":0},{"$f":"IF(AND(D34<>0,IMPACTOS!D22<>0),IMPACTOS!D22,\" \")","v":" "},{"$f":"IF(AND(D34<>0,IMPACTOS!G22<>0),IMPACTOS!G22,\" \")","v":" "},{"$f":"IF(AND(D34<>0,IMPACTOS!I22<>0),IMPACTOS!I22,\" \")","v":" "},{"$f":"IF(AND(D34<>0,IMPACTOS!H22<>0),IMPACTOS!H22,\" \")","v":" "},{"$f":"IF(AND(D34<>0,IMPACTOS!K22<>0),IMPACTOS!K22,\" \")","v":" "},"SI",{"$f":"IFERROR(IF(D34<>0,VLOOKUP(D34,'Tablas Tablero'!$B$3:$C$100,2,FALSE),\" \"),\"\")","v":" "},0,0,0,0,0,0,0]
[null,null,null,{"$f":"IMPACTOS!C23","v":0},{"$f":"IF(AND(D35<>0,IMPACTOS!D23<>0),IMPACTOS!D23,\" \")","v":" "},{"$f":"IF(AND(D35<>0,IMPACTOS!G23<>0),IMPACTOS!G23,\" \")","v":" "},{"$f":"IF(AND(D35<>0,IMPACTOS!I23<>0),IMPACTOS!I23,\" \")","v":" "},{"$f":"IF(AND(D35<>0,IMPACTOS!H23<>0),IMPACTOS!H23,\" \")","v":" "},{"$f":"IF(AND(D35<>0,IMPACTOS!K23<>0),IMPACTOS!K23,\" \")","v":" "},"SI",{"$f":"IFERROR(IF(D35<>0,VLOOKUP(D35,'Tablas Tablero'!$B$3:$C$100,2,FALSE),\" \"),\"\")","v":" "},0,0,0,0,0,0,0]
[null,null,null,{"$f":"IMPACTOS!C24","v":0},{"$f":"IF(AND(D36<>0,IMPACTOS!D24<>0),IMPACTOS!D24,\" \")","v":" "},{"$f":"IF(AND(D36<>0,IMPACTOS!G24<>0),IMPACTOS!G24,\" \")","v":" "},{"$f":"IF(AND(D36<>0,IMPACTOS!I24<>0),IMPACTOS!I24,\" \")","v":" "},{"$f":"IF(AND(D36<>0,IMPACTOS!H24<>0),IMPACTOS!H24,\" \")","v":" "},{"$f":"IF(AND(D36<>0,IMPACTOS!K24<>0),IMPACTOS!K24,\" \")","v":" "},"SI",{"$f":"IFERROR(IF(D36<>0,VLOOKUP(D36,'Tablas Tablero'!$B$3:$C$100,2,FALSE),\" \"),\"\")","v":" "},0,0,0,0,0,0,0]
[null,null,null,{"$f":"IMPACTOS!C25","v":0},{"$f":"IF(AND(D37<>0,IMPACTOS!D25<>0),IMPACTOS!D25,\" \")","v":" "},{"$f":"IF(AND(D37<>0,IMPACTOS!G25<>0),IMPACTOS!G25,\" \")","v":" "},{"$f":"IF(AND(D37<>0,IMPACTOS!I25<>0),IMPACTOS!I25,\" \")","v":" "},{"$f":"IF(AND(D37<>0,IMPACTOS!H25<>0),IMPACTOS!H25,\" \")","v":" "},{"$f":"IF(AND(D37<>0,IMPACTOS!K25<>0),IMPACTOS!K25,\" \")","v":" "},"SI",{"$f":"IFERROR(IF(D37<>0,VLOOKUP(D37,'Tablas Tablero'!$B$3:$C$100,2,FALSE),\" \"),\"\")","v":" "},0,0,0,0,0,0,0]
[null,null,null,{"$f":"IMPACTOS!C26","v":0},{"$f":"IF(AND(D38<>0,IMPACTOS!D26<>0),IMPACTOS!D26,\" \")","v":" "},{"$f":"IF(AND(D38<>0,IMPACTOS!G26<>0),IMPACTOS!G26,\" \")","v":" "},{"$f":"IF(AND(D38<>0,IMPACTOS!I26<>0),IMPACTOS!I26,\" \")","v":" "},{"$f":"IF(AND(D38<>0,IMPACTOS!H26<>0),IMPACTOS!H26,\" \")","v":" "},{"$f":"IF(AND(D38<>0,IMPACTOS!K26<>0),IMPACTOS!K26,\" \")","v":" "},"SI",{"$f":"IFERROR(IF(D38<>0,VLOOKUP(D38,'Tablas Tablero'!$B$3:$C$100,2,FALSE),\" \"),\"\")","v":" "},0,0,0,0,0,0,0]
[null,null,null,{"$f":"IMPACTOS!C27","v":0},{"$f":"IF(AND(D39<>0,IMPACTOS!D27<>0),IMPACTOS!D27,\" \")","v":" "},{"$f":"IF(AND(D39<>0,IMPACTOS!G27<>0),IMPACTOS!G27,\" \")","v":" "},{"$f":"IF(AND(D39<>0,IMPACTOS!I27<>0),IMPACTOS!I27,\" \")","v":" "},{"$f":"IF(AND(D39<>0,IMPACTOS!H27<>0),IMPACTOS!H27,\" \")","v":" "},{"$f":"IF(AND(D39<>0,IMPACTOS!K27<>0),IMPACTOS!K27,\" \")","v":" "},"SI",{"$f":"IFERROR(IF(D39<>0,VLOOKUP(D39,'Tablas Tablero'!$B$3:$C$100,2,FALSE),\" \"),\"\")","v":" "},{"$f":"SUM(LEN(F39)-LEN(SUBSTITUTE(F39,\"Procesos\",\"\")))/LEN(\"Procesos\")","v":0},{"$f":"SUM(LEN(F39)-LEN(SUBSTITUTE(F39,\"Estrucutra\",\"\")))/LEN(\"Estrucutra\")","v":0},{"$f":"SUM(LEN(F39)-LEN(SUBSTITUTE(F39,\"Infraestrucutra\",\"\")))/LEN(\"Infraestrucutra\")","v":0},{"$f":"SUM(LEN(F39)-LEN(SUBSTITUTE(F39,\"Personas\",\"\")))/LEN(\"Personas\")","v":0},{"$f":"SUM(LEN(F39)-LEN(SUBSTITUTE(F39,\"Cultura\",\"\")))/LEN(\"Cultura\")","v":0},{"$f":"SUM(LEN(F39)-LEN(SUBSTITUTE(F39,\"Poder\",\"\")))/LEN(\"Poder\")","v":0},{"$f":"SUM(LEN(F39)-LEN(SUBSTITUTE(F39,\"Otra\",\"\")))/LEN(\"Otra\")","v":0}]
[null,null,null,{"$f":"IMPACTOS!C28","v":0},{"$f":"IF(AND(D40<>0,IMPACTOS!D28<>0),IMPACTOS!D28,\" \")","v":" "},{"$f":"IF(AND(D40<>0,IMPACTOS!G28<>0),IMPACTOS!G28,\" \")","v":" "},{"$f":"IF(AND(D40<>0,IMPACTOS!I28<>0),IMPACTOS!I28,\" \")","v":" "},{"$f":"IF(AND(D40<>0,IMPACTOS!H28<>0),IMPACTOS!H28,\" \")","v":" "},{"$f":"IF(AND(D40<>0,IMPACTOS!K28<>0),IMPACTOS!K28,\" \")","v":" "},{"$f":"IF(K40<>\"\",\"SI\",\"NO\")","v":"SI"},{"$f":"IFERROR(IF(D40<>0,VLOOKUP(D40,'Tablas Tablero'!$B$3:$C$100,2,FALSE),\" \"),\"\")","v":" "},0,0,0,0,0,0,0]
[null,null,null,{"$f":"IMPACTOS!C29","v":0},{"$f":"IF(AND(D41<>0,IMPACTOS!D29<>0),IMPACTOS!D29,\" \")","v":" "},{"$f":"IF(AND(D41<>0,IMPACTOS!G29<>0),IMPACTOS!G29,\" \")","v":" "},{"$f":"IF(AND(D41<>0,IMPACTOS!I29<>0),IMPACTOS!I29,\" \")","v":" "},{"$f":"IF(AND(D41<>0,IMPACTOS!H29<>0),IMPACTOS!H29,\" \")","v":" "},{"$f":"IF(AND(D41<>0,IMPACTOS!K29<>0),IMPACTOS!K29,\" \")","v":" "},"SI",{"$f":"IFERROR(IF(D41<>0,VLOOKUP(D41,'Tablas Tablero'!$B$3:$C$100,2,FALSE),\" \"),\"\")","v":" "},0,0,0,0,0,0,0]
[null,null,null,{"$f":"IMPACTOS!C30","v":0},{"$f":"IF(AND(D42<>0,IMPACTOS!D30<>0),IMPACTOS!D30,\" \")","v":" "},{"$f":"IF(AND(D42<>0,IMPACTOS!G30<>0),IMPACTOS!G30,\" \")","v":" "},{"$f":"IF(AND(D42<>0,IMPACTOS!I30<>0),IMPACTOS!I30,\" \")","v":" "},{"$f":"IF(AND(D42<>0,IMPACTOS!H30<>0),IMPACTOS!H30,\" \")","v":" "},{"$f":"IF(AND(D42<>0,IMPACTOS!K30<>0),IMPACTOS!K30,\" \")","v":" "},"SI",{"$f":"IFERROR(IF(D42<>0,VLOOKUP(D42,'Tablas Tablero'!$B$3:$C$100,2,FALSE),\" \"),\"\")","v":" "},0,0,0,0,0,0,0]
[null,null,null,{"$f":"IMPACTOS!C31","v":0},{"$f":"IF(AND(D43<>0,IMPACTOS!D31<>0),IMPACTOS!D31,\" \")","v":" "},{"$f":"IF(AND(D43<>0,IMPACTOS!G31<>0),IMPACTOS!G31,\" \")","v":" "},{"$f":"IF(AND(D43<>0,IMPACTOS!I31<>0),IMPACTOS!I31,\" \")","v":" "},{"$f":"IF(AND(D43<>0,IMPACTOS!H31<>0),IMPACTOS!H31,\" \")","v":" "},{"$f":"IF(AND(D43<>0,IMPACTOS!K31<>0),IMPACTOS!K31,\" \")","v":" "},"SI",{"$f":"IFERROR(IF(D43<>0,VLOOKUP(D43,'Tablas Tablero'!$B$3:$C$100,2,FALSE),\" \"),\"\")","v":" "},0,0,0,0,0,0,0]
[null,null,null,{"$f":"IMPACTOS!C32","v":0},{"$f":"IF(AND(D44<>0,IMPACTOS!D32<>0),IMPACTOS!D32,\" \")","v":" "},{"$f":"IF(AND(D44<>0,IMPACTOS!G32<>0),IMPACTOS!G32,\" \")","v":" "},{"$f":"IF(AND(D44<>0,IMPACTOS!I32<>0),IMPACTOS!I32,\" \")","v":" "},{"$f":"IF(AND(D44<>0,IMPACTOS!H32<>0),IMPACTOS!H32,\" \")","v":" "},{"$f":"IF(AND(D44<>0,IMPACTOS!K32<>0),IMPACTOS!K32,\" \")","v":" "},"SI",{"$f":"IFERROR(IF(D44<>0,VLOOKUP(D44,'Tablas Tablero'!$B$3:$C$100,2,FALSE),\" \"),\"\")","v":" "},0,0,0,0,0,0,0]
[null,null,null,{"$f":"IMPACTOS!C33","v":0},{"$f":"IF(AND(D45<>0,IMPACTOS!D33<>0),IMPACTOS!D33,\" \")","v":" "},{"$f":"IF(AND(D45<>0,IMPACTOS!G33<>0),IMPACTOS!G33,\" \")","v":" "},{"$f":"IF(AND(D45<>0,IMPACTOS!I33<>0),IMPACTOS!I33,\" \")","v":" "},{"$f":"IF(AND(D45<>0,IMPACTOS!H33<>0),IMPACTOS!H33,\" \")","v":" "},{"$f":"IF(AND(D45<>0,IMPACTOS!K33<>0),IMPACTOS!K33,\" \")","v":" "},"SI",{"$f":"IFERROR(IF(D45<>0,VLOOKUP(D45,'Tablas Tablero'!$B$3:$C$100,2,FALSE),\" \"),\"\")","v":" "},0,0,0,0,0,0,0]
[null,null,null,{"$f":"IMPACTOS!C34","v":0},{"$f":"IF(AND(D46<>0,IMPACTOS!D34<>0),IMPACTOS!D34,\" \")","v":" "},{"$f":"IF(AND(D46<>0,IMPACTOS!G34<>0),IMPACTOS!G34,\" \")","v":" "},{"$f":"IF(AND(D46<>0,IMPACTOS!I34<>0),IMPACTOS!I34,\" \")","v":" "},{"$f":"IF(AND(D46<>0,IMPACTOS!H34<>0),IMPACTOS!H34,\" \")","v":" "},{"$f":"IF(AND(D46<>0,IMPACTOS!K34<>0),IMPACTOS!K34,\" \")","v":" "},"SI",{"$f":"IFERROR(IF(D46<>0,VLOOKUP(D46,'Tablas Tablero'!$B$3:$C$100,2,FALSE),\" \"),\"\")","v":" "},0,0,0,0,0,0,0]
[null,null,null,{"$f":"IMPACTOS!C35","v":0},{"$f":"IF(AND(D47<>0,IMPACTOS!D35<>0),IMPACTOS!D35,\" \")","v":" "},{"$f":"IF(AND(D47<>0,IMPACTOS!G35<>0),IMPACTOS!G35,\" \")","v":" "},{"$f":"IF(AND(D47<>0,IMPACTOS!I35<>0),IMPACTOS!I35,\" \")","v":" "},{"$f":"IF(AND(D47<>0,IMPACTOS!H35<>0),IMPACTOS!H35,\" \")","v":" "},{"$f":"IF(AND(D47<>0,IMPACTOS!K35<>0),IMPACTOS!K35,\" \")","v":" "},"SI",{"$f":"IFERROR(IF(D47<>0,VLOOKUP(D47,'Tablas Tablero'!$B$3:$C$100,2,FALSE),\" \"),\"\")","v":" "},0,0,0,0,0,0,0]
[null,null,null,{"$f":"IMPACTOS!C36","v":0},{"$f":"IF(AND(D48<>0,IMPACTOS!D36<>0),IMPACTOS!D36,\" \")","v":" "},{"$f":"IF(AND(D48<>0,IMPACTOS!G36<>0),IMPACTOS!G36,\" \")","v":" "},{"$f":"IF(AND(D48<>0,IMPACTOS!I36<>0),IMPACTOS!I36,\" \")","v":" "},{"$f":"IF(AND(D48<>0,IMPACTOS!H36<>0),IMPACTOS!H36,\" \")","v":" "},{"$f":"IF(AND(D48<>0,IMPACTOS!K36<>0),IMPACTOS!K36,\" \")","v":" "},"SI",{"$f":"IFERROR(IF(D48<>0,VLOOKUP(D48,'Tablas Tablero'!$B$3:$C$100,2,FALSE),\" \"),\"\")","v":" "},0,0,0,0,0,0,0]
[null,null,null,{"$f":"IMPACTOS!C37","v":0},{"$f":"IF(AND(D49<>0,IMPACTOS!D37<>0),IMPACTOS!D37,\" \")","v":" "},{"$f":"IF(AND(D49<>0,IMPACTOS!G37<>0),IMPACTOS!G37,\" \")","v":" "},{"$f":"IF(AND(D49<>0,IMPACTOS!I37<>0),IMPACTOS!I37,\" \")","v":" "},{"$f":"IF(AND(D49<>0,IMPACTOS!H37<>0),IMPACTOS!H37,\" \")","v":" "},{"$f":"IF(AND(D49<>0,IMPACTOS!K37<>0),IMPACTOS!K37,\" \")","v":" "},"SI",{"$f":"IFERROR(IF(D49<>0,VLOOKUP(D49,'Tablas Tablero'!$B$3:$C$100,2,FALSE),\" \"),\"\")","v":" "},0,0,0,0,0,0,0]
[null,null,null,{"$f":"IMPACTOS!C38","v":0},{"$f":"IF(AND(D50<>0,IMPACTOS!D38<>0),IMPACTOS!D38,\" \")","v":" "},{"$f":"IF(AND(D50<>0,IMPACTOS!G38<>0),IMPACTOS!G38,\" \")","v":" "},{"$f":"IF(AND(D50<>0,IMPACTOS!I38<>0),IMPACTOS!I38,\" \")","v":" "},{"$f":"IF(AND(D50<>0,IMPACTOS!H38<>0),IMPACTOS!H38,\" \")","v":" "},{"$f":"IF(AND(D50<>0,IMPACTOS!K38<>0),IMPACTOS!K38,\" \")","v":" "},"SI",{"$f":"IFERROR(IF(D50<>0,VLOOKUP(D50,'Tablas Tablero'!$B$3:$C$100,2,FALSE),\" \"),\"\")","v":" "},0,0,0,0,0,0,0]
[null,null,null,{"$f":"IMPACTOS!C39","v":0},{"$f":"IF(AND(D51<>0,IMPACTOS!D39<>0),IMPACTOS!D39,\" \")","v":" "},{"$f":"IF(AND(D51<>0,IMPACTOS!G39<>0),IMPACTOS!G39,\" \")","v":" "},{"$f":"IF(AND(D51<>0,IMPACTOS!I39<>0),IMPACTOS!I39,\" \")","v":" "},{"$f":"IF(AND(D51<>0,IMPACTOS!H39<>0),IMPACTOS!H39,\" \")","v":" "},{"$f":"IF(AND(D51<>0,IMPACTOS!K39<>0),IMPACTOS!K39,\" \")","v":" "},"SI",{"$f":"IFERROR(IF(D51<>0,VLOOKUP(D51,'Tablas Tablero'!$B$3:$C$100,2,FALSE),\" \"),\"\")","v":" "},0,0,0,0,0,0,0]
[null,null,null,{"$f":"IMPACTOS!C40","v":0},{"$f":"IF(AND(D52<>0,IMPACTOS!D40<>0),IMPACTOS!D40,\" \")","v":" "},{"$f":"IF(AND(D52<>0,IMPACTOS!G40<>0),IMPACTOS!G40,\" \")","v":" "},{"$f":"IF(AND(D52<>0,IMPACTOS!I40<>0),IMPACTOS!I40,\" \")","v":" "},{"$f":"IF(AND(D52<>0,IMPACTOS!H40<>0),IMPACTOS!H40,\" \")","v":" "},{"$f":"IF(AND(D52<>0,IMPACTOS!K40<>0),IMPACTOS!K40,\" \")","v":" "},"SI",{"$f":"IFERROR(IF(D52<>0,VLOOKUP(D52,'Tablas Tablero'!$B$3:$C$100,2,FALSE),\" \"),\"\")","v":" "},0,0,0,0,0,0,0]
[null,null,null,{"$f":"IMPACTOS!C41","v":0},{"$f":"IF(AND(D53<>0,IMPACTOS!D41<>0),IMPACTOS!D41,\" \")","v":" "},{"$f":"IF(AND(D53<>0,IMPACTOS!G41<>0),IMPACTOS!G41,\" \")","v":" "},{"$f":"IF(AND(D53<>0,IMPACTOS!I41<>0),IMPACTOS!I41,\" \")","v":" "},{"$f":"IF(AND(D53<>0,IMPACTOS!H41<>0),IMPACTOS!H41,\" \")","v":" "},{"$f":"IF(AND(D53<>0,IMPACTOS!K41<>0),IMPACTOS!K41,\" \")","v":" "},"SI",{"$f":"IFERROR(IF(D53<>0,VLOOKUP(D53,'Tablas Tablero'!$B$3:$C$100,2,FALSE),\" \"),\"\")","v":" "},0,0,0,0,0,0,0]
[null,null,null,{"$f":"IMPACTOS!C42","v":0},{"$f":"IF(AND(D54<>0,IMPACTOS!D42<>0),IMPACTOS!D42,\" \")","v":" "},{"$f":"IF(AND(D54<>0,IMPACTOS!G42<>0),IMPACTOS!G42,\" \")","v":" "},{"$f":"IF(AND(D54<>0,IMPACTOS!I42<>0),IMPACTOS!I42,\" \")","v":" "},{"$f":"IF(AND(D54<>0,IMPACTOS!H42<>0),IMPACTOS!H42,\" \")","v":" "},{"$f":"IF(AND(D54<>0,IMPACTOS!K42<>0),IMPACTOS!K42,\" \")","v":" "},"SI",{"$f":"IFERROR(IF(D54<>0,VLOOKUP(D54,'Tablas Tablero'!$B$3:$C$100,2,FALSE),\" \"),\"\")","v":" "},0,0,0,0,0,0,0]
[null,null,null,{"$f":"IMPACTOS!C43","v":0},{"$f":"IF(AND(D55<>0,IMPACTOS!D43<>0),IMPACTOS!D43,\" \")","v":" "},{"$f":"IF(AND(D55<>0,IMPACTOS!G43<>0),IMPACTOS!G43,\" \")","v":" "},{"$f":"IF(AND(D55<>0,IMPACTOS!I43<>0),IMPACTOS!I43,\" \")","v":" "},{"$f":"IF(AND(D55<>0,IMPACTOS!H43<>0),IMPACTOS!H43,\" \")","v":" "},{"$f":"IF(AND(D55<>0,IMPACTOS!K43<>0),IMPACTOS!K43,\" \")","v":" "},"SI",{"$f":"IFERROR(IF(D55<>0,VLOOKUP(D55,'Tablas Tablero'!$B$3:$C$100,2,FALSE),\" \"),\"\")","v":" "},0,0,0,0,0,0,0]
[null,null,null,{"$f":"IMPACTOS!C44","v":0},{"$f":"IF(AND(D56<>0,IMPACTOS!D44<>0),IMPACTOS!D44,\" \")","v":" "},{"$f":"IF(AND(D56<>0,IMPACTOS!G44<>0),IMPACTOS!G44,\" \")","v":" "},{"$f":"IF(AND(D56<>0,IMPACTOS!I44<>0),IMPACTOS!I44,\" \")","v":" "},{"$f":"IF(AND(D56<>0,IMPACTOS!H44<>0),IMPACTOS!H44,\" \")","v":" "},{"$f":"IF(AND(D56<>0,IMPACTOS!K44<>0),IMPACTOS!K44,\" \")","v":" "},"SI",{"$f":"IFERROR(IF(D56<>0,VLOOKUP(D56,'Tablas Tablero'!$B$3:$C$100,2,FALSE),\" \"),\"\")","v":" "},0,0,0,0,0,0,0]
[null,null,null,{"$f":"IMPACTOS!C45","v":0},{"$f":"IF(AND(D57<>0,IMPACTOS!D45<>0),IMPACTOS!D45,\" \")","v":" "},{"$f":"IF(AND(D57<>0,IMPACTOS!G45<>0),IMPACTOS!G45,\" \")","v":" "},{"$f":"IF(AND(D57<>0,IMPACTOS!I45<>0),IMPACTOS!I45,\" \")","v":" "},{"$f":"IF(AND(D57<>0,IMPACTOS!H45<>0),IMPACTOS!H45,\" \")","v":" "},{"$f":"IF(AND(D57<>0,IMPACTOS!K45<>0),IMPACTOS!K45,\" \")","v":" "},"SI",{"$f":"IFERROR(IF(D57<>0,VLOOKUP(D57,'Tablas Tablero'!$B$3:$C$100,2,FALSE),\" \"),\"\")","v":" "},0,0,0,0,0,0,0]
[null,null,null,{"$f":"IMPACTOS!C46","v":0},{"$f":"IF(AND(D58<>0,IMPACTOS!D46<>0),IMPACTOS!D46,\" \")","v":" "},{"$f":"IF(AND(D58<>0,IMPACTOS!G46<>0),IMPACTOS!G46,\" \")","v":" "},{"$f":"IF(AND(D58<>0,IMPACTOS!I46<>0),IMPACTOS!I46,\" \")","v":" "},{"$f":"IF(AND(D58<>0,IMPACTOS!H46<>0),IMPACTOS!H46,\" \")","v":" "},{"$f":"IF(AND(D58<>0,IMPACTOS!K46<>0),IMPACTOS!K46,\" \")","v":" "},"SI",{"$f":"IFERROR(IF(D58<>0,VLOOKUP(D58,'Tablas Tablero'!$B$3:$C$100,2,FALSE),\" \"),\"\")","v":" "},0,0,0,0,0,0,0]
[null,null,null,{"$f":"IMPACTOS!C47","v":0},{"$f":"IF(AND(D59<>0,IMPACTOS!D47<>0),IMPACTOS!D47,\" \")","v":" "},{"$f":"IF(AND(D59<>0,IMPACTOS!G47<>0),IMPACTOS!G47,\" \")","v":" "},{"$f":"IF(AND(D59<>0,IMPACTOS!I47<>0),IMPACTOS!I47,\" \")","v":" "},{"$f":"IF(AND(D59<>0,IMPACTOS!H47<>0),IMPACTOS!H47,\" \")","v":" "},{"$f":"IF(AND(D59<>0,IMPACTOS!K47<>0),IMPACTOS!K47,\" \")","v":" "},"SI",{"$f":"IFERROR(IF(D59<>0,VLOOKUP(D59,'Tablas Tablero'!$B$3:$C$100,2,FALSE),\" \"),\"\")","v":" "},0,0,0,0,0,0,0]
[null,null,null,{"$f":"IMPACTOS!C48","v":0},{"$f":"IF(AND(D60<>0,IMPACTOS!D48<>0),IMPACTOS!D48,\" \")","v":" "},{"$f":"IF(AND(D60<>0,IMPACTOS!G48<>0),IMPACTOS!G48,\" \")","v":" "},{"$f":"IF(AND(D60<>0,IMPACTOS!I48<>0),IMPACTOS!I48,\" \")","v":" "},{"$f":"IF(AND(D60<>0,IMPACTOS!H48<>0),IMPACTOS!H48,\" \")","v":" "},{"$f":"IF(AND(D60<>0,IMPACTOS!K48<>0),IMPACTOS!K48,\" \")","v":" "},"SI",{"$f":"IFERROR(IF(D60<>0,VLOOKUP(D60,'Tablas Tablero'!$B$3:$C$100,2,FALSE),\" \"),\"\")","v":" "},0,0,0,0,0,0,0]
[null,null,null,{"$f":"IMPACTOS!C49","v":0},{"$f":"IF(AND(D61<>0,IMPACTOS!D49<>0),IMPACTOS!D49,\" \")","v":" "},{"$f":"IF(AND(D61<>0,IMPACTOS!G49<>0),IMPACTOS!G49,\" \")","v":" "},{"$f":"IF(AND(D61<>0,IMPACTOS!I49<>0),IMPACTOS!I49,\" \")","v":" "},{"$f":"IF(AND(D61<>0,IMPACTOS!H49<>0),IMPACTOS!H49,\" \")","v":" "},{"$f":"IF(AND(D61<>0,IMPACTOS!K49<>0),IMPACTOS!K49,\" \")","v":" "},"SI",{"$f":"IFERROR(IF(D61<>0,VLOOKUP(D61,'Tablas Tablero'!$B$3:$C$100,2,FALSE),\" \"),\"\")","v":" "},0,0,0,0,0,0,0]
[null,null,null,{"$f":"IMPACTOS!C50","v":0},{"$f":"IF(AND(D62<>0,IMPACTOS!D50<>0),IMPACTOS!D50,\" \")","v":" "},{"$f":"IF(AND(D62<>0,IMPACTOS!G50<>0),IMPACTOS!G50,\" \")","v":" "},{"$f":"IF(AND(D62<>0,IMPACTOS!I50<>0),IMPACTOS!I50,\" \")","v":" "},{"$f":"IF(AND(D62<>0,IMPACTOS!H50<>0),IMPACTOS!H50,\" \")","v":" "},{"$f":"IF(AND(D62<>0,IMPACTOS!K50<>0),IMPACTOS!K50,\" \")","v":" "},"SI",{"$f":"IFERROR(IF(D62<>0,VLOOKUP(D62,'Tablas Tablero'!$B$3:$C$100,2,FALSE),\" \"),\"\")","v":" "},0,0,0,0,0,0,0]
[null,null,null,{"$f":"IMPACTOS!C51","v":0},{"$f":"IF(AND(D63<>0,IMPACTOS!D51<>0),IMPACTOS!D51,\" \")","v":" "},{"$f":"IF(AND(D63<>0,IMPACTOS!G51<>0),IMPACTOS!G51,\" \")","v":" "},{"$f":"IF(AND(D63<>0,IMPACTOS!I51<>0),IMPACTOS!I51,\" \")","v":" "},{"$f":"IF(AND(D63<>0,IMPACTOS!H51<>0),IMPACTOS!H51,\" \")","v":" "},{"$f":"IF(AND(D63<>0,IMPACTOS!K51<>0),IMPACTOS!K51,\" \")","v":" "},"SI",{"$f":"IFERROR(IF(D63<>0,VLOOKUP(D63,'Tablas Tablero'!$B$3:$C$100,2,FALSE),\" \"),\"\")","v":" "},0,0,0,0,0,0,0]
[null,null,null,{"$f":"IMPACTOS!C52","v":0},{"$f":"IF(AND(D64<>0,IMPACTOS!D52<>0),IMPACTOS!D52,\" \")","v":" "},{"$f":"IF(AND(D64<>0,IMPACTOS!G52<>0),IMPACTOS!G52,\" \")","v":" "},{"$f":"IF(AND(D64<>0,IMPACTOS!I52<>0),IMPACTOS!I52,\" \")","v":" "},{"$f":"IF(AND(D64<>0,IMPACTOS!H52<>0),IMPACTOS!H52,\" \")","v":" "},{"$f":"IF(AND(D64<>0,IMPACTOS!K52<>0),IMPACTOS!K52,\" \")","v":" "},"SI",{"$f":"IFERROR(IF(D64<>0,VLOOKUP(D64,'Tablas Tablero'!$B$3:$C$100,2,FALSE),\" \"),\"\")","v":" "},0,0,0,0,0,0,0]
[null,null,null,{"$f":"IMPACTOS!C53","v":0},{"$f":"IF(AND(D65<>0,IMPACTOS!D53<>0),IMPACTOS!D53,\" \")","v":" "},{"$f":"IF(AND(D65<>0,IMPACTOS!G53<>0),IMPACTOS!G53,\" \")","v":" "},{"$f":"IF(AND(D65<>0,IMPACTOS!I53<>0),IMPACTOS!I53,\" \")","v":" "},{"$f":"IF(AND(D65<>0,IMPACTOS!H53<>0),IMPACTOS!H53,\" \")","v":" "},{"$f":"IF(AND(D65<>0,IMPACTOS!K53<>0),IMPACTOS!K53,\" \")","v":" "},"SI",{"$f":"IFERROR(IF(D65<>0,VLOOKUP(D65,'Tablas Tablero'!$B$3:$C$100,2,FALSE),\" \"),\"\")","v":" "},0,0,0,0,0,0,0]
[null,null,null,{"$f":"IMPACTOS!C54","v":0},{"$f":"IF(AND(D66<>0,IMPACTOS!D54<>0),IMPACTOS!D54,\" \")","v":" "},{"$f":"IF(AND(D66<>0,IMPACTOS!G54<>0),IMPACTOS!G54,\" \")","v":" "},{"$f":"IF(AND(D66<>0,IMPACTOS!I54<>0),IMPACTOS!I54,\" \")","v":" "},{"$f":"IF(AND(D66<>0,IMPACTOS!H54<>0),IMPACTOS!H54,\" \")","v":" "},{"$f":"IF(AND(D66<>0,IMPACTOS!K54<>0),IMPACTOS!K54,\" \")","v":" "},"SI",{"$f":"IFERROR(IF(D66<>0,VLOOKUP(D66,'Tablas Tablero'!$B$3:$C$100,2,FALSE),\" \"),\"\")","v":" "},0,0,0,0,0,0,0]
[null,null,null,{"$f":"IMPACTOS!C55","v":0},{"$f":"IF(AND(D67<>0,IMPACTOS!D55<>0),IMPACTOS!D55,\" \")","v":" "},{"$f":"IF(AND(D67<>0,IMPACTOS!G55<>0),IMPACTOS!G55,\" \")","v":" "},{"$f":"IF(AND(D67<>0,IMPACTOS!I55<>0),IMPACTOS!I55,\" \")","v":" "},{"$f":"IF(AND(D67<>0,IMPACTOS!H55<>0),IMPACTOS!H55,\" \")","v":" "},{"$f":"IF(AND(D67<>0,IMPACTOS!K55<>0),IMPACTOS!K55,\" \")","v":" "},"SI",{"$f":"IFERROR(IF(D67<>0,VLOOKUP(D67,'Tablas Tablero'!$B$3:$C$100,2,FALSE),\" \"),\"\")","v":" "},0,0,0,0,0,0,0]
[null,null,null,{"$f":"IMPACTOS!C56","v":0},{"$f":"IF(AND(D68<>0,IMPACTOS!D56<>0),IMPACTOS!D56,\" \")","v":" "},{"$f":"IF(AND(D68<>0,IMPACTOS!G56<>0),IMPACTOS!G56,\" \")","v":" "},{"$f":"IF(AND(D68<>0,IMPACTOS!I56<>0),IMPACTOS!I56,\" \")","v":" "},{"$f":"IF(AND(D68<>0,IMPACTOS!H56<>0),IMPACTOS!H56,\" \")","v":" "},{"$f":"IF(AND(D68<>0,IMPACTOS!K56<>0),IMPACTOS!K56,\" \")","v":" "},"SI",{"$f":"IFERROR(IF(D68<>0,VLOOKUP(D68,'Tablas Tablero'!$B$3:$C$100,2,FALSE),\" \"),\"\")","v":" "},0,0,0,0,0,0,0]
[null,null,null,{"$f":"IMPACTOS!C57","v":0},{"$f":"IF(AND(D69<>0,IMPACTOS!D57<>0),IMPACTOS!D57,\" \")","v":" "},{"$f":"IF(AND(D69<>0,IMPACTOS!G57<>0),IMPACTOS!G57,\" \")","v":" "},{"$f":"IF(AND(D69<>0,IMPACTOS!I57<>0),IMPACTOS!I57,\" \")","v":" "},{"$f":"IF(AND(D69<>0,IMPACTOS!H57<>0),IMPACTOS!H57,\" \")","v":" "},{"$f":"IF(AND(D69<>0,IMPACTOS!K57<>0),IMPACTOS!K57,\" \")","v":" "},"SI",{"$f":"IFERROR(IF(D69<>0,VLOOKUP(D69,'Tablas Tablero'!$B$3:$C$100,2,FALSE),\" \"),\"\")","v":" "},0,0,0,0,0,0,0]
[null,null,null,{"$f":"IMPACTOS!C58","v":0},{"$f":"IF(AND(D70<>0,IMPACTOS!D58<>0),IMPACTOS!D58,\" \")","v":" "},{"$f":"IF(AND(D70<>0,IMPACTOS!G58<>0),IMPACTOS!G58,\" \")","v":" "},{"$f":"IF(AND(D70<>0,IMPACTOS!I58<>0),IMPACTOS!I58,\" \")","v":" "},{"$f":"IF(AND(D70<>0,IMPACTOS!H58<>0),IMPACTOS!H58,\" \")","v":" "},{"$f":"IF(AND(D70<>0,IMPACTOS!K58<>0),IMPACTOS!K58,\" \")","v":" "},"SI",{"$f":"IFERROR(IF(D70<>0,VLOOKUP(D70,'Tablas Tablero'!$B$3:$C$100,2,FALSE),\" \"),\"\")","v":" "},0,0,0,0,0,0,0]
[null,null,null,{"$f":"IMPACTOS!C59","v":0},{"$f":"IF(AND(D71<>0,IMPACTOS!D59<>0),IMPACTOS!D59,\" \")","v":" "},{"$f":"IF(AND(D71<>0,IMPACTOS!G59<>0),IMPACTOS!G59,\" \")","v":" "},{"$f":"IF(AND(D71<>0,IMPACTOS!I59<>0),IMPACTOS!I59,\" \")","v":" "},{"$f":"IF(AND(D71<>0,IMPACTOS!H59<>0),IMPACTOS!H59,\" \")","v":" "},{"$f":"IF(AND(D71<>0,IMPACTOS!K59<>0),IMPACTOS!K59,\" \")","v":" "},"SI",{"$f":"IFERROR(IF(D71<>0,VLOOKUP(D71,'Tablas Tablero'!$B$3:$C$100,2,FALSE),\" \"),\"\")","v":" "},{"$f":"SUM(LEN(F71)-LEN(SUBSTITUTE(F71,\"Procesos\",\"\")))/LEN(\"Procesos\")","v":0},{"$f":"SUM(LEN(F71)-LEN(SUBSTITUTE(F71,\"Estrucutra\",\"\")))/LEN(\"Estrucutra\")","v":0},{"$f":"SUM(LEN(F71)-LEN(SUBSTITUTE(F71,\"Infraestrucutra\",\"\")))/LEN(\"Infraestrucutra\")","v":0},{"$f":"SUM(LEN(F71)-LEN(SUBSTITUTE(F71,\"Personas\",\"\")))/LEN(\"Personas\")","v":0},{"$f":"SUM(LEN(F71)-LEN(SUBSTITUTE(F71,\"Cultura\",\"\")))/LEN(\"Cultura\")","v":0},{"$f":"SUM(LEN(F71)-LEN(SUBSTITUTE(F71,\"Poder\",\"\")))/LEN(\"Poder\")","v":0},{"$f":"SUM(LEN(F71)-LEN(SUBSTITUTE(F71,\"Otra\",\"\")))/LEN(\"Otra\")","v":0}]
[null,null,null,{"$f":"IMPACTOS!C60","v":0},{"$f":"IF(AND(D72<>0,IMPACTOS!D60<>0),IMPACTOS!D60,\" \")","v":" "},{"$f":"IF(AND(D72<>0,IMPACTOS!G60<>0),IMPACTOS!G60,\" \")","v":" "},{"$f":"IF(AND(D72<>0,IMPACTOS!I60<>0),IMPACTOS!I60,\" \")","v":" "},{"$f":"IF(AND(D72<>0,IMPACTOS!H60<>0),IMPACTOS!H60,\" \")","v":" "},{"$f":"IF(AND(D72<>0,IMPACTOS!K60<>0),IMPACTOS!K60,\" \")","v":" "},{"$f":"IF(K72<>\"\",\"SI\",\"NO\")","v":"SI"},{"$f":"IFERROR(IF(D72<>0,VLOOKUP(D72,'Tablas Tablero'!$B$3:$C$100,2,FALSE),\" \"),\"\")","v":" "},0,0,0,0,0,0,0]
[null,null,null,{"$f":"IMPACTOS!C61","v":0},{"$f":"IF(AND(D73<>0,IMPACTOS!D61<>0),IMPACTOS!D61,\" \")","v":" "},{"$f":"IF(AND(D73<>0,IMPACTOS!G61<>0),IMPACTOS!G61,\" \")","v":" "},{"$f":"IF(AND(D73<>0,IMPACTOS!I61<>0),IMPACTOS!I61,\" \")","v":" "},{"$f":"IF(AND(D73<>0,IMPACTOS!H61<>0),IMPACTOS!H61,\" \")","v":" "},{"$f":"IF(AND(D73<>0,IMPACTOS!K61<>0),IMPACTOS!K61,\" \")","v":" "},"SI",{"$f":"IFERROR(IF(D73<>0,VLOOKUP(D73,'Tablas Tablero'!$B$3:$C$100,2,FALSE),\" \"),\"\")","v":" "},0,0,0,0,0,0,0]
[null,null,null,{"$f":"IMPACTOS!C62","v":0},{"$f":"IF(AND(D74<>0,IMPACTOS!D62<>0),IMPACTOS!D62,\" \")","v":" "},{"$f":"IF(AND(D74<>0,IMPACTOS!G62<>0),IMPACTOS!G62,\" \")","v":" "},{"$f":"IF(AND(D74<>0,IMPACTOS!I62<>0),IMPACTOS!I62,\" \")","v":" "},{"$f":"IF(AND(D74<>0,IMPACTOS!H62<>0),IMPACTOS!H62,\" \")","v":" "},{"$f":"IF(AND(D74<>0,IMPACTOS!K62<>0),IMPACTOS!K62,\" \")","v":" "},"SI",{"$f":"IFERROR(IF(D74<>0,VLOOKUP(D74,'Tablas Tablero'!$B$3:$C$100,2,FALSE),\" \"),\"\")","v":" "},0,0,0,0,0,0,0]
[null,null,null,{"$f":"IMPACTOS!C63","v":0},{"$f":"IF(AND(D75<>0,IMPACTOS!D63<>0),IMPACTOS!D63,\" \")","v":" "},{"$f":"IF(AND(D75<>0,IMPACTOS!G63<>0),IMPACTOS!G63,\" \")","v":" "},{"$f":"IF(AND(D75<>0,IMPACTOS!I63<>0),IMPACTOS!I63,\" \")","v":" "},{"$f":"IF(AND(D75<>0,IMPACTOS!H63<>0),IMPACTOS!H63,\" \")","v":" "},{"$f":"IF(AND(D75<>0,IMPACTOS!K63<>0),IMPACTOS!K63,\" \")","v":" "},"SI",{"$f":"IFERROR(IF(D75<>0,VLOOKUP(D75,'Tablas Tablero'!$B$3:$C$100,2,FALSE),\" \"),\"\")","v":" "},0,0,0,0,0,0,0]
[null,null,null,{"$f":"IMPACTOS!C64","v":0},{"$f":"IF(AND(D76<>0,IMPACTOS!D64<>0),IMPACTOS!D64,\" \")","v":" "},{"$f":"IF(AND(D76<>0,IMPACTOS!G64<>0),IMPACTOS!G64,\" \")","v":" "},{"$f":"IF(AND(D76<>0,IMPACTOS!I64<>0),IMPACTOS!I64,\" \")","v":" "},{"$f":"IF(AND(D76<>0,IMPACTOS!H64<>0),IMPACTOS!H64,\" \")","v":" "},{"$f":"IF(AND(D76<>0,IMPACTOS!K64<>0),IMPACTOS!K64,\" \")","v":" "},"SI",{"$f":"IFERROR(IF(D76<>0,VLOOKUP(D76,'Tablas Tablero'!$B$3:$C$100,2,FALSE),\" \"),\"\")","v":" "},0,0,0,0,0,0,0]
[null,null,null,{"$f":"IMPACTOS!C65","v":0},{"$f":"IF(AND(D77<>0,IMPACTOS!D65<>0),IMPACTOS!D65,\" \")","v":" "},{"$f":"IF(AND(D77<>0,IMPACTOS!G65<>0),IMPACTOS!G65,\" \")","v":" "},{"$f":"IF(AND(D77<>0,IMPACTOS!I65<>0),IMPACTOS!I65,\" \")","v":" "},{"$f":"IF(AND(D77<>0,IMPACTOS!H65<>0),IMPACTOS!H65,\" \")","v":" "},{"$f":"IF(AND(D77<>0,IMPACTOS!K65<>0),IMPACTOS!K65,\" \")","v":" "},"SI",{"$f":"IFERROR(IF(D77<>0,VLOOKUP(D77,'Tablas Tablero'!$B$3:$C$100,2,FALSE),\" \"),\"\")","v":" "},0,0,0,0,0,0,0]
[null,null,null,{"$f":"IMPACTOS!C66","v":0},{"$f":"IF(AND(D78<>0,IMPACTOS!D66<>0),IMPACTOS!D66,\" \")","v":" "},{"$f":"IF(AND(D78<>0,IMPACTOS!G66<>0),IMPACTOS!G66,\" \")","v":" "},{"$f":"IF(AND(D78<>0,IMPACTOS!I66<>0),IMPACTOS!I66,\" \")","v":" "},{"$f":"IF(AND(D78<>0,IMPACTOS!H66<>0),IMPACTOS!H66,\" \")","v":" "},{"$f":"IF(AND(D78<>0,IMPACTOS!K66<>0),IMPACTOS!K66,\" \")","v":" "},"SI",{"$f":"IFERROR(IF(D78<>0,VLOOKUP(D78,'Tablas Tablero'!$B$3:$C$100,2,FALSE),\" \"),\"\")","v":" "},0,0,0,0,0,0,0]
[null,null,null,{"$f":"IMPACTOS!C67","v":0},{"$f":"IF(AND(D79<>0,IMPACTOS!D67<>0),IMPACTOS!D67,\" \")","v":" "},{"$f":"IF(AND(D79<>0,IMPACTOS!G67<>0),IMPACTOS!G67,\" \")","v":" "},{"$f":"IF(AND(D79<>0,IMPACTOS!I67<>0),IMPACTOS!I67,\" \")","v":" "},{"$f":"IF(AND(D79<>0,IMPACTOS!H67<>0),IMPACTOS!H67,\" \")","v":" "},{"$f":"IF(AND(D79<>0,IMPACTOS!K67<>0),IMPACTOS!K67,\" \")","v":" "},"SI",{"$f":"IFERROR(IF(D79<>0,VLOOKUP(D79,'Tablas Tablero'!$B$3:$C$100,2,FALSE),\" \"),\"\")","v":" "},0,0,0,0,0,0,0]
[null,null,null,{"$f":"IMPACTOS!C68","v":0},{"$f":"IF(AND(D80<>0,IMPACTOS!D68<>0),IMPACTOS!D68,\" \")","v":" "},{"$f":"IF(AND(D80<>0,IMPACTOS!G68<>0),IMPACTOS!G68,\" \")","v":" "},{"$f":"IF(AND(D80<>0,IMPACTOS!I68<>0),IMPACTOS!I68,\" \")","v":" "},{"$f":"IF(AND(D80<>0,IMPACTOS!H68<>0),IMPACTOS!H68,\" \")","v":" "},{"$f":"IF(AND(D80<>0,IMPACTOS!K68<>0),IMPACTOS!K68,\" \")","v":" "},"SI",{"$f":"IFERROR(IF(D80<>0,VLOOKUP(D80,'Tablas Tablero'!$B$3:$C$100,2,FALSE),\" \"),\"\")","v":" "},0,0,0,0,0,0,0]
[null,null,null,{"$f":"IMPACTOS!C69","v":0},{"$f":"IF(AND(D81<>0,IMPACTOS!D69<>0),IMPACTOS!D69,\" \")","v":" "},{"$f":"IF(AND(D81<>0,IMPACTOS!G69<>0),IMPACTOS!G69,\" \")","v":" "},{"$f":"IF(AND(D81<>0,IMPACTOS!I69<>0),IMPACTOS!I69,\" \")","v":" "},{"$f":"IF(AND(D81<>0,IMPACTOS!H69<>0),IMPACTOS!H69,\" \")","v":" "},{"$f":"IF(AND(D81<>0,IMPACTOS!K69<>0),IMPACTOS!K69,\" \")","v":" "},"SI",{"$f":"IFERROR(IF(D81<>0,VLOOKUP(D81,'Tablas Tablero'!$B$3:$C$100,2,FALSE),\" \"),\"\")","v":" "},0,0,0,0,0,0,0]
[null,null,null,{"$f":"IMPACTOS!C70","v":0},{"$f":"IF(AND(D82<>0,IMPACTOS!D70<>0),IMPACTOS!D70,\" \")","v":" "},{"$f":"IF(AND(D82<>0,IMPACTOS!G70<>0),IMPACTOS!G70,\" \")","v":" "},{"$f":"IF(AND(D82<>0,IMPACTOS!I70<>0),IMPACTOS!I70,\" \")","v":" "},{"$f":"IF(AND(D82<>0,IMPACTOS!H70<>0),IMPACTOS!H70,\" \")","v":" "},{"$f":"IF(AND(D82<>0,IMPACTOS!K70<>0),IMPACTOS!K70,\" \")","v":" "},"SI",{"$f":"IFERROR(IF(D82<>0,VLOOKUP(D82,'Tablas Tablero'!$B$3:$C$100,2,FALSE),\" \"),\"\")","v":" "},0,0,0,0,0,0,0]
[null,null,null,{"$f":"IMPACTOS!C71","v":0},{"$f":"IF(AND(D83<>0,IMPACTOS!D71<>0),IMPACTOS!D71,\" \")","v":" "},{"$f":"IF(AND(D83<>0,IMPACTOS!G71<>0),IMPACTOS!G71,\" \")","v":" "},{"$f":"IF(AND(D83<>0,IMPACTOS!I71<>0),IMPACTOS!I71,\" \")","v":" "},{"$f":"IF(AND(D83<>0,IMPACTOS!H71<>0),IMPACTOS!H71,\" \")","v":" "},{"$f":"IF(AND(D83<>0,IMPACTOS!K71<>0),IMPACTOS!K71,\" \")","v":" "},"SI",{"$f":"IFERROR(IF(D83<>0,VLOOKUP(D83,'Tablas Tablero'!$B$3:$C$100,2,FALSE),\" \"),\"\")","v":" "},0,0,0,0,0,0,0]
[null,null,null,{"$f":"IMPACTOS!C72","v":0},{"$f":"IF(AND(D84<>0,IMPACTOS!D72<>0),IMPACTOS!D72,\" \")","v":" "},{"$f":"IF(AND(D84<>0,IMPACTOS!G72<>0),IMPACTOS!G72,\" \")","v":" "},{"$f":"IF(AND(D84<>0,IMPACTOS!I72<>0),IMPACTOS!I72,\" \")","v":" "},{"$f":"IF(AND(D84<>0,IMPACTOS!H72<>0),IMPACTOS!H72,\" \")","v":" "},{"$f":"IF(AND(D84<>0,IMPACTOS!K72<>0),IMPACTOS!K72,\" \")","v":" "},"SI",{"$f":"IFERROR(IF(D84<>0,VLOOKUP(D84,'Tablas Tablero'!$B$3:$C$100,2,FALSE),\" \"),\"\")","v":" "},0,0,0,0,0,0,0]
[null,null,null,{"$f":"IMPACTOS!C73","v":0},{"$f":"IF(AND(D85<>0,IMPACTOS!D73<>0),IMPACTOS!D73,\" \")","v":" "},{"$f":"IF(AND(D85<>0,IMPACTOS!G73<>0),IMPACTOS!G73,\" \")","v":" "},{"$f":"IF(AND(D85<>0,IMPACTOS!I73<>0),IMPACTOS!I73,\" \")","v":" "},{"$f":"IF(AND(D85<>0,IMPACTOS!H73<>0),IMPACTOS!H73,\" \")","v":" "},{"$f":"IF(AND(D85<>0,IMPACTOS!K73<>0),IMPACTOS!K73,\" \")","v":" "},"SI",{"$f":"IFERROR(IF(D85<>0,VLOOKUP(D85,'Tablas Tablero'!$B$3:$C$100,2,FALSE),\" \"),\"\")","v":" "},0,0,0,0,0,0,0]
[null,null,null,{"$f":"IMPACTOS!C74","v":0},{"$f":"IF(AND(D86<>0,IMPACTOS!D74<>0),IMPACTOS!D74,\" \")","v":" "},{"$f":"IF(AND(D86<>0,IMPACTOS!G74<>0),IMPACTOS!G74,\" \")","v":" "},{"$f":"IF(AND(D86<>0,IMPACTOS!I74<>0),IMPACTOS!I74,\" \")","v":" "},{"$f":"IF(AND(D86<>0,IMPACTOS!H74<>0),IMPACTOS!H74,\" \")","v":" "},{"$f":"IF(AND(D86<>0,IMPACTOS!K74<>0),IMPACTOS!K74,\" \")","v":" "},"SI",{"$f":"IFERROR(IF(D86<>0,VLOOKUP(D86,'Tablas Tablero'!$B$3:$C$100,2,FALSE),\" \"),\"\")","v":" "},0,0,0,0,0,0,0]
[null,null,null,{"$f":"IMPACTOS!C75","v":0},{"$f":"IF(AND(D87<>0,IMPACTOS!D75<>0),IMPACTOS!D75,\" \")","v":" "},{"$f":"IF(AND(D87<>0,IMPACTOS!G75<>0),IMPACTOS!G75,\" \")","v":" "},{"$f":"IF(AND(D87<>0,IMPACTOS!I75<>0),IMPACTOS!I75,\" \")","v":" "},{"$f":"IF(AND(D87<>0,IMPACTOS!H75<>0),IMPACTOS!H75,\" \")","v":" "},{"$f":"IF(AND(D87<>0,IMPACTOS!K75<>0),IMPACTOS!K75,\" \")","v":" "},"SI",{"$f":"IFERROR(IF(D87<>0,VLOOKUP(D87,'Tablas Tablero'!$B$3:$C$100,2,FALSE),\" \"),\"\")","v":" "},0,0,0,0,0,0,0]
[null,null,null,{"$f":"IMPACTOS!C76","v":0},{"$f":"IF(AND(D88<>0,IMPACTOS!D76<>0),IMPACTOS!D76,\" \")","v":" "},{"$f":"IF(AND(D88<>0,IMPACTOS!G76<>0),IMPACTOS!G76,\" \")","v":" "},{"$f":"IF(AND(D88<>0,IMPACTOS!I76<>0),IMPACTOS!I76,\" \")","v":" "},{"$f":"IF(AND(D88<>0,IMPACTOS!H76<>0),IMPACTOS!H76,\" \")","v":" "},{"$f":"IF(AND(D88<>0,IMPACTOS!K76<>0),IMPACTOS!K76,\" \")","v":" "},"SI",{"$f":"IFERROR(IF(D88<>0,VLOOKUP(D88,'Tablas Tablero'!$B$3:$C$100,2,FALSE),\" \"),\"\")","v":" "},0,0,0,0,0,0,0]
[null,null,null,{"$f":"IMPACTOS!C77","v":0},{"$f":"IF(AND(D89<>0,IMPACTOS!D77<>0),IMPACTOS!D77,\" \")","v":" "},{"$f":"IF(AND(D89<>0,IMPACTOS!G77<>0),IMPACTOS!G77,\" \")","v":" "},{"$f":"IF(AND(D89<>0,IMPACTOS!I77<>0),IMPACTOS!I77,\" \")","v":" "},{"$f":"IF(AND(D89<>0,IMPACTOS!H77<>0),IMPACTOS!H77,\" \")","v":" "},{"$f":"IF(AND(D89<>0,IMPACTOS!K77<>0),IMPACTOS!K77,\" \")","v":" "},"SI",{"$f":"IFERROR(IF(D89<>0,VLOOKUP(D89,'Tablas Tablero'!$B$3:$C$100,2,FALSE),\" \"),\"\")","v":" "},0,0,0,0,0,0,0]
[null,null,null,{"$f":"IMPACTOS!C78","v":0},{"$f":"IF(AND(D90<>0,IMPACTOS!D78<>0),IMPACTOS!D78,\" \")","v":" "},{"$f":"IF(AND(D90<>0,IMPACTOS!G78<>0),IMPACTOS!G78,\" \")","v":" "},{"$f":"IF(AND(D90<>0,IMPACTOS!I78<>0),IMPACTOS!I78,\" \")","v":" "},{"$f":"IF(AND(D90<>0,IMPACTOS!H78<>0),IMPACTOS!H78,\" \")","v":" "},{"$f":"IF(AND(D90<>0,IMPACTOS!K78<>0),IMPACTOS!K78,\" \")","v":" "},"SI",{"$f":"IFERROR(IF(D90<>0,VLOOKUP(D90,'Tablas Tablero'!$B$3:$C$100,2,FALSE),\" \"),\"\")","v":" "},0,0,0,0,0,0,0]
[null,null,null,{"$f":"IMPACTOS!C79","v":0},{"$f":"IF(AND(D91<>0,IMPACTOS!D79<>0),IMPACTOS!D79,\" \")","v":" "},{"$f":"IF(AND(D91<>0,IMPACTOS!G79<>0),IMPACTOS!G79,\" \")","v":" "},{"$f":"IF(AND(D91<>0,IMPACTOS!I79<>0),IMPACTOS!I79,\" \")","v":" "},{"$f":"IF(AND(D91<>0,IMPACTOS!H79<>0),IMPACTOS!H79,\" \")","v":" "},{"$f":"IF(AND(D91<>0,IMPACTOS!K79<>0),IMPACTOS!K79,\" \")","v":" "},"SI",{"$f":"IFERROR(IF(D91<>0,VLOOKUP(D91,'Tablas Tablero'!$B$3:$C$100,2,FALSE),\" \"),\"\")","v":" "},0,0,0,0,0,0,0]
[null,null,null,{"$f":"IMPACTOS!C80","v":0},{"$f":"IF(AND(D92<>0,IMPACTOS!D80<>0),IMPACTOS!D80,\" \")","v":" "},{"$f":"IF(AND(D92<>0,IMPACTOS!G80<>0),IMPACTOS!G80,\" \")","v":" "},{"$f":"IF(AND(D92<>0,IMPACTOS!I80<>0),IMPACTOS!I80,\" \")","v":" "},{"$f":"IF(AND(D92<>0,IMPACTOS!H80<>0),IMPACTOS!H80,\" \")","v":" "},{"$f":"IF(AND(D92<>0,IMPACTOS!K80<>0),IMPACTOS!K80,\" \")","v":" "},"SI",{"$f":"IFERROR(IF(D92<>0,VLOOKUP(D92,'Tablas Tablero'!$B$3:$C$100,2,FALSE),\" \"),\"\")","v":" "},0,0,0,0,0,0,0]
[null,null,null,{"$f":"IMPACTOS!C81","v":0},{"$f":"IF(AND(D93<>0,IMPACTOS!D81<>0),IMPACTOS!D81,\" \")","v":" "},{"$f":"IF(AND(D93<>0,IMPACTOS!G81<>0),IMPACTOS!G81,\" \")","v":" "},{"$f":"IF(AND(D93<>0,IMPACTOS!I81<>0),IMPACTOS!I81,\" \")","v":" "},{"$f":"IF(AND(D93<>0,IMPACTOS!H81<>0),IMPACTOS!H81,\" \")","v":" "},{"$f":"IF(AND(D93<>0,IMPACTOS!K81<>0),IMPACTOS!K81,\" \")","v":" "},"SI",{"$f":"IFERROR(IF(D93<>0,VLOOKUP(D93,'Tablas Tablero'!$B$3:$C$100,2,FALSE),\" \"),\"\")","v":" "},0,0,0,0,0,0,0]
[null,null,null,{"$f":"IMPACTOS!C82","v":0},{"$f":"IF(AND(D94<>0,IMPACTOS!D82<>0),IMPACTOS!D82,\" \")","v":" "},{"$f":"IF(AND(D94<>0,IMPACTOS!G82<>0),IMPACTOS!G82,\" \")","v":" "},{"$f":"IF(AND(D94<>0,IMPACTOS!I82<>0),IMPACTOS!I82,\" \")","v":" "},{"$f":"IF(AND(D94<>0,IMPACTOS!H82<>0),IMPACTOS!H82,\" \")","v":" "},{"$f":"IF(AND(D94<>0,IMPACTOS!K82<>0),IMPACTOS!K82,\" \")","v":" "},"SI",{"$f":"IFERROR(IF(D94<>0,VLOOKUP(D94,'Tablas Tablero'!$B$3:$C$100,2,FALSE),\" \"),\"\")","v":" "},0,0,0,0,0,0,0]
[null,null,null,{"$f":"IMPACTOS!C83","v":0},{"$f":"IF(AND(D95<>0,IMPACTOS!D83<>0),IMPACTOS!D83,\" \")","v":" "},{"$f":"IF(AND(D95<>0,IMPACTOS!G83<>0),IMPACTOS!G83,\" \")","v":" "},{"$f":"IF(AND(D95<>0,IMPACTOS!I83<>0),IMPACTOS!I83,\" \")","v":" "},{"$f":"IF(AND(D95<>0,IMPACTOS!H83<>0),IMPACTOS!H83,\" \")","v":" "},{"$f":"IF(AND(D95<>0,IMPACTOS!K83<>0),IMPACTOS!K83,\" \")","v":" "},"SI",{"$f":"IFERROR(IF(D95<>0,VLOOKUP(D95,'Tablas Tablero'!$B$3:$C$100,2,FALSE),\" \"),\"\")","v":" "},0,0,0,0,0,0,0]
[null,null,null,{"$f":"IMPACTOS!C84","v":0},{"$f":"IF(AND(D96<>0,IMPACTOS!D84<>0),IMPACTOS!D84,\" \")","v":" "},{"$f":"IF(AND(D96<>0,IMPACTOS!G84<>0),IMPACTOS!G84,\" \")","v":" "},{"$f":"IF(AND(D96<>0,IMPACTOS!I84<>0),IMPACTOS!I84,\" \")","v":" "},{"$f":"IF(AND(D96<>0,IMPACTOS!H84<>0),IMPACTOS!H84,\" \")","v":" "},{"$f":"IF(AND(D96<>0,IMPACTOS!K84<>0),IMPACTOS!K84,\" \")","v":" "},"SI",{"$f":"IFERROR(IF(D96<>0,VLOOKUP(D96,'Tablas Tablero'!$B$3:$C$100,2,FALSE),\" \"),\"\")","v":" "},0,0,0,0,0,0,0]
[null,null,null,{"$f":"IMPACTOS!C85","v":0},{"$f":"IF(AND(D97<>0,IMPACTOS!D85<>0),IMPACTOS!D85,\" \")","v":" "},{"$f":"IF(AND(D97<>0,IMPACTOS!G85<>0),IMPACTOS!G85,\" \")","v":" "},{"$f":"IF(AND(D97<>0,IMPACTOS!I85<>0),IMPACTOS!I85,\" \")","v":" "},{"$f":"IF(AND(D97<>0,IMPACTOS!H85<>0),IMPACTOS!H85,\" \")","v":" "},{"$f":"IF(AND(D97<>0,IMPACTOS!K85<>0),IMPACTOS!K85,\" \")","v":" "},"SI",{"$f":"IFERROR(IF(D97<>0,VLOOKUP(D97,'Tablas Tablero'!$B$3:$C$100,2,FALSE),\" \"),\"\")","v":" "},0,0,0,0,0,0,0]
[null,null,null,{"$f":"IMPACTOS!C86","v":0},{"$f":"IF(AND(D98<>0,IMPACTOS!D86<>0),IMPACTOS!D86,\" \")","v":" "},{"$f":"IF(AND(D98<>0,IMPACTOS!G86<>0),IMPACTOS!G86,\" \")","v":" "},{"$f":"IF(AND(D98<>0,IMPACTOS!I86<>0),IMPACTOS!I86,\" \")","v":" "},{"$f":"IF(AND(D98<>0,IMPACTOS!H86<>0),IMPACTOS!H86,\" \")","v":" "},{"$f":"IF(AND(D98<>0,IMPACTOS!K86<>0),IMPACTOS!K86,\" \")","v":" "},"SI",{"$f":"IFERROR(IF(D98<>0,VLOOKUP(D98,'Tablas Tablero'!$B$3:$C$100,2,FALSE),\" \"),\"\")","v":" "},0,0,0,0,0,0,0]
[null,null,null,{"$f":"IMPACTOS!C87","v":0},{"$f":"IF(AND(D99<>0,IMPACTOS!D87<>0),IMPACTOS!D87,\" \")","v":" "},{"$f":"IF(AND(D99<>0,IMPACTOS!G87<>0),IMPACTOS!G87,\" \")","v":" "},{"$f":"IF(AND(D99<>0,IMPACTOS!I87<>0),IMPACTOS!I87,\" \")","v":" "},{"$f":"IF(AND(D99<>0,IMPACTOS!H87<>0),IMPACTOS!H87,\" \")","v":" "},{"$f":"IF(AND(D99<>0,IMPACTOS!K87<>0),IMPACTOS!K87,\" \")","v":" "},"SI",{"$f":"IFERROR(IF(D99<>0,VLOOKUP(D99,'Tablas Tablero'!$B$3:$C$100,2,FALSE),\" \"),\"\")","v":" "},0,0,0,0,0,0,0]
[]
[null,null,null,null,null,null,null,null,"Capacidad impactada"]
[null,null,null,null,null,null,null,null,"Procesos ",{"$f":"SUM(L7:L99)","v":{"$error":"#REF!"}}]
[null,null,null,null,null,null,null,null,"Estrucutra ",{"$f":"SUM(M8:M100)","v":{"$error":"#REF!"}}]
[null,null,null,null,null,null,null,null,"Infraestrucutra TI",{"$f":"SUM(N7:N99)","v":{"$error":"#REF!"}}]
[null,null,null,null,null,null,null,null,"Personas",{"$f":"SUM(O7:O99)","v":{"$error":"#REF!"}}]
[null,null,null,null,null,null,null,null,"Cultura",{"$f":"SUM(P7:P99)","v":{"$error":"#REF!"}}]
[null,null,null,null,null,null,null,null,"Poder",{"$f":"SUM(Q7:Q99)","v":{"$error":"#REF!"}}]
[null,null,null,null,null,null,null,null,"Otra",{"$f":"SUM(R7:R99)","v":{"$error":"#REF!"}}]
[]
[null,null,null,null,null,null,null,null,"Tipo de impacto"]
[null,null,null,null,null,null,null,null,"Positivo",{"$f":"COUNTIF($G$8:$G$99,Tablas!B175)","v":0}]
[null,null,null,null,null,null,null,null,"Negativo",{"$f":"COUNTIF($G$8:$G$99,Tablas!B176)","v":0}]
[null,null,null,null,null,null,null,null,"Sin definir",{"$f":"(COUNTIF($G$8:$G$99,Tablas!B177))+(COUNTIF($G$8:$G$99,\"0\"))","v":0}]
[null,null,null,null,null,null,null,null,null,null,null,"Actividades por tipo de impacto"]

{"sheet":"Tablero de Seguimiento","index":33,"n_rows":76,"n_cols":270,"rows_kept":76,"cut":false,"hidden":false,"merged":[[3,7,3,11],[4,0,4,6],[5,8,5,9],[5,11,5,12],[5,14,5,15],[5,17,5,18],[5,20,5,21],[5,23,5,24],[5,26,5,27],[5,29,5,30],[7,0,13,0],[7,1,13,1],[7,4,13,4],[7,8,13,8],[7,9,13,9],[7,11,13,11],[7,30,13,30],[14,0,19,0],[14,1,19,1],[14,4,19,4],[14,8,19,8],[14,9,19,9],[14,14,19,14],[14,15,19,15],[14,17,19,17],[14,18,19,18],[7,21,13,21],[7,23,13,23],[7,24,13,24],[7,26,13,26],[7,27,13,27],[7,29,13,29],[7,12,13,12],[7,14,13,14],[7,15,13,15],[7,17,13,17],[7,18,13,18],[7,20,13,20],[14,29,19,29],[14,30,19,30],[20,0,24,0],[20,1,24,1],[20,4,24,4],[20,8,24,8],[20,9,24,9],[20,11,24,11],[20,12,24,12],[20,14,24,14],[14,20,19,20],[14,21,19,21],[14,23,19,23],[14,24,19,24],[14,26,19,26],[14,27,19,27],[20,24,24,24],[20,26,24,26],[20,27,24,27],[20,29,24,29],[20,30,24,30],[25,0,31,0],[25,1,31,1],[25,4,31,4],[25,8,31,8],[25,9,31,9],[20,15,24,15],[20,17,24,17],[20,18,24,18],[20,20,24,20],[20,21,24,21],[20,23,24,23],[25,29,31,29],[25,30,31,30],[25,21,31,21],[25,23,31,23],[25,24,31,24],[25,26,31,26],[25,27,31,27],[32,0,36,0],[32,1,36,1],[32,4,36,4],[32,8,36,8],[32,9,36,9],[32,11,36,11],[32,12,36,12],[32,14,36,14],[25,20,31,20],[25,11,31,11],[25,12,31,12],[25,14,31,14],[25,15,31,15],[25,17,31,17],[25,18,31,18],[32,24,36,24],[32,26,36,26],[32,27,36,27],[32,29,36,29],[32,30,36,30],[37,0,41,0],[37,1,41,1],[37,4,41,4],[37,8,41,8],[37,9,41,9],[32,15,36,15],[32,17,36,17],[32,18,36,18],[32,20,36,20],[32,21,36,21],[32,23,36,23],[37,29,41,29],[37,30,41,30],[37,20,41,20],[37,21,41,21],[37,23,41,23],[37,24,41,24],[37,26,41,26],[37,27,41,27],[37,11,41,11],[37,12,41,12],[37,14,41,14],[37,15,41,15],[37,17,41,17],[37,18,41,18],[25,3,31,3],[32,3,36,3],[37,3,41,3],[6,1,6,2],[7,2,13,2],[14,2,19,2],[20,2,24,2],[25,2,31,2],[32,2,36,2],[37,2,41,2],[7,3,13,3],[14,3,19,3],[20,3,24,3]]}
[]
[null,"Tablero de seguimiento"]
[]
[null,null,null,null,null,null,null,"Seleccione entre los valores desplegables (1 = Mal, 2 = Regular, 3 = Bien, 4=Muy Bien)"]
[]
[null,null,null,null,null,null,null,"Fecha incial","Participantes: ",null,"Situación al","Participantes:",null,"Situación al","Participantes:",null,"Situación al","Participantes:",null,"Situación al","Participantes:",null,"Situación al","Participantes:",null,"Situación al","Participantes:",null,"Situación al","Participantes:"]
["Dimensión clave","Estado de partida",null,"Estrategia base","Situación actual","Items","Situación actual","2018-08-21","Notas","Estrategia",{"$f":"WORKDAY(H7,25)","v":"2018-09-25"},"Notas","Estrategia",{"$f":"WORKDAY(K7,25)","v":"2018-10-30"},"Notas","Estrategia",{"$f":"WORKDAY(N7,25)","v":"2018-12-04"},"Notas","Estrategia",{"$f":"WORKDAY(Q7,25)","v":"2019-01-08"},"Notas","Estrategia",{"$f":"WORKDAY(T7,25)","v":"2019-02-12"},"Notas","Estrategia",{"$f":"WORKDAY(W7,25)","v":"2019-03-19"},"Notas","Estrategia",{"$f":"WORKDAY(Z7,25)","v":"2019-04-23"},"Notas","Estrategia"]
[{"$f":"Tablas!B206","v":"EQUIPO transversal"},{"$f":"IF('DIAGNOSTICO DEL INCISO'!E19<>0,'DIAGNOSTICO DEL INCISO'!E19,\" \")","v":" "},{"$f":"IF('DIAGNOSTICO DEL INCISO'!F19<>0,'DIAGNOSTICO DEL INCISO'!F19,\" \")","v":" "},{"$f":"IF('DIAGNOSTICO DEL INCISO'!H19<>0,'DIAGNOSTICO DEL INCISO'!H19,\" \")","v":" "},{"$f":"G14","v":3.8333333333333335},"Se ha conformado un equipo transversal en la organización.",{"$f":"HLOOKUP(MAX($H$7:$W$7),H8:W8,1)","v":4},1,null,null,2,null,null,3,null,null,4,null,null,3,null,null,4]
[null,null,null,null,null,"El equipo transversal del organismo cuenta con un adecuado apoyo.",4,3,null,null,2,null,null,3,null,null,4,null,null,2,null,null,4]
[null,null,null,null,null,"El equipo entiende sus funciones y responsabilidades individuales y colectivas",4,1,null,null,2,null,null,3,null,null,3,null,null,1,null,null,4]
[null,null,null,null,null,"El equipo conformado es capaz de dedicar tiempo suficiente al proyecto",3,1,null,null,2,null,null,3,null,null,1,null,null,4,null,null,3,null,null,null,null,null,null,null,null,null,null,null,null,0]
[null,null,null,null,null,"El plan del proyecto es bien comprendido y apoyado por todos los miembros del equipo",4,1,null,null,2,null,null,4,null,null,2,null,null,4,null,null,4,null,null,null,null,null,null,null,null,null,null,null,null,1]
[null,null,null,null,null,"El equipo transversal trabaja con eficacia y  alineado a los objetivos definidos",4,1,null,null,2,null,null,4,null,null,4,null,null,4,null,null,4,null,null,null,null,null,null,null,null,null,null,null,null,2]
[null,null,null,null,null,"Promedio de la fecha",3.8333333333333335,{"$f":"AVERAGEIF(H8:H13,\"<>NA\")","v":1.3333333333333333},null,null,{"$f":"AVERAGEIF(K8:K13,\"<>NA\")","v":2},null,null,{"$f":"AVERAGEIF(N8:N13,\"<>NA\")","v":3.3333333333333335},null,null,{"$f":"AVERAGEIF(Q8:Q13,\"<>NA\")","v":3},null,null,{"$f":"AVERAGEIF(T8:T13,\"<>NA\")","v":3},null,null,3.8333333333333335,null,null,{"$error":"#DIV/0!"},null,null,{"$error":"#DIV/0!"},null,null,null,null,null,null,3]
[{"$f":"Tablas!B207","v":"COMUNICACIÓN del proyecto"},{"$f":"IF('DIAGNOSTICO DEL INCISO'!E20<>0,'DIAGNOSTICO DEL INCISO'!E20,\" \")","v":" "},{"$f":"IF('DIAGNOSTICO DEL INCISO'!F20<>0,'DIAGNOSTICO DEL INCISO'!F20,\" \")","v":" "},{"$f":"IF('DIAGNOSTICO DEL INCISO'!H20<>0,'DIAGNOSTICO DEL INCISO'!H20,\" \")","v":" "},{"$f":"G20","v":2},"El análisis de interesados se ha completado",{"$f":"HLOOKUP(MAX($H$7:$AC$7),H15:AC15,1)","v":2},null,null,null,null,null,null,null,null,null,null,null,null,null,null,null,2,null,null,null,null,null,null,null,null,null,null,null,null,4]
[null,null,null,null,null,"Se ha desarrollado la estrategia de comunicación ",2,null,null,null,null,null,null,null,null,null,null,null,null,null,null,null,2,null,null,null,null,null,null,null,null,null,null,null,null,"NA"]
[null,null,null,null,null,"Los impactados directos conocen y entienden sobre el proyecto y sus etapas",4,4]
[null,null,null,null,null,"El resto de los funcionarios tienen conciencia sobre la existencia del proyecto ",4,4]
[null,null,null,null,null,"Las acciones de comunicación favorecieron la gestión del cambio (incorporación y sostenimiento)",4,4]
[null,null,null,null,null,"Promedio de la fecha",2,{"$f":"AVERAGEIF(H15:H19,\"<>NA\")","v":4},null,null,{"$f":"AVERAGEIF(K15:K19,\"<>NA\")","v":{"$error":"#DIV/0!"}},null,null,{"$error":"#DIV/0!"},null,null,{"$error":"#DIV/0!"},null,null,{"$error":"#DIV/0!"},null,null,2,null,null,{"$error":"#DIV/0!"},null,null,{"$error":"#DIV/0!"}]
[{"$f":"Tablas!B208","v":"VISIÓN COMPARTIDA del cambio "},{"$f":"IF('DIAGNOSTICO DEL INCISO'!E21<>0,'DIAGNOSTICO DEL INCISO'!E21,\" \")","v":" "},{"$f":"IF('DIAGNOSTICO DEL INCISO'!F21<>0,'DIAGNOSTICO DEL INCISO'!F21,\" \")","v":" "},{"$f":"IF('DIAGNOSTICO DEL INCISO'!H21<>0,'DIAGNOSTICO DEL INCISO'!H21,\" \")","v":" "},{"$f":"G25","v":4},"Los involucrados directos comparten el para qué del proyeco y los beneficios particulares para el organismo",4,4]
[null,null,null,null,null,"La visión del cambio ha sido redactada",{"$error":"#N/A"}]
[null,null,null,null,null,"La visión del cambio ha sido comunicada",{"$error":"#N/A"}]
[null,null,null,null,null,"La visión es una guía para la resolución de problemas y la toma de decisiones",{"$error":"#N/A"}]
[null,null,null,null,null,"Promedio de la fecha",4,{"$f":"AVERAGEIF(H21:H24,\"<>NA\")","v":4},null,null,{"$f":"AVERAGEIF(K21:K24,\"<>NA\")","v":{"$error":"#DIV/0!"}},null,null,{"$error":"#DIV/0!"},null,null,{"$error":"#DIV/0!"},null,null,{"$error":"#DIV/0!"},null,null,{"$error":"#DIV/0!"},null,null,{"$error":"#DIV/0!"},null,null,{"$error":"#DIV/0!"}]
[{"$f":"Tablas!B209","v":"PARTICIPACIÓN de involucrados directos"},{"$f":"IF('DIAGNOSTICO DEL INCISO'!E22<>0,'DIAGNOSTICO DEL INCISO'!E22,\" \")","v":" "},{"$f":"IF('DIAGNOSTICO DEL INCISO'!F22<>0,'DIAGNOSTICO DEL INCISO'!F22,\" \")","v":" "},{"$f":"IF('DIAGNOSTICO DEL INCISO'!H22<>0,'DIAGNOSTICO DEL INCISO'!H22,\" \")","v":" "},{"$f":"G32","v":1.2},"Las personas adecuadas están involucradas en el proyecto",2,2]
[null,null,null,null,null,"Los dueños del proceso han participado en el relevamiento, diseño y validación de la solución",1,1]
[null,null,null,null,null,"Los usuarios finales han sido capacitados en la solución",0,0]
[null,null,null,null,null,"Otros actores con un rol clave en el proyecto y las principales partes interesadas comprenden sus funciones y responsabilidades; y se movilizan adecuadamente.",0,0]
[null,null,null,null,null,"Cuentan con un adecuado apoyo",3,3]
[null,null,null,null,null,"Los involucrados directos enteienden sus roles y responsabilidades individuales y colectivas",{"$error":"#N/A"}]
[null,null,null,null,null,"Promedio de la fecha",1.2,{"$f":"AVERAGEIF(H26:H31,\"<>NA\")","v":1.2},null,null,{"$f":"AVERAGEIF(K26:K31,\"<>NA\")","v":{"$error":"#DIV/0!"}},null,null,{"$error":"#DIV/0!"},null,null,{"$error":"#DIV/0!"},null,null,{"$error":"#DIV/0!"},null,null,{"$error":"#DIV/0!"},null,null,{"$error":"#DIV/0!"},null,null,{"$error":"#DIV/0!"}]
[{"$f":"Tablas!B210","v":"SOPORTE a usuarios "},{"$f":"IF('DIAGNOSTICO DEL INCISO'!E23<>0,'DIAGNOSTICO DEL INCISO'!E23,\" \")","v":" "},{"$f":"IF('DIAGNOSTICO DEL INCISO'!F23<>0,'DIAGNOSTICO DEL INCISO'!F23,\" \")","v":" "},{"$f":"IF('DIAGNOSTICO DEL INCISO'!H23<>0,'DIAGNOSTICO DEL INCISO'!H23,\" \")","v":" "},{"$f":"G37","v":3.25},"Se ha conformado una mesa de ayuda en la organización",2,2]
[null,null,null,null,null,"Los perfiles asignados están capacitados y alineados con las necesidades del proyecto",3,3]
[null,null,null,null,null,"La mesa de ayuda implemetada y  red de comunicaciones se mantiene operativa. ",4,4]
[null,null,null,null,null,"Los servicios de apoyo implementados son efectivos",4,4]
[null,null,null,null,null,"Promedio de la fecha",3.25,{"$f":"AVERAGEIF(H33:H36,\"<>NA\")","v":3.25},null,null,{"$f":"AVERAGEIF(K33:K36,\"<>NA\")","v":{"$error":"#DIV/0!"}},null,null,{"$error":"#DIV/0!"},null,null,{"$error":"#DIV/0!"},null,null,{"$error":"#DIV/0!"},null,null,{"$error":"#DIV/0!"},null,null,{"$error":"#DIV/0!"},null,null,{"$error":"#DIV/0!"}]
[{"$f":"Tablas!B211","v":"APOYO POLÍTICO"},{"$f":"IF('DIAGNOSTICO DEL INCISO'!E24<>0,'DIAGNOSTICO DEL INCISO'!E24,\" \")","v":" "},{"$f":"IF('DIAGNOSTICO DEL INCISO'!F24<>0,'DIAGNOSTICO DEL INCISO'!F24,\" \")","v":" "},{"$f":"IF('DIAGNOSTICO DEL INCISO'!H24<>0,'DIAGNOSTICO DEL INCISO'!H24,\" \")","v":" "},{"$f":"G42","v":3.25},"Los patrocinadores entienden sus roles y responsabilidades individuales y colectivas",2,2]
[null,null,null,null,null,"Los patrocinadores están alineados con respecto a los objetivos y los requisitos de recursos del proyecto",4,4]
[null,null,null,null,null,"Los patrocinadores han participado en instancias de lanzamiento, cierre y decisiones estratégicas",3,3]
[null,null,null,null,null,"Existe un comité seguimiento y monitoreo de las acciones y cuestiones del proyecto",4,4]
[null,null,null,null,null,"Promedio de la fecha",3.25,{"$f":"AVERAGEIF(H38:H41,\"<>NA\")","v":3.25},null,null,{"$f":"AVERAGEIF(K38:K41,\"<>NA\")","v":{"$error":"#DIV/0!"}},null,null,{"$error":"#DIV/0!"},null,null,{"$error":"#DIV/0!"},null,null,{"$error":"#DIV/0!"},null,null,{"$error":"#DIV/0!"},null,null,{"$error":"#DIV/0!"},null,null,{"$error":"#DIV/0!"}]
[]
[]
[]
[]
[]
[]
[]
[]
[]
[]
[]
[]
[]
[]
[]
[]
[]
[]
[]
[]
[]
[]
[]
[]
[]
[]
[]
[]
[]
[]
[]
[]
[null,null,null,null,null,null,null,null,null,null,null,null,null,null,null,null,null,null,null,null,null,null,null,null,null,null,null,null,null,null,null,null,null,null,null,null,null,null,null,null,null,null,null,null,null,null,null,null,null,null,null,null,null,null,null,null,null,"Impactos del cambio se entienden y se toman acciones en consecuencia","Impactos del cambio se entienden y se toman acciones en consecuencia","Impactos del cambio se entienden y se toman acciones en consecuencia","Impactos del cambio se entienden y se toman acciones en consecuencia","Impactos del cambio se entienden y se toman acciones en consecuencia","Impactos del cambio se entienden y se toman acciones en consecuencia","Impactos del cambio se entienden y se toman acciones en consecuencia","Impactos del cambio se entienden y se toman acciones en consecuencia","Impactos del cambio se entienden y se toman acciones en consecuencia","Impactos del cambio se entienden y se toman acciones en consecuencia","Impactos del cambio se entienden y se toman acciones en consecuencia","Impactos del cambio se entienden y se toman acciones en consecuencia","Impactos del cambio se entienden y se toman acciones en consecuencia","Impactos del cambio se entienden y se toman acciones en consecuencia","Impactos del cambio se entienden y se toman acciones en consecuencia","Impactos del cambio se entienden y se toman acciones en consecuencia","Impactos del cambio se entienden y se toman acciones en consecuencia","Impactos del cambio se entienden y se toman acciones en consecuencia","Impactos del cambio se entienden y se toman acciones en consecuencia","Impactos del cambio se entienden y se toman acciones en consecuencia","Impactos del cambio se entienden y se toman acciones en consecuencia","Impactos del cambio se entienden y se toman acciones en consecuencia","Impactos del cambio se entienden y se toman acciones en consecuencia","Impactos del cambio se entienden y se toman acciones en consecuencia","Impactos del cambio se entienden y se toman acciones en consecuencia","Impactos del cambio se entienden y se toman acciones en consecuencia","Impactos del cambio se entienden y se toman acciones en consecuencia","Impactos del cambio se entienden y se toman acciones en consecuencia","Impactos del cambio se entienden y se toman acciones en consecuencia","Impactos del cambio se entienden y se toman acciones en consecuencia","Impactos del cambio se entienden y se toman acciones en consecuencia","Impactos del cambio se entienden y se toman acciones en consecuencia","Impactos del cambio se entienden y se toman acciones en consecuencia","Impactos del cambio se entienden y se toman acciones en consecuencia","Impactos del cambio se entienden y se toman acciones en consecuencia","Impactos del cambio se entienden y se toman acciones en consecuencia","Impactos del cambio se entienden y se toman acciones en consecuencia","Impactos del cambio se entienden y se toman acciones en consecuencia","Impactos del cambio se entienden y se toman acciones en consecuencia","Impactos del cambio se entienden y se toman acciones en consecuencia","Impactos del cambio se entienden y se toman acciones en consecuencia","Impactos del cambio se entienden y se toman acciones en consecuencia","Impactos del cambio se entienden y se toman acciones en consecuencia","Impactos del cambio se entienden y se toman acciones en consecuencia","Impactos del cambio se entienden y se toman acciones en consecuencia","Impactos del cambio se entienden y se toman acciones en consecuencia","Impactos del cambio se entienden y se toman acciones en consecuencia","Impactos del cambio se entienden y se toman acciones en consecuencia","Impactos del cambio se entienden y se toman acciones en consecuencia","Impactos del cambio se entienden y se toman acciones en consecuencia","Impactos del cambio se entienden y se toman acciones en consecuencia","Impactos del cambio se entienden y se toman acciones en consecuencia","Impactos del cambio se entienden y se toman acciones en consecuencia","Impactos del cambio se entienden y se toman acciones en consecuencia","Impactos del cambio se entienden y se toman acciones en consecuencia","Impactos del cambio se entienden y se toman acciones en consecuencia","Impactos del cambio se entienden y se toman acciones en consecuencia","Impactos del cambio se entienden y se toman acciones en consecuencia","Impactos del cambio se entienden y se toman acciones en consecuencia","Impactos del cambio se entienden y se toman acciones en consecuencia","Impactos del cambio se entienden y se toman acciones en consecuencia","Impactos del cambio se entienden y se toman acciones en consecuencia","Impactos del cambio se entienden y se toman acciones en consecuencia","Impactos del cambio se entienden y se toman acciones en consecuencia","Impactos del cambio se entienden y se toman acciones en consecuencia","Impactos del cambio se entienden y se toman acciones en consecuencia","Impactos del cambio se entienden y se toman acciones en consecuencia","Impactos del cambio se entienden y se toman acciones en consecuencia","Impactos del cambio se entienden y se toman acciones en consecuencia","Impactos del cambio se entienden y se toman acciones en consecuencia","Impactos del cambio se entienden y se toman acciones en consecuencia","Impactos del cambio se entienden y se toman acciones en consecuencia","Impactos del cambio se entienden y se toman acciones en consecuencia","Impactos del cambio se entienden y se toman acciones en consecuencia","Impactos del cambio se entienden y se toman acciones en consecuencia","Impactos del cambio se entienden y se toman acciones en consecuencia","Impactos del cambio se entienden y se toman acciones en consecuencia","Impactos del cambio se entienden y se toman acciones en consecuencia","Impactos del cambio se entienden y se toman acciones en consecuencia","Impactos del cambio se entienden y se toman acciones en consecuencia","Impactos del cambio se entienden y se toman acciones en consecuencia","Impactos del cambio se entienden y se toman acciones en consecuencia","Impactos del cambio se entienden y se toman acciones en consecuencia","Impactos del cambio se entienden y se toman acciones en consecuencia","Impactos del cambio se entienden y se toman acciones en consecuencia","Impactos del cambio se entienden y se toman acciones en consecuencia","Impactos del cambio se entienden y se toman acciones en consecuencia","Impactos del cambio se entienden y se toman acciones en consecuencia","Impactos del cambio se entienden y se toman acciones en consecuencia","Impactos del cambio se entienden y se toman acciones en consecuencia","Impactos del cambio se entienden y se toman acciones en consecuencia","Impactos del cambio se entienden y se toman acciones en consecuencia","Impactos del cambio se entienden y se toman acciones en consecuencia","Impactos del cambio se entienden y se toman acciones en consecuencia","Impactos del cambio se entienden y se toman acciones en consecuencia","Impactos del cambio se entienden y se toman acciones en consecuencia","Impactos del cambio se entienden y se toman acciones en consecuencia","Impactos del cambio se entienden y se toman acciones en consecuencia","Impactos del cambio se entienden y se toman acciones en consecuencia","Impactos del cambio se entienden y se toman acciones en consecuencia","Impactos del cambio se entienden y se toman acciones en consecuencia","Impactos del cambio se entienden y se toman acciones en consecuencia","Impactos del cambio se entienden y se toman acciones en consecuencia","Impactos del cambio se entienden y se toman acciones en consecuencia","Impactos del cambio se entienden y se toman acciones en consecuencia","Impactos del cambio se entienden y se toman acciones en consecuencia","Impactos del cambio se entienden y se toman acciones en consecuencia","Impactos del cambio se entienden y se toman acciones en consecuencia","Impactos del cambio se entienden y se toman acciones en consecuencia","Impactos del cambio se entienden y se toman acciones en consecuencia","Impactos del cambio se entienden y se toman acciones en consecuencia","Impactos del cambio se entienden y se toman acciones en consecuencia","Impactos del cambio se entienden y se toman acciones en consecuencia","Impactos del cambio se entienden y se toman acciones en consecuencia","Impactos del cambio se entienden y se toman acciones en consecuencia","Impactos del cambio se entienden y se toman acciones en consecuencia","Impactos del cambio se entienden y se toman acciones en consecuencia","Impactos del cambio se entienden y se toman acciones en consecuencia","Impactos del cambio se entienden y se toman acciones en consecuencia","Impactos del cambio se entienden y se toman acciones en consecuencia","Impactos del cambio se entienden y se toman acciones en consecuencia","Impactos del cambio se entienden y se toman acciones en consecuencia","Impactos del cambio se entienden y se toman acciones en consecuencia","Impactos del cambio se entienden y se toman acciones en consecuencia","Impactos del cambio se entienden y se toman acciones en consecuencia","Impactos del cambio se entienden y se toman acciones en consecuencia","Impactos del cambio se entienden y se toman acciones en consecuencia","Impactos del cambio se entienden y se toman acciones en consecuencia","Impactos del cambio se entienden y se toman acciones en consecuencia","Impactos del cambio se entienden y se toman acciones en consecuencia","Impactos del cambio se entienden y se toman acciones en consecuencia","Impactos del cambio se entienden y se toman acciones en consecuencia","Impactos del cambio se entienden y se toman acciones en consecuencia","Impactos del cambio se entienden y se toman acciones en consecuencia","Impactos del cambio se entienden y se toman acciones en consecuencia","Impactos del cambio se entienden y se toman acciones en consecuencia","Impactos del cambio se entienden y se toman acciones en consecuencia","Impactos del cambio se entienden y se toman acciones en consecuencia","Impactos del cambio se entienden y se toman acciones en consecuencia","Impactos del cambio se entienden y se toman acciones en consecuencia","Impactos del cambio se entienden y se toman acciones en consecuencia","Impactos del cambio se entienden y se toman acciones en consecuencia","Impactos del cambio se entienden y se toman acciones en consecuencia","Impactos del cambio se entienden y se toman acciones en consecuencia","Impactos del cambio se entienden y se toman acciones en consecuencia","Impactos del cambio se entienden y se toman acciones en consecuencia","Impactos del cambio se entienden y se toman acciones en consecuencia","Impactos del cambio se entienden y se toman acciones en consecuencia","Impactos del cambio se entienden y se toman acciones en consecuencia","Impactos del cambio se entienden y se toman acciones en consecuencia","Impactos del cambio se entienden y se toman acciones en consecuencia","Impactos del cambio se entienden y se toman acciones en consecuencia","Impactos del cambio se entienden y se toman acciones en consecuencia","Impactos del cambio se entienden y se toman acciones en consecuencia","Impactos del cambio se entienden y se toman acciones en consecuencia","Impactos del cambio se entienden y se toman acciones en consecuencia","Impactos del cambio se entienden y se toman acciones en consecuencia","Impactos del cambio se entienden y se toman acciones en consecuencia","Impactos del cambio se entienden y se toman acciones en consecuencia","Impactos del cambio se entienden y se toman acciones en consecuencia","Impactos del cambio se entienden y se toman acciones en consecuencia","Impactos del cambio se entienden y se toman acciones en consecuencia","Impactos del cambio se entienden y se toman acciones en consecuencia","Impactos del cambio se entienden y se toman acciones en consecuencia","Impactos del cambio se entienden y se toman acciones en consecuencia","Impactos del cambio se entienden y se toman acciones en consecuencia","Impactos del cambio se entienden y se toman acciones en consecuencia","Impactos del cambio se entienden y se toman acciones en consecuencia","Impactos del cambio se entienden y se toman acciones en consecuencia","Impactos del cambio se entienden y se toman acciones en consecuencia","Impactos del cambio se entienden y se toman acciones en consecuencia","Impactos del cambio se entienden y se toman acciones en consecuencia","Impactos del cambio se entienden y se toman acciones en consecuencia","Impactos del cambio se entienden y se toman acciones en consecuencia","Impactos del cambio se entienden y se toman acciones en consecuencia","Impactos del cambio se entienden y se toman acciones en consecuencia","Impactos del cambio se entienden y se toman acciones en consecuencia","Impactos del cambio se entienden y se toman acciones en consecuencia","Impactos del cambio se entienden y se toman acciones en consecuencia","Impactos del cambio se entienden y se toman acciones en consecuencia","Impactos del cambio se entienden y se toman acciones en consecuencia","Impactos del cambio se entienden y se toman acciones en consecuencia","Impactos del cambio se entienden y se toman acciones en consecuencia","Impactos del cambio se entienden y se toman acciones en consecuencia","Impactos del cambio se entienden y se toman acciones en consecuencia","Impactos del cambio se entienden y se toman acciones en consecuencia","Impactos del cambio se entienden y se toman acciones en consecuencia","Impactos del cambio se entienden y se toman acciones en consecuencia","Impactos del cambio se entienden y se toman acciones en consecuencia","Impactos del cambio se entienden y se toman acciones en consecuencia","Impactos del cambio se entienden y se toman acciones en consecuencia","Impactos del cambio se entienden y se toman acciones en consecuencia","Impactos del cambio se entienden y se toman acciones en consecuencia","Impactos del cambio se entienden y se toman acciones en consecuencia","Impactos del cambio se entienden y se toman acciones en consecuencia","Impactos del cambio se entienden y se toman acciones en consecuencia","Impactos del cambio se entienden y se toman acciones en consecuencia","Impactos del cambio se entienden y se toman acciones en consecuencia","Impactos del cambio se entienden y se toman acciones en consecuencia","Impactos del cambio se entienden y se toman acciones en consecuencia","Impactos del cambio se entienden y se toman acciones en consecuencia","Impactos del cambio se entienden y se toman acciones en consecuencia","Impactos del cambio se entienden y se toman acciones en consecuencia","Impactos del cambio se entienden y se toman acciones en consecuencia","Impactos del cambio se entienden y se toman acciones en consecuencia","Impactos del cambio se entienden y se toman acciones en consecuencia","Impactos del cambio se entienden y se toman acciones en consecuencia","Impactos del cambio se entienden y se toman acciones en consecuencia","Impactos del cambio se entienden y se toman acciones en consecuencia","Impactos del cambio se entienden y se toman acciones en consecuencia","Impactos del cambio se entienden y se toman acciones en consecuencia","Impactos del cambio se entienden y se toman acciones en consecuencia","Impactos del cambio se entienden y se toman acciones en consecuencia"]
[null,null,null,{"$f":"'DIAGNOSTICO DEL INCISO'!E19","v":0}]

{"sheet":"Tablas Tablero","index":34,"n_rows":100,"n_cols":13,"rows_kept":100,"cut":false,"hidden":false,"merged":[]}
[]
[null,"IMPACTO","ACTIVIDAD","Imp_filtro","Tipo de impacto","Tipo de activividad",null,null,null,"Comunicación","Capacitación","Gestión de personas","Organización del trabajo"]
[null,{"$f":"ACTIVIDADES!J11","v":0},{"$f":"ACTIVIDADES!C11","v":0},{"$f":"IF(B3=0,\" \",IF(B3='UE 1'!$B$31,\" \",IF('Tablas Tablero'!B3=Tablas!$B$206,\" \",IF('Tablas Tablero'!B3=Tablas!$B$207,\" \",IF('Tablas Tablero'!B3=Tablas!$B$208,\" \",IF('Tablas Tablero'!B3=Tablas!$B$209,\" \",IF('Tablas Tablero'!B3=Tablas!$B$210,\" \",IF('Tablas Tablero'!B3=Tablas!$B$211,\" \",'Tablas Tablero'!B3))))))))","v":" "},{"$f":"IFERROR(IF(B3=0,\" \",(VLOOKUP(D3,IMPACTOS!$C$11:$I$129,5,FALSE))),\"\")","v":" "},{"$f":"IF(B3=0,\" \",(VLOOKUP(C3,ACTIVIDADES!$C$11:$G$124,5,FALSE)))","v":" "},null,null,"Procesos del organismo",{"$f":"COUNTIFS($E$3:$E$100,I3,$F$3:$F$100,$J$2)","v":0},{"$f":"COUNTIFS($E$3:$E$100,I3,$F$3:$F$100,$K$2)","v":0},{"$f":"COUNTIFS($E$3:$E$100,I3,$F$3:$F$100,$L$2)","v":0},{"$f":"COUNTIFS($E$3:$E$100,I3,$F$3:$F$100,$M$2)","v":0}]
[null,{"$f":"ACTIVIDADES!#REF!","v":{"$error":"#REF!"}},{"$f":"ACTIVIDADES!#REF!","v":{"$error":"#REF!"}},{"$f":"IF(B4=0,\" \",IF(B4='UE 1'!$B$31,\" \",IF('Tablas Tablero'!B4=Tablas!$B$206,\" \",IF('Tablas Tablero'!B4=Tablas!$B$207,\" \",IF('Tablas Tablero'!B4=Tablas!$B$208,\" \",IF('Tablas Tablero'!B4=Tablas!$B$209,\" \",IF('Tablas Tablero'!B4=Tablas!$B$210,\" \",IF('Tablas Tablero'!B4=Tablas!$B$211,\" \",'Tablas Tablero'!B4))))))))","v":{"$error":"#REF!"}},{"$f":"IFERROR(IF(B4=0,\" \",(VLOOKUP(D4,IMPACTOS!$C$11:$I$129,5,FALSE))),\"\")","v":""},{"$f":"IF(B4=0,\" \",(VLOOKUP(C4,ACTIVIDADES!$C$11:$G$124,5,FALSE)))","v":{"$error":"#REF!"}},null,null,"Estrucutra organizativa",{"$f":"COUNTIFS($E$3:$E$100,I4,$F$3:$F$100,$J$2)","v":0},{"$f":"COUNTIFS($E$3:$E$100,I4,$F$3:$F$100,$K$2)","v":0},{"$f":"COUNTIFS($E$3:$E$100,I4,$F$3:$F$100,$L$2)","v":0},{"$f":"COUNTIFS($E$3:$E$100,I4,$F$3:$F$100,$M$2)","v":0}]
[null,{"$f":"ACTIVIDADES!#REF!","v":{"$error":"#REF!"}},{"$f":"ACTIVIDADES!#REF!","v":{"$error":"#REF!"}},{"$f":"IF(B5=0,\" \",IF(B5='UE 1'!$B$31,\" \",IF('Tablas Tablero'!B5=Tablas!$B$206,\" \",IF('Tablas Tablero'!B5=Tablas!$B$207,\" \",IF('Tablas Tablero'!B5=Tablas!$B$208,\" \",IF('Tablas Tablero'!B5=Tablas!$B$209,\" \",IF('Tablas Tablero'!B5=Tablas!$B$210,\" \",IF('Tablas Tablero'!B5=Tablas!$B$211,\" \",'Tablas Tablero'!B5))))))))","v":{"$error":"#REF!"}},{"$f":"IFERROR(IF(B5=0,\" \",(VLOOKUP(D5,IMPACTOS!$C$11:$I$129,5,FALSE))),\"\")","v":""},{"$f":"IF(B5=0,\" \",(VLOOKUP(C5,ACTIVIDADES!$C$11:$G$124,5,FALSE)))","v":{"$error":"#REF!"}},null,null,"Infraestrucutra y tecnología",0,0,0,0]
[null,{"$f":"ACTIVIDADES!#REF!","v":{"$error":"#REF!"}},{"$f":"ACTIVIDADES!#REF!","v":{"$error":"#REF!"}},{"$f":"IF(B6=0,\" \",IF(B6='UE 1'!$B$31,\" \",IF('Tablas Tablero'!B6=Tablas!$B$206,\" \",IF('Tablas Tablero'!B6=Tablas!$B$207,\" \",IF('Tablas Tablero'!B6=Tablas!$B$208,\" \",IF('Tablas Tablero'!B6=Tablas!$B$209,\" \",IF('Tablas Tablero'!B6=Tablas!$B$210,\" \",IF('Tablas Tablero'!B6=Tablas!$B$211,\" \",'Tablas Tablero'!B6))))))))","v":{"$error":"#REF!"}},{"$f":"IFERROR(IF(B6=0,\" \",(VLOOKUP(D6,IMPACTOS!$C$11:$I$129,5,FALSE))),\"\")","v":""},{"$f":"IF(B6=0,\" \",(VLOOKUP(C6,ACTIVIDADES!$C$11:$G$124,5,FALSE)))","v":{"$error":"#REF!"}},null,null,"Personas",0,0,0,0]
[null,{"$f":"ACTIVIDADES!#REF!","v":{"$error":"#REF!"}},{"$f":"ACTIVIDADES!#REF!","v":{"$error":"#REF!"}},{"$f":"IF(B7=0,\" \",IF(B7='UE 1'!$B$31,\" \",IF('Tablas Tablero'!B7=Tablas!$B$206,\" \",IF('Tablas Tablero'!B7=Tablas!$B$207,\" \",IF('Tablas Tablero'!B7=Tablas!$B$208,\" \",IF('Tablas Tablero'!B7=Tablas!$B$209,\" \",IF('Tablas Tablero'!B7=Tablas!$B$210,\" \",IF('Tablas Tablero'!B7=Tablas!$B$211,\" \",'Tablas Tablero'!B7))))))))","v":{"$error":"#REF!"}},{"$f":"IFERROR(IF(B7=0,\" \",(VLOOKUP(D7,IMPACTOS!$C$11:$I$129,5,FALSE))),\"\")","v":""},{"$f":"IF(B7=0,\" \",(VLOOKUP(C7,ACTIVIDADES!$C$11:$G$124,5,FALSE)))","v":{"$error":"#REF!"}},null,null,"Cultura",0,0,0,0]
[null,{"$f":"ACTIVIDADES!#REF!","v":{"$error":"#REF!"}},{"$f":"ACTIVIDADES!#REF!","v":{"$error":"#REF!"}},{"$f":"IF(B8=0,\" \",IF(B8='UE 1'!$B$31,\" \",IF('Tablas Tablero'!B8=Tablas!$B$206,\" \",IF('Tablas Tablero'!B8=Tablas!$B$207,\" \",IF('Tablas Tablero'!B8=Tablas!$B$208,\" \",IF('Tablas Tablero'!B8=Tablas!$B$209,\" \",IF('Tablas Tablero'!B8=Tablas!$B$210,\" \",IF('Tablas Tablero'!B8=Tablas!$B$211,\" \",'Tablas Tablero'!B8))))))))","v":{"$error":"#REF!"}},{"$f":"IFERROR(IF(B8=0,\" \",(VLOOKUP(D8,IMPACTOS!$C$11:$I$129,5,FALSE))),\"\")","v":""},{"$f":"IF(B8=0,\" \",(VLOOKUP(C8,ACTIVIDADES!$C$11:$G$124,5,FALSE)))","v":{"$error":"#REF!"}},null,null,"Poder",0,0,0,0]
[null,{"$f":"ACTIVIDADES!#REF!","v":{"$error":"#REF!"}},{"$f":"ACTIVIDADES!#REF!","v":{"$error":"#REF!"}},{"$f":"IF(B9=0,\" \",IF(B9='UE 1'!$B$31,\" \",IF('Tablas Tablero'!B9=Tablas!$B$206,\" \",IF('Tablas Tablero'!B9=Tablas!$B$207,\" \",IF('Tablas Tablero'!B9=Tablas!$B$208,\" \",IF('Tablas Tablero'!B9=Tablas!$B$209,\" \",IF('Tablas Tablero'!B9=Tablas!$B$210,\" \",IF('Tablas Tablero'!B9=Tablas!$B$211,\" \",'Tablas Tablero'!B9))))))))","v":{"$error":"#REF!"}},{"$f":"IFERROR(IF(B9=0,\" \",(VLOOKUP(D9,IMPACTOS!$C$11:$I$129,5,FALSE))),\"\")","v":""},{"$f":"IF(B9=0,\" \",(VLOOKUP(C9,ACTIVIDADES!$C$11:$G$124,5,FALSE)))","v":{"$error":"#REF!"}},null,null,"Otra",0,0,0,0]
[null,{"$f":"ACTIVIDADES!#REF!","v":{"$error":"#REF!"}},{"$f":"ACTIVIDADES!#REF!","v":{"$error":"#REF!"}},{"$f":"IF(B10=0,\" \",IF(B10='UE 1'!$B$31,\" \",IF('Tablas Tablero'!B10=Tablas!$B$206,\" \",IF('Tablas Tablero'!B10=Tablas!$B$207,\" \",IF('Tablas Tablero'!B10=Tablas!$B$208,\" \",IF('Tablas Tablero'!B10=Tablas!$B$209,\" \",IF('Tablas Tablero'!B10=Tablas!$B$210,\" \",IF('Tablas Tablero'!B10=Tablas!$B$211,\" \",'Tablas Tablero'!B10))))))))","v":{"$error":"#REF!"}},{"$f":"IFERROR(IF(B10=0,\" \",(VLOOKUP(D10,IMPACTOS!$C$11:$I$129,5,FALSE))),\"\")","v":""},{"$f":"IF(B10=0,\" \",(VLOOKUP(C10,ACTIVIDADES!$C$11:$G$124,5,FALSE)))","v":{"$error":"#REF!"}}]
[null,{"$f":"ACTIVIDADES!#REF!","v":{"$error":"#REF!"}},{"$f":"ACTIVIDADES!#REF!","v":{"$error":"#REF!"}},{"$f":"IF(B11=0,\" \",IF(B11='UE 1'!$B$31,\" \",IF('Tablas Tablero'!B11=Tablas!$B$206,\" \",IF('Tablas Tablero'!B11=Tablas!$B$207,\" \",IF('Tablas Tablero'!B11=Tablas!$B$208,\" \",IF('Tablas Tablero'!B11=Tablas!$B$209,\" \",IF('Tablas Tablero'!B11=Tablas!$B$210,\" \",IF('Tablas Tablero'!B11=Tablas!$B$211,\" \",'Tablas Tablero'!B11))))))))","v":{"$error":"#REF!"}},{"$f":"IFERROR(IF(B11=0,\" \",(VLOOKUP(D11,IMPACTOS!$C$11:$I$129,5,FALSE))),\"\")","v":""},{"$f":"IF(B11=0,\" \",(VLOOKUP(C11,ACTIVIDADES!$C$11:$G$124,5,FALSE)))","v":{"$error":"#REF!"}}]
[null,{"$f":"ACTIVIDADES!#REF!","v":{"$error":"#REF!"}},{"$f":"ACTIVIDADES!#REF!","v":{"$error":"#REF!"}},{"$f":"IF(B12=0,\" \",IF(B12='UE 1'!$B$31,\" \",IF('Tablas Tablero'!B12=Tablas!$B$206,\" \",IF('Tablas Tablero'!B12=Tablas!$B$207,\" \",IF('Tablas Tablero'!B12=Tablas!$B$208,\" \",IF('Tablas Tablero'!B12=Tablas!$B$209,\" \",IF('Tablas Tablero'!B12=Tablas!$B$210,\" \",IF('Tablas Tablero'!B12=Tablas!$B$211,\" \",'Tablas Tablero'!B12))))))))","v":{"$error":"#REF!"}},{"$f":"IFERROR(IF(B12=0,\" \",(VLOOKUP(D12,IMPACTOS!$C$11:$I$129,5,FALSE))),\"\")","v":""},{"$f":"IF(B12=0,\" \",(VLOOKUP(C12,ACTIVIDADES!$C$11:$G$124,5,FALSE)))","v":{"$error":"#REF!"}}]
[null,{"$f":"ACTIVIDADES!#REF!","v":{"$error":"#REF!"}},{"$f":"ACTIVIDADES!#REF!","v":{"$error":"#REF!"}},{"$f":"IF(B13=0,\" \",IF(B13='UE 1'!$B$31,\" \",IF('Tablas Tablero'!B13=Tablas!$B$206,\" \",IF('Tablas Tablero'!B13=Tablas!$B$207,\" \",IF('Tablas Tablero'!B13=Tablas!$B$208,\" \",IF('Tablas Tablero'!B13=Tablas!$B$209,\" \",IF('Tablas Tablero'!B13=Tablas!$B$210,\" \",IF('Tablas Tablero'!B13=Tablas!$B$211,\" \",'Tablas Tablero'!B13))))))))","v":{"$error":"#REF!"}},{"$f":"IFERROR(IF(B13=0,\" \",(VLOOKUP(D13,IMPACTOS!$C$11:$I$129,5,FALSE))),\"\")","v":""},{"$f":"IF(B13=0,\" \",(VLOOKUP(C13,ACTIVIDADES!$C$11:$G$124,5,FALSE)))","v":{"$error":"#REF!"}}]
[null,{"$f":"ACTIVIDADES!#REF!","v":{"$error":"#REF!"}},{"$f":"ACTIVIDADES!#REF!","v":{"$error":"#REF!"}},{"$f":"IF(B14=0,\" \",IF(B14='UE 1'!$B$31,\" \",IF('Tablas Tablero'!B14=Tablas!$B$206,\" \",IF('Tablas Tablero'!B14=Tablas!$B$207,\" \",IF('Tablas Tablero'!B14=Tablas!$B$208,\" \",IF('Tablas Tablero'!B14=Tablas!$B$209,\" \",IF('Tablas Tablero'!B14=Tablas!$B$210,\" \",IF('Tablas Tablero'!B14=Tablas!$B$211,\" \",'Tablas Tablero'!B14))))))))","v":{"$error":"#REF!"}},{"$f":"IFERROR(IF(B14=0,\" \",(VLOOKUP(D14,IMPACTOS!$C$11:$I$129,5,FALSE))),\"\")","v":""},{"$f":"IF(B14=0,\" \",(VLOOKUP(C14,ACTIVIDADES!$C$11:$G$124,5,FALSE)))","v":{"$error":"#REF!"}}]
[null,{"$f":"ACTIVIDADES!#REF!","v":{"$error":"#REF!"}},{"$f":"ACTIVIDADES!#REF!","v":{"$error":"#REF!"}},{"$f":"IF(B15=0,\" \",IF(B15='UE 1'!$B$31,\" \",IF('Tablas Tablero'!B15=Tablas!$B$206,\" \",IF('Tablas Tablero'!B15=Tablas!$B$207,\" \",IF('Tablas Tablero'!B15=Tablas!$B$208,\" \",IF('Tablas Tablero'!B15=Tablas!$B$209,\" \",IF('Tablas Tablero'!B15=Tablas!$B$210,\" \",IF('Tablas Tablero'!B15=Tablas!$B$211,\" \",'Tablas Tablero'!B15))))))))","v":{"$error":"#REF!"}},{"$f":"IFERROR(IF(B15=0,\" \",(VLOOKUP(D15,IMPACTOS!$C$11:$I$129,5,FALSE))),\"\")","v":""},{"$f":"IF(B15=0,\" \",(VLOOKUP(C15,ACTIVIDADES!$C$11:$G$124,5,FALSE)))","v":{"$error":"#REF!"}}]
[null,{"$f":"ACTIVIDADES!#REF!","v":{"$error":"#REF!"}},{"$f":"ACTIVIDADES!#REF!","v":{"$error":"#REF!"}},{"$f":"IF(B16=0,\" \",IF(B16='UE 1'!$B$31,\" \",IF('Tablas Tablero'!B16=Tablas!$B$206,\" \",IF('Tablas Tablero'!B16=Tablas!$B$207,\" \",IF('Tablas Tablero'!B16=Tablas!$B$208,\" \",IF('Tablas Tablero'!B16=Tablas!$B$209,\" \",IF('Tablas Tablero'!B16=Tablas!$B$210,\" \",IF('Tablas Tablero'!B16=Tablas!$B$211,\" \",'Tablas Tablero'!B16))))))))","v":{"$error":"#REF!"}},{"$f":"IFERROR(IF(B16=0,\" \",(VLOOKUP(D16,IMPACTOS!$C$11:$I$129,5,FALSE))),\"\")","v":""},{"$f":"IF(B16=0,\" \",(VLOOKUP(C16,ACTIVIDADES!$C$11:$G$124,5,FALSE)))","v":{"$error":"#REF!"}}]
[null,{"$f":"ACTIVIDADES!#REF!","v":{"$error":"#REF!"}},{"$f":"ACTIVIDADES!#REF!","v":{"$error":"#REF!"}},{"$f":"IF(B17=0,\" \",IF(B17='UE 1'!$B$31,\" \",IF('Tablas Tablero'!B17=Tablas!$B$206,\" \",IF('Tablas Tablero'!B17=Tablas!$B$207,\" \",IF('Tablas Tablero'!B17=Tablas!$B$208,\" \",IF('Tablas Tablero'!B17=Tablas!$B$209,\" \",IF('Tablas Tablero'!B17=Tablas!$B$210,\" \",IF('Tablas Tablero'!B17=Tablas!$B$211,\" \",'Tablas Tablero'!B17))))))))","v":{"$error":"#REF!"}},{"$f":"IFERROR(IF(B17=0,\" \",(VLOOKUP(D17,IMPACTOS!$C$11:$I$129,5,FALSE))),\"\")","v":""},{"$f":"IF(B17=0,\" \",(VLOOKUP(C17,ACTIVIDADES!$C$11:$G$124,5,FALSE)))","v":{"$error":"#REF!"}}]
[null,{"$f":"ACTIVIDADES!#REF!","v":{"$error":"#REF!"}},{"$f":"ACTIVIDADES!#REF!","v":{"$error":"#REF!"}},{"$f":"IF(B18=0,\" \",IF(B18='UE 1'!$B$31,\" \",IF('Tablas Tablero'!B18=Tablas!$B$206,\" \",IF('Tablas Tablero'!B18=Tablas!$B$207,\" \",IF('Tablas Tablero'!B18=Tablas!$B$208,\" \",IF('Tablas Tablero'!B18=Tablas!$B$209,\" \",IF('Tablas Tablero'!B18=Tablas!$B$210,\" \",IF('Tablas Tablero'!B18=Tablas!$B$211,\" \",'Tablas Tablero'!B18))))))))","v":{"$error":"#REF!"}},{"$f":"IFERROR(IF(B18=0,\" \",(VLOOKUP(D18,IMPACTOS!$C$11:$I$129,5,FALSE))),\"\")","v":""},{"$f":"IF(B18=0,\" \",(VLOOKUP(C18,ACTIVIDADES!$C$11:$G$124,5,FALSE)))","v":{"$error":"#REF!"}}]
[null,{"$f":"ACTIVIDADES!#REF!","v":{"$error":"#REF!"}},{"$f":"ACTIVIDADES!#REF!","v":{"$error":"#REF!"}},{"$f":"IF(B19=0,\" \",IF(B19='UE 1'!$B$31,\" \",IF('Tablas Tablero'!B19=Tablas!$B$206,\" \",IF('Tablas Tablero'!B19=Tablas!$B$207,\" \",IF('Tablas Tablero'!B19=Tablas!$B$208,\" \",IF('Tablas Tablero'!B19=Tablas!$B$209,\" \",IF('Tablas Tablero'!B19=Tablas!$B$210,\" \",IF('Tablas Tablero'!B19=Tablas!$B$211,\" \",'Tablas Tablero'!B19))))))))","v":{"$error":"#REF!"}},{"$f":"IFERROR(IF(B19=0,\" \",(VLOOKUP(D19,IMPACTOS!$C$11:$I$129,5,FALSE))),\"\")","v":""},{"$f":"IF(B19=0,\" \",(VLOOKUP(C19,ACTIVIDADES!$C$11:$G$124,5,FALSE)))","v":{"$error":"#REF!"}}]
[null,{"$f":"ACTIVIDADES!#REF!","v":{"$error":"#REF!"}},{"$f":"ACTIVIDADES!#REF!","v":{"$error":"#REF!"}},{"$f":"IF(B20=0,\" \",IF(B20='UE 1'!$B$31,\" \",IF('Tablas Tablero'!B20=Tablas!$B$206,\" \",IF('Tablas Tablero'!B20=Tablas!$B$207,\" \",IF('Tablas Tablero'!B20=Tablas!$B$208,\" \",IF('Tablas Tablero'!B20=Tablas!$B$209,\" \",IF('Tablas Tablero'!B20=Tablas!$B$210,\" \",IF('Tablas Tablero'!B20=Tablas!$B$211,\" \",'Tablas Tablero'!B20))))))))","v":{"$error":"#REF!"}},{"$f":"IFERROR(IF(B20=0,\" \",(VLOOKUP(D20,IMPACTOS!$C$11:$I$129,5,FALSE))),\"\")","v":""},{"$f":"IF(B20=0,\" \",(VLOOKUP(C20,ACTIVIDADES!$C$11:$G$124,5,FALSE)))","v":{"$error":"#REF!"}}]
[null,{"$f":"ACTIVIDADES!#REF!","v":{"$error":"#REF!"}},{"$f":"ACTIVIDADES!#REF!","v":{"$error":"#REF!"}},{"$f":"IF(B21=0,\" \",IF(B21='UE 1'!$B$31,\" \",IF('Tablas Tablero'!B21=Tablas!$B$206,\" \",IF('Tablas Tablero'!B21=Tablas!$B$207,\" \",IF('Tablas Tablero'!B21=Tablas!$B$208,\" \",IF('Tablas Tablero'!B21=Tablas!$B$209,\" \",IF('Tablas Tablero'!B21=Tablas!$B$210,\" \",IF('Tablas Tablero'!B21=Tablas!$B$211,\" \",'Tablas Tablero'!B21))))))))","v":{"$error":"#REF!"}},{"$f":"IFERROR(IF(B21=0,\" \",(VLOOKUP(D21,IMPACTOS!$C$11:$I$129,5,FALSE))),\"\")","v":""},{"$f":"IF(B21=0,\" \",(VLOOKUP(C21,ACTIVIDADES!$C$11:$G$124,5,FALSE)))","v":{"$error":"#REF!"}}]
[null,{"$f":"ACTIVIDADES!#REF!","v":{"$error":"#REF!"}},{"$f":"ACTIVIDADES!#REF!","v":{"$error":"#REF!"}},{"$f":"IF(B22=0,\" \",IF(B22='UE 1'!$B$31,\" \",IF('Tablas Tablero'!B22=Tablas!$B$206,\" \",IF('Tablas Tablero'!B22=Tablas!$B$207,\" \",IF('Tablas Tablero'!B22=Tablas!$B$208,\" \",IF('Tablas Tablero'!B22=Tablas!$B$209,\" \",IF('Tablas Tablero'!B22=Tablas!$B$210,\" \",IF('Tablas Tablero'!B22=Tablas!$B$211,\" \",'Tablas Tablero'!B22))))))))","v":{"$error":"#REF!"}},{"$f":"IFERROR(IF(B22=0,\" \",(VLOOKUP(D22,IMPACTOS!$C$11:$I$129,5,FALSE))),\"\")","v":""},{"$f":"IF(B22=0,\" \",(VLOOKUP(C22,ACTIVIDADES!$C$11:$G$124,5,FALSE)))","v":{"$error":"#REF!"}}]
[null,{"$f":"ACTIVIDADES!#REF!","v":{"$error":"#REF!"}},{"$f":"ACTIVIDADES!#REF!","v":{"$error":"#REF!"}},{"$f":"IF(B23=0,\" \",IF(B23='UE 1'!$B$31,\" \",IF('Tablas Tablero'!B23=Tablas!$B$206,\" \",IF('Tablas Tablero'!B23=Tablas!$B$207,\" \",IF('Tablas Tablero'!B23=Tablas!$B$208,\" \",IF('Tablas Tablero'!B23=Tablas!$B$209,\" \",IF('Tablas Tablero'!B23=Tablas!$B$210,\" \",IF('Tablas Tablero'!B23=Tablas!$B$211,\" \",'Tablas Tablero'!B23))))))))","v":{"$error":"#REF!"}},{"$f":"IFERROR(IF(B23=0,\" \",(VLOOKUP(D23,IMPACTOS!$C$11:$I$129,5,FALSE))),\"\")","v":""},{"$f":"IF(B23=0,\" \",(VLOOKUP(C23,ACTIVIDADES!$C$11:$G$124,5,FALSE)))","v":{"$error":"#REF!"}}]
[null,{"$f":"ACTIVIDADES!#REF!","v":{"$error":"#REF!"}},{"$f":"ACTIVIDADES!#REF!","v":{"$error":"#REF!"}},{"$f":"IF(B24=0,\" \",IF(B24='UE 1'!$B$31,\" \",IF('Tablas Tablero'!B24=Tablas!$B$206,\" \",IF('Tablas Tablero'!B24=Tablas!$B$207,\" \",IF('Tablas Tablero'!B24=Tablas!$B$208,\" \",IF('Tablas Tablero'!B24=Tablas!$B$209,\" \",IF('Tablas Tablero'!B24=Tablas!$B$210,\" \",IF('Tablas Tablero'!B24=Tablas!$B$211,\" \",'Tablas Tablero'!B24))))))))","v":{"$error":"#REF!"}},{"$f":"IFERROR(IF(B24=0,\" \",(VLOOKUP(D24,IMPACTOS!$C$11:$I$129,5,FALSE))),\"\")","v":""},{"$f":"IF(B24=0,\" \",(VLOOKUP(C24,ACTIVIDADES!$C$11:$G$124,5,FALSE)))","v":{"$error":"#REF!"}}]
[null,{"$f":"ACTIVIDADES!#REF!","v":{"$error":"#REF!"}},{"$f":"ACTIVIDADES!#REF!","v":{"$error":"#REF!"}},{"$f":"IF(B25=0,\" \",IF(B25='UE 1'!$B$31,\" \",IF('Tablas Tablero'!B25=Tablas!$B$206,\" \",IF('Tablas Tablero'!B25=Tablas!$B$207,\" \",IF('Tablas Tablero'!B25=Tablas!$B$208,\" \",IF('Tablas Tablero'!B25=Tablas!$B$209,\" \",IF('Tablas Tablero'!B25=Tablas!$B$210,\" \",IF('Tablas Tablero'!B25=Tablas!$B$211,\" \",'Tablas Tablero'!B25))))))))","v":{"$error":"#REF!"}},{"$f":"IFERROR(IF(B25=0,\" \",(VLOOKUP(D25,IMPACTOS!$C$11:$I$129,5,FALSE))),\"\")","v":""},{"$f":"IF(B25=0,\" \",(VLOOKUP(C25,ACTIVIDADES!$C$11:$G$124,5,FALSE)))","v":{"$error":"#REF!"}}]
[null,{"$f":"ACTIVIDADES!#REF!","v":{"$error":"#REF!"}},{"$f":"ACTIVIDADES!#REF!","v":{"$error":"#REF!"}},{"$f":"IF(B26=0,\" \",IF(B26='UE 1'!$B$31,\" \",IF('Tablas Tablero'!B26=Tablas!$B$206,\" \",IF('Tablas Tablero'!B26=Tablas!$B$207,\" \",IF('Tablas Tablero'!B26=Tablas!$B$208,\" \",IF('Tablas Tablero'!B26=Tablas!$B$209,\" \",IF('Tablas Tablero'!B26=Tablas!$B$210,\" \",IF('Tablas Tablero'!B26=Tablas!$B$211,\" \",'Tablas Tablero'!B26))))))))","v":{"$error":"#REF!"}},{"$f":"IFERROR(IF(B26=0,\" \",(VLOOKUP(D26,IMPACTOS!$C$11:$I$129,5,FALSE))),\"\")","v":""},{"$f":"IF(B26=0,\" \",(VLOOKUP(C26,ACTIVIDADES!$C$11:$G$124,5,FALSE)))","v":{"$error":"#REF!"}}]
[null,{"$f":"ACTIVIDADES!#REF!","v":{"$error":"#REF!"}},{"$f":"ACTIVIDADES!#REF!","v":{"$error":"#REF!"}},{"$f":"IF(B27=0,\" \",IF(B27='UE 1'!$B$31,\" \",IF('Tablas Tablero'!B27=Tablas!$B$206,\" \",IF('Tablas Tablero'!B27=Tablas!$B$207,\" \",IF('Tablas Tablero'!B27=Tablas!$B$208,\" \",IF('Tablas Tablero'!B27=Tablas!$B$209,\" \",IF('Tablas Tablero'!B27=Tablas!$B$210,\" \",IF('Tablas Tablero'!B27=Tablas!$B$211,\" \",'Tablas Tablero'!B27))))))))","v":{"$error":"#REF!"}},{"$f":"IFERROR(IF(B27=0,\" \",(VLOOKUP(D27,IMPACTOS!$C$11:$I$129,5,FALSE))),\"\")","v":""},{"$f":"IF(B27=0,\" \",(VLOOKUP(C27,ACTIVIDADES!$C$11:$G$124,5,FALSE)))","v":{"$error":"#REF!"}}]
[null,{"$f":"ACTIVIDADES!#REF!","v":{"$error":"#REF!"}},{"$f":"ACTIVIDADES!#REF!","v":{"$error":"#REF!"}},{"$f":"IF(B28=0,\" \",IF(B28='UE 1'!$B$31,\" \",IF('Tablas Tablero'!B28=Tablas!$B$206,\" \",IF('Tablas Tablero'!B28=Tablas!$B$207,\" \",IF('Tablas Tablero'!B28=Tablas!$B$208,\" \",IF('Tablas Tablero'!B28=Tablas!$B$209,\" \",IF('Tablas Tablero'!B28=Tablas!$B$210,\" \",IF('Tablas Tablero'!B28=Tablas!$B$211,\" \",'Tablas Tablero'!B28))))))))","v":{"$error":"#REF!"}},{"$f":"IFERROR(IF(B28=0,\" \",(VLOOKUP(D28,IMPACTOS!$C$11:$I$129,5,FALSE))),\"\")","v":""},{"$f":"IF(B28=0,\" \",(VLOOKUP(C28,ACTIVIDADES!$C$11:$G$124,5,FALSE)))","v":{"$error":"#REF!"}}]
[null,{"$f":"ACTIVIDADES!#REF!","v":{"$error":"#REF!"}},{"$f":"ACTIVIDADES!#REF!","v":{"$error":"#REF!"}},{"$f":"IF(B29=0,\" \",IF(B29='UE 1'!$B$31,\" \",IF('Tablas Tablero'!B29=Tablas!$B$206,\" \",IF('Tablas Tablero'!B29=Tablas!$B$207,\" \",IF('Tablas Tablero'!B29=Tablas!$B$208,\" \",IF('Tablas Tablero'!B29=Tablas!$B$209,\" \",IF('Tablas Tablero'!B29=Tablas!$B$210,\" \",IF('Tablas Tablero'!B29=Tablas!$B$211,\" \",'Tablas Tablero'!B29))))))))","v":{"$error":"#REF!"}},{"$f":"IFERROR(IF(B29=0,\" \",(VLOOKUP(D29,IMPACTOS!$C$11:$I$129,5,FALSE))),\"\")","v":""},{"$f":"IF(B29=0,\" \",(VLOOKUP(C29,ACTIVIDADES!$C$11:$G$124,5,FALSE)))","v":{"$error":"#REF!"}}]
[null,{"$f":"ACTIVIDADES!#REF!","v":{"$error":"#REF!"}},{"$f":"ACTIVIDADES!#REF!","v":{"$error":"#REF!"}},{"$f":"IF(B30=0,\" \",IF(B30='UE 1'!$B$31,\" \",IF('Tablas Tablero'!B30=Tablas!$B$206,\" \",IF('Tablas Tablero'!B30=Tablas!$B$207,\" \",IF('Tablas Tablero'!B30=Tablas!$B$208,\" \",IF('Tablas Tablero'!B30=Tablas!$B$209,\" \",IF('Tablas Tablero'!B30=Tablas!$B$210,\" \",IF('Tablas Tablero'!B30=Tablas!$B$211,\" \",'Tablas Tablero'!B30))))))))","v":{"$error":"#REF!"}},{"$f":"IFERROR(IF(B30=0,\" \",(VLOOKUP(D30,IMPACTOS!$C$11:$I$129,5,FALSE))),\"\")","v":""},{"$f":"IF(B30=0,\" \",(VLOOKUP(C30,ACTIVIDADES!$C$11:$G$124,5,FALSE)))","v":{"$error":"#REF!"}}]
[null,{"$f":"ACTIVIDADES!#REF!","v":{"$error":"#REF!"}},{"$f":"ACTIVIDADES!#REF!","v":{"$error":"#REF!"}},{"$f":"IF(B31=0,\" \",IF(B31='UE 1'!$B$31,\" \",IF('Tablas Tablero'!B31=Tablas!$B$206,\" \",IF('Tablas Tablero'!B31=Tablas!$B$207,\" \",IF('Tablas Tablero'!B31=Tablas!$B$208,\" \",IF('Tablas Tablero'!B31=Tablas!$B$209,\" \",IF('Tablas Tablero'!B31=Tablas!$B$210,\" \",IF('Tablas Tablero'!B31=Tablas!$B$211,\" \",'Tablas Tablero'!B31))))))))","v":{"$error":"#REF!"}},{"$f":"IFERROR(IF(B31=0,\" \",(VLOOKUP(D31,IMPACTOS!$C$11:$I$129,5,FALSE))),\"\")","v":""},{"$f":"IF(B31=0,\" \",(VLOOKUP(C31,ACTIVIDADES!$C$11:$G$124,5,FALSE)))","v":{"$error":"#REF!"}}]
[null,{"$f":"ACTIVIDADES!#REF!","v":{"$error":"#REF!"}},{"$f":"ACTIVIDADES!#REF!","v":{"$error":"#REF!"}},{"$f":"IF(B32=0,\" \",IF(B32='UE 1'!$B$31,\" \",IF('Tablas Tablero'!B32=Tablas!$B$206,\" \",IF('Tablas Tablero'!B32=Tablas!$B$207,\" \",IF('Tablas Tablero'!B32=Tablas!$B$208,\" \",IF('Tablas Tablero'!B32=Tablas!$B$209,\" \",IF('Tablas Tablero'!B32=Tablas!$B$210,\" \",IF('Tablas Tablero'!B32=Tablas!$B$211,\" \",'Tablas Tablero'!B32))))))))","v":{"$error":"#REF!"}},{"$f":"IFERROR(IF(B32=0,\" \",(VLOOKUP(D32,IMPACTOS!$C$11:$I$129,5,FALSE))),\"\")","v":""},{"$f":"IF(B32=0,\" \",(VLOOKUP(C32,ACTIVIDADES!$C$11:$G$124,5,FALSE)))","v":{"$error":"#REF!"}}]
[null,{"$f":"ACTIVIDADES!#REF!","v":{"$error":"#REF!"}},{"$f":"ACTIVIDADES!#REF!","v":{"$error":"#REF!"}},{"$f":"IF(B33=0,\" \",IF(B33='UE 1'!$B$31,\" \",IF('Tablas Tablero'!B33=Tablas!$B$206,\" \",IF('Tablas Tablero'!B33=Tablas!$B$207,\" \",IF('Tablas Tablero'!B33=Tablas!$B$208,\" \",IF('Tablas Tablero'!B33=Tablas!$B$209,\" \",IF('Tablas Tablero'!B33=Tablas!$B$210,\" \",IF('Tablas Tablero'!B33=Tablas!$B$211,\" \",'Tablas Tablero'!B33))))))))","v":{"$error":"#REF!"}},{"$f":"IFERROR(IF(B33=0,\" \",(VLOOKUP(D33,IMPACTOS!$C$11:$I$129,5,FALSE))),\"\")","v":""},{"$f":"IF(B33=0,\" \",(VLOOKUP(C33,ACTIVIDADES!$C$11:$G$124,5,FALSE)))","v":{"$error":"#REF!"}}]
[null,{"$f":"ACTIVIDADES!#REF!","v":{"$error":"#REF!"}},{"$f":"ACTIVIDADES!#REF!","v":{"$error":"#REF!"}},{"$f":"IF(B34=0,\" \",IF(B34='UE 1'!$B$31,\" \",IF('Tablas Tablero'!B34=Tablas!$B$206,\" \",IF('Tablas Tablero'!B34=Tablas!$B$207,\" \",IF('Tablas Tablero'!B34=Tablas!$B$208,\" \",IF('Tablas Tablero'!B34=Tablas!$B$209,\" \",IF('Tablas Tablero'!B34=Tablas!$B$210,\" \",IF('Tablas Tablero'!B34=Tablas!$B$211,\" \",'Tablas Tablero'!B34))))))))","v":{"$error":"#REF!"}},{"$f":"IFERROR(IF(B34=0,\" \",(VLOOKUP(D34,IMPACTOS!$C$11:$I$129,5,FALSE))),\"\")","v":""},{"$f":"IF(B34=0,\" \",(VLOOKUP(C34,ACTIVIDADES!$C$11:$G$124,5,FALSE)))","v":{"$error":"#REF!"}}]
[null,{"$f":"ACTIVIDADES!#REF!","v":{"$error":"#REF!"}},{"$f":"ACTIVIDADES!#REF!","v":{"$error":"#REF!"}},{"$f":"IF(B35=0,\" \",IF(B35='UE 1'!$B$31,\" \",IF('Tablas Tablero'!B35=Tablas!$B$206,\" \",IF('Tablas Tablero'!B35=Tablas!$B$207,\" \",IF('Tablas Tablero'!B35=Tablas!$B$208,\" \",IF('Tablas Tablero'!B35=Tablas!$B$209,\" \",IF('Tablas Tablero'!B35=Tablas!$B$210,\" \",IF('Tablas Tablero'!B35=Tablas!$B$211,\" \",'Tablas Tablero'!B35))))))))","v":{"$error":"#REF!"}},{"$f":"IFERROR(IF(B35=0,\" \",(VLOOKUP(D35,IMPACTOS!$C$11:$I$129,5,FALSE))),\"\")","v":""},{"$f":"IF(B35=0,\" \",(VLOOKUP(C35,ACTIVIDADES!$C$11:$G$124,5,FALSE)))","v":{"$error":"#REF!"}}]
[null,{"$f":"ACTIVIDADES!#REF!","v":{"$error":"#REF!"}},{"$f":"ACTIVIDADES!#REF!","v":{"$error":"#REF!"}},{"$f":"IF(B36=0,\" \",IF(B36='UE 1'!$B$31,\" \",IF('Tablas Tablero'!B36=Tablas!$B$206,\" \",IF('Tablas Tablero'!B36=Tablas!$B$207,\" \",IF('Tablas Tablero'!B36=Tablas!$B$208,\" \",IF('Tablas Tablero'!B36=Tablas!$B$209,\" \",IF('Tablas Tablero'!B36=Tablas!$B$210,\" \",IF('Tablas Tablero'!B36=Tablas!$B$211,\" \",'Tablas Tablero'!B36))))))))","v":{"$error":"#REF!"}},{"$f":"IFERROR(IF(B36=0,\" \",(VLOOKUP(D36,IMPACTOS!$C$11:$I$129,5,FALSE))),\"\")","v":""},{"$f":"IF(B36=0,\" \",(VLOOKUP(C36,ACTIVIDADES!$C$11:$G$124,5,FALSE)))","v":{"$error":"#REF!"}}]
[null,{"$f":"ACTIVIDADES!#REF!","v":{"$error":"#REF!"}},{"$f":"ACTIVIDADES!#REF!","v":{"$error":"#REF!"}},{"$f":"IF(B37=0,\" \",IF(B37='UE 1'!$B$31,\" \",IF('Tablas Tablero'!B37=Tablas!$B$206,\" \",IF('Tablas Tablero'!B37=Tablas!$B$207,\" \",IF('Tablas Tablero'!B37=Tablas!$B$208,\" \",IF('Tablas Tablero'!B37=Tablas!$B$209,\" \",IF('Tablas Tablero'!B37=Tablas!$B$210,\" \",IF('Tablas Tablero'!B37=Tablas!$B$211,\" \",'Tablas Tablero'!B37))))))))","v":{"$error":"#REF!"}},{"$f":"IFERROR(IF(B37=0,\" \",(VLOOKUP(D37,IMPACTOS!$C$11:$I$129,5,FALSE))),\"\")","v":""},{"$f":"IF(B37=0,\" \",(VLOOKUP(C37,ACTIVIDADES!$C$11:$G$124,5,FALSE)))","v":{"$error":"#REF!"}}]
[null,{"$f":"ACTIVIDADES!#REF!","v":{"$error":"#REF!"}},{"$f":"ACTIVIDADES!#REF!","v":{"$error":"#REF!"}},{"$f":"IF(B38=0,\" \",IF(B38='UE 1'!$B$31,\" \",IF('Tablas Tablero'!B38=Tablas!$B$206,\" \",IF('Tablas Tablero'!B38=Tablas!$B$207,\" \",IF('Tablas Tablero'!B38=Tablas!$B$208,\" \",IF('Tablas Tablero'!B38=Tablas!$B$209,\" \",IF('Tablas Tablero'!B38=Tablas!$B$210,\" \",IF('Tablas Tablero'!B38=Tablas!$B$211,\" \",'Tablas Tablero'!B38))))))))","v":{"$error":"#REF!"}},{"$f":"IFERROR(IF(B38=0,\" \",(VLOOKUP(D38,IMPACTOS!$C$11:$I$129,5,FALSE))),\"\")","v":""},{"$f":"IF(B38=0,\" \",(VLOOKUP(C38,ACTIVIDADES!$C$11:$G$124,5,FALSE)))","v":{"$error":"#REF!"}}]
[null,{"$f":"ACTIVIDADES!#REF!","v":{"$error":"#REF!"}},{"$f":"ACTIVIDADES!#REF!","v":{"$error":"#REF!"}},{"$f":"IF(B39=0,\" \",IF(B39='UE 1'!$B$31,\" \",IF('Tablas Tablero'!B39=Tablas!$B$206,\" \",IF('Tablas Tablero'!B39=Tablas!$B$207,\" \",IF('Tablas Tablero'!B39=Tablas!$B$208,\" \",IF('Tablas Tablero'!B39=Tablas!$B$209,\" \",IF('Tablas Tablero'!B39=Tablas!$B$210,\" \",IF('Tablas Tablero'!B39=Tablas!$B$211,\" \",'Tablas Tablero'!B39))))))))","v":{"$error":"#REF!"}},{"$f":"IFERROR(IF(B39=0,\" \",(VLOOKUP(D39,IMPACTOS!$C$11:$I$129,5,FALSE))),\"\")","v":""},{"$f":"IF(B39=0,\" \",(VLOOKUP(C39,ACTIVIDADES!$C$11:$G$124,5,FALSE)))","v":{"$error":"#REF!"}}]
[null,{"$f":"ACTIVIDADES!#REF!","v":{"$error":"#REF!"}},{"$f":"ACTIVIDADES!#REF!","v":{"$error":"#REF!"}},{"$f":"IF(B40=0,\" \",IF(B40='UE 1'!$B$31,\" \",IF('Tablas Tablero'!B40=Tablas!$B$206,\" \",IF('Tablas Tablero'!B40=Tablas!$B$207,\" \",IF('Tablas Tablero'!B40=Tablas!$B$208,\" \",IF('Tablas Tablero'!B40=Tablas!$B$209,\" \",IF('Tablas Tablero'!B40=Tablas!$B$210,\" \",IF('Tablas Tablero'!B40=Tablas!$B$211,\" \",'Tablas Tablero'!B40))))))))","v":{"$error":"#REF!"}},{"$f":"IFERROR(IF(B40=0,\" \",(VLOOKUP(D40,IMPACTOS!$C$11:$I$129,5,FALSE))),\"\")","v":""},{"$f":"IF(B40=0,\" \",(VLOOKUP(C40,ACTIVIDADES!$C$11:$G$124,5,FALSE)))","v":{"$error":"#REF!"}}]
[null,{"$f":"ACTIVIDADES!#REF!","v":{"$error":"#REF!"}},{"$f":"ACTIVIDADES!#REF!","v":{"$error":"#REF!"}},{"$f":"IF(B41=0,\" \",IF(B41='UE 1'!$B$31,\" \",IF('Tablas Tablero'!B41=Tablas!$B$206,\" \",IF('Tablas Tablero'!B41=Tablas!$B$207,\" \",IF('Tablas Tablero'!B41=Tablas!$B$208,\" \",IF('Tablas Tablero'!B41=Tablas!$B$209,\" \",IF('Tablas Tablero'!B41=Tablas!$B$210,\" \",IF('Tablas Tablero'!B41=Tablas!$B$211,\" \",'Tablas Tablero'!B41))))))))","v":{"$error":"#REF!"}},{"$f":"IFERROR(IF(B41=0,\" \",(VLOOKUP(D41,IMPACTOS!$C$11:$I$129,5,FALSE))),\"\")","v":""},{"$f":"IF(B41=0,\" \",(VLOOKUP(C41,ACTIVIDADES!$C$11:$G$124,5,FALSE)))","v":{"$error":"#REF!"}}]
[null,{"$f":"ACTIVIDADES!#REF!","v":{"$error":"#REF!"}},{"$f":"ACTIVIDADES!#REF!","v":{"$error":"#REF!"}},{"$f":"IF(B42=0,\" \",IF(B42='UE 1'!$B$31,\" \",IF('Tablas Tablero'!B42=Tablas!$B$206,\" \",IF('Tablas Tablero'!B42=Tablas!$B$207,\" \",IF('Tablas Tablero'!B42=Tablas!$B$208,\" \",IF('Tablas Tablero'!B42=Tablas!$B$209,\" \",IF('Tablas Tablero'!B42=Tablas!$B$210,\" \",IF('Tablas Tablero'!B42=Tablas!$B$211,\" \",'Tablas Tablero'!B42))))))))","v":{"$error":"#REF!"}},{"$f":"IFERROR(IF(B42=0,\" \",(VLOOKUP(D42,IMPACTOS!$C$11:$I$129,5,FALSE))),\"\")","v":""},{"$f":"IF(B42=0,\" \",(VLOOKUP(C42,ACTIVIDADES!$C$11:$G$124,5,FALSE)))","v":{"$error":"#REF!"}}]
[null,{"$f":"ACTIVIDADES!#REF!","v":{"$error":"#REF!"}},{"$f":"ACTIVIDADES!#REF!","v":{"$error":"#REF!"}},{"$f":"IF(B43=0,\" \",IF(B43='UE 1'!$B$31,\" \",IF('Tablas Tablero'!B43=Tablas!$B$206,\" \",IF('Tablas Tablero'!B43=Tablas!$B$207,\" \",IF('Tablas Tablero'!B43=Tablas!$B$208,\" \",IF('Tablas Tablero'!B43=Tablas!$B$209,\" \",IF('Tablas Tablero'!B43=Tablas!$B$210,\" \",IF('Tablas Tablero'!B43=Tablas!$B$211,\" \",'Tablas Tablero'!B43))))))))","v":{"$error":"#REF!"}},{"$f":"IFERROR(IF(B43=0,\" \",(VLOOKUP(D43,IMPACTOS!$C$11:$I$129,5,FALSE))),\"\")","v":""},{"$f":"IF(B43=0,\" \",(VLOOKUP(C43,ACTIVIDADES!$C$11:$G$124,5,FALSE)))","v":{"$error":"#REF!"}}]
[null,{"$f":"ACTIVIDADES!#REF!","v":{"$error":"#REF!"}},{"$f":"ACTIVIDADES!#REF!","v":{"$error":"#REF!"}},{"$f":"IF(B44=0,\" \",IF(B44='UE 1'!$B$31,\" \",IF('Tablas Tablero'!B44=Tablas!$B$206,\" \",IF('Tablas Tablero'!B44=Tablas!$B$207,\" \",IF('Tablas Tablero'!B44=Tablas!$B$208,\" \",IF('Tablas Tablero'!B44=Tablas!$B$209,\" \",IF('Tablas Tablero'!B44=Tablas!$B$210,\" \",IF('Tablas Tablero'!B44=Tablas!$B$211,\" \",'Tablas Tablero'!B44))))))))","v":{"$error":"#REF!"}},{"$f":"IFERROR(IF(B44=0,\" \",(VLOOKUP(D44,IMPACTOS!$C$11:$I$129,5,FALSE))),\"\")","v":""},{"$f":"IF(B44=0,\" \",(VLOOKUP(C44,ACTIVIDADES!$C$11:$G$124,5,FALSE)))","v":{"$error":"#REF!"}}]
[null,{"$f":"ACTIVIDADES!#REF!","v":{"$error":"#REF!"}},{"$f":"ACTIVIDADES!#REF!","v":{"$error":"#REF!"}},{"$f":"IF(B45=0,\" \",IF(B45='UE 1'!$B$31,\" \",IF('Tablas Tablero'!B45=Tablas!$B$206,\" \",IF('Tablas Tablero'!B45=Tablas!$B$207,\" \",IF('Tablas Tablero'!B45=Tablas!$B$208,\" \",IF('Tablas Tablero'!B45=Tablas!$B$209,\" \",IF('Tablas Tablero'!B45=Tablas!$B$210,\" \",IF('Tablas Tablero'!B45=Tablas!$B$211,\" \",'Tablas Tablero'!B45))))))))","v":{"$error":"#REF!"}},{"$f":"IFERROR(IF(B45=0,\" \",(VLOOKUP(D45,IMPACTOS!$C$11:$I$129,5,FALSE))),\"\")","v":""},{"$f":"IF(B45=0,\" \",(VLOOKUP(C45,ACTIVIDADES!$C$11:$G$124,5,FALSE)))","v":{"$error":"#REF!"}}]
[null,{"$f":"ACTIVIDADES!#REF!","v":{"$error":"#REF!"}},{"$f":"ACTIVIDADES!#REF!","v":{"$error":"#REF!"}},{"$f":"IF(B46=0,\" \",IF(B46='UE 1'!$B$31,\" \",IF('Tablas Tablero'!B46=Tablas!$B$206,\" \",IF('Tablas Tablero'!B46=Tablas!$B$207,\" \",IF('Tablas Tablero'!B46=Tablas!$B$208,\" \",IF('Tablas Tablero'!B46=Tablas!$B$209,\" \",IF('Tablas Tablero'!B46=Tablas!$B$210,\" \",IF('Tablas Tablero'!B46=Tablas!$B$211,\" \",'Tablas Tablero'!B46))))))))","v":{"$error":"#REF!"}},{"$f":"IFERROR(IF(B46=0,\" \",(VLOOKUP(D46,IMPACTOS!$C$11:$I$129,5,FALSE))),\"\")","v":""},{"$f":"IF(B46=0,\" \",(VLOOKUP(C46,ACTIVIDADES!$C$11:$G$124,5,FALSE)))","v":{"$error":"#REF!"}}]
[null,{"$f":"ACTIVIDADES!#REF!","v":{"$error":"#REF!"}},{"$f":"ACTIVIDADES!#REF!","v":{"$error":"#REF!"}},{"$f":"IF(B47=0,\" \",IF(B47='UE 1'!$B$31,\" \",IF('Tablas Tablero'!B47=Tablas!$B$206,\" \",IF('Tablas Tablero'!B47=Tablas!$B$207,\" \",IF('Tablas Tablero'!B47=Tablas!$B$208,\" \",IF('Tablas Tablero'!B47=Tablas!$B$209,\" \",IF('Tablas Tablero'!B47=Tablas!$B$210,\" \",IF('Tablas Tablero'!B47=Tablas!$B$211,\" \",'Tablas Tablero'!B47))))))))","v":{"$error":"#REF!"}},{"$f":"IFERROR(IF(B47=0,\" \",(VLOOKUP(D47,IMPACTOS!$C$11:$I$129,5,FALSE))),\"\")","v":""},{"$f":"IF(B47=0,\" \",(VLOOKUP(C47,ACTIVIDADES!$C$11:$G$124,5,FALSE)))","v":{"$error":"#REF!"}}]
[null,{"$f":"ACTIVIDADES!#REF!","v":{"$error":"#REF!"}},{"$f":"ACTIVIDADES!#REF!","v":{"$error":"#REF!"}},{"$f":"IF(B48=0,\" \",IF(B48='UE 1'!$B$31,\" \",IF('Tablas Tablero'!B48=Tablas!$B$206,\" \",IF('Tablas Tablero'!B48=Tablas!$B$207,\" \",IF('Tablas Tablero'!B48=Tablas!$B$208,\" \",IF('Tablas Tablero'!B48=Tablas!$B$209,\" \",IF('Tablas Tablero'!B48=Tablas!$B$210,\" \",IF('Tablas Tablero'!B48=Tablas!$B$211,\" \",'Tablas Tablero'!B48))))))))","v":{"$error":"#REF!"}},{"$f":"IFERROR(IF(B48=0,\" \",(VLOOKUP(D48,IMPACTOS!$C$11:$I$129,5,FALSE))),\"\")","v":""},{"$f":"IF(B48=0,\" \",(VLOOKUP(C48,ACTIVIDADES!$C$11:$G$124,5,FALSE)))","v":{"$error":"#REF!"}}]
[null,{"$f":"ACTIVIDADES!#REF!","v":{"$error":"#REF!"}},{"$f":"ACTIVIDADES!#REF!","v":{"$error":"#REF!"}},{"$f":"IF(B49=0,\" \",IF(B49='UE 1'!$B$31,\" \",IF('Tablas Tablero'!B49=Tablas!$B$206,\" \",IF('Tablas Tablero'!B49=Tablas!$B$207,\" \",IF('Tablas Tablero'!B49=Tablas!$B$208,\" \",IF('Tablas Tablero'!B49=Tablas!$B$209,\" \",IF('Tablas Tablero'!B49=Tablas!$B$210,\" \",IF('Tablas Tablero'!B49=Tablas!$B$211,\" \",'Tablas Tablero'!B49))))))))","v":{"$error":"#REF!"}},{"$f":"IFERROR(IF(B49=0,\" \",(VLOOKUP(D49,IMPACTOS!$C$11:$I$129,5,FALSE))),\"\")","v":""},{"$f":"IF(B49=0,\" \",(VLOOKUP(C49,ACTIVIDADES!$C$11:$G$124,5,FALSE)))","v":{"$error":"#REF!"}}]
[null,{"$f":"ACTIVIDADES!#REF!","v":{"$error":"#REF!"}},{"$f":"ACTIVIDADES!#REF!","v":{"$error":"#REF!"}},{"$f":"IF(B50=0,\" \",IF(B50='UE 1'!$B$31,\" \",IF('Tablas Tablero'!B50=Tablas!$B$206,\" \",IF('Tablas Tablero'!B50=Tablas!$B$207,\" \",IF('Tablas Tablero'!B50=Tablas!$B$208,\" \",IF('Tablas Tablero'!B50=Tablas!$B$209,\" \",IF('Tablas Tablero'!B50=Tablas!$B$210,\" \",IF('Tablas Tablero'!B50=Tablas!$B$211,\" \",'Tablas Tablero'!B50))))))))","v":{"$error":"#REF!"}},{"$f":"IFERROR(IF(B50=0,\" \",(VLOOKUP(D50,IMPACTOS!$C$11:$I$129,5,FALSE))),\"\")","v":""},{"$f":"IF(B50=0,\" \",(VLOOKUP(C50,ACTIVIDADES!$C$11:$G$124,5,FALSE)))","v":{"$error":"#REF!"}}]
[null,{"$f":"ACTIVIDADES!#REF!","v":{"$error":"#REF!"}},{"$f":"ACTIVIDADES!#REF!","v":{"$error":"#REF!"}},{"$f":"IF(B51=0,\" \",IF(B51='UE 1'!$B$31,\" \",IF('Tablas Tablero'!B51=Tablas!$B$206,\" \",IF('Tablas Tablero'!B51=Tablas!$B$207,\" \",IF('Tablas Tablero'!B51=Tablas!$B$208,\" \",IF('Tablas Tablero'!B51=Tablas!$B$209,\" \",IF('Tablas Tablero'!B51=Tablas!$B$210,\" \",IF('Tablas Tablero'!B51=Tablas!$B$211,\" \",'Tablas Tablero'!B51))))))))","v":{"$error":"#REF!"}},{"$f":"IFERROR(IF(B51=0,\" \",(VLOOKUP(D51,IMPACTOS!$C$11:$I$129,5,FALSE))),\"\")","v":""},{"$f":"IF(B51=0,\" \",(VLOOKUP(C51,ACTIVIDADES!$C$11:$G$124,5,FALSE)))","v":{"$error":"#REF!"}}]
[null,{"$f":"ACTIVIDADES!#REF!","v":{"$error":"#REF!"}},{"$f":"ACTIVIDADES!#REF!","v":{"$error":"#REF!"}},{"$f":"IF(B52=0,\" \",IF(B52='UE 1'!$B$31,\" \",IF('Tablas Tablero'!B52=Tablas!$B$206,\" \",IF('Tablas Tablero'!B52=Tablas!$B$207,\" \",IF('Tablas Tablero'!B52=Tablas!$B$208,\" \",IF('Tablas Tablero'!B52=Tablas!$B$209,\" \",IF('Tablas Tablero'!B52=Tablas!$B$210,\" \",IF('Tablas Tablero'!B52=Tablas!$B$211,\" \",'Tablas Tablero'!B52))))))))","v":{"$error":"#REF!"}},{"$f":"IFERROR(IF(B52=0,\" \",(VLOOKUP(D52,IMPACTOS!$C$11:$I$129,5,FALSE))),\"\")","v":""},{"$f":"IF(B52=0,\" \",(VLOOKUP(C52,ACTIVIDADES!$C$11:$G$124,5,FALSE)))","v":{"$error":"#REF!"}}]
[null,{"$f":"ACTIVIDADES!#REF!","v":{"$error":"#REF!"}},{"$f":"ACTIVIDADES!#REF!","v":{"$error":"#REF!"}},{"$f":"IF(B53=0,\" \",IF(B53='UE 1'!$B$31,\" \",IF('Tablas Tablero'!B53=Tablas!$B$206,\" \",IF('Tablas Tablero'!B53=Tablas!$B$207,\" \",IF('Tablas Tablero'!B53=Tablas!$B$208,\" \",IF('Tablas Tablero'!B53=Tablas!$B$209,\" \",IF('Tablas Tablero'!B53=Tablas!$B$210,\" \",IF('Tablas Tablero'!B53=Tablas!$B$211,\" \",'Tablas Tablero'!B53))))))))","v":{"$error":"#REF!"}},{"$f":"IFERROR(IF(B53=0,\" \",(VLOOKUP(D53,IMPACTOS!$C$11:$I$129,5,FALSE))),\"\")","v":""},{"$f":"IF(B53=0,\" \",(VLOOKUP(C53,ACTIVIDADES!$C$11:$G$124,5,FALSE)))","v":{"$error":"#REF!"}}]
[null,{"$f":"ACTIVIDADES!#REF!","v":{"$error":"#REF!"}},{"$f":"ACTIVIDADES!#REF!","v":{"$error":"#REF!"}},{"$f":"IF(B54=0,\" \",IF(B54='UE 1'!$B$31,\" \",IF('Tablas Tablero'!B54=Tablas!$B$206,\" \",IF('Tablas Tablero'!B54=Tablas!$B$207,\" \",IF('Tablas Tablero'!B54=Tablas!$B$208,\" \",IF('Tablas Tablero'!B54=Tablas!$B$209,\" \",IF('Tablas Tablero'!B54=Tablas!$B$210,\" \",IF('Tablas Tablero'!B54=Tablas!$B$211,\" \",'Tablas Tablero'!B54))))))))","v":{"$error":"#REF!"}},{"$f":"IFERROR(IF(B54=0,\" \",(VLOOKUP(D54,IMPACTOS!$C$11:$I$129,5,FALSE))),\"\")","v":""},{"$f":"IF(B54=0,\" \",(VLOOKUP(C54,ACTIVIDADES!$C$11:$G$124,5,FALSE)))","v":{"$error":"#REF!"}}]
[null,{"$f":"ACTIVIDADES!#REF!","v":{"$error":"#REF!"}},{"$f":"ACTIVIDADES!#REF!","v":{"$error":"#REF!"}},{"$f":"IF(B55=0,\" \",IF(B55='UE 1'!$B$31,\" \",IF('Tablas Tablero'!B55=Tablas!$B$206,\" \",IF('Tablas Tablero'!B55=Tablas!$B$207,\" \",IF('Tablas Tablero'!B55=Tablas!$B$208,\" \",IF('Tablas Tablero'!B55=Tablas!$B$209,\" \",IF('Tablas Tablero'!B55=Tablas!$B$210,\" \",IF('Tablas Tablero'!B55=Tablas!$B$211,\" \",'Tablas Tablero'!B55))))))))","v":{"$error":"#REF!"}},{"$f":"IFERROR(IF(B55=0,\" \",(VLOOKUP(D55,IMPACTOS!$C$11:$I$129,5,FALSE))),\"\")","v":""},{"$f":"IF(B55=0,\" \",(VLOOKUP(C55,ACTIVIDADES!$C$11:$G$124,5,FALSE)))","v":{"$error":"#REF!"}}]
[null,{"$f":"ACTIVIDADES!#REF!","v":{"$error":"#REF!"}},{"$f":"ACTIVIDADES!#REF!","v":{"$error":"#REF!"}},{"$f":"IF(B56=0,\" \",IF(B56='UE 1'!$B$31,\" \",IF('Tablas Tablero'!B56=Tablas!$B$206,\" \",IF('Tablas Tablero'!B56=Tablas!$B$207,\" \",IF('Tablas Tablero'!B56=Tablas!$B$208,\" \",IF('Tablas Tablero'!B56=Tablas!$B$209,\" \",IF('Tablas Tablero'!B56=Tablas!$B$210,\" \",IF('Tablas Tablero'!B56=Tablas!$B$211,\" \",'Tablas Tablero'!B56))))))))","v":{"$error":"#REF!"}},{"$f":"IFERROR(IF(B56=0,\" \",(VLOOKUP(D56,IMPACTOS!$C$11:$I$129,5,FALSE))),\"\")","v":""},{"$f":"IF(B56=0,\" \",(VLOOKUP(C56,ACTIVIDADES!$C$11:$G$124,5,FALSE)))","v":{"$error":"#REF!"}}]
[null,{"$f":"ACTIVIDADES!#REF!","v":{"$error":"#REF!"}},{"$f":"ACTIVIDADES!#REF!","v":{"$error":"#REF!"}},{"$f":"IF(B57=0,\" \",IF(B57='UE 1'!$B$31,\" \",IF('Tablas Tablero'!B57=Tablas!$B$206,\" \",IF('Tablas Tablero'!B57=Tablas!$B$207,\" \",IF('Tablas Tablero'!B57=Tablas!$B$208,\" \",IF('Tablas Tablero'!B57=Tablas!$B$209,\" \",IF('Tablas Tablero'!B57=Tablas!$B$210,\" \",IF('Tablas Tablero'!B57=Tablas!$B$211,\" \",'Tablas Tablero'!B57))))))))","v":{"$error":"#REF!"}},{"$f":"IFERROR(IF(B57=0,\" \",(VLOOKUP(D57,IMPACTOS!$C$11:$I$129,5,FALSE))),\"\")","v":""},{"$f":"IF(B57=0,\" \",(VLOOKUP(C57,ACTIVIDADES!$C$11:$G$124,5,FALSE)))","v":{"$error":"#REF!"}}]
[null,{"$f":"ACTIVIDADES!#REF!","v":{"$error":"#REF!"}},{"$f":"ACTIVIDADES!#REF!","v":{"$error":"#REF!"}},{"$f":"IF(B58=0,\" \",IF(B58='UE 1'!$B$31,\" \",IF('Tablas Tablero'!B58=Tablas!$B$206,\" \",IF('Tablas Tablero'!B58=Tablas!$B$207,\" \",IF('Tablas Tablero'!B58=Tablas!$B$208,\" \",IF('Tablas Tablero'!B58=Tablas!$B$209,\" \",IF('Tablas Tablero'!B58=Tablas!$B$210,\" \",IF('Tablas Tablero'!B58=Tablas!$B$211,\" \",'Tablas Tablero'!B58))))))))","v":{"$error":"#REF!"}},{"$f":"IFERROR(IF(B58=0,\" \",(VLOOKUP(D58,IMPACTOS!$C$11:$I$129,5,FALSE))),\"\")","v":""},{"$f":"IF(B58=0,\" \",(VLOOKUP(C58,ACTIVIDADES!$C$11:$G$124,5,FALSE)))","v":{"$error":"#REF!"}}]
[null,{"$f":"ACTIVIDADES!#REF!","v":{"$error":"#REF!"}},{"$f":"ACTIVIDADES!#REF!","v":{"$error":"#REF!"}},{"$f":"IF(B59=0,\" \",IF(B59='UE 1'!$B$31,\" \",IF('Tablas Tablero'!B59=Tablas!$B$206,\" \",IF('Tablas Tablero'!B59=Tablas!$B$207,\" \",IF('Tablas Tablero'!B59=Tablas!$B$208,\" \",IF('Tablas Tablero'!B59=Tablas!$B$209,\" \",IF('Tablas Tablero'!B59=Tablas!$B$210,\" \",IF('Tablas Tablero'!B59=Tablas!$B$211,\" \",'Tablas Tablero'!B59))))))))","v":{"$error":"#REF!"}},{"$f":"IFERROR(IF(B59=0,\" \",(VLOOKUP(D59,IMPACTOS!$C$11:$I$129,5,FALSE))),\"\")","v":""},{"$f":"IF(B59=0,\" \",(VLOOKUP(C59,ACTIVIDADES!$C$11:$G$124,5,FALSE)))","v":{"$error":"#REF!"}}]
[null,{"$f":"ACTIVIDADES!#REF!","v":{"$error":"#REF!"}},{"$f":"ACTIVIDADES!#REF!","v":{"$error":"#REF!"}},{"$f":"IF(B60=0,\" \",IF(B60='UE 1'!$B$31,\" \",IF('Tablas Tablero'!B60=Tablas!$B$206,\" \",IF('Tablas Tablero'!B60=Tablas!$B$207,\" \",IF('Tablas Tablero'!B60=Tablas!$B$208,\" \",IF('Tablas Tablero'!B60=Tablas!$B$209,\" \",IF('Tablas Tablero'!B60=Tablas!$B$210,\" \",IF('Tablas Tablero'!B60=Tablas!$B$211,\" \",'Tablas Tablero'!B60))))))))","v":{"$error":"#REF!"}},{"$f":"IFERROR(IF(B60=0,\" \",(VLOOKUP(D60,IMPACTOS!$C$11:$I$129,5,FALSE))),\"\")","v":""},{"$f":"IF(B60=0,\" \",(VLOOKUP(C60,ACTIVIDADES!$C$11:$G$124,5,FALSE)))","v":{"$error":"#REF!"}}]
[null,{"$f":"ACTIVIDADES!#REF!","v":{"$error":"#REF!"}},{"$f":"ACTIVIDADES!#REF!","v":{"$error":"#REF!"}},{"$f":"IF(B61=0,\" \",IF(B61='UE 1'!$B$31,\" \",IF('Tablas Tablero'!B61=Tablas!$B$206,\" \",IF('Tablas Tablero'!B61=Tablas!$B$207,\" \",IF('Tablas Tablero'!B61=Tablas!$B$208,\" \",IF('Tablas Tablero'!B61=Tablas!$B$209,\" \",IF('Tablas Tablero'!B61=Tablas!$B$210,\" \",IF('Tablas Tablero'!B61=Tablas!$B$211,\" \",'Tablas Tablero'!B61))))))))","v":{"$error":"#REF!"}},{"$f":"IFERROR(IF(B61=0,\" \",(VLOOKUP(D61,IMPACTOS!$C$11:$I$129,5,FALSE))),\"\")","v":""},{"$f":"IF(B61=0,\" \",(VLOOKUP(C61,ACTIVIDADES!$C$11:$G$124,5,FALSE)))","v":{"$error":"#REF!"}}]
[null,{"$f":"ACTIVIDADES!#REF!","v":{"$error":"#REF!"}},{"$f":"ACTIVIDADES!#REF!","v":{"$error":"#REF!"}},{"$f":"IF(B62=0,\" \",IF(B62='UE 1'!$B$31,\" \",IF('Tablas Tablero'!B62=Tablas!$B$206,\" \",IF('Tablas Tablero'!B62=Tablas!$B$207,\" \",IF('Tablas Tablero'!B62=Tablas!$B$208,\" \",IF('Tablas Tablero'!B62=Tablas!$B$209,\" \",IF('Tablas Tablero'!B62=Tablas!$B$210,\" \",IF('Tablas Tablero'!B62=Tablas!$B$211,\" \",'Tablas Tablero'!B62))))))))","v":{"$error":"#REF!"}},{"$f":"IFERROR(IF(B62=0,\" \",(VLOOKUP(D62,IMPACTOS!$C$11:$I$129,5,FALSE))),\"\")","v":""},{"$f":"IF(B62=0,\" \",(VLOOKUP(C62,ACTIVIDADES!$C$11:$G$124,5,FALSE)))","v":{"$error":"#REF!"}}]
[null,{"$f":"ACTIVIDADES!#REF!","v":{"$error":"#REF!"}},{"$f":"ACTIVIDADES!#REF!","v":{"$error":"#REF!"}},{"$f":"IF(B63=0,\" \",IF(B63='UE 1'!$B$31,\" \",IF('Tablas Tablero'!B63=Tablas!$B$206,\" \",IF('Tablas Tablero'!B63=Tablas!$B$207,\" \",IF('Tablas Tablero'!B63=Tablas!$B$208,\" \",IF('Tablas Tablero'!B63=Tablas!$B$209,\" \",IF('Tablas Tablero'!B63=Tablas!$B$210,\" \",IF('Tablas Tablero'!B63=Tablas!$B$211,\" \",'Tablas Tablero'!B63))))))))","v":{"$error":"#REF!"}},{"$f":"IFERROR(IF(B63=0,\" \",(VLOOKUP(D63,IMPACTOS!$C$11:$I$129,5,FALSE))),\"\")","v":""},{"$f":"IF(B63=0,\" \",(VLOOKUP(C63,ACTIVIDADES!$C$11:$G$124,5,FALSE)))","v":{"$error":"#REF!"}}]
[null,{"$f":"ACTIVIDADES!#REF!","v":{"$error":"#REF!"}},{"$f":"ACTIVIDADES!#REF!","v":{"$error":"#REF!"}},{"$f":"IF(B64=0,\" \",IF(B64='UE 1'!$B$31,\" \",IF('Tablas Tablero'!B64=Tablas!$B$206,\" \",IF('Tablas Tablero'!B64=Tablas!$B$207,\" \",IF('Tablas Tablero'!B64=Tablas!$B$208,\" \",IF('Tablas Tablero'!B64=Tablas!$B$209,\" \",IF('Tablas Tablero'!B64=Tablas!$B$210,\" \",IF('Tablas Tablero'!B64=Tablas!$B$211,\" \",'Tablas Tablero'!B64))))))))","v":{"$error":"#REF!"}},{"$f":"IFERROR(IF(B64=0,\" \",(VLOOKUP(D64,IMPACTOS!$C$11:$I$129,5,FALSE))),\"\")","v":""},{"$f":"IF(B64=0,\" \",(VLOOKUP(C64,ACTIVIDADES!$C$11:$G$124,5,FALSE)))","v":{"$error":"#REF!"}}]
[null,{"$f":"ACTIVIDADES!#REF!","v":{"$error":"#REF!"}},{"$f":"ACTIVIDADES!#REF!","v":{"$error":"#REF!"}},{"$f":"IF(B65=0,\" \",IF(B65='UE 1'!$B$31,\" \",IF('Tablas Tablero'!B65=Tablas!$B$206,\" \",IF('Tablas Tablero'!B65=Tablas!$B$207,\" \",IF('Tablas Tablero'!B65=Tablas!$B$208,\" \",IF('Tablas Tablero'!B65=Tablas!$B$209,\" \",IF('Tablas Tablero'!B65=Tablas!$B$210,\" \",IF('Tablas Tablero'!B65=Tablas!$B$211,\" \",'Tablas Tablero'!B65))))))))","v":{"$error":"#REF!"}},{"$f":"IFERROR(IF(B65=0,\" \",(VLOOKUP(D65,IMPACTOS!$C$11:$I$129,5,FALSE))),\"\")","v":""},{"$f":"IF(B65=0,\" \",(VLOOKUP(C65,ACTIVIDADES!$C$11:$G$124,5,FALSE)))","v":{"$error":"#REF!"}}]
[null,{"$f":"ACTIVIDADES!#REF!","v":{"$error":"#REF!"}},{"$f":"ACTIVIDADES!#REF!","v":{"$error":"#REF!"}},{"$f":"IF(B66=0,\" \",IF(B66='UE 1'!$B$31,\" \",IF('Tablas Tablero'!B66=Tablas!$B$206,\" \",IF('Tablas Tablero'!B66=Tablas!$B$207,\" \",IF('Tablas Tablero'!B66=Tablas!$B$208,\" \",IF('Tablas Tablero'!B66=Tablas!$B$209,\" \",IF('Tablas Tablero'!B66=Tablas!$B$210,\" \",IF('Tablas Tablero'!B66=Tablas!$B$211,\" \",'Tablas Tablero'!B66))))))))","v":{"$error":"#REF!"}},{"$f":"IFERROR(IF(B66=0,\" \",(VLOOKUP(D66,IMPACTOS!$C$11:$I$129,5,FALSE))),\"\")","v":""},{"$f":"IF(B66=0,\" \",(VLOOKUP(C66,ACTIVIDADES!$C$11:$G$124,5,FALSE)))","v":{"$error":"#REF!"}}]
[null,{"$f":"ACTIVIDADES!#REF!","v":{"$error":"#REF!"}},{"$f":"ACTIVIDADES!#REF!","v":{"$error":"#REF!"}},{"$f":"IF(B67=0,\" \",IF(B67='UE 1'!$B$31,\" \",IF('Tablas Tablero'!B67=Tablas!$B$206,\" \",IF('Tablas Tablero'!B67=Tablas!$B$207,\" \",IF('Tablas Tablero'!B67=Tablas!$B$208,\" \",IF('Tablas Tablero'!B67=Tablas!$B$209,\" \",IF('Tablas Tablero'!B67=Tablas!$B$210,\" \",IF('Tablas Tablero'!B67=Tablas!$B$211,\" \",'Tablas Tablero'!B67))))))))","v":{"$error":"#REF!"}},{"$f":"IFERROR(IF(B67=0,\" \",(VLOOKUP(D67,IMPACTOS!$C$11:$I$129,5,FALSE))),\"\")","v":""},{"$f":"IF(B67=0,\" \",(VLOOKUP(C67,ACTIVIDADES!$C$11:$G$124,5,FALSE)))","v":{"$error":"#REF!"}}]
[null,{"$f":"ACTIVIDADES!#REF!","v":{"$error":"#REF!"}},{"$f":"ACTIVIDADES!#REF!","v":{"$error":"#REF!"}},{"$f":"IF(B68=0,\" \",IF(B68='UE 1'!$B$31,\" \",IF('Tablas Tablero'!B68=Tablas!$B$206,\" \",IF('Tablas Tablero'!B68=Tablas!$B$207,\" \",IF('Tablas Tablero'!B68=Tablas!$B$208,\" \",IF('Tablas Tablero'!B68=Tablas!$B$209,\" \",IF('Tablas Tablero'!B68=Tablas!$B$210,\" \",IF('Tablas Tablero'!B68=Tablas!$B$211,\" \",'Tablas Tablero'!B68))))))))","v":{"$error":"#REF!"}},{"$f":"IFERROR(IF(B68=0,\" \",(VLOOKUP(D68,IMPACTOS!$C$11:$I$129,5,FALSE))),\"\")","v":""},{"$f":"IF(B68=0,\" \",(VLOOKUP(C68,ACTIVIDADES!$C$11:$G$124,5,FALSE)))","v":{"$error":"#REF!"}}]
[null,{"$f":"ACTIVIDADES!#REF!","v":{"$error":"#REF!"}},{"$f":"ACTIVIDADES!#REF!","v":{"$error":"#REF!"}},{"$f":"IF(B69=0,\" \",IF(B69='UE 1'!$B$31,\" \",IF('Tablas Tablero'!B69=Tablas!$B$206,\" \",IF('Tablas Tablero'!B69=Tablas!$B$207,\" \",IF('Tablas Tablero'!B69=Tablas!$B$208,\" \",IF('Tablas Tablero'!B69=Tablas!$B$209,\" \",IF('Tablas Tablero'!B69=Tablas!$B$210,\" \",IF('Tablas Tablero'!B69=Tablas!$B$211,\" \",'Tablas Tablero'!B69))))))))","v":{"$error":"#REF!"}},{"$f":"IFERROR(IF(B69=0,\" \",(VLOOKUP(D69,IMPACTOS!$C$11:$I$129,5,FALSE))),\"\")","v":""},{"$f":"IF(B69=0,\" \",(VLOOKUP(C69,ACTIVIDADES!$C$11:$G$124,5,FALSE)))","v":{"$error":"#REF!"}}]
[null,{"$f":"ACTIVIDADES!#REF!","v":{"$error":"#REF!"}},{"$f":"ACTIVIDADES!#REF!","v":{"$error":"#REF!"}},{"$f":"IF(B70=0,\" \",IF(B70='UE 1'!$B$31,\" \",IF('Tablas Tablero'!B70=Tablas!$B$206,\" \",IF('Tablas Tablero'!B70=Tablas!$B$207,\" \",IF('Tablas Tablero'!B70=Tablas!$B$208,\" \",IF('Tablas Tablero'!B70=Tablas!$B$209,\" \",IF('Tablas Tablero'!B70=Tablas!$B$210,\" \",IF('Tablas Tablero'!B70=Tablas!$B$211,\" \",'Tablas Tablero'!B70))))))))","v":{"$error":"#REF!"}},{"$f":"IFERROR(IF(B70=0,\" \",(VLOOKUP(D70,IMPACTOS!$C$11:$I$129,5,FALSE))),\"\")","v":""},{"$f":"IF(B70=0,\" \",(VLOOKUP(C70,ACTIVIDADES!$C$11:$G$124,5,FALSE)))","v":{"$error":"#REF!"}}]
[null,{"$f":"ACTIVIDADES!#REF!","v":{"$error":"#REF!"}},{"$f":"ACTIVIDADES!#REF!","v":{"$error":"#REF!"}},{"$f":"IF(B71=0,\" \",IF(B71='UE 1'!$B$31,\" \",IF('Tablas Tablero'!B71=Tablas!$B$206,\" \",IF('Tablas Tablero'!B71=Tablas!$B$207,\" \",IF('Tablas Tablero'!B71=Tablas!$B$208,\" \",IF('Tablas Tablero'!B71=Tablas!$B$209,\" \",IF('Tablas Tablero'!B71=Tablas!$B$210,\" \",IF('Tablas Tablero'!B71=Tablas!$B$211,\" \",'Tablas Tablero'!B71))))))))","v":{"$error":"#REF!"}},{"$f":"IFERROR(IF(B71=0,\" \",(VLOOKUP(D71,IMPACTOS!$C$11:$I$129,5,FALSE))),\"\")","v":""},{"$f":"IF(B71=0,\" \",(VLOOKUP(C71,ACTIVIDADES!$C$11:$G$124,5,FALSE)))","v":{"$error":"#REF!"}}]
[null,{"$f":"ACTIVIDADES!#REF!","v":{"$error":"#REF!"}},{"$f":"ACTIVIDADES!#REF!","v":{"$error":"#REF!"}},{"$f":"IF(B72=0,\" \",IF(B72='UE 1'!$B$31,\" \",IF('Tablas Tablero'!B72=Tablas!$B$206,\" \",IF('Tablas Tablero'!B72=Tablas!$B$207,\" \",IF('Tablas Tablero'!B72=Tablas!$B$208,\" \",IF('Tablas Tablero'!B72=Tablas!$B$209,\" \",IF('Tablas Tablero'!B72=Tablas!$B$210,\" \",IF('Tablas Tablero'!B72=Tablas!$B$211,\" \",'Tablas Tablero'!B72))))))))","v":{"$error":"#REF!"}},{"$f":"IFERROR(IF(B72=0,\" \",(VLOOKUP(D72,IMPACTOS!$C$11:$I$129,5,FALSE))),\"\")","v":""},{"$f":"IF(B72=0,\" \",(VLOOKUP(C72,ACTIVIDADES!$C$11:$G$124,5,FALSE)))","v":{"$error":"#REF!"}}]
[null,{"$f":"ACTIVIDADES!#REF!","v":{"$error":"#REF!"}},{"$f":"ACTIVIDADES!#REF!","v":{"$error":"#REF!"}},{"$f":"IF(B73=0,\" \",IF(B73='UE 1'!$B$31,\" \",IF('Tablas Tablero'!B73=Tablas!$B$206,\" \",IF('Tablas Tablero'!B73=Tablas!$B$207,\" \",IF('Tablas Tablero'!B73=Tablas!$B$208,\" \",IF('Tablas Tablero'!B73=Tablas!$B$209,\" \",IF('Tablas Tablero'!B73=Tablas!$B$210,\" \",IF('Tablas Tablero'!B73=Tablas!$B$211,\" \",'Tablas Tablero'!B73))))))))","v":{"$error":"#REF!"}},{"$f":"IFERROR(IF(B73=0,\" \",(VLOOKUP(D73,IMPACTOS!$C$11:$I$129,5,FALSE))),\"\")","v":""},{"$f":"IF(B73=0,\" \",(VLOOKUP(C73,ACTIVIDADES!$C$11:$G$124,5,FALSE)))","v":{"$error":"#REF!"}}]
[null,{"$f":"ACTIVIDADES!#REF!","v":{"$error":"#REF!"}},{"$f":"ACTIVIDADES!#REF!","v":{"$error":"#REF!"}},{"$f":"IF(B74=0,\" \",IF(B74='UE 1'!$B$31,\" \",IF('Tablas Tablero'!B74=Tablas!$B$206,\" \",IF('Tablas Tablero'!B74=Tablas!$B$207,\" \",IF('Tablas Tablero'!B74=Tablas!$B$208,\" \",IF('Tablas Tablero'!B74=Tablas!$B$209,\" \",IF('Tablas Tablero'!B74=Tablas!$B$210,\" \",IF('Tablas Tablero'!B74=Tablas!$B$211,\" \",'Tablas Tablero'!B74))))))))","v":{"$error":"#REF!"}},{"$f":"IFERROR(IF(B74=0,\" \",(VLOOKUP(D74,IMPACTOS!$C$11:$I$129,5,FALSE))),\"\")","v":""},{"$f":"IF(B74=0,\" \",(VLOOKUP(C74,ACTIVIDADES!$C$11:$G$124,5,FALSE)))","v":{"$error":"#REF!"}}]
[null,{"$f":"ACTIVIDADES!#REF!","v":{"$error":"#REF!"}},{"$f":"ACTIVIDADES!#REF!","v":{"$error":"#REF!"}},{"$f":"IF(B75=0,\" \",IF(B75='UE 1'!$B$31,\" \",IF('Tablas Tablero'!B75=Tablas!$B$206,\" \",IF('Tablas Tablero'!B75=Tablas!$B$207,\" \",IF('Tablas Tablero'!B75=Tablas!$B$208,\" \",IF('Tablas Tablero'!B75=Tablas!$B$209,\" \",IF('Tablas Tablero'!B75=Tablas!$B$210,\" \",IF('Tablas Tablero'!B75=Tablas!$B$211,\" \",'Tablas Tablero'!B75))))))))","v":{"$error":"#REF!"}},{"$f":"IFERROR(IF(B75=0,\" \",(VLOOKUP(D75,IMPACTOS!$C$11:$I$129,5,FALSE))),\"\")","v":""},{"$f":"IF(B75=0,\" \",(VLOOKUP(C75,ACTIVIDADES!$C$11:$G$124,5,FALSE)))","v":{"$error":"#REF!"}}]
[null,{"$f":"ACTIVIDADES!#REF!","v":{"$error":"#REF!"}},{"$f":"ACTIVIDADES!#REF!","v":{"$error":"#REF!"}},{"$f":"IF(B76=0,\" \",IF(B76='UE 1'!$B$31,\" \",IF('Tablas Tablero'!B76=Tablas!$B$206,\" \",IF('Tablas Tablero'!B76=Tablas!$B$207,\" \",IF('Tablas Tablero'!B76=Tablas!$B$208,\" \",IF('Tablas Tablero'!B76=Tablas!$B$209,\" \",IF('Tablas Tablero'!B76=Tablas!$B$210,\" \",IF('Tablas Tablero'!B76=Tablas!$B$211,\" \",'Tablas Tablero'!B76))))))))","v":{"$error":"#REF!"}},{"$f":"IFERROR(IF(B76=0,\" \",(VLOOKUP(D76,IMPACTOS!$C$11:$I$129,5,FALSE))),\"\")","v":""},{"$f":"IF(B76=0,\" \",(VLOOKUP(C76,ACTIVIDADES!$C$11:$G$124,5,FALSE)))","v":{"$error":"#REF!"}}]
[null,{"$f":"ACTIVIDADES!#REF!","v":{"$error":"#REF!"}},{"$f":"ACTIVIDADES!#REF!","v":{"$error":"#REF!"}},{"$f":"IF(B77=0,\" \",IF(B77='UE 1'!$B$31,\" \",IF('Tablas Tablero'!B77=Tablas!$B$206,\" \",IF('Tablas Tablero'!B77=Tablas!$B$207,\" \",IF('Tablas Tablero'!B77=Tablas!$B$208,\" \",IF('Tablas Tablero'!B77=Tablas!$B$209,\" \",IF('Tablas Tablero'!B77=Tablas!$B$210,\" \",IF('Tablas Tablero'!B77=Tablas!$B$211,\" \",'Tablas Tablero'!B77))))))))","v":{"$error":"#REF!"}},{"$f":"IFERROR(IF(B77=0,\" \",(VLOOKUP(D77,IMPACTOS!$C$11:$I$129,5,FALSE))),\"\")","v":""},{"$f":"IF(B77=0,\" \",(VLOOKUP(C77,ACTIVIDADES!$C$11:$G$124,5,FALSE)))","v":{"$error":"#REF!"}}]
[null,{"$f":"ACTIVIDADES!#REF!","v":{"$error":"#REF!"}},{"$f":"ACTIVIDADES!#REF!","v":{"$error":"#REF!"}},{"$f":"IF(B78=0,\" \",IF(B78='UE 1'!$B$31,\" \",IF('Tablas Tablero'!B78=Tablas!$B$206,\" \",IF('Tablas Tablero'!B78=Tablas!$B$207,\" \",IF('Tablas Tablero'!B78=Tablas!$B$208,\" \",IF('Tablas Tablero'!B78=Tablas!$B$209,\" \",IF('Tablas Tablero'!B78=Tablas!$B$210,\" \",IF('Tablas Tablero'!B78=Tablas!$B$211,\" \",'Tablas Tablero'!B78))))))))","v":{"$error":"#REF!"}},{"$f":"IFERROR(IF(B78=0,\" \",(VLOOKUP(D78,IMPACTOS!$C$11:$I$129,5,FALSE))),\"\")","v":""},{"$f":"IF(B78=0,\" \",(VLOOKUP(C78,ACTIVIDADES!$C$11:$G$124,5,FALSE)))","v":{"$error":"#REF!"}}]
[null,{"$f":"ACTIVIDADES!#REF!","v":{"$error":"#REF!"}},{"$f":"ACTIVIDADES!#REF!","v":{"$error":"#REF!"}},{"$f":"IF(B79=0,\" \",IF(B79='UE 1'!$B$31,\" \",IF('Tablas Tablero'!B79=Tablas!$B$206,\" \",IF('Tablas Tablero'!B79=Tablas!$B$207,\" \",IF('Tablas Tablero'!B79=Tablas!$B$208,\" \",IF('Tablas Tablero'!B79=Tablas!$B$209,\" \",IF('Tablas Tablero'!B79=Tablas!$B$210,\" \",IF('Tablas Tablero'!B79=Tablas!$B$211,\" \",'Tablas Tablero'!B79))))))))","v":{"$error":"#REF!"}},{"$f":"IFERROR(IF(B79=0,\" \",(VLOOKUP(D79,IMPACTOS!$C$11:$I$129,5,FALSE))),\"\")","v":""},{"$f":"IF(B79=0,\" \",(VLOOKUP(C79,ACTIVIDADES!$C$11:$G$124,5,FALSE)))","v":{"$error":"#REF!"}}]
[null,{"$f":"ACTIVIDADES!#REF!","v":{"$error":"#REF!"}},{"$f":"ACTIVIDADES!#REF!","v":{"$error":"#REF!"}},{"$f":"IF(B80=0,\" \",IF(B80='UE 1'!$B$31,\" \",IF('Tablas Tablero'!B80=Tablas!$B$206,\" \",IF('Tablas Tablero'!B80=Tablas!$B$207,\" \",IF('Tablas Tablero'!B80=Tablas!$B$208,\" \",IF('Tablas Tablero'!B80=Tablas!$B$209,\" \",IF('Tablas Tablero'!B80=Tablas!$B$210,\" \",IF('Tablas Tablero'!B80=Tablas!$B$211,\" \",'Tablas Tablero'!B80))))))))","v":{"$error":"#REF!"}},{"$f":"IFERROR(IF(B80=0,\" \",(VLOOKUP(D80,IMPACTOS!$C$11:$I$129,5,FALSE))),\"\")","v":""},{"$f":"IF(B80=0,\" \",(VLOOKUP(C80,ACTIVIDADES!$C$11:$G$124,5,FALSE)))","v":{"$error":"#REF!"}}]
[null,{"$f":"ACTIVIDADES!#REF!","v":{"$error":"#REF!"}},{"$f":"ACTIVIDADES!#REF!","v":{"$error":"#REF!"}},{"$f":"IF(B81=0,\" \",IF(B81='UE 1'!$B$31,\" \",IF('Tablas Tablero'!B81=Tablas!$B$206,\" \",IF('Tablas Tablero'!B81=Tablas!$B$207,\" \",IF('Tablas Tablero'!B81=Tablas!$B$208,\" \",IF('Tablas Tablero'!B81=Tablas!$B$209,\" \",IF('Tablas Tablero'!B81=Tablas!$B$210,\" \",IF('Tablas Tablero'!B81=Tablas!$B$211,\" \",'Tablas Tablero'!B81))))))))","v":{"$error":"#REF!"}},{"$f":"IFERROR(IF(B81=0,\" \",(VLOOKUP(D81,IMPACTOS!$C$11:$I$129,5,FALSE))),\"\")","v":""},{"$f":"IF(B81=0,\" \",(VLOOKUP(C81,ACTIVIDADES!$C$11:$G$124,5,FALSE)))","v":{"$error":"#REF!"}}]
[null,{"$f":"ACTIVIDADES!#REF!","v":{"$error":"#REF!"}},{"$f":"ACTIVIDADES!#REF!","v":{"$error":"#REF!"}},{"$f":"IF(B82=0,\" \",IF(B82='UE 1'!$B$31,\" \",IF('Tablas Tablero'!B82=Tablas!$B$206,\" \",IF('Tablas Tablero'!B82=Tablas!$B$207,\" \",IF('Tablas Tablero'!B82=Tablas!$B$208,\" \",IF('Tablas Tablero'!B82=Tablas!$B$209,\" \",IF('Tablas Tablero'!B82=Tablas!$B$210,\" \",IF('Tablas Tablero'!B82=Tablas!$B$211,\" \",'Tablas Tablero'!B82))))))))","v":{"$error":"#REF!"}},{"$f":"IFERROR(IF(B82=0,\" \",(VLOOKUP(D82,IMPACTOS!$C$11:$I$129,5,FALSE))),\"\")","v":""},{"$f":"IF(B82=0,\" \",(VLOOKUP(C82,ACTIVIDADES!$C$11:$G$124,5,FALSE)))","v":{"$error":"#REF!"}}]
[null,{"$f":"ACTIVIDADES!#REF!","v":{"$error":"#REF!"}},{"$f":"ACTIVIDADES!#REF!","v":{"$error":"#REF!"}},{"$f":"IF(B83=0,\" \",IF(B83='UE 1'!$B$31,\" \",IF('Tablas Tablero'!B83=Tablas!$B$206,\" \",IF('Tablas Tablero'!B83=Tablas!$B$207,\" \",IF('Tablas Tablero'!B83=Tablas!$B$208,\" \",IF('Tablas Tablero'!B83=Tablas!$B$209,\" \",IF('Tablas Tablero'!B83=Tablas!$B$210,\" \",IF('Tablas Tablero'!B83=Tablas!$B$211,\" \",'Tablas Tablero'!B83))))))))","v":{"$error":"#REF!"}},{"$f":"IFERROR(IF(B83=0,\" \",(VLOOKUP(D83,IMPACTOS!$C$11:$I$129,5,FALSE))),\"\")","v":""},{"$f":"IF(B83=0,\" \",(VLOOKUP(C83,ACTIVIDADES!$C$11:$G$124,5,FALSE)))","v":{"$error":"#REF!"}}]
[null,{"$f":"ACTIVIDADES!#REF!","v":{"$error":"#REF!"}},{"$f":"ACTIVIDADES!#REF!","v":{"$error":"#REF!"}},{"$f":"IF(B84=0,\" \",IF(B84='UE 1'!$B$31,\" \",IF('Tablas Tablero'!B84=Tablas!$B$206,\" \",IF('Tablas Tablero'!B84=Tablas!$B$207,\" \",IF('Tablas Tablero'!B84=Tablas!$B$208,\" \",IF('Tablas Tablero'!B84=Tablas!$B$209,\" \",IF('Tablas Tablero'!B84=Tablas!$B$210,\" \",IF('Tablas Tablero'!B84=Tablas!$B$211,\" \",'Tablas Tablero'!B84))))))))","v":{"$error":"#REF!"}},{"$f":"IFERROR(IF(B84=0,\" \",(VLOOKUP(D84,IMPACTOS!$C$11:$I$129,5,FALSE))),\"\")","v":""},{"$f":"IF(B84=0,\" \",(VLOOKUP(C84,ACTIVIDADES!$C$11:$G$124,5,FALSE)))","v":{"$error":"#REF!"}}]
[null,{"$f":"ACTIVIDADES!#REF!","v":{"$error":"#REF!"}},{"$f":"ACTIVIDADES!#REF!","v":{"$error":"#REF!"}},{"$f":"IF(B85=0,\" \",IF(B85='UE 1'!$B$31,\" \",IF('Tablas Tablero'!B85=Tablas!$B$206,\" \",IF('Tablas Tablero'!B85=Tablas!$B$207,\" \",IF('Tablas Tablero'!B85=Tablas!$B$208,\" \",IF('Tablas Tablero'!B85=Tablas!$B$209,\" \",IF('Tablas Tablero'!B85=Tablas!$B$210,\" \",IF('Tablas Tablero'!B85=Tablas!$B$211,\" \",'Tablas Tablero'!B85))))))))","v":{"$error":"#REF!"}},{"$f":"IFERROR(IF(B85=0,\" \",(VLOOKUP(D85,IMPACTOS!$C$11:$I$129,5,FALSE))),\"\")","v":""},{"$f":"IF(B85=0,\" \",(VLOOKUP(C85,ACTIVIDADES!$C$11:$G$124,5,FALSE)))","v":{"$error":"#REF!"}}]
[null,{"$f":"ACTIVIDADES!#REF!","v":{"$error":"#REF!"}},{"$f":"ACTIVIDADES!#REF!","v":{"$error":"#REF!"}},{"$f":"IF(B86=0,\" \",IF(B86='UE 1'!$B$31,\" \",IF('Tablas Tablero'!B86=Tablas!$B$206,\" \",IF('Tablas Tablero'!B86=Tablas!$B$207,\" \",IF('Tablas Tablero'!B86=Tablas!$B$208,\" \",IF('Tablas Tablero'!B86=Tablas!$B$209,\" \",IF('Tablas Tablero'!B86=Tablas!$B$210,\" \",IF('Tablas Tablero'!B86=Tablas!$B$211,\" \",'Tablas Tablero'!B86))))))))","v":{"$error":"#REF!"}},{"$f":"IFERROR(IF(B86=0,\" \",(VLOOKUP(D86,IMPACTOS!$C$11:$I$129,5,FALSE))),\"\")","v":""},{"$f":"IF(B86=0,\" \",(VLOOKUP(C86,ACTIVIDADES!$C$11:$G$124,5,FALSE)))","v":{"$error":"#REF!"}}]
[null,{"$f":"ACTIVIDADES!#REF!","v":{"$error":"#REF!"}},{"$f":"ACTIVIDADES!#REF!","v":{"$error":"#REF!"}},{"$f":"IF(B87=0,\" \",IF(B87='UE 1'!$B$31,\" \",IF('Tablas Tablero'!B87=Tablas!$B$206,\" \",IF('Tablas Tablero'!B87=Tablas!$B$207,\" \",IF('Tablas Tablero'!B87=Tablas!$B$208,\" \",IF('Tablas Tablero'!B87=Tablas!$B$209,\" \",IF('Tablas Tablero'!B87=Tablas!$B$210,\" \",IF('Tablas Tablero'!B87=Tablas!$B$211,\" \",'Tablas Tablero'!B87))))))))","v":{"$error":"#REF!"}},{"$f":"IFERROR(IF(B87=0,\" \",(VLOOKUP(D87,IMPACTOS!$C$11:$I$129,5,FALSE))),\"\")","v":""},{"$f":"IF(B87=0,\" \",(VLOOKUP(C87,ACTIVIDADES!$C$11:$G$124,5,FALSE)))","v":{"$error":"#REF!"}}]
[null,{"$f":"ACTIVIDADES!#REF!","v":{"$error":"#REF!"}},{"$f":"ACTIVIDADES!#REF!","v":{"$error":"#REF!"}},{"$f":"IF(B88=0,\" \",IF(B88='UE 1'!$B$31,\" \",IF('Tablas Tablero'!B88=Tablas!$B$206,\" \",IF('Tablas Tablero'!B88=Tablas!$B$207,\" \",IF('Tablas Tablero'!B88=Tablas!$B$208,\" \",IF('Tablas Tablero'!B88=Tablas!$B$209,\" \",IF('Tablas Tablero'!B88=Tablas!$B$210,\" \",IF('Tablas Tablero'!B88=Tablas!$B$211,\" \",'Tablas Tablero'!B88))))))))","v":{"$error":"#REF!"}},{"$f":"IFERROR(IF(B88=0,\" \",(VLOOKUP(D88,IMPACTOS!$C$11:$I$129,5,FALSE))),\"\")","v":""},{"$f":"IF(B88=0,\" \",(VLOOKUP(C88,ACTIVIDADES!$C$11:$G$124,5,FALSE)))","v":{"$error":"#REF!"}}]
[null,{"$f":"ACTIVIDADES!#REF!","v":{"$error":"#REF!"}},{"$f":"ACTIVIDADES!#REF!","v":{"$error":"#REF!"}},{"$f":"IF(B89=0,\" \",IF(B89='UE 1'!$B$31,\" \",IF('Tablas Tablero'!B89=Tablas!$B$206,\" \",IF('Tablas Tablero'!B89=Tablas!$B$207,\" \",IF('Tablas Tablero'!B89=Tablas!$B$208,\" \",IF('Tablas Tablero'!B89=Tablas!$B$209,\" \",IF('Tablas Tablero'!B89=Tablas!$B$210,\" \",IF('Tablas Tablero'!B89=Tablas!$B$211,\" \",'Tablas Tablero'!B89))))))))","v":{"$error":"#REF!"}},{"$f":"IFERROR(IF(B89=0,\" \",(VLOOKUP(D89,IMPACTOS!$C$11:$I$129,5,FALSE))),\"\")","v":""},{"$f":"IF(B89=0,\" \",(VLOOKUP(C89,ACTIVIDADES!$C$11:$G$124,5,FALSE)))","v":{"$error":"#REF!"}}]
[null,{"$f":"ACTIVIDADES!#REF!","v":{"$error":"#REF!"}},{"$f":"ACTIVIDADES!#REF!","v":{"$error":"#REF!"}},{"$f":"IF(B90=0,\" \",IF(B90='UE 1'!$B$31,\" \",IF('Tablas Tablero'!B90=Tablas!$B$206,\" \",IF('Tablas Tablero'!B90=Tablas!$B$207,\" \",IF('Tablas Tablero'!B90=Tablas!$B$208,\" \",IF('Tablas Tablero'!B90=Tablas!$B$209,\" \",IF('Tablas Tablero'!B90=Tablas!$B$210,\" \",IF('Tablas Tablero'!B90=Tablas!$B$211,\" \",'Tablas Tablero'!B90))))))))","v":{"$error":"#REF!"}},{"$f":"IFERROR(IF(B90=0,\" \",(VLOOKUP(D90,IMPACTOS!$C$11:$I$129,5,FALSE))),\"\")","v":""},{"$f":"IF(B90=0,\" \",(VLOOKUP(C90,ACTIVIDADES!$C$11:$G$124,5,FALSE)))","v":{"$error":"#REF!"}}]
[null,{"$f":"ACTIVIDADES!#REF!","v":{"$error":"#REF!"}},{"$f":"ACTIVIDADES!#REF!","v":{"$error":"#REF!"}},{"$f":"IF(B91=0,\" \",IF(B91='UE 1'!$B$31,\" \",IF('Tablas Tablero'!B91=Tablas!$B$206,\" \",IF('Tablas Tablero'!B91=Tablas!$B$207,\" \",IF('Tablas Tablero'!B91=Tablas!$B$208,\" \",IF('Tablas Tablero'!B91=Tablas!$B$209,\" \",IF('Tablas Tablero'!B91=Tablas!$B$210,\" \",IF('Tablas Tablero'!B91=Tablas!$B$211,\" \",'Tablas Tablero'!B91))))))))","v":{"$error":"#REF!"}},{"$f":"IFERROR(IF(B91=0,\" \",(VLOOKUP(D91,IMPACTOS!$C$11:$I$129,5,FALSE))),\"\")","v":""},{"$f":"IF(B91=0,\" \",(VLOOKUP(C91,ACTIVIDADES!$C$11:$G$124,5,FALSE)))","v":{"$error":"#REF!"}}]
[null,{"$f":"ACTIVIDADES!J13","v":0},{"$f":"ACTIVIDADES!C13","v":0},{"$f":"IF(B92=0,\" \",IF(B92='UE 1'!$B$31,\" \",IF('Tablas Tablero'!B92=Tablas!$B$206,\" \",IF('Tablas Tablero'!B92=Tablas!$B$207,\" \",IF('Tablas Tablero'!B92=Tablas!$B$208,\" \",IF('Tablas Tablero'!B92=Tablas!$B$209,\" \",IF('Tablas Tablero'!B92=Tablas!$B$210,\" \",IF('Tablas Tablero'!B92=Tablas!$B$211,\" \",'Tablas Tablero'!B92))))))))","v":" "},{"$f":"IFERROR(IF(B92=0,\" \",(VLOOKUP(D92,IMPACTOS!$C$11:$I$129,5,FALSE))),\"\")","v":" "},{"$f":"IF(B92=0,\" \",(VLOOKUP(C92,ACTIVIDADES!$C$11:$G$124,5,FALSE)))","v":" "}]
[null,{"$f":"ACTIVIDADES!J14","v":0},{"$f":"ACTIVIDADES!C14","v":0},{"$f":"IF(B93=0,\" \",IF(B93='UE 1'!$B$31,\" \",IF('Tablas Tablero'!B93=Tablas!$B$206,\" \",IF('Tablas Tablero'!B93=Tablas!$B$207,\" \",IF('Tablas Tablero'!B93=Tablas!$B$208,\" \",IF('Tablas Tablero'!B93=Tablas!$B$209,\" \",IF('Tablas Tablero'!B93=Tablas!$B$210,\" \",IF('Tablas Tablero'!B93=Tablas!$B$211,\" \",'Tablas Tablero'!B93))))))))","v":" "},{"$f":"IFERROR(IF(B93=0,\" \",(VLOOKUP(D93,IMPACTOS!$C$11:$I$129,5,FALSE))),\"\")","v":" "},{"$f":"IF(B93=0,\" \",(VLOOKUP(C93,ACTIVIDADES!$C$11:$G$124,5,FALSE)))","v":" "}]
[null,{"$f":"ACTIVIDADES!J15","v":0},{"$f":"ACTIVIDADES!C15","v":0},{"$f":"IF(B94=0,\" \",IF(B94='UE 1'!$B$31,\" \",IF('Tablas Tablero'!B94=Tablas!$B$206,\" \",IF('Tablas Tablero'!B94=Tablas!$B$207,\" \",IF('Tablas Tablero'!B94=Tablas!$B$208,\" \",IF('Tablas Tablero'!B94=Tablas!$B$209,\" \",IF('Tablas Tablero'!B94=Tablas!$B$210,\" \",IF('Tablas Tablero'!B94=Tablas!$B$211,\" \",'Tablas Tablero'!B94))))))))","v":" "},{"$f":"IFERROR(IF(B94=0,\" \",(VLOOKUP(D94,IMPACTOS!$C$11:$I$129,5,FALSE))),\"\")","v":" "},{"$f":"IF(B94=0,\" \",(VLOOKUP(C94,ACTIVIDADES!$C$11:$G$124,5,FALSE)))","v":" "}]
[null,{"$f":"ACTIVIDADES!J16","v":0},{"$f":"ACTIVIDADES!C16","v":0},{"$f":"IF(B95=0,\" \",IF(B95='UE 1'!$B$31,\" \",IF('Tablas Tablero'!B95=Tablas!$B$206,\" \",IF('Tablas Tablero'!B95=Tablas!$B$207,\" \",IF('Tablas Tablero'!B95=Tablas!$B$208,\" \",IF('Tablas Tablero'!B95=Tablas!$B$209,\" \",IF('Tablas Tablero'!B95=Tablas!$B$210,\" \",IF('Tablas Tablero'!B95=Tablas!$B$211,\" \",'Tablas Tablero'!B95))))))))","v":" "},{"$f":"IFERROR(IF(B95=0,\" \",(VLOOKUP(D95,IMPACTOS!$C$11:$I$129,5,FALSE))),\"\")","v":" "},{"$f":"IF(B95=0,\" \",(VLOOKUP(C95,ACTIVIDADES!$C$11:$G$124,5,FALSE)))","v":" "}]
[null,{"$f":"ACTIVIDADES!J17","v":0},{"$f":"ACTIVIDADES!C17","v":0},{"$f":"IF(B96=0,\" \",IF(B96='UE 1'!$B$31,\" \",IF('Tablas Tablero'!B96=Tablas!$B$206,\" \",IF('Tablas Tablero'!B96=Tablas!$B$207,\" \",IF('Tablas Tablero'!B96=Tablas!$B$208,\" \",IF('Tablas Tablero'!B96=Tablas!$B$209,\" \",IF('Tablas Tablero'!B96=Tablas!$B$210,\" \",IF('Tablas Tablero'!B96=Tablas!$B$211,\" \",'Tablas Tablero'!B96))))))))","v":" "},{"$f":"IFERROR(IF(B96=0,\" \",(VLOOKUP(D96,IMPACTOS!$C$11:$I$129,5,FALSE))),\"\")","v":" "},{"$f":"IF(B96=0,\" \",(VLOOKUP(C96,ACTIVIDADES!$C$11:$G$124,5,FALSE)))","v":" "}]
[null,{"$f":"ACTIVIDADES!J18","v":0},{"$f":"ACTIVIDADES!C18","v":0},{"$f":"IF(B97=0,\" \",IF(B97='UE 1'!$B$31,\" \",IF('Tablas Tablero'!B97=Tablas!$B$206,\" \",IF('Tablas Tablero'!B97=Tablas!$B$207,\" \",IF('Tablas Tablero'!B97=Tablas!$B$208,\" \",IF('Tablas Tablero'!B97=Tablas!$B$209,\" \",IF('Tablas Tablero'!B97=Tablas!$B$210,\" \",IF('Tablas Tablero'!B97=Tablas!$B$211,\" \",'Tablas Tablero'!B97))))))))","v":" "},{"$f":"IFERROR(IF(B97=0,\" \",(VLOOKUP(D97,IMPACTOS!$C$11:$I$129,5,FALSE))),\"\")","v":" "},{"$f":"IF(B97=0,\" \",(VLOOKUP(C97,ACTIVIDADES!$C$11:$G$124,5,FALSE)))","v":" "}]
[null,{"$f":"ACTIVIDADES!J19","v":0},{"$f":"ACTIVIDADES!C19","v":0},{"$f":"IF(B98=0,\" \",IF(B98='UE 1'!$B$31,\" \",IF('Tablas Tablero'!B98=Tablas!$B$206,\" \",IF('Tablas Tablero'!B98=Tablas!$B$207,\" \",IF('Tablas Tablero'!B98=Tablas!$B$208,\" \",IF('Tablas Tablero'!B98=Tablas!$B$209,\" \",IF('Tablas Tablero'!B98=Tablas!$B$210,\" \",IF('Tablas Tablero'!B98=Tablas!$B$211,\" \",'Tablas Tablero'!B98))))))))","v":" "},{"$f":"IFERROR(IF(B98=0,\" \",(VLOOKUP(D98,IMPACTOS!$C$11:$I$129,5,FALSE))),\"\")","v":" "},{"$f":"IF(B98=0,\" \",(VLOOKUP(C98,ACTIVIDADES!$C$11:$G$124,5,FALSE)))","v":" "}]
[null,{"$f":"ACTIVIDADES!J20","v":0},{"$f":"ACTIVIDADES!C20","v":0},{"$f":"IF(B99=0,\" \",IF(B99='UE 1'!$B$31,\" \",IF('Tablas Tablero'!B99=Tablas!$B$206,\" \",IF('Tablas Tablero'!B99=Tablas!$B$207,\" \",IF('Tablas Tablero'!B99=Tablas!$B$208,\" \",IF('Tablas Tablero'!B99=Tablas!$B$209,\" \",IF('Tablas Tablero'!B99=Tablas!$B$210,\" \",IF('Tablas Tablero'!B99=Tablas!$B$211,\" \",'Tablas Tablero'!B99))))))))","v":" "},{"$f":"IFERROR(IF(B99=0,\" \",(VLOOKUP(D99,IMPACTOS!$C$11:$I$129,5,FALSE))),\"\")","v":" "},{"$f":"IF(B99=0,\" \",(VLOOKUP(C99,ACTIVIDADES!$C$11:$G$124,5,FALSE)))","v":" "}]
[null,{"$f":"ACTIVIDADES!J21","v":0},{"$f":"ACTIVIDADES!C21","v":0},{"$f":"IF(B100=0,\" \",IF(B100='UE 1'!$B$31,\" \",IF('Tablas Tablero'!B100=Tablas!$B$206,\" \",IF('Tablas Tablero'!B100=Tablas!$B$207,\" \",IF('Tablas Tablero'!B100=Tablas!$B$208,\" \",IF('Tablas Tablero'!B100=Tablas!$B$209,\" \",IF('Tablas Tablero'!B100=Tablas!$B$210,\" \",IF('Tablas Tablero'!B100=Tablas!$B$211,\" \",'Tablas Tablero'!B100))))))))","v":" "},{"$f":"IFERROR(IF(B100=0,\" \",(VLOOKUP(D100,IMPACTOS!$C$11:$I$129,5,FALSE))),\"\")","v":" "},{"$f":"IF(B100=0,\" \",(VLOOKUP(B100,$B$3:$C$100,2,FALSE)))","v":" "}]